Workbook

Sheet Instructions
A1: Step 0 | B1: - Determine if your Fuel and Ignition maps have 19 or 21 columns (Load Cells) and use the appropriate tab
A3: Step 1 | B3: - Copy your current map into the Table 2
A5: Step 1a | B5: - (optional) Copy your stock map into Table 3 for reference use, or copy your current map into Table 3 (especially useful if you plan on doing multiple iterations of smoothing) as described in Step 3
A7: Step 2 | B7: - Adjust the Smoothing Limit values via the roller buttons until you achieve the level of smoothing desired. Note that if you desire to prevent any cells from going richer or leaner at all you would set the appropriate limiter to Zero. To prevent any limits on smoothing values on the order of 10 usually are sufficient
A9: Step 2a | B9: - (optional) If there are any specific cells which you do not want subject to smoothing, place a "1" in the appropriate cell in Table 4
B10: Note: that I have already set some cells to be locked by default, change them to "0" to unlock them
B11: Note2: You can see the impact of these locks buy toggling the green box titled "Prevent Smoothing" at the top of the sheet.
A13: Step 3 | B13: - If the table has not been smoothed enough for your taste, then select and copy Table 1, then select the upper left cell of Table 2 (Load 0 RPM 500). In the Edit menu select Paste Special, and in the dialog box that appears choose "Values" and press "Ok". Now Table 1 will represent the smoothed-smoothed values. Repeat until you are happy. The undo command will no longer work once you adjust any of the limits or toggle the Prevent Smoothing button. This is why placing a copy of your original map into Table 3 is useful for comparitive purposes.

Sheet Timing -19 Cell
A1: Main Ignition Maps | AE1: = Unsmoothed cells
Z3: 1 | AB3: Smoothed Ignition Map
AB4: Load Value | BR4: Interpolate | BS4: Interpolate
AB5: 0 | AC5: 10 | AD5: 20 | AE5: 30 | AF5: 40 | AG5: 50 | AH5: 60 | AI5: 70 | AJ5: 80 | AK5: 90 | AL5: 100 | AM5: 120 | AN5: 140 | AO5: 160 | AP5: 180 | AQ5: 200 | AR5: 220 | AS5: 240 | AT5: 260 | BR5: Ign. | BS5: Fuel.
Z6: RPM | AA6: 0 | AB6: =AB30 -> 5 | AC6: 5 | AD6: 5 | AE6: 5 | AF6: 5 | AG6: 11 | AH6: 15 | AI6: 6 | AJ6: 3 | AK6: 2 | AL6: -1 | AM6: -2 | AN6: -5 | AO6: -8 | AP6: -10 | AQ6: -10 | AR6: -10 | AS6: -10 | AT6: -10 | BR6: 0 | BS6: 500
AA7: 500 | AB7: =AB31 -> 5 | AC7: 5 | AD7: 5 | AE7: 5 | AF7: 5 | AG7: 8 | AH7: =AH31 -> 13 | AI7: 6 | AJ7: 3 | AK7: 2 | AL7: -1 | AM7: -2 | AN7: -5 | AO7: -8 | AP7: -10 | AQ7: -10 | AR7: -10 | AS7: -10 | AT7: -10 | BR7: 421.875 | BS7: 1035.16
AA8: 750 | AB8: =AB32 -> 5 | AC8: 5 | AD8: 5 | AE8: 5 | AF8: 5 | AG8: 9 | AH8: =AH32 -> 13 | AI8: =AI32 -> 10 | AJ8: =ROUND(AVERAGE(AJ32,AJ32,AI31:AK33),0) -> 6 | AK8: 4 | AL8: 2 | AM8: -1 | AN8: -3 | AO8: -6 | AP8: =AP32 -> -9 | AQ8: =AQ32 -> -10 | AR8: =AR32 -> -10 | AS8: =AS32 -> -10 | AT8: =AT32 -> -10 | BR8: 843.75 | BS8: 1570.31
AA9: 1000 | AB9: =AB33 -> 5 | AC9: 5 | AD9: 5 | AE9: 5 | AF9: 9 | AG9: 13 | AH9: =AH33 -> 18 | AI9: 12 | AJ9: =ROUND(AVERAGE(AJ33,AJ33,AI32:AK34),0) -> 10 | AK9: =ROUND(AVERAGE(AK33,AK33,AJ32:AL34),0) -> 7 | AL9: =ROUND(AVERAGE(AL33,AL33,AK32:AM34),0) -> 5 | AM9: =ROUND(AVERAGE(AM33,AM33,AL32:AN34),0) -> 2 | AN9: =ROUND(AVERAGE(AN33,AN33,AM32:AO34),0) -> -1 | AO9: =ROUND(AVERAGE(AO33,AO33,AN32:AP34),0) -> -3 | AP9: =ROUND(AVERAGE(AP33,AP33,AO32:AQ34),0) -> -6 | AQ9: =AQ33 -> -9 | AR9: =AR33 -> -10 | AS9: =AS33 -> -10 | AT9: =AT33 -> -10 | BR9: 1261.72 | BS9: 2105.47
AA10: 1250 | AB10: =AB34 -> 8 | AC10: 8 | AD10: 12 | AE10: 12 | AF10: 16 | AG10: 20 | AH10: =AH34 -> 20 | AI10: =AI34 -> 17 | AJ10: =AJ34 -> 14 | AK10: 11 | AL10: 8 | AM10: 6 | AN10: 3 | AO10: 0 | AP10: -3 | AQ10: -6 | AR10: -8 | AS10: =ROUND(AVERAGE(AS34,AS34,AR33:AT35),0) -> -9 | AT10: =ROUND(AVERAGE(AT34,AT34,AS33:AT35),0) -> -10 | BR10: 1683.59 | BS10: 2644.53
AA11: 1500 | AB11: =AB35 -> 13 | AC11: 13 | AD11: 19 | AE11: 19 | AF11: 26 | AG11: 24 | AH11: =AH35 -> 23 | AI11: =AI35 -> 21 | AJ11: =AJ35 -> 18 | AK11: 14 | AL11: 11 | AM11: 9 | AN11: 6 | AO11: 3 | AP11: 0 | AQ11: -3 | AR11: -6 | AS11: -8 | AT11: -9 | BR11: 2105.47 | BS11: 3179.69
AA12: 1750 | AB12: =AB36 -> 18 | AC12: =ROUND(AVERAGE(AC36,AC36,AB35:AD37),0) -> 20 | AD12: =AD36 -> 25 | AE12: =ROUND(AVERAGE(AE36,AE36,AD35:AF37),0) -> 26 | AF12: 27 | AG12: =ROUND(AVERAGE(AG36,AG36,AF35:AH37),0) -> 25 | AH12: 24 | AI12: 23 | AJ12: 20 | AK12: 17 | AL12: 14 | AM12: 11 | AN12: 8 | AO12: 5 | AP12: 2 | AQ12: -1 | AR12: -4 | AS12: -6 | AT12: -8 | BR12: 2527.34 | BS12: 3714.84
AA13: 2000 | AB13: 24 | AC13: 25 | AD13: 32 | AE13: =AE37 -> 32 | AF13: =ROUND(AVERAGE(AF37,AF37,AE36:AG38),0) -> 29 | AG13: 27 | AH13: 26 | AI13: 25 | AJ13: 23 | AK13: 20 | AL13: 16 | AM13: 13 | AN13: 9 | AO13: 6 | AP13: 3 | AQ13: 0 | AR13: -3 | AS13: -5 | AT13: -6 | BR13: 2949.22 | BS13: 4250
AA14: 2500 | AB14: 24 | AC14: 28 | AD14: 34 | AE14: =ROUND(AVERAGE(AE38,AE38,AD37:AF39),0) -> 34 | AF14: =ROUND(AVERAGE(AF38,AF38,AE37:AG39),0) -> 32 | AG14: =ROUND(AVERAGE(AG38,AG38,AF37:AH39),0) -> 30 | AH14: =AH38 -> 29 | AI14: =ROUND(AVERAGE(AI38,AI38,AH37:AJ39),0) -> 27 | AJ14: 25 | AK14: 22 | AL14: 19 | AM14: 15 | AN14: 11 | AO14: 7 | AP14: 5 | AQ14: 2 | AR14: -1 | AS14: -3 | AT14: -5 | BR14: 3367.19 | BS14: 4785.16
AA15: 3000 | AB15: 28 | AC15: 30 | AD15: 38 | AE15: =AE39 -> 38 | AF15: =AF39 -> 35 | AG15: 32 | AH15: =ROUND(AVERAGE(AH39,AH39,AG38:AI40),0) -> 30 | AI15: 29 | AJ15: 27 | AK15: 24 | AL15: 21 | AM15: 17 | AN15: 13 | AO15: 9 | AP15: 6 | AQ15: 4 | AR15: 1 | AS15: -1 | AT15: -3 | BR15: 3789.06 | BS15: 5320.31
AA16: 3500 | AB16: 28 | AC16: 31 | AD16: 38 | AE16: =AE40 -> 38 | AF16: =ROUND(AVERAGE(AF40,AF40,AE39:AG41),0) -> 35 | AG16: 32 | AH16: 31 | AI16: 29 | AJ16: 28 | AK16: 26 | AL16: 23 | AM16: 19 | AN16: 15 | AO16: 11 | AP16: 8 | AQ16: 6 | AR16: 3 | AS16: 1 | AT16: 0 | BR16: 4210.94 | BS16: 5855.47
AA17: 4000 | AB17: 28 | AC17: 32 | AD17: 38 | AE17: =AE41 -> 38 | AF17: 35 | AG17: 33 | AH17: 31 | AI17: 30 | AJ17: 28 | AK17: 26 | AL17: 24 | AM17: 20 | AN17: 16 | AO17: 12 | AP17: 9 | AQ17: 7 | AR17: 5 | AS17: 3 | AT17: 1 | AW17: MAP Difference Comparison | BR17: 4632.81 | BS17: 6394.53
AA18: 4500 | AB18: 33 | AC18: 34 | AD18: 38 | AE18: =AE42 -> 38 | AF18: 35 | AG18: 33 | AH18: 31 | AI18: 30 | AJ18: 28 | AK18: 26 | AL18: 24 | AM18: 20 | AN18: 16 | AO18: 13 | AP18: 10 | AQ18: 8 | AR18: 6 | AS18: 3 | AT18: 2 | AW18: 0 | AX18: 10 | AY18: 20 | AZ18: 30 | BA18: 40 | BB18: 50 | BC18: 60 | BD18: 70 | BE18: 80 | BF18: 90 | BG18: 100 | BH18: 120 | BI18: 140 | BJ18: 160 | BK18: 180 | BL18: 200 | BM18: 220 | BN18: 240 | BO18: 260 | BR18: 5050.78 | BS18: 6929.69
AA19: 5000 | AB19: =AB43 -> 38 | AC19: =AC43 -> 38 | AD19: =AD43 -> 38 | AE19: =AE43 -> 38 | AF19: 35 | AG19: 33 | AH19: 31 | AI19: 30 | AJ19: 28 | AK19: 27 | AL19: 24 | AM19: 20 | AN19: 17 | AO19: 13 | AP19: 11 | AQ19: 9 | AR19: 6 | AS19: 4 | AT19: 3 | AV19: 0 | AW19: =AB6-AB30 -> 0 | AX19: =AC6-AC30 -> 0 | AY19: =AD6-AD30 -> 0 | AZ19: =AE6-AE30 -> 0 | BA19: =AF6-AF30 -> 0 | BB19: =AG6-AG30 -> 0 | BC19: =AH6-AH30 -> 0 | BD19: =AI6-AI30 -> 0 | BE19: =AJ6-AJ30 -> 0 | BF19: =AK6-AK30 -> 0 | BG19: =AL6-AL30 -> 0 | BH19: =AM6-AM30 -> 0 | BI19: =AN6-AN30 -> 0 | BJ19: =AO6-AO30 -> 0 | BK19: =AP6-AP30 -> 0 | BL19: =AQ6-AQ30 -> 0 | BM19: =AR6-AR30 -> 0 | BN19: =AS6-AS30 -> 0 | BO19: =AT6-AT30 -> 0 | BR19: 5472.66 | BS19: 7464.84
AA20: 5500 | AB20: =AB44 -> 38 | AC20: =ROUND(AVERAGE(AC44,AC44,AB43:AD45),0) -> 38 | AD20: =AD44 -> 38 | AE20: =AE44 -> 38 | AF20: 35 | AG20: 33 | AH20: 31 | AI20: 30 | AJ20: 29 | AK20: 27 | AL20: 25 | AM20: 21 | AN20: 18 | AO20: 14 | AP20: 12 | AQ20: 9 | AR20: 7 | AS20: 5 | AT20: 4 | AV20: 500 | AW20: 0 | AX20: 0 | AY20: 0 | AZ20: 0 | BA20: 0 | BB20: 0 | BC20: 0 | BD20: 0 | BE20: 0 | BF20: 0 | BG20: 0 | BH20: 0 | BI20: 0 | BJ20: 0 | BK20: 0 | BL20: 0 | BM20: 0 | BN20: 0 | BO20: 0 | BR20: 5894.53 | BS20: 8000
AA21: 6000 | AB21: 38 | AC21: =ROUND(AVERAGE(AC45,AC45,AB44:AD46),0) -> 38 | AD21: =AD45 -> 38 | AE21: 38 | AF21: 36 | AG21: 34 | AH21: 33 | AI21: 32 | AJ21: 31 | AK21: 29 | AL21: 26 | AM21: 23 | AN21: 20 | AO21: 16 | AP21: 13 | AQ21: 10 | AR21: 8 | AS21: 6 | AT21: 6 | AV21: 750 | AW21: 0 | AX21: 0 | AY21: 0 | AZ21: 0 | BA21: 0 | BB21: 0 | BC21: 0 | BD21: 0 | BE21: 0 | BF21: 1 | BG21: 1 | BH21: 0 | BI21: 1 | BJ21: 0 | BK21: 0 | BL21: 0 | BM21: 0 | BN21: 0 | BO21: 0 | BR21: 6316.41
AA22: 6500 | AB22: 38 | AC22: =ROUND(AVERAGE(AC46,AC46,AB45:AD47),0) -> 38 | AD22: =ROUND(AVERAGE(AD46,AD46,AC45:AE47),0) -> 38 | AE22: 38 | AF22: 38 | AG22: 37 | AH22: =ROUND(AVERAGE(AH46,AH46,AG45:AI47),0) -> 35 | AI22: 34 | AJ22: 33 | AK22: 31 | AL22: 29 | AM22: 26 | AN22: 23 | AO22: 19 | AP22: 15 | AQ22: 12 | AR22: 9 | AS22: 8 | AT22: 7 | AV22: 1000 | AW22: 0 | AX22: 0 | AY22: 0 | AZ22: 0 | BA22: 0 | BB22: 0 | BC22: 0 | BD22: 2 | BE22: 1 | BF22: 0 | BG22: 0 | BH22: 0 | BI22: 0 | BJ22: 1 | BK22: 0 | BL22: 0 | BM22: 0 | BN22: 0 | BO22: 0 | BR22: 6738.28
AA23: 7000 | AB23: 38 | AC23: =ROUND(AVERAGE(AC47,AC47,AB46:AD48),0) -> 38 | AD23: =ROUND(AVERAGE(AD47,AD47,AC46:AE48),0) -> 38 | AE23: =ROUND(AVERAGE(AE47,AE47,AD46:AF48),0) -> 38 | AF23: 38 | AG23: 37 | AH23: =ROUND(AVERAGE(AH47,AH47,AG46:AI48),0) -> 36 | AI23: =ROUND(AVERAGE(AI47,AI47,AH46:AJ48),0) -> 35 | AJ23: =ROUND(AVERAGE(AJ47,AJ47,AI46:AK48),0) -> 34 | AK23: 33 | AL23: 31 | AM23: 29 | AN23: 25 | AO23: 21 | AP23: 17 | AQ23: 13 | AR23: 10 | AS23: 9 | AT23: 9 | AV23: 1250 | AW23: 0 | AX23: 0 | AY23: 0 | AZ23: 0 | BA23: 0 | BB23: 0 | BC23: 0 | BD23: 0 | BE23: 0 | BF23: 0 | BG23: 0 | BH23: 0 | BI23: 0 | BJ23: 0 | BK23: 0 | BL23: 0 | BM23: 0 | BN23: 0 | BO23: 0 | BR23: 7156.25
AA24: 7500 | AB24: 38 | AC24: =ROUND(AVERAGE(AC48,AC48,AB47:AD49),0) -> 38 | AD24: =ROUND(AVERAGE(AD48,AD48,AC47:AE49),0) -> 38 | AE24: 38 | AF24: 38 | AG24: 37 | AH24: =ROUND(AVERAGE(AH48,AH48,AG47:AI49),0) -> 36 | AI24: =ROUND(AVERAGE(AI48,AI48,AH47:AJ49),0) -> 35 | AJ24: =ROUND(AVERAGE(AJ48,AJ48,AI47:AK49),0) -> 35 | AK24: 34 | AL24: 32 | AM24: 30 | AN24: 26 | AO24: 22 | AP24: 17 | AQ24: 14 | AR24: 11 | AS24: 10 | AT24: 10 | AV24: 1500 | AW24: 0 | AX24: 0 | AY24: 0 | AZ24: 0 | BA24: 0 | BB24: 0 | BC24: 0 | BD24: 0 | BE24: 0 | BF24: 0 | BG24: 0 | BH24: 0 | BI24: 0 | BJ24: 0 | BK24: 0 | BL24: 0 | BM24: 0 | BN24: 0 | BO24: 0 | BR24: 7578.12
AA25: 11000 | AB25: 38 | AC25: =ROUND(AVERAGE(AC49,AC49,AB48:AD49),0) -> 38 | AD25: 38 | AE25: 38 | AF25: 38 | AG25: 37 | AH25: 36 | AI25: 35 | AJ25: 35 | AK25: 34 | AL25: 33 | AM25: 30 | AN25: 27 | AO25: 22 | AP25: 18 | AQ25: 14 | AR25: 12 | AS25: =ROUND(AVERAGE(AS49,AS49,AR48:AT49),0) -> 10 | AT25: =ROUND(AVERAGE(AT49,AS48:AT49),0) -> 10 | AV25: 1750 | AW25: 0 | AX25: 2 | AY25: 0 | AZ25: 1 | BA25: 0 | BB25: 0 | BC25: 0 | BD25: 0 | BE25: -1 | BF25: 0 | BG25: 0 | BH25: 0 | BI25: 0 | BJ25: 0 | BK25: 0 | BL25: 0 | BM25: 0 | BN25: 1 | BO25: 0 | BR25: 8000
AV26: 2000 | AW26: 0 | AX26: 1 | AY26: 0 | AZ26: 0 | BA26: 0 | BB26: 1 | BC26: 0 | BD26: 0 | BE26: 0 | BF26: 0 | BG26: 0 | BH26: 0 | BI26: 0 | BJ26: 0 | BK26: 0 | BL26: 0 | BM26: 0 | BN26: 0 | BO26: 1
Z27: 2 | AB27: Modded Ignition Map | AV27: 2500 | AW27: 0 | AX27: 4 | AY27: 0 | AZ27: 0 | BA27: 0 | BB27: 0 | BC27: 0 | BD27: 0 | BE27: 0 | BF27: 0 | BG27: 0 | BH27: 0 | BI27: 1 | BJ27: 0 | BK27: 0 | BL27: 0 | BM27: 0 | BN27: 1 | BO27: 1
AB28: Load Value | AV28: 3000 | AW28: 0 | AX28: 2 | AY28: 0 | AZ28: 0 | BA28: 0 | BB28: 0 | BC28: 0 | BD28: 0 | BE28: 0 | BF28: -1 | BG28: -1 | BH28: 0 | BI28: 0 | BJ28: 1 | BK28: 0 | BL28: 0 | BM28: 0 | BN28: 1 | BO28: 0
AB29: 0 | AC29: 10 | AD29: 20 | AE29: 30 | AF29: 40 | AG29: 50 | AH29: 60 | AI29: 70 | AJ29: 80 | AK29: 90 | AL29: 100 | AM29: 120 | AN29: 140 | AO29: 160 | AP29: 180 | AQ29: 200 | AR29: 220 | AS29: 240 | AT29: 260 | AV29: 3500 | AW29: 0 | AX29: 3 | AY29: 0 | AZ29: 0 | BA29: 0 | BB29: 0 | BC29: 0 | BD29: -1 | BE29: 0 | BF29: 0 | BG29: -1 | BH29: 0 | BI29: 0 | BJ29: 0 | BK29: 0 | BL29: 0 | BM29: -1 | BN29: 0 | BO29: 1
Z30: RPM | AA30: 0 | AB30: 5 | AC30: 5 | AD30: 5 | AE30: 5 | AF30: 5 | AG30: 11 | AH30: 15 | AI30: 6 | AJ30: 3 | AK30: 2 | AL30: -1 | AM30: -2 | AN30: -5 | AO30: -8 | AP30: -10 | AQ30: -10 | AR30: -10 | AS30: -10 | AT30: -10 | AV30: 4000 | AW30: 0 | AX30: 4 | AY30: 0 | AZ30: 0 | BA30: 0 | BB30: 1 | BC30: 0 | BD30: 0 | BE30: 0 | BF30: -1 | BG30: 0 | BH30: 0 | BI30: 0 | BJ30: 0 | BK30: 0 | BL30: 0 | BM30: 0 | BN30: 0 | BO30: 0
AA31: 500 | AB31: 5 | AC31: 5 | AD31: 5 | AE31: 5 | AF31: 5 | AG31: 8 | AH31: 13 | AI31: 6 | AJ31: 3 | AK31: 2 | AL31: -1 | AM31: -2 | AN31: -5 | AO31: -8 | AP31: -10 | AQ31: -10 | AR31: -10 | AS31: -10 | AT31: -10 | AV31: 4500 | AW31: 0 | AX31: 1 | AY31: 0 | AZ31: 0 | BA31: 0 | BB31: 1 | BC31: 0 | BD31: 0 | BE31: 0 | BF31: -1 | BG31: 0 | BH31: 0 | BI31: 0 | BJ31: 0 | BK31: 0 | BL31: 0 | BM31: 0 | BN31: 0 | BO31: 0
AA32: 750 | AB32: 5 | AC32: 5 | AD32: 5 | AE32: 5 | AF32: 5 | AG32: 9 | AH32: 13 | AI32: 10 | AJ32: 6 | AK32: 3 | AL32: 1 | AM32: -1 | AN32: -4 | AO32: -6 | AP32: -9 | AQ32: -10 | AR32: -10 | AS32: -10 | AT32: -10 | AV32: 5000 | AW32: 0 | AX32: 0 | AY32: 0 | AZ32: 0 | BA32: 0 | BB32: 1 | BC32: 0 | BD32: 0 | BE32: 0 | BF32: 0 | BG32: 0 | BH32: 0 | BI32: 1 | BJ32: 0 | BK32: 0 | BL32: 0 | BM32: 0 | BN32: 1 | BO32: 1
AA33: 1000 | AB33: 5 | AC33: 5 | AD33: 5 | AE33: 5 | AF33: 9 | AG33: 13 | AH33: 18 | AI33: 10 | AJ33: 9 | AK33: 7 | AL33: 5 | AM33: 2 | AN33: -1 | AO33: -4 | AP33: -6 | AQ33: -9 | AR33: -10 | AS33: -10 | AT33: -10 | AV33: 5500 | AW33: 0 | AX33: 0 | AY33: 0 | AZ33: 0 | BA33: 0 | BB33: 1 | BC33: 0 | BD33: 0 | BE33: 0 | BF33: 0 | BG33: 0 | BH33: 0 | BI33: 1 | BJ33: 0 | BK33: 0 | BL33: 0 | BM33: 0 | BN33: 1 | BO33: 0
AA34: 1250 | AB34: 8 | AC34: 8 | AD34: 12 | AE34: 12 | AF34: 16 | AG34: 20 | AH34: 20 | AI34: 17 | AJ34: 14 | AK34: 11 | AL34: 8 | AM34: 6 | AN34: 3 | AO34: 0 | AP34: -3 | AQ34: -6 | AR34: -8 | AS34: -9 | AT34: -10 | AV34: 6000 | AW34: 0 | AX34: 0 | AY34: 0 | AZ34: 0 | BA34: 1 | BB34: 0 | BC34: 1 | BD34: 0 | BE34: 1 | BF34: 0 | BG34: 0 | BH34: 0 | BI34: 1 | BJ34: 0 | BK34: 0 | BL34: 0 | BM34: 0 | BN34: 0 | BO34: 1
AA35: 1500 | AB35: 13 | AC35: 13 | AD35: 19 | AE35: 19 | AF35: 26 | AG35: 24 | AH35: 23 | AI35: 21 | AJ35: 18 | AK35: 14 | AL35: 11 | AM35: 9 | AN35: 6 | AO35: 3 | AP35: 0 | AQ35: -3 | AR35: -6 | AS35: -8 | AT35: -9 | AV35: 6500 | AW35: 0 | AX35: 0 | AY35: 0 | AZ35: 0 | BA35: 0 | BB35: 0 | BC35: 0 | BD35: 0 | BE35: 0 | BF35: -1 | BG35: -1 | BH35: 0 | BI35: 0 | BJ35: 0 | BK35: 0 | BL35: 1 | BM35: 0 | BN35: 0 | BO35: 0
AA36: 1750 | AB36: 18 | AC36: 18 | AD36: 25 | AE36: 25 | AF36: 27 | AG36: 25 | AH36: 24 | AI36: 23 | AJ36: 21 | AK36: 17 | AL36: 14 | AM36: 11 | AN36: 8 | AO36: 5 | AP36: 2 | AQ36: -1 | AR36: -4 | AS36: -7 | AT36: -8 | AV36: 7000 | AW36: 0 | AX36: 0 | AY36: 0 | AZ36: 0 | BA36: 0 | BB36: 0 | BC36: 0 | BD36: 0 | BE36: 0 | BF36: -1 | BG36: -1 | BH36: 0 | BI36: -1 | BJ36: -1 | BK36: 0 | BL36: 1 | BM36: 0 | BN36: 0 | BO36: 0
AA37: 2000 | AB37: 24 | AC37: 24 | AD37: 32 | AE37: 32 | AF37: 29 | AG37: 26 | AH37: 26 | AI37: 25 | AJ37: 23 | AK37: 20 | AL37: 16 | AM37: 13 | AN37: 9 | AO37: 6 | AP37: 3 | AQ37: 0 | AR37: -3 | AS37: -5 | AT37: -7 | AV37: 7500 | AW37: 0 | AX37: 0 | AY37: 0 | AZ37: 0 | BA37: 0 | BB37: 0 | BC37: 0 | BD37: 0 | BE37: 0 | BF37: 0 | BG37: -1 | BH37: 0 | BI37: -1 | BJ37: 0 | BK37: 0 | BL37: 1 | BM37: 0 | BN37: 0 | BO37: 0
AA38: 2500 | AB38: 24 | AC38: 24 | AD38: 34 | AE38: 34 | AF38: 32 | AG38: 30 | AH38: 29 | AI38: 27 | AJ38: 25 | AK38: 22 | AL38: 19 | AM38: 15 | AN38: 10 | AO38: 7 | AP38: 5 | AQ38: 2 | AR38: -1 | AS38: -4 | AT38: -6 | AV38: 11000 | AW38: 0 | AX38: 0 | AY38: 0 | AZ38: 0 | BA38: 0 | BB38: 0 | BC38: 0 | BD38: 0 | BE38: 0 | BF38: 0 | BG38: 0 | BH38: 0 | BI38: 0 | BJ38: 0 | BK38: 0 | BL38: 0 | BM38: 0 | BN38: 0 | BO38: 0
AA39: 3000 | AB39: 28 | AC39: 28 | AD39: 38 | AE39: 38 | AF39: 35 | AG39: 32 | AH39: 30 | AI39: 29 | AJ39: 27 | AK39: 25 | AL39: 22 | AM39: 17 | AN39: 13 | AO39: 8 | AP39: 6 | AQ39: 4 | AR39: 1 | AS39: -2 | AT39: -3
AA40: 3500 | AB40: 28 | AC40: 28 | AD40: 38 | AE40: 38 | AF40: 35 | AG40: 32 | AH40: 31 | AI40: 30 | AJ40: 28 | AK40: 26 | AL40: 24 | AM40: 19 | AN40: 15 | AO40: 11 | AP40: 8 | AQ40: 6 | AR40: 4 | AS40: 1 | AT40: -1
AA41: 4000 | AB41: 28 | AC41: 28 | AD41: 38 | AE41: 38 | AF41: 35 | AG41: 32 | AH41: 31 | AI41: 30 | AJ41: 28 | AK41: 27 | AL41: 24 | AM41: 20 | AN41: 16 | AO41: 12 | AP41: 9 | AQ41: 7 | AR41: 5 | AS41: 3 | AT41: 1
AA42: 4500 | AB42: 33 | AC42: 33 | AD42: 38 | AE42: 38 | AF42: 35 | AG42: 32 | AH42: 31 | AI42: 30 | AJ42: 28 | AK42: 27 | AL42: 24 | AM42: 20 | AN42: 16 | AO42: 13 | AP42: 10 | AQ42: 8 | AR42: 6 | AS42: 3 | AT42: 2 | AW42: MAP Difference Comparison
AA43: 5000 | AB43: 38 | AC43: 38 | AD43: 38 | AE43: 38 | AF43: 35 | AG43: 32 | AH43: 31 | AI43: 30 | AJ43: 28 | AK43: 27 | AL43: 24 | AM43: 20 | AN43: 16 | AO43: 13 | AP43: 11 | AQ43: 9 | AR43: 6 | AS43: 3 | AT43: 2 | AW43: 0 | AX43: 10 | AY43: 20 | AZ43: 30 | BA43: 40 | BB43: 50 | BC43: 60 | BD43: 70 | BE43: 80 | BF43: 90 | BG43: 100 | BH43: 120 | BI43: 140 | BJ43: 160 | BK43: 180 | BL43: 200 | BM43: 220 | BN43: 240 | BO43: 260
AA44: 5500 | AB44: 38 | AC44: 38 | AD44: 38 | AE44: 38 | AF44: 35 | AG44: 32 | AH44: 31 | AI44: 30 | AJ44: 29 | AK44: 27 | AL44: 25 | AM44: 21 | AN44: 17 | AO44: 14 | AP44: 12 | AQ44: 9 | AR44: 7 | AS44: 4 | AT44: 4 | AV44: 0 | AW44: =AB30-AB54 -> 0 | AX44: =AC30-AC54 -> 0 | AY44: 0 | AZ44: 0 | BA44: 0 | BB44: 0 | BC44: 0 | BD44: 0 | BE44: 0 | BF44: 0 | BG44: 0 | BH44: 0 | BI44: 0 | BJ44: 0 | BK44: 0 | BL44: 0 | BM44: 0 | BN44: 0 | BO44: 0
AA45: 6000 | AB45: 38 | AC45: 38 | AD45: 38 | AE45: 38 | AF45: 35 | AG45: 34 | AH45: 32 | AI45: 32 | AJ45: 30 | AK45: 29 | AL45: 26 | AM45: 23 | AN45: 19 | AO45: 16 | AP45: 13 | AQ45: 10 | AR45: 8 | AS45: 6 | AT45: 5 | AV45: 500 | AW45: =AB31-AB55 -> 0 | AX45: =AC31-AC55 -> 0 | AY45: =AD31-AD55 -> 0 | AZ45: =AE31-AE55 -> 0 | BA45: =AF31-AF55 -> 0 | BB45: =AG31-AG55 -> 0 | BC45: =AH31-AH55 -> 0 | BD45: =AI31-AI55 -> 0 | BE45: =AJ31-AJ55 -> 0 | BF45: =AK31-AK55 -> 0 | BG45: =AL31-AL55 -> 0 | BH45: =AM31-AM55 -> 0 | BI45: =AN31-AN55 -> 0 | BJ45: =AO31-AO55 -> 0 | BK45: =AP31-AP55 -> 0 | BL45: =AQ31-AQ55 -> 0 | BM45: =AR31-AR55 -> 0 | BN45: =AS31-AS55 -> 0 | BO45: =AT31-AT55 -> 0
AA46: 6500 | AB46: 38 | AC46: 38 | AD46: 38 | AE46: 38 | AF46: 38 | AG46: 37 | AH46: 35 | AI46: 34 | AJ46: 33 | AK46: 32 | AL46: 30 | AM46: 26 | AN46: 23 | AO46: 19 | AP46: 15 | AQ46: 11 | AR46: 9 | AS46: 8 | AT46: 7 | AV46: 750 | AW46: 0 | AX46: 0 | AY46: 0 | AZ46: 0 | BA46: 0 | BB46: 0 | BC46: 0 | BD46: 0 | BE46: 0 | BF46: 1 | BG46: 3 | BH46: 2 | BI46: 1 | BJ46: 2 | BK46: 1 | BL46: 0 | BM46: 0 | BN46: 0 | BO46: 0
AA47: 7000 | AB47: 38 | AC47: 38 | AD47: 38 | AE47: 38 | AF47: 38 | AG47: 37 | AH47: 36 | AI47: 35 | AJ47: 34 | AK47: 34 | AL47: 32 | AM47: 29 | AN47: 26 | AO47: 22 | AP47: 17 | AQ47: 12 | AR47: 10 | AS47: 9 | AT47: 9 | AV47: 1000 | AW47: 0 | AX47: 0 | AY47: 0 | AZ47: 0 | BA47: 0 | BB47: 0 | BC47: 0 | BD47: 0 | BE47: 1 | BF47: 0 | BG47: -2 | BH47: -2 | BI47: -2 | BJ47: -1 | BK47: 0 | BL47: 1 | BM47: 0 | BN47: 0 | BO47: 0
AA48: 7500 | AB48: 38 | AC48: 38 | AD48: 38 | AE48: 38 | AF48: 38 | AG48: 37 | AH48: 36 | AI48: 35 | AJ48: 35 | AK48: 34 | AL48: 33 | AM48: 30 | AN48: 27 | AO48: 22 | AP48: 17 | AQ48: 13 | AR48: 11 | AS48: 10 | AT48: 10 | AV48: 1250 | AW48: 0 | AX48: 0 | AY48: 0 | AZ48: 0 | BA48: 0 | BB48: 0 | BC48: 0 | BD48: 0 | BE48: -1 | BF48: 2 | BG48: 0 | BH48: 2 | BI48: 1 | BJ48: 1 | BK48: 1 | BL48: 1 | BM48: 2 | BN48: 1 | BO48: 0
AA49: 11000 | AB49: 38 | AC49: 38 | AD49: 38 | AE49: 38 | AF49: 38 | AG49: 37 | AH49: 36 | AI49: 35 | AJ49: 35 | AK49: 34 | AL49: 33 | AM49: 30 | AN49: 27 | AO49: 22 | AP49: 18 | AQ49: 14 | AR49: 12 | AS49: 10 | AT49: 10 | AV49: 1500 | AW49: 0 | AX49: 0 | AY49: 0 | AZ49: 0 | BA49: 0 | BB49: 0 | BC49: 0 | BD49: 0 | BE49: -1 | BF49: 0 | BG49: -1 | BH49: -1 | BI49: -1 | BJ49: -1 | BK49: -1 | BL49: -1 | BM49: -1 | BN49: 0 | BO49: 1
AV50: 1750 | AW50: 0 | AX50: 0 | AY50: 0 | AZ50: 0 | BA50: 0 | BB50: 0 | BC50: 0 | BD50: 0 | BE50: 0 | BF50: 0 | BG50: 0 | BH50: 0 | BI50: 0 | BJ50: 0 | BK50: 0 | BL50: 0 | BM50: 0 | BN50: 0 | BO50: 1
Z51: 3 | AB51: Original (or Stock) Ignition Map | AV51: 2000 | AW51: 0 | AX51: 0 | AY51: 0 | AZ51: 0 | BA51: 0 | BB51: 0 | BC51: 0 | BD51: 0 | BE51: -1 | BF51: 0 | BG51: -1 | BH51: 1 | BI51: -1 | BJ51: -1 | BK51: -1 | BL51: -1 | BM51: -1 | BN51: 0 | BO51: 1
AB52: Load Value | AV52: 2500 | AW52: 0 | AX52: 0 | AY52: 0 | AZ52: 0 | BA52: 0 | BB52: 0 | BC52: 0 | BD52: 0 | BE52: 0 | BF52: 2 | BG52: -1 | BH52: 0 | BI52: 1 | BJ52: 0 | BK52: 1 | BL52: 1 | BM52: 1 | BN52: 1 | BO52: 2
AB53: 0 | AC53: 10 | AD53: 20 | AE53: 30 | AF53: 40 | AG53: 50 | AH53: 60 | AI53: 70 | AJ53: 80 | AK53: 90 | AL53: 100 | AM53: 120 | AN53: 140 | AO53: 160 | AP53: 180 | AQ53: 200 | AR53: 220 | AS53: 240 | AT53: 260 | AV53: 3000 | AW53: 0 | AX53: 0 | AY53: 0 | AZ53: 0 | BA53: 0 | BB53: 0 | BC53: 0 | BD53: 0 | BE53: -1 | BF53: -1 | BG53: 0 | BH53: -1 | BI53: 1 | BJ53: 1 | BK53: 0 | BL53: -1 | BM53: 0 | BN53: 0 | BO53: 2
Z54: RPM | AA54: 0 | AB54: 5 | AC54: 5 | AD54: 5 | AE54: 5 | AF54: 5 | AG54: 11 | AH54: 15 | AI54: 6 | AJ54: 3 | AK54: 2 | AL54: -1 | AM54: -2 | AN54: -5 | AO54: -8 | AP54: -10 | AQ54: -10 | AR54: -10 | AS54: -10 | AT54: -10 | AV54: 3500 | AW54: 0 | AX54: 0 | AY54: 0 | AZ54: 0 | BA54: 0 | BB54: 0 | BC54: 0 | BD54: 0 | BE54: 0 | BF54: -1 | BG54: -1 | BH54: -1 | BI54: 0 | BJ54: 0 | BK54: 0 | BL54: -1 | BM54: -1 | BN54: -1 | BO54: 0
AA55: 500 | AB55: 5 | AC55: 5 | AD55: 5 | AE55: 5 | AF55: 5 | AG55: 8 | AH55: 13 | AI55: 6 | AJ55: 3 | AK55: 2 | AL55: -1 | AM55: -2 | AN55: -5 | AO55: -8 | AP55: -10 | AQ55: -10 | AR55: -10 | AS55: -10 | AT55: -10 | AV55: 4000 | AW55: 0 | AX55: 0 | AY55: 0 | AZ55: 0 | BA55: 0 | BB55: 0 | BC55: 0 | BD55: 0 | BE55: 0 | BF55: 0 | BG55: -1 | BH55: 0 | BI55: 1 | BJ55: 0 | BK55: 0 | BL55: -1 | BM55: -2 | BN55: 0 | BO55: 1
AA56: 750 | AB56: 5 | AC56: 5 | AD56: 5 | AE56: 5 | AF56: 5 | AG56: 9 | AH56: 13 | AI56: 10 | AJ56: 6 | AK56: 2 | AL56: -2 | AM56: -3 | AN56: -5 | AO56: -8 | AP56: -10 | AQ56: -10 | AR56: -10 | AS56: -10 | AT56: -10 | AV56: 4500 | AW56: 0 | AX56: 0 | AY56: 0 | AZ56: 0 | BA56: 0 | BB56: 0 | BC56: 0 | BD56: 0 | BE56: 0 | BF56: 0 | BG56: -1 | BH56: 0 | BI56: 0 | BJ56: 0 | BK56: 0 | BL56: 0 | BM56: 1 | BN56: 1 | BO56: 3
AA57: 1000 | AB57: 5 | AC57: 5 | AD57: 5 | AE57: 5 | AF57: 9 | AG57: 13 | AH57: 18 | AI57: 10 | AJ57: 8 | AK57: 7 | AL57: 7 | AM57: 4 | AN57: 1 | AO57: -3 | AP57: -6 | AQ57: -10 | AR57: -10 | AS57: -10 | AT57: -10 | AV57: 5000 | AW57: 0 | AX57: 0 | AY57: 0 | AZ57: 0 | BA57: 0 | BB57: 0 | BC57: 0 | BD57: 0 | BE57: 0 | BF57: 0 | BG57: -1 | BH57: 0 | BI57: 0 | BJ57: 1 | BK57: 1 | BL57: -1 | BM57: -1 | BN57: -1 | BO57: 1
AA58: 1250 | AB58: 8 | AC58: 8 | AD58: 12 | AE58: 12 | AF58: 16 | AG58: 20 | AH58: 20 | AI58: 17 | AJ58: 15 | AK58: 9 | AL58: 8 | AM58: 4 | AN58: 2 | AO58: -1 | AP58: -4 | AQ58: -7 | AR58: -10 | AS58: -10 | AT58: -10 | AV58: 5500 | AW58: 0 | AX58: 0 | AY58: 0 | AZ58: 0 | BA58: 0 | BB58: 0 | BC58: 0 | BD58: 0 | BE58: 1 | BF58: 0 | BG58: 0 | BH58: 1 | BI58: 2 | BJ58: 1 | BK58: 1 | BL58: 0 | BM58: 1 | BN58: 1 | BO58: 4
AA59: 1500 | AB59: 13 | AC59: 13 | AD59: 19 | AE59: 19 | AF59: 26 | AG59: 24 | AH59: 23 | AI59: 21 | AJ59: 19 | AK59: 14 | AL59: 12 | AM59: 10 | AN59: 7 | AO59: 4 | AP59: 1 | AQ59: -2 | AR59: -5 | AS59: -8 | AT59: -10 | AV59: 6000 | AW59: 0 | AX59: 0 | AY59: 0 | AZ59: 0 | BA59: 0 | BB59: 0 | BC59: 0 | BD59: 1 | BE59: 0 | BF59: 1 | BG59: 0 | BH59: 0 | BI59: 1 | BJ59: 0 | BK59: -1 | BL59: -3 | BM59: -2 | BN59: -1 | BO59: 1
AA60: 1750 | AB60: 18 | AC60: 18 | AD60: 25 | AE60: 25 | AF60: 27 | AG60: 25 | AH60: 24 | AI60: 23 | AJ60: 21 | AK60: 17 | AL60: 14 | AM60: 11 | AN60: 8 | AO60: 5 | AP60: 2 | AQ60: -1 | AR60: -4 | AS60: -7 | AT60: -9 | AV60: 6500 | AW60: 0 | AX60: 0 | AY60: 0 | AZ60: 0 | BA60: 0 | BB60: 0 | BC60: 0 | BD60: 0 | BE60: -1 | BF60: 0 | BG60: 0 | BH60: -1 | BI60: 1 | BJ60: -1 | BK60: -3 | BL60: -4 | BM60: -3 | BN60: -1 | BO60: 1
AA61: 2000 | AB61: 24 | AC61: 24 | AD61: 32 | AE61: 32 | AF61: 29 | AG61: 26 | AH61: 26 | AI61: 25 | AJ61: 24 | AK61: 20 | AL61: 17 | AM61: 12 | AN61: 10 | AO61: 7 | AP61: 4 | AQ61: 1 | AR61: -2 | AS61: -5 | AT61: -8 | AV61: 7000 | AW61: 0 | AX61: 0 | AY61: 0 | AZ61: 0 | BA61: 0 | BB61: 0 | BC61: 0 | BD61: 0 | BE61: -1 | BF61: 0 | BG61: -2 | BH61: -2 | BI61: 0 | BJ61: -2 | BK61: -4 | BL61: -6 | BM61: -5 | BN61: -3 | BO61: 0
AA62: 2500 | AB62: 24 | AC62: 24 | AD62: 34 | AE62: 34 | AF62: 32 | AG62: 30 | AH62: 29 | AI62: 27 | AJ62: 25 | AK62: 20 | AL62: 20 | AM62: 15 | AN62: 9 | AO62: 7 | AP62: 4 | AQ62: 1 | AR62: -2 | AS62: -5 | AT62: -8 | AV62: 7500 | AW62: 0 | AX62: 0 | AY62: 0 | AZ62: 0 | BA62: 0 | BB62: 0 | BC62: 0 | BD62: 0 | BE62: 0 | BF62: 0 | BG62: -1 | BH62: -1 | BI62: 1 | BJ62: -2 | BK62: -4 | BL62: -5 | BM62: -4 | BN62: -2 | BO62: 1
AA63: 3000 | AB63: 28 | AC63: 28 | AD63: 38 | AE63: 38 | AF63: 35 | AG63: 32 | AH63: 30 | AI63: 29 | AJ63: 28 | AK63: 26 | AL63: 22 | AM63: 18 | AN63: 12 | AO63: 7 | AP63: 6 | AQ63: 5 | AR63: 1 | AS63: -2 | AT63: -5 | AV63: 11000 | AW63: 0 | AX63: 0 | AY63: 0 | AZ63: 0 | BA63: 0 | BB63: 0 | BC63: 0 | BD63: 0 | BE63: 0 | BF63: 0 | BG63: -1 | BH63: -1 | BI63: 1 | BJ63: -2 | BK63: -3 | BL63: -4 | BM63: -3 | BN63: -2 | BO63: 1
AA64: 3500 | AB64: 28 | AC64: 28 | AD64: 38 | AE64: 38 | AF64: 35 | AG64: 32 | AH64: 31 | AI64: 30 | AJ64: 28 | AK64: 27 | AL64: 25 | AM64: 20 | AN64: 15 | AO64: 11 | AP64: 8 | AQ64: 7 | AR64: 5 | AS64: 2 | AT64: -1
AA65: 4000 | AB65: 28 | AC65: 28 | AD65: 38 | AE65: 38 | AF65: 35 | AG65: 32 | AH65: 31 | AI65: 30 | AJ65: 28 | AK65: 27 | AL65: 25 | AM65: 20 | AN65: 15 | AO65: 12 | AP65: 9 | AQ65: 8 | AR65: 7 | AS65: 3 | AT65: 0
AA66: 4500 | AB66: 33 | AC66: 33 | AD66: 38 | AE66: 38 | AF66: 35 | AG66: 32 | AH66: 31 | AI66: 30 | AJ66: 28 | AK66: 27 | AL66: 25 | AM66: 20 | AN66: 16 | AO66: 13 | AP66: 10 | AQ66: 8 | AR66: 5 | AS66: 2 | AT66: -1
AA67: 5000 | AB67: 38 | AC67: 38 | AD67: 38 | AE67: 38 | AF67: 35 | AG67: 32 | AH67: 31 | AI67: 30 | AJ67: 28 | AK67: 27 | AL67: 25 | AM67: 20 | AN67: 16 | AO67: 12 | AP67: 10 | AQ67: 10 | AR67: 7 | AS67: 4 | AT67: 1
AA68: 5500 | AB68: 38 | AC68: 38 | AD68: 38 | AE68: 38 | AF68: 35 | AG68: 32 | AH68: 31 | AI68: 30 | AJ68: 28 | AK68: 27 | AL68: 25 | AM68: 20 | AN68: 15 | AO68: 13 | AP68: 11 | AQ68: 9 | AR68: 6 | AS68: 3 | AT68: 0
AA69: 6000 | AB69: 38 | AC69: 38 | AD69: 38 | AE69: 38 | AF69: 35 | AG69: 34 | AH69: 32 | AI69: 31 | AJ69: 30 | AK69: 28 | AL69: 26 | AM69: 23 | AN69: 18 | AO69: 16 | AP69: 14 | AQ69: 13 | AR69: 10 | AS69: 7 | AT69: 4
AA70: 6500 | AB70: 38 | AC70: 38 | AD70: 38 | AE70: 38 | AF70: 38 | AG70: 37 | AH70: 35 | AI70: 34 | AJ70: 34 | AK70: 32 | AL70: 30 | AM70: 27 | AN70: 22 | AO70: 20 | AP70: 18 | AQ70: 15 | AR70: 12 | AS70: 9 | AT70: 6
AA71: 7000 | AB71: 38 | AC71: 38 | AD71: 38 | AE71: 38 | AF71: 38 | AG71: 37 | AH71: 36 | AI71: 35 | AJ71: 35 | AK71: 34 | AL71: 34 | AM71: 31 | AN71: 26 | AO71: 24 | AP71: 21 | AQ71: 18 | AR71: 15 | AS71: 12 | AT71: 9
AA72: 7500 | AB72: 38 | AC72: 38 | AD72: 38 | AE72: 38 | AF72: 38 | AG72: 37 | AH72: 36 | AI72: 35 | AJ72: 35 | AK72: 34 | AL72: 34 | AM72: 31 | AN72: 26 | AO72: 24 | AP72: 21 | AQ72: 18 | AR72: 15 | AS72: 12 | AT72: 9
AA73: 11000 | AB73: 38 | AC73: 38 | AD73: 38 | AE73: 38 | AF73: 38 | AG73: 37 | AH73: 36 | AI73: 35 | AJ73: 35 | AK73: 34 | AL73: 34 | AM73: 31 | AN73: 26 | AO73: 24 | AP73: 21 | AQ73: 18 | AR73: 15 | AS73: 12 | AT73: 9

Sheet Fuel - 18 Cell
U1: RICHER | W1: Smoothing | Z1: Leaner | AB1: 3 | AD1: Richer | AF1: 2 | AP1: Smoothed Modded High Octane Fuel Map
U2: LEANER | W2: Limits | Z2: =-AB1 -> -3 | AD2: =AF1 -> 2 | AI2: TRUE
U3: 1 | W3: Smoothed Modded High Octane Fuel Map
W4: Load Value
W5: 10 | X5: 20 | Y5: 30 | Z5: 40 | AA5: 50 | AB5: 60 | AC5: 70 | AD5: 80 | AE5: 90 | AF5: 100 | AG5: 120 | AH5: 140 | AI5: 160 | AJ5: 180 | AK5: 200 | AL5: 220 | AM5: 240 | AN5: 260
U6: RPM | V6: 500 | W6: =14.7*128/IF(AND($AI$2,W77),MIN($AL$22,MAX($AL$23,$AA$21+W100)),MIN($AL$22,MAX($AL$23,($AA$21+MAX(W100+$Z$2,MIN(W100+$AD$2,ROUND(AVERAGE(W100,W100,W100,W100,W100:X101),0))))))) -> 13.63478261 | X6: =14.7*128/IF(AND($AI$2,X77),MIN($AL$22,MAX($AL$23,$AA$21+X100)),MIN($AL$22,MAX($AL$23,($AA$21+MAX(X100+$Z$2,MIN(X100+$AD$2,ROUND(AVERAGE(X100,X100,X100,X100,W100:Y101),0))))))) -> 13.63478261 | Y6: 13.63478261 | Z6: 13.63478261 | AA6: 13.63478261 | AB6: 13.63478261 | AC6: 13.63478261 | AD6: 13.53669065 | AE6: 12.8 | AF6: 12.71351351 | AG6: 12.544 | AH6: 12.29803922 | AI6: 12.06153846 | AJ6: 11.83396226 | AK6: 11.61481481 | AL6: 11.40363636 | AM6: 11.2 | AN6: =14.7*128/IF(AND($AI$2,AN77),MIN($AL$22,MAX($AL$23,$AA$21+AN100)),MIN($AL$22,MAX($AL$23,($AA$21+MAX(AN100+$Z$2,MIN(AN100+$AD$2,ROUND(AVERAGE(AN100,AN100,AN100,AN100,AM100:AN101),0))))))) -> 11.00350877
V7: 1000 | W7: =14.7*128/IF(AND($AI$2,W78),MIN($AL$22,MAX($AL$23,$AA$21+W101)),MIN($AL$22,MAX($AL$23,($AA$21+MAX(W101+$Z$2,MIN(W101+$AD$2,ROUND(AVERAGE(W101,W101,W101,W101,W100:X102),0))))))) -> 14.7 | X7: =14.7*128/IF(AND($AI$2,X78),MIN($AL$22,MAX($AL$23,$AA$21+X101)),MIN($AL$22,MAX($AL$23,($AA$21+MAX(X101+$Z$2,MIN(X101+$AD$2,ROUND(AVERAGE(X101,X101,X101,X101,W100:Y102),0))))))) -> 14.7 | Y7: 14.7 | Z7: 14.7 | AA7: 14.7 | AB7: 14.7 | AC7: 14.7 | AD7: 14.7 | AE7: 13.53669065 | AF7: 13.25070423 | AG7: 12.97655172 | AH7: 12.62818792 | AI7: 12.46092715 | AJ7: 12.21818182 | AK7: 11.98471338 | AL7: 11.76 | AM7: 11.54355828 | AN7: =14.7*128/IF(AND($AI$2,AN78),MIN($AL$22,MAX($AL$23,$AA$21+AN101)),MIN($AL$22,MAX($AL$23,($AA$21+MAX(AN101+$Z$2,MIN(AN101+$AD$2,ROUND(AVERAGE(AN101,AN101,AN101,AN101,AM100:AN102),0))))))) -> 11.40363636
V8: 1500 | W8: 14.7 | X8: =14.7*128/IF(AND($AI$2,X79),MIN($AL$22,MAX($AL$23,$AA$21+X102)),MIN($AL$22,MAX($AL$23,($AA$21+MAX(X102+$Z$2,MIN(X102+$AD$2,ROUND(AVERAGE(X102,X102,X102,X102,W101:Y103),0))))))) -> 14.7 | Y8: 14.7 | Z8: 14.7 | AA8: 14.7 | AB8: 14.7 | AC8: 14.7 | AD8: 14.7 | AE8: 14.14736842 | AF8: 13.73430657 | AG8: 13.25070423 | AH8: 12.97655172 | AI8: 12.71351351 | AJ8: 12.46092715 | AK8: 12.29803922 | AL8: 12.06153846 | AM8: 11.83396226 | AN8: 11.68695652
V9: 2000 | W9: 14.7 | X9: =14.7*128/IF(AND($AI$2,X80),MIN($AL$22,MAX($AL$23,$AA$21+X103)),MIN($AL$22,MAX($AL$23,($AA$21+MAX(X103+$Z$2,MIN(X103+$AD$2,ROUND(AVERAGE(X103,X103,X103,X103,W102:Y104),0))))))) -> 14.7 | Y9: 14.7 | Z9: 14.7 | AA9: 14.7 | AB9: 14.7 | AC9: 14.7 | AD9: 14.7 | AE9: 14.25454545 | AF9: 13.83529412 | AG9: 13.53669065 | AH9: 13.15804196 | AI9: 12.88767123 | AJ9: 12.71351351 | AK9: 12.46092715 | AL9: 12.21818182 | AM9: 11.98471338 | AN9: 11.76
V10: 2500 | W10: 14.7 | X10: =14.7*128/IF(AND($AI$2,X81),MIN($AL$22,MAX($AL$23,$AA$21+X104)),MIN($AL$22,MAX($AL$23,($AA$21+MAX(X104+$Z$2,MIN(X104+$AD$2,ROUND(AVERAGE(X104,X104,X104,X104,W103:Y105),0))))))) -> 14.7 | Y10: 14.7 | Z10: 14.7 | AA10: 14.7 | AB10: 14.7 | AC10: 14.7 | AD10: 14.7 | AE10: 14.36335878 | AF10: 14.04179104 | AG10: 13.73430657 | AH10: 13.25070423 | AI10: 12.97655172 | AJ10: 12.8 | AK10: 12.544 | AL10: 12.29803922 | AM10: 12.06153846 | AN10: 11.83396226
V11: 3000 | W11: 14.7 | X11: =14.7*128/IF(AND($AI$2,X82),MIN($AL$22,MAX($AL$23,$AA$21+X105)),MIN($AL$22,MAX($AL$23,($AA$21+MAX(X105+$Z$2,MIN(X105+$AD$2,ROUND(AVERAGE(X105,X105,X105,X105,W104:Y106),0))))))) -> 14.7 | Y11: 14.7 | Z11: 14.7 | AA11: 14.7 | AB11: 14.7 | AC11: 14.7 | AD11: 14.7 | AE11: 14.36335878 | AF11: 14.14736842 | AG11: 13.83529412 | AH11: 13.06666667 | AI11: 11.98471338 | AJ11: 11.54355828 | AK11: 11.26706587 | AL11: 11.13372781 | AM11: 10.93953488 | AN11: 10.752
V12: 3500 | W12: 14.7 | X12: =14.7*128/IF(AND($AI$2,X83),MIN($AL$22,MAX($AL$23,$AA$21+X106)),MIN($AL$22,MAX($AL$23,($AA$21+MAX(X106+$Z$2,MIN(X106+$AD$2,ROUND(AVERAGE(X106,X106,X106,X106,W105:Y107),0))))))) -> 14.7 | Y12: 14.7 | Z12: 14.7 | AA12: 14.7 | AB12: 14.7 | AC12: 14.7 | AD12: 14.7 | AE12: 14.36335878 | AF12: 13.93777778 | AG12: 13.25070423 | AH12: 12.29803922 | AI12: 11.54355828 | AJ12: 11.00350877 | AK12: 10.8137931 | AL12: 10.752 | AM12: 10.57078652 | AN12: 10.51173184 | BK12: MAP Difference Comparison
V13: 4000 | W13: 14.7 | X13: =14.7*128/IF(AND($AI$2,X84),MIN($AL$22,MAX($AL$23,$AA$21+X107)),MIN($AL$22,MAX($AL$23,($AA$21+MAX(X107+$Z$2,MIN(X107+$AD$2,ROUND(AVERAGE(X107,X107,X107,X107,W106:Y108),0))))))) -> 14.7 | Y13: 14.7 | Z13: 14.7 | AA13: 14.7 | AB13: 14.7 | AC13: 14.7 | AD13: 14.7 | AE13: 14.04179104 | AF13: 13.44 | AG13: 12.544 | AH13: 11.76 | AI13: 11.26706587 | AJ13: 10.87630058 | AK13: 10.69090909 | AL13: 10.57078652 | AM13: 10.45333333 | AN13: 10.33846154 | BL13: 10 | BM13: 20 | BN13: 30 | BO13: 40 | BP13: 50 | BQ13: 60 | BR13: 70 | BS13: 80 | BT13: 90 | BU13: 100 | BV13: 120 | BW13: 140 | BX13: 160 | BY13: 180 | BZ13: 200 | CA13: 220 | CB13: 240 | CC13: 260
V14: 4500 | W14: 14.7 | X14: =14.7*128/IF(AND($AI$2,X85),MIN($AL$22,MAX($AL$23,$AA$21+X108)),MIN($AL$22,MAX($AL$23,($AA$21+MAX(X108+$Z$2,MIN(X108+$AD$2,ROUND(AVERAGE(X108,X108,X108,X108,W107:Y109),0))))))) -> 14.7 | Y14: 14.7 | Z14: 14.7 | AA14: 14.7 | AB14: 14.7 | AC14: 14.25454545 | AD14: 13.83529412 | AE14: 13.44 | AF14: 12.8 | AG14: 12.13935484 | AH14: 11.54355828 | AI14: 11.06823529 | AJ14: 10.8137931 | AK14: 10.63050847 | AL14: 10.51173184 | AM14: 10.33846154 | AN14: 10.22608696 | BK14: 500 | BL14: =W6-W29 -> 0.2900826087 | BM14: =X6-X29 -> 0.2900826087 | BN14: =Y6-Y29 -> 0.2900826087 | BO14: =Z6-Z29 -> 0.2900826087 | BP14: =AA6-AA29 -> 0.2900826087 | BQ14: =AB6-AB29 -> 0.2900826087 | BR14: =AC6-AC29 -> 0.2900826087 | BS14: =AD6-AD29 -> 0.1919906475 | BT14: =AE6-AE29 -> 0.256 | BU14: =AF6-AF29 -> 0.1695135135 | BV14: =AG6-AG29 -> 0.246 | BW14: =AH6-AH29 -> 0.2365392157 | BX14: =AI6-AI29 -> 0.2275384615 | BY14: =AJ6-AJ29 -> 0.2191622642 | BZ14: =AK6-AK29 -> 0.2112148148 | CA14: =AL6-AL29 -> 0.2036363636 | CB14: =AM6-AM29 -> 0.1965 | CC14: =AN6-AN29 -> 0.1897087719
V15: 5000 | W15: 14.7 | X15: =14.7*128/IF(AND($AI$2,X86),MIN($AL$22,MAX($AL$23,$AA$21+X109)),MIN($AL$22,MAX($AL$23,($AA$21+MAX(X109+$Z$2,MIN(X109+$AD$2,ROUND(AVERAGE(X109,X109,X109,X109,W108:Y110),0))))))) -> 14.7 | Y15: 14.7 | Z15: 14.7 | AA15: 14.7 | AB15: 14.36335878 | AC15: 13.93777778 | AD15: 13.34468085 | AE15: 12.8 | AF15: 12.29803922 | AG15: 11.83396226 | AH15: 11.33493976 | AI15: 10.93953488 | AJ15: 10.63050847 | AK15: 10.45333333 | AL15: 10.33846154 | AM15: 10.17081081 | AN15: 10.06203209 | BK15: 1000 | BL15: 0 | BM15: 0 | BN15: 0 | BO15: 0 | BP15: 0 | BQ15: 0 | BR15: 0 | BS15: 0 | BT15: 0.09669064748 | BU15: -0.1892957746 | BV15: -0.1814482759 | BW15: -0.1718120805 | BX15: -0.08307284768 | BY15: -0.07981818182 | BZ15: -0.0767866242 | CA15: -0.074 | CB15: -0.07124171779 | CC15: -0.06956363636
V16: 5500 | W16: 14.7 | X16: =14.7*128/IF(AND($AI$2,X87),MIN($AL$22,MAX($AL$23,$AA$21+X110)),MIN($AL$22,MAX($AL$23,($AA$21+MAX(X110+$Z$2,MIN(X110+$AD$2,ROUND(AVERAGE(X110,X110,X110,X110,W109:Y111),0))))))) -> 14.7 | Y16: 14.7 | Z16: 14.7 | AA16: 14.36335878 | AB16: 13.93777778 | AC16: 13.44 | AD16: 12.8 | AE16: 12.21818182 | AF16: 11.90886076 | AG16: 11.54355828 | AH16: 11.06823529 | AI16: 10.69090909 | AJ16: 10.39558011 | AK16: 10.22608696 | AL16: 10.06203209 | AM16: 9.903157895 | AN16: 9.851308901 | BK16: 1500 | BL16: 0 | BM16: 0 | BN16: 0 | BO16: 0 | BP16: 0 | BQ16: 0 | BR16: 0 | BS16: 0 | BT16: -0.1071315789 | BU16: -0.1009934307 | BV16: 0.09270422535 | BW16: -4.827586207e-05 | BX16: -0.08648648649 | BY16: -0.08307284768 | BZ16: 3.921568627e-05 | CA16: 3.846153846e-05 | CB16: -3.773584906e-05 | CC16: 0.07215652174
V17: 6000 | W17: 14.36335878 | X17: =14.7*128/IF(AND($AI$2,X88),MIN($AL$22,MAX($AL$23,$AA$21+X111)),MIN($AL$22,MAX($AL$23,($AA$21+MAX(X111+$Z$2,MIN(X111+$AD$2,ROUND(AVERAGE(X111,X111,X111,X111,W110:Y112),0))))))) -> 14.36335878 | Y17: 14.36335878 | Z17: 14.25454545 | AA17: 13.83529412 | AB17: 13.34468085 | AC17: 12.71351351 | AD17: 12.06153846 | AE17: 11.76 | AF17: 11.54355828 | AG17: 11.26706587 | AH17: 10.87630058 | AI17: 10.57078652 | AJ17: 10.28196721 | AK17: 10.00851064 | AL17: 9.851308901 | AM17: 9.749222798 | AN17: 9.649230769 | BK17: 2000 | BL17: 0 | BM17: 0 | BN17: 0 | BO17: 0 | BP17: 0 | BQ17: 0 | BR17: 0 | BS17: 0 | BT17: 4.545454545e-05 | BU17: -5.882352943e-06 | BV17: 0.09669064748 | BW17: 0.09134195804 | BX17: 0.08767123288 | BY17: 0.08531351351 | BZ17: 0.08202715232 | CA17: 0.07878181818 | CB17: 0.0758133758 | CC17: 0.073
V18: 6500 | W18: 14.14736842 | X18: =14.7*128/IF(AND($AI$2,X89),MIN($AL$22,MAX($AL$23,$AA$21+X112)),MIN($AL$22,MAX($AL$23,($AA$21+MAX(X112+$Z$2,MIN(X112+$AD$2,ROUND(AVERAGE(X112,X112,X112,X112,W111:Y113),0))))))) -> 14.14736842 | Y18: 14.04179104 | Z18: 13.73430657 | AA18: 13.25070423 | AB18: 12.71351351 | AC18: 12.13935484 | AD18: 11.61481481 | AE18: 11.47317073 | AF18: 11.33493976 | AG18: 11.06823529 | AH18: 10.69090909 | AI18: 10.39558011 | AJ18: 10.11612903 | AK18: 9.903157895 | AL18: 9.749222798 | AM18: 9.649230769 | AN18: 9.6 | BK18: 2500 | BL18: 0 | BM18: 0 | BN18: 0 | BO18: 0 | BP18: 0 | BQ18: 0 | BR18: 0 | BS18: 0 | BT18: -4.122137405e-05 | BU18: -0.1056089552 | BV18: -0.1009934307 | BW18: -0.1892957746 | BX18: -0.1814482759 | BY18: -0.1766 | BZ18: -0.1695 | CA18: -0.1628607843 | CB18: -0.1566615385 | CC18: -0.1507377358
V19: 7000 | W19: 14.04179104 | X19: =14.7*128/IF(AND($AI$2,X90),MIN($AL$22,MAX($AL$23,$AA$21+X113)),MIN($AL$22,MAX($AL$23,($AA$21+MAX(X113+$Z$2,MIN(X113+$AD$2,ROUND(AVERAGE(X113,X113,X113,X113,W112:Y114),0))))))) -> 14.04179104 | Y19: 13.93777778 | Z19: 13.53669065 | AA19: 12.97655172 | AB19: 12.29803922 | AC19: 11.76 | AD19: 11.47317073 | AE19: 11.33493976 | AF19: 11.2 | AG19: 10.93953488 | AH19: 10.63050847 | AI19: 10.28196721 | AJ19: 9.955555556 | AK19: 9.698969072 | AL19: 9.649230769 | AM19: 9.6 | AN19: 9.6 | BK19: 3000 | BL19: 0 | BM19: 0 | BN19: 0 | BO19: 0 | BP19: 0 | BQ19: 0 | BR19: 0 | BS19: 0 | BT19: -4.122137405e-05 | BU19: -3.157894737e-05 | BV19: -0.2065058824 | BW19: -0.1840333333 | BX19: 0.2247133758 | BY19: 0.2086582822 | BZ19: 0.1988658683 | CA19: 0.1942278107 | CB19: 0.1875348837 | CC19: 0.1812
V20: 7500 | W20: =14.7*128/IF(AND($AI$2,W91),MIN($AL$22,MAX($AL$23,$AA$21+W114)),MIN($AL$22,MAX($AL$23,($AA$21+MAX(W114+$Z$2,MIN(W114+$AD$2,ROUND(AVERAGE(W114,W114,W114,W114,W113:X114),0))))))) -> 14.04179104 | X20: =14.7*128/IF(AND($AI$2,X91),MIN($AL$22,MAX($AL$23,$AA$21+X114)),MIN($AL$22,MAX($AL$23,($AA$21+MAX(X114+$Z$2,MIN(X114+$AD$2,ROUND(AVERAGE(X114,X114,X114,X114,W113:Y114),0))))))) -> 14.04179104 | Y20: 13.93777778 | Z20: 13.44 | AA20: 12.88767123 | AB20: 12.21818182 | AC20: 11.68695652 | AD20: 11.40363636 | AE20: 11.26706587 | AF20: 11.13372781 | AG20: 10.93953488 | AH20: 10.57078652 | AI20: 10.28196721 | AJ20: 9.903157895 | AK20: 9.649230769 | AL20: 9.6 | AM20: 9.6 | AN20: =14.7*128/IF(AND($AI$2,AN91),MIN($AL$22,MAX($AL$23,$AA$21+AN114)),MIN($AL$22,MAX($AL$23,($AA$21+MAX(AN114+$Z$2,MIN(AN114+$AD$2,ROUND(AVERAGE(AN114,AN114,AN114,AN114,AM113:AN114),0))))))) -> 9.6 | BK20: 3500 | BL20: 0 | BM20: 0 | BN20: 0 | BO20: 0 | BP20: 0 | BQ20: 0 | BR20: 0 | BS20: 0 | BT20: -4.122137405e-05 | BU20: -0.2096222222 | BV20: -0.1892957746 | BW20: 0.07983921569 | BX20: 0.07035828221 | BY20: 0.1272087719 | BZ20: -6.896551724e-06 | CA20: 0 | CB20: -1.348314607e-05 | CC20: 3.184357542e-05
V21: Shift Map (offset) | Y21: Richer | AA21: =AB21-128 -> 0 | AB21: 128 | BK21: 4000 | BL21: 0 | BM21: 0 | BN21: 0 | BO21: 0 | BP21: 0 | BQ21: 0 | BR21: 0 | BS21: 0 | BT21: -0.1056089552 | BU21: -0.1948 | BV21: 0.0831 | BW21: 0.1452 | BX21: 0.06706586826 | BY21: 0.124300578 | BZ21: 0.06040909091 | CA21: -1.348314607e-05 | CB21: 0.05773333333 | CC21: 0.1123615385
Y22: Leaner | AH22: Global | AI22: Global | AJ22: Richest | AL22: 217 | AM22: =14.7*128/AL22 -> 8.670967742 | BK22: 4500 | BL22: 0 | BM22: 0 | BN22: 0 | BO22: 0 | BP22: 0 | BQ22: 0 | BR22: 0.1071454545 | BS22: 0.1009941176 | BT22: 0 | BU22: 0 | BV22: 0.07785483871 | BW22: 0.07035828221 | BX22: 3.529411765e-05 | BY22: -6.896551724e-06 | BZ22: -0.1214915254 | CA22: -0.05906815642 | CB22: -0.05713846154 | CC22: -1.304347826e-05
V23: Shift Map (proportional) | Y23: Richer | AA23: =AB23-128 -> 0 | AB23: 128 | AH23: Limits | AJ23: Leanest | AL23: 128 | AM23: =14.7*128/AL23 -> 14.7 | BK23: 5000 | BL23: 0 | BM23: 0 | BN23: 0 | BO23: 0 | BP23: 0 | BQ23: -0.1104412214 | BR23: -0.2096222222 | BS23: -0.09531914894 | BT23: 0 | BU23: 0.07983921569 | BV23: -3.773584906e-05 | BW23: -0.138260241 | BX23: 3.488372093e-05 | BY23: 0.05970847458 | BZ23: 3.333333333e-05 | CA23: -0.05713846154 | CB23: -0.05528918919 | CC23: 3.20855615e-05
Y24: Leaner | BK24: 5500 | BL24: 0 | BM24: 0 | BN24: 0 | BO24: 0 | BP24: -0.1104412214 | BQ24: -0.1040222222 | BR24: -0.1948 | BS24: 0 | BT24: -1.818181818e-05 | BU24: -3.924050633e-05 | BV24: -0.07124171779 | BW24: 0.1287352941 | BX24: 0.06040909091 | BY24: 0.0570801105 | BZ24: 0.05528695652 | CA24: 3.20855615e-05 | CB24: -2.105263158e-06 | CC24: 0.05130890052
BK25: 6000 | BL25: -4.122137405e-05 | BM25: -4.122137405e-05 | BN25: -4.122137405e-05 | BO25: -0.1088545455 | BP25: -0.1025058824 | BQ25: -0.09531914894 | BR25: 1.351351351e-05 | BS25: 0.2275384615 | BT25: 0.073 | BU25: 0.07035828221 | BV25: -3.413173653e-05 | BW25: 5.780346815e-07 | BX25: -1.348314607e-05 | BY25: -3.278688525e-05 | BZ25: 0.0529506383 | CA25: 0.05130890052 | CB25: 0.09999279793 | CC25: 0.04923076923
U26: 2 | W26: Modded High Octane Fuel Map | BK26: 6500 | BL26: -3.157894737e-05 | BM26: -3.157894737e-05 | BN26: -0.1056089552 | BO26: 0.09950656934 | BP26: 4.225352113e-06 | BQ26: 1.351351351e-05 | BR26: 0.07785483871 | BS26: 0.1416148148 | BT26: -2.926829268e-05 | BU26: 3.975903615e-05 | BV26: 3.529411765e-05 | BW26: 9.09090909e-06 | BX26: -1.988950276e-05 | BY26: 2.903225806e-05 | BZ26: -2.105263158e-06 | CA26: -0.05077720207 | CB26: 7.692307697e-07 | CC26: 0
W27: Load Value | BK27: 7000 | BL27: -8.955223882e-06 | BM27: -8.955223882e-06 | BN27: -0.1040222222 | BO27: 0.09669064748 | BP27: -4.827586207e-05 | BQ27: 0.07983921569 | BR27: 0.1452 | BS27: 0.1382707317 | BT27: 0.06783975904 | BU27: 0 | BV27: 3.488372093e-05 | BW27: 0.05970847458 | BX27: -3.278688525e-05 | BY27: 0.05239555556 | BZ27: 0.09896907216 | CA27: 0.04923076923 | CB27: 0 | CC27: 0
W28: 10 | X28: 20 | Y28: 30 | Z28: 40 | AA28: 50 | AB28: 60 | AC28: 70 | AD28: 80 | AE28: 90 | AF28: 100 | AG28: 120 | AH28: 140 | AI28: 160 | AJ28: 180 | AK28: 200 | AL28: 220 | AM28: 240 | AN28: 260 | BK28: 7500 | BL28: -8.955223882e-06 | BM28: -8.955223882e-06 | BN28: -0.1040222222 | BO28: 0 | BP28: -0.08892876712 | BQ28: -1.818181818e-05 | BR28: 0.07215652174 | BS28: 0.06873636364 | BT28: -3.413173653e-05 | BU28: -0.06627218935 | BV28: 3.488372093e-05 | BW28: -1.348314607e-05 | BX28: -3.278688525e-05 | BY28: -2.105263158e-06 | BZ28: 0.04923076923 | CA28: 0 | CB28: 0 | CC28: 0
U29: RPM | V29: 500 | W29: 13.3447 | X29: 13.3447 | Y29: 13.3447 | Z29: 13.3447 | AA29: 13.3447 | AB29: 13.3447 | AC29: 13.3447 | AD29: 13.3447 | AE29: 12.544 | AF29: 12.544 | AG29: 12.298 | AH29: 12.0615 | AI29: 11.834 | AJ29: 11.6148 | AK29: 11.4036 | AL29: 11.2 | AM29: 11.0035 | AN29: 10.8138
V30: 1000 | W30: 14.7 | X30: 14.7 | Y30: 14.7 | Z30: 14.7 | AA30: 14.7 | AB30: 14.7 | AC30: 14.7 | AD30: 14.7 | AE30: 13.44 | AF30: 13.44 | AG30: 13.158 | AH30: 12.8 | AI30: 12.544 | AJ30: 12.298 | AK30: 12.0615 | AL30: 11.834 | AM30: 11.6148 | AN30: 11.4732
V31: 1500 | W31: 14.7 | X31: 14.7 | Y31: 14.7 | Z31: 14.7 | AA31: 14.7 | AB31: 14.7 | AC31: 14.7 | AD31: 14.7 | AE31: 14.2545 | AF31: 13.8353 | AG31: 13.158 | AH31: 12.9766 | AI31: 12.8 | AJ31: 12.544 | AK31: 12.298 | AL31: 12.0615 | AM31: 11.834 | AN31: 11.6148
V32: 2000 | W32: 14.7 | X32: 14.7 | Y32: 14.7 | Z32: 14.7 | AA32: 14.7 | AB32: 14.7 | AC32: 14.7 | AD32: 14.7 | AE32: 14.2545 | AF32: 13.8353 | AG32: 13.44 | AH32: 13.0667 | AI32: 12.8 | AJ32: 12.6282 | AK32: 12.3789 | AL32: 12.1394 | AM32: 11.9089 | AN32: 11.687 | AP32: Modded High Octane Fuel Map
V33: 2500 | W33: 14.7 | X33: 14.7 | Y33: 14.7 | Z33: 14.7 | AA33: 14.7 | AB33: 14.7 | AC33: 14.7 | AD33: 14.7 | AE33: 14.3634 | AF33: 14.1474 | AG33: 13.8353 | AH33: 13.44 | AI33: 13.158 | AJ33: 12.9766 | AK33: 12.7135 | AL33: 12.4609 | AM33: 12.2182 | AN33: 11.9847
V34: 3000 | W34: 14.7 | X34: 14.7 | Y34: 14.7 | Z34: 14.7 | AA34: 14.7 | AB34: 14.7 | AC34: 14.7 | AD34: 14.7 | AE34: 14.3634 | AF34: 14.1474 | AG34: 14.0418 | AH34: 13.2507 | AI34: 11.76 | AJ34: 11.3349 | AK34: 11.0682 | AL34: 10.9395 | AM34: 10.752 | AN34: 10.5708
V35: 3500 | W35: 14.7 | X35: 14.7 | Y35: 14.7 | Z35: 14.7 | AA35: 14.7 | AB35: 14.7 | AC35: 14.7 | AD35: 14.7 | AE35: 14.3634 | AF35: 14.1474 | AG35: 13.44 | AH35: 12.2182 | AI35: 11.4732 | AJ35: 10.8763 | AK35: 10.8138 | AL35: 10.752 | AM35: 10.5708 | AN35: 10.5117
V36: 4000 | W36: 14.7 | X36: 14.7 | Y36: 14.7 | Z36: 14.7 | AA36: 14.7 | AB36: 14.7 | AC36: 14.7 | AD36: 14.7 | AE36: 14.1474 | AF36: 13.6348 | AG36: 12.4609 | AH36: 11.6148 | AI36: 11.2 | AJ36: 10.752 | AK36: 10.6305 | AL36: 10.5708 | AM36: 10.3956 | AN36: 10.2261
V37: 4500 | W37: 14.7 | X37: 14.7 | Y37: 14.7 | Z37: 14.7 | AA37: 14.7 | AB37: 14.7 | AC37: 14.1474 | AD37: 13.7343 | AE37: 13.44 | AF37: 12.8 | AG37: 12.0615 | AH37: 11.4732 | AI37: 11.0682 | AJ37: 10.8138 | AK37: 10.752 | AL37: 10.5708 | AM37: 10.3956 | AN37: 10.2261
V38: 5000 | W38: 14.7 | X38: 14.7 | Y38: 14.7 | Z38: 14.7 | AA38: 14.7 | AB38: 14.4738 | AC38: 14.1474 | AD38: 13.44 | AE38: 12.8 | AF38: 12.2182 | AG38: 11.834 | AH38: 11.4732 | AI38: 10.9395 | AJ38: 10.5708 | AK38: 10.4533 | AL38: 10.3956 | AM38: 10.2261 | AN38: 10.062
V39: 5500 | W39: 14.7 | X39: 14.7 | Y39: 14.7 | Z39: 14.7 | AA39: 14.4738 | AB39: 14.0418 | AC39: 13.6348 | AD39: 12.8 | AE39: 12.2182 | AF39: 11.9089 | AG39: 11.6148 | AH39: 10.9395 | AI39: 10.6305 | AJ39: 10.3385 | AK39: 10.1708 | AL39: 10.062 | AM39: 9.90316 | AN39: 9.8 | BK39: MAP Difference Comparison
V40: 6000 | W40: 14.3634 | X40: 14.3634 | Y40: 14.3634 | Z40: 14.3634 | AA40: 13.9378 | AB40: 13.44 | AC40: 12.7135 | AD40: 11.834 | AE40: 11.687 | AF40: 11.4732 | AG40: 11.2671 | AH40: 10.8763 | AI40: 10.5708 | AJ40: 10.282 | AK40: 9.95556 | AL40: 9.8 | AM40: 9.64923 | AN40: 9.6 | BL40: 10 | BM40: 20 | BN40: 30 | BO40: 40 | BP40: 50 | BQ40: 60 | BR40: 70 | BS40: 80 | BT40: 90 | BU40: 100 | BV40: 120 | BW40: 140 | BX40: 160 | BY40: 180 | BZ40: 200 | CA40: 220 | CB40: 240 | CC40: 260
V41: 6500 | W41: 14.1474 | X41: 14.1474 | Y41: 14.1474 | Z41: 13.6348 | AA41: 13.2507 | AB41: 12.7135 | AC41: 12.0615 | AD41: 11.4732 | AE41: 11.4732 | AF41: 11.3349 | AG41: 11.0682 | AH41: 10.6909 | AI41: 10.3956 | AJ41: 10.1161 | AK41: 9.90316 | AL41: 9.8 | AM41: 9.64923 | AN41: 9.6 | BK41: 500 | BL41: =W29-W53 -> 0 | BM41: =X29-X53 -> 0 | BN41: =Y29-Y53 -> 0 | BO41: =Z29-Z53 -> 0 | BP41: =AA29-AA53 -> 0 | BQ41: =AB29-AB53 -> 0 | BR41: =AC29-AC53 -> 0 | BS41: =AD29-AD53 -> 0 | BT41: =AE29-AE53 -> 0.5593 | BU41: =AF29-AF53 -> 0.5593 | BV41: =AG29-AG53 -> 0.611 | BW41: =AH29-AH53 -> 0.6579 | BX41: =AI29-AI53 -> 0.7003 | BY41: =AJ29-AJ53 -> 0.7385 | BZ41: =AK29-AK53 -> 0.7731 | CA41: =AL29-AL53 -> 0.8044 | CB41: =AM29-AM53 -> 0.8327 | CC41: =AN29-AN53 -> 0.85824
V42: 7000 | W42: 14.0418 | X42: 14.0418 | Y42: 14.0418 | Z42: 13.44 | AA42: 12.9766 | AB42: 12.2182 | AC42: 11.6148 | AD42: 11.3349 | AE42: 11.2671 | AF42: 11.2 | AG42: 10.9395 | AH42: 10.5708 | AI42: 10.282 | AJ42: 9.90316 | AK42: 9.6 | AL42: 9.6 | AM42: 9.6 | AN42: 9.6 | BK42: 1000 | BL42: 0 | BM42: 0 | BN42: 0 | BO42: 0 | BP42: 0 | BQ42: 0 | BR42: 0 | BS42: 0 | BT42: 0.3733 | BU42: 0.3733 | BV42: 0.4445 | BW42: 0.4211 | BX42: 0.4825 | BY42: 0.538 | BZ42: 0.5883 | CA42: 0.634 | CB42: 0.6753 | CC42: 0.7823
V43: 7500 | W43: 14.0418 | X43: 14.0418 | Y43: 14.0418 | Z43: 13.44 | AA43: 12.9766 | AB43: 12.2182 | AC43: 11.6148 | AD43: 11.3349 | AE43: 11.2671 | AF43: 11.2 | AG43: 10.9395 | AH43: 10.5708 | AI43: 10.282 | AJ43: 9.90316 | AK43: 9.6 | AL43: 9.6 | AM43: 9.6 | AN43: 9.6 | BK43: 1500 | BL43: 0 | BM43: 0 | BN43: 0 | BO43: 0 | BP43: 0 | BQ43: 0 | BR43: 0 | BS43: 0 | BT43: 0.1071 | BU43: 0.2005 | BV43: 0.4445 | BW43: 0.4326 | BX43: 0.4211 | BY43: 0.4825 | BZ43: 0.538 | CA43: 0.5883 | CB43: 0.634 | CC43: 0.6753
BK44: 2000 | BL44: 0 | BM44: 0 | BN44: 0 | BO44: 0 | BP44: 0 | BQ44: 0 | BR44: 0 | BS44: 0 | BT44: 0.1071 | BU44: 0.2005 | BV44: 0.3733 | BW44: 0.4385 | BX44: 0.502 | BY44: 0.4888 | BZ44: 0.5449 | CA44: 0.5958 | CB44: 0.6418 | CC44: 0.6835
BK45: 2500 | BL45: 0 | BM45: 0 | BN45: 0 | BO45: 0 | BP45: 0 | BQ45: 0 | BR45: 0 | BS45: 0 | BT45: 0.1089 | BU45: 0.2096 | BV45: 0.2005 | BW45: 0.3733 | BX45: 0.358 | BY45: 0.4326 | BZ45: 0.4953 | CA45: 0.552 | CB45: 0.6034 | CC45: 0.6498
BK46: 3000 | BL46: 0 | BM46: 0 | BN46: 0 | BO46: 0 | BP46: 0 | BQ46: 0 | BR46: 0 | BS46: 0 | BT46: 0.1089 | BU46: 0.1056 | BV46: 0.2065 | BW46: 0.363 | BX46: 0.6918 | BY46: 0.7641 | BZ46: 0.7862 | CA46: 0.8775 | CB46: 0.90069 | CC46: 0.92157
BK47: 3500 | BL47: 0 | BM47: 0 | BN47: 0 | BO47: 0 | BP47: 0 | BQ47: 0 | BR47: 0 | BS47: 0 | BT47: 0.1089 | BU47: 0.1056 | BV47: 0.3733 | BW47: 0.6034 | BX47: 0.7212 | BY47: 0.8678 | BZ47: 0.85824 | CA47: 0.84884 | CB47: 0.87183 | CC47: 0.9117
BK48: 4000 | BL48: 0 | BM48: 0 | BN48: 0 | BO48: 0 | BP48: 0 | BQ48: 0 | BR48: 0 | BS48: 0 | BT48: 0.2096 | BU48: 0.2901 | BV48: 0.552 | BW48: 0.6753 | BX48: 0.8044 | BY48: 0.90069 | BZ48: 0.88128 | CA48: 0.92157 | CB48: 0.94032 | CC48: 0.95713
BK49: 4500 | BL49: 0 | BM49: 0 | BN49: 0 | BO49: 0 | BP49: 0 | BQ49: 0 | BR49: 0.1056 | BS49: 0.1976 | BT49: 0.282 | BU49: 0.502 | BV49: 0.6579 | BW49: 0.7823 | BX49: 0.7862 | BY49: 0.85824 | BZ49: 0.90069 | CA49: 0.92157 | CB49: 0.94032 | CC49: 0.95713
U50: 3 | W50: Stock Fuel Octane Map | BK50: 5000 | BL50: 0 | BM50: 0 | BN50: 0 | BO50: 0 | BP50: 0 | BQ50: 0 | BR50: 0.1056 | BS50: 0.282 | BT50: 0.502 | BU50: 0.6034 | BV50: 0.7003 | BW50: 0.7212 | BX50: 0.8234 | BY50: 0.92157 | BZ50: 0.90203 | CA50: 0.94032 | CB50: 0.95713 | CC50: 0.97214
W51: Load Value | BK51: 5500 | BL51: 0 | BM51: 0 | BN51: 0 | BO51: 0 | BP51: 0.1104 | BQ51: 0.2065 | BR51: 0.2901 | BS51: 0.4211 | BT51: 0.6034 | BU51: 0.6418 | BV51: 0.7385 | BW51: 0.8234 | BX51: 0.88128 | BY51: 0.9305 | BZ51: 0.85595 | CA51: 0.83847 | CB51: 0.85701 | CC51: 0.92453
W52: 10 | X52: 20 | Y52: 30 | Z52: 40 | AA52: 50 | AB52: 60 | AC52: 70 | AD52: 80 | AE52: 90 | AF52: 100 | AG52: 120 | AH52: 140 | AI52: 160 | AJ52: 180 | AK52: 200 | AL52: 220 | AM52: 240 | AN52: 260 | BK52: 6000 | BL52: 0.1089 | BM52: 0.1089 | BN52: 0.1089 | BO52: 0.1089 | BP52: 0.2035 | BQ52: 0.3733 | BR52: 0.4953 | BS52: 0.634 | BT52: 0.6835 | BU52: 0.7823 | BV52: 0.7554 | BW52: 0.8678 | BX52: 0.87183 | BY52: 0.96715 | BZ52: 0.8657 | CA52: 0.92453 | CB52: 0.93812 | CC52: 0.92903
U53: RPM | V53: 500 | W53: 13.3447 | X53: 13.3447 | Y53: 13.3447 | Z53: 13.3447 | AA53: 13.3447 | AB53: 13.3447 | AC53: 13.3447 | AD53: 13.3447 | AE53: 11.9847 | AF53: 11.9847 | AG53: 11.687 | AH53: 11.4036 | AI53: 11.1337 | AJ53: 10.8763 | AK53: 10.6305 | AL53: 10.3956 | AM53: 10.1708 | AN53: 9.95556 | BK53: 6500 | BL53: 0.1056 | BM53: 0.1056 | BN53: 0.1056 | BO53: 0.2901 | BP53: 0.363 | BQ53: 0.4953 | BR53: 0.6579 | BS53: 0.7212 | BT53: 0.7823 | BU53: 0.7641 | BV53: 0.8421 | BW53: 0.8909 | BX53: 0.94032 | BY53: 0.98212 | BZ53: 0.85701 | CA53: 0.92453 | CB53: 0.93812 | CC53: 0.92903
V54: 1000 | W54: 14.7 | X54: 14.7 | Y54: 14.7 | Z54: 14.7 | AA54: 14.7 | AB54: 14.7 | AC54: 14.7 | AD54: 14.7 | AE54: 13.0667 | AF54: 13.0667 | AG54: 12.7135 | AH54: 12.3789 | AI54: 12.0615 | AJ54: 11.76 | AK54: 11.4732 | AL54: 11.2 | AM54: 10.9395 | AN54: 10.6909 | BK54: 7000 | BL54: 0.2065 | BM54: 0.2065 | BN54: 0.2065 | BO54: 0.3733 | BP54: 0.4326 | BQ54: 0.6034 | BR54: 0.7385 | BS54: 0.7641 | BT54: 0.8138 | BU54: 0.8044 | BV54: 0.8775 | BW54: 0.87183 | BX54: 0.92081 | BY54: 1.02769 | BZ54: 0.92903 | CA54: 0.92903 | CB54: 0.92903 | CC54: 0.92903
V55: 1500 | W55: 14.7 | X55: 14.7 | Y55: 14.7 | Z55: 14.7 | AA55: 14.7 | AB55: 14.7 | AC55: 14.7 | AD55: 14.7 | AE55: 14.1474 | AF55: 13.6348 | AG55: 12.7135 | AH55: 12.544 | AI55: 12.3789 | AJ55: 12.0615 | AK55: 11.76 | AL55: 11.4732 | AM55: 11.2 | AN55: 10.9395 | BK55: 7500 | BL55: 0.2065 | BM55: 0.2065 | BN55: 0.2065 | BO55: 0.3733 | BP55: 0.4326 | BQ55: 0.6034 | BR55: 0.7385 | BS55: 0.7641 | BT55: 0.8138 | BU55: 0.8044 | BV55: 0.8775 | BW55: 0.87183 | BX55: 0.92081 | BY55: 1.02769 | BZ55: 0.92903 | CA55: 0.92903 | CB55: 0.92903 | CC55: 0.92903
V56: 2000 | W56: 14.7 | X56: 14.7 | Y56: 14.7 | Z56: 14.7 | AA56: 14.7 | AB56: 14.7 | AC56: 14.7 | AD56: 14.7 | AE56: 14.1474 | AF56: 13.6348 | AG56: 13.0667 | AH56: 12.6282 | AI56: 12.298 | AJ56: 12.1394 | AK56: 11.834 | AL56: 11.5436 | AM56: 11.2671 | AN56: 11.0035
V57: 2500 | W57: 14.7 | X57: 14.7 | Y57: 14.7 | Z57: 14.7 | AA57: 14.7 | AB57: 14.7 | AC57: 14.7 | AD57: 14.7 | AE57: 14.2545 | AF57: 13.9378 | AG57: 13.6348 | AH57: 13.0667 | AI57: 12.8 | AJ57: 12.544 | AK57: 12.2182 | AL57: 11.9089 | AM57: 11.6148 | AN57: 11.3349
V58: 3000 | W58: 14.7 | X58: 14.7 | Y58: 14.7 | Z58: 14.7 | AA58: 14.7 | AB58: 14.7 | AC58: 14.7 | AD58: 14.7 | AE58: 14.2545 | AF58: 14.0418 | AG58: 13.8353 | AH58: 12.8877 | AI58: 11.0682 | AJ58: 10.5708 | AK58: 10.282 | AL58: 10.062 | AM58: 9.85131 | AN58: 9.64923
V59: 3500 | W59: 14.7 | X59: 14.7 | Y59: 14.7 | Z59: 14.7 | AA59: 14.7 | AB59: 14.7 | AC59: 14.7 | AD59: 14.7 | AE59: 14.2545 | AF59: 14.0418 | AG59: 13.0667 | AH59: 11.6148 | AI59: 10.752 | AJ59: 10.0085 | AK59: 9.95556 | AL59: 9.90316 | AM59: 9.69897 | AN59: 9.6
V60: 4000 | W60: 14.7 | X60: 14.7 | Y60: 14.7 | Z60: 14.7 | AA60: 14.7 | AB60: 14.7 | AC60: 14.7 | AD60: 14.7 | AE60: 13.9378 | AF60: 13.3447 | AG60: 11.9089 | AH60: 10.9395 | AI60: 10.3956 | AJ60: 9.85131 | AK60: 9.74922 | AL60: 9.64923 | AM60: 9.45528 | AN60: 9.26897
V61: 4500 | W61: 14.7 | X61: 14.7 | Y61: 14.7 | Z61: 14.7 | AA61: 14.7 | AB61: 14.7 | AC61: 14.0418 | AD61: 13.5367 | AE61: 13.158 | AF61: 12.298 | AG61: 11.4036 | AH61: 10.6909 | AI61: 10.282 | AJ61: 9.95556 | AK61: 9.85131 | AL61: 9.64923 | AM61: 9.45528 | AN61: 9.26897
V62: 5000 | W62: 14.7 | X62: 14.7 | Y62: 14.7 | Z62: 14.7 | AA62: 14.7 | AB62: 14.4738 | AC62: 14.0418 | AD62: 13.158 | AE62: 12.298 | AF62: 11.6148 | AG62: 11.1337 | AH62: 10.752 | AI62: 10.1161 | AJ62: 9.64923 | AK62: 9.55127 | AL62: 9.45528 | AM62: 9.26897 | AN62: 9.08986
V63: 5500 | W63: 14.7 | X63: 14.7 | Y63: 14.7 | Z63: 14.7 | AA63: 14.3634 | AB63: 13.8353 | AC63: 13.3447 | AD63: 12.3789 | AE63: 11.6148 | AF63: 11.2671 | AG63: 10.8763 | AH63: 10.1161 | AI63: 9.74922 | AJ63: 9.408 | AK63: 9.31485 | AL63: 9.22353 | AM63: 9.04615 | AN63: 8.87547
V64: 6000 | W64: 14.2545 | X64: 14.2545 | Y64: 14.2545 | Z64: 14.2545 | AA64: 13.7343 | AB64: 13.0667 | AC64: 12.2182 | AD64: 11.2 | AE64: 11.0035 | AF64: 10.6909 | AG64: 10.5117 | AH64: 10.0085 | AI64: 9.69897 | AJ64: 9.31485 | AK64: 9.08986 | AL64: 8.87547 | AM64: 8.71111 | AN64: 8.67097
V65: 6500 | W65: 14.0418 | X65: 14.0418 | Y65: 14.0418 | Z65: 13.3447 | AA65: 12.8877 | AB65: 12.2182 | AC65: 11.4036 | AD65: 10.752 | AE65: 10.6909 | AF65: 10.5708 | AG65: 10.2261 | AH65: 9.8 | AI65: 9.45528 | AJ65: 9.13398 | AK65: 9.04615 | AL65: 8.87547 | AM65: 8.71111 | AN65: 8.67097
V66: 7000 | W66: 13.8353 | X66: 13.8353 | Y66: 13.8353 | Z66: 13.0667 | AA66: 12.544 | AB66: 11.6148 | AC66: 10.8763 | AD66: 10.5708 | AE66: 10.4533 | AF66: 10.3956 | AG66: 10.062 | AH66: 9.69897 | AI66: 9.36119 | AJ66: 8.87547 | AK66: 8.67097 | AL66: 8.67097 | AM66: 8.67097 | AN66: 8.67097
V67: 7500 | W67: 13.8353 | X67: 13.8353 | Y67: 13.8353 | Z67: 13.0667 | AA67: 12.544 | AB67: 11.6148 | AC67: 10.8763 | AD67: 10.5708 | AE67: 10.4533 | AF67: 10.3956 | AG67: 10.062 | AH67: 9.69897 | AI67: 9.36119 | AJ67: 8.87547 | AK67: 8.67097 | AL67: 8.67097 | AM67: 8.67097 | AN67: 8.67097
U74: Identify Stoichiometric Platue and other cells you don't want smoothed 1 = Yes 0 = No
U75: =W27 -> Load Value
U76: =U29 -> RPM | W76: =W28 -> 10 | X76: =X28 -> 20 | Y76: 30 | Z76: 40 | AA76: 50 | AB76: 60 | AC76: 70 | AD76: 80 | AE76: 90 | AF76: 100 | AG76: 120 | AH76: 140 | AI76: 160 | AJ76: 180 | AK76: 200 | AL76: 220 | AM76: 240 | AN76: 260
V77: =V29 -> 500 | W77: 0 | X77: 0 | Y77: 0 | Z77: 0 | AA77: 0 | AB77: 0 | AC77: 0 | AD77: 0 | AE77: 0 | AF77: 0 | AG77: 0 | AH77: 0 | AI77: 0 | AJ77: 0 | AK77: 0 | AL77: 0 | AM77: 0 | AN77: 0
V78: =V30 -> 1000 | W78: =1 -> 1 | X78: =1 -> 1 | Y78: =1 -> 1 | Z78: =1 -> 1 | AA78: =1 -> 1 | AB78: =1 -> 1 | AC78: =1 -> 1 | AD78: =1 -> 1 | AE78: 0 | AF78: 0 | AG78: 0 | AH78: 0 | AI78: 0 | AJ78: 0 | AK78: 0 | AL78: 0 | AM78: 0 | AN78: 0
V79: 1500 | W79: =1 -> 1 | X79: =1 -> 1 | Y79: =1 -> 1 | Z79: =1 -> 1 | AA79: =1 -> 1 | AB79: =1 -> 1 | AC79: =1 -> 1 | AD79: =1 -> 1 | AE79: 0 | AF79: 0 | AG79: 0 | AH79: 0 | AI79: 0 | AJ79: 0 | AK79: 0 | AL79: 0 | AM79: 0 | AN79: 0
V80: 2000 | W80: =1 -> 1 | X80: =1 -> 1 | Y80: =1 -> 1 | Z80: =1 -> 1 | AA80: =1 -> 1 | AB80: =1 -> 1 | AC80: =1 -> 1 | AD80: =1 -> 1 | AE80: 0 | AF80: 0 | AG80: 0 | AH80: 0 | AI80: 0 | AJ80: 0 | AK80: 0 | AL80: 0 | AM80: 0 | AN80: 0
V81: 2500 | W81: =1 -> 1 | X81: =1 -> 1 | Y81: =1 -> 1 | Z81: =1 -> 1 | AA81: =1 -> 1 | AB81: =1 -> 1 | AC81: =1 -> 1 | AD81: =1 -> 1 | AE81: 0 | AF81: 0 | AG81: 0 | AH81: 0 | AI81: 0 | AJ81: 0 | AK81: 0 | AL81: 0 | AM81: 0 | AN81: 0
V82: 3000 | W82: =1 -> 1 | X82: =1 -> 1 | Y82: =1 -> 1 | Z82: =1 -> 1 | AA82: =1 -> 1 | AB82: =1 -> 1 | AC82: =1 -> 1 | AD82: =1 -> 1 | AE82: 0 | AF82: 0 | AG82: 0 | AH82: 0 | AI82: 0 | AJ82: 0 | AK82: 0 | AL82: 0 | AM82: 0 | AN82: 0
V83: 3500 | W83: =1 -> 1 | X83: =1 -> 1 | Y83: =1 -> 1 | Z83: =1 -> 1 | AA83: =1 -> 1 | AB83: =1 -> 1 | AC83: =1 -> 1 | AD83: =1 -> 1 | AE83: 0 | AF83: 0 | AG83: 0 | AH83: 0 | AI83: 0 | AJ83: 0 | AK83: 0 | AL83: 0 | AM83: 0 | AN83: 0
V84: 4000 | W84: =1 -> 1 | X84: =1 -> 1 | Y84: =1 -> 1 | Z84: =1 -> 1 | AA84: =1 -> 1 | AB84: =1 -> 1 | AC84: =1 -> 1 | AD84: =1 -> 1 | AE84: 0 | AF84: 0 | AG84: 0 | AH84: 0 | AI84: 0 | AJ84: 0 | AK84: 0 | AL84: 0 | AM84: 0 | AN84: 0
V85: 4500 | W85: =1 -> 1 | X85: =1 -> 1 | Y85: =1 -> 1 | Z85: =1 -> 1 | AA85: =1 -> 1 | AB85: =1 -> 1 | AC85: 0 | AD85: 0 | AE85: 0 | AF85: 0 | AG85: 0 | AH85: 0 | AI85: 0 | AJ85: 0 | AK85: 0 | AL85: 0 | AM85: 0 | AN85: 0
V86: 5000 | W86: =1 -> 1 | X86: =1 -> 1 | Y86: =1 -> 1 | Z86: =1 -> 1 | AA86: =1 -> 1 | AB86: 0 | AC86: 0 | AD86: 0 | AE86: 0 | AF86: 0 | AG86: 0 | AH86: 0 | AI86: 0 | AJ86: 0 | AK86: 0 | AL86: 0 | AM86: 0 | AN86: 0
V87: 5500 | W87: =1 -> 1 | X87: =1 -> 1 | Y87: =1 -> 1 | Z87: =1 -> 1 | AA87: 0 | AB87: 0 | AC87: 0 | AD87: 0 | AE87: 0 | AF87: 0 | AG87: 0 | AH87: 0 | AI87: 0 | AJ87: 0 | AK87: 0 | AL87: 0 | AM87: 0 | AN87: 0
V88: 6000 | W88: 0 | X88: 0 | Y88: 0 | Z88: 0 | AA88: 0 | AB88: 0 | AC88: 0 | AD88: 0 | AE88: 0 | AF88: 0 | AG88: 0 | AH88: 0 | AI88: 0 | AJ88: 0 | AK88: 0 | AL88: 0 | AM88: 0 | AN88: 0
V89: 6500 | W89: 0 | X89: 0 | Y89: 0 | Z89: 0 | AA89: 0 | AB89: 0 | AC89: 0 | AD89: 0 | AE89: 0 | AF89: 0 | AG89: 0 | AH89: 0 | AI89: 0 | AJ89: 0 | AK89: 0 | AL89: 0 | AM89: 0 | AN89: 0
V90: 7000 | W90: 0 | X90: 0 | Y90: 0 | Z90: 0 | AA90: 0 | AB90: 0 | AC90: 0 | AD90: 0 | AE90: 0 | AF90: 0 | AG90: 0 | AH90: 0 | AI90: 0 | AJ90: 0 | AK90: 0 | AL90: 0 | AM90: 0 | AN90: 0
V91: 7500 | W91: 0 | X91: 0 | Y91: 0 | Z91: 0 | AA91: 0 | AB91: 0 | AC91: 0 | AD91: 0 | AE91: 0 | AF91: 0 | AG91: 0 | AH91: 0 | AI91: 0 | AJ91: 0 | AK91: 0 | AL91: 0 | AM91: 0 | AN91: 0
T94: DO NOT MODIFY THESE ARE THE QUANTIZED VALUES THE ECU USES. THEY ALLOW FOR ACCURATE SMOOTHING AND CORRECT DECIMAL VALUES TO PASTE BACK INTO ECU FLASH
W97: Modded High Octane Fuel Map (Quantized) | X97: 0 | Y97: 0 | Z97: 0 | AA97: 0 | AB97: 0 | AC97: 0 | AD97: 0 | AE97: 0 | AF97: 0 | AG97: 0 | AH97: 0 | AI97: 0 | AJ97: 0 | AK97: 0 | AL97: 0 | AM97: 0 | AN97: 0
W98: Load Value | X98: 0 | Y98: 0 | Z98: 0 | AA98: 0 | AB98: 0 | AC98: 0 | AD98: 0 | AE98: 0 | AF98: 0 | AG98: 0 | AH98: 0 | AI98: 0 | AJ98: 0 | AK98: 0 | AL98: 0 | AM98: 0 | AN98: 0
W99: =W28 -> 10 | X99: 20 | Y99: 30 | Z99: 40 | AA99: 50 | AB99: 60 | AC99: 70 | AD99: 80 | AE99: 90 | AF99: 100 | AG99: 120 | AH99: 140 | AI99: 160 | AJ99: 180 | AK99: 200 | AL99: 220 | AM99: 240 | AN99: 260
U100: RPM | V100: =V29 -> 500 | W100: =ROUND(14.7*128/W29,0) -> 141 | X100: 141 | Y100: 141 | Z100: 141 | AA100: 141 | AB100: 141 | AC100: 141 | AD100: 141 | AE100: 150 | AF100: 150 | AG100: 153 | AH100: 156 | AI100: 159 | AJ100: 162 | AK100: 165 | AL100: 168 | AM100: 171 | AN100: 174
U101: 0 | V101: 1000 | W101: =ROUND(14.7*128/W30,0) -> 128 | X101: 128 | Y101: 128 | Z101: 128 | AA101: 128 | AB101: 128 | AC101: 128 | AD101: 128 | AE101: 140 | AF101: 140 | AG101: 143 | AH101: 147 | AI101: 150 | AJ101: 153 | AK101: 156 | AL101: 159 | AM101: 162 | AN101: 164
U102: 0 | V102: 1500 | W102: =ROUND(14.7*128/W31,0) -> 128 | X102: 128 | Y102: 128 | Z102: 128 | AA102: 128 | AB102: 128 | AC102: 128 | AD102: 128 | AE102: 132 | AF102: 136 | AG102: 143 | AH102: 145 | AI102: 147 | AJ102: 150 | AK102: 153 | AL102: 156 | AM102: 159 | AN102: 162
U103: 0 | V103: 2000 | W103: =ROUND(14.7*128/W32,0) -> 128 | X103: 128 | Y103: 128 | Z103: 128 | AA103: 128 | AB103: 128 | AC103: 128 | AD103: 128 | AE103: 132 | AF103: 136 | AG103: 140 | AH103: 144 | AI103: 147 | AJ103: 149 | AK103: 152 | AL103: 155 | AM103: 158 | AN103: 161
U104: 0 | V104: 2500 | W104: =ROUND(14.7*128/W33,0) -> 128 | X104: 128 | Y104: 128 | Z104: 128 | AA104: 128 | AB104: 128 | AC104: 128 | AD104: 128 | AE104: 131 | AF104: 133 | AG104: 136 | AH104: 140 | AI104: 143 | AJ104: 145 | AK104: 148 | AL104: 151 | AM104: 154 | AN104: 157
U105: 0 | V105: 3000 | W105: =ROUND(14.7*128/W34,0) -> 128 | X105: 128 | Y105: 128 | Z105: 128 | AA105: 128 | AB105: 128 | AC105: 128 | AD105: 128 | AE105: 131 | AF105: 133 | AG105: 134 | AH105: 142 | AI105: 160 | AJ105: 166 | AK105: 170 | AL105: 172 | AM105: 175 | AN105: 178
U106: 0 | V106: 3500 | W106: =ROUND(14.7*128/W35,0) -> 128 | X106: 128 | Y106: 128 | Z106: 128 | AA106: 128 | AB106: 128 | AC106: 128 | AD106: 128 | AE106: 131 | AF106: 133 | AG106: 140 | AH106: 154 | AI106: 164 | AJ106: 173 | AK106: 174 | AL106: 175 | AM106: 178 | AN106: 179
U107: 0 | V107: 4000 | W107: =ROUND(14.7*128/W36,0) -> 128 | X107: 128 | Y107: 128 | Z107: 128 | AA107: 128 | AB107: 128 | AC107: 128 | AD107: 128 | AE107: 133 | AF107: 138 | AG107: 151 | AH107: 162 | AI107: 168 | AJ107: 175 | AK107: 177 | AL107: 178 | AM107: 181 | AN107: 184
U108: 0 | V108: 4500 | W108: =ROUND(14.7*128/W37,0) -> 128 | X108: 128 | Y108: 128 | Z108: 128 | AA108: 128 | AB108: 128 | AC108: 133 | AD108: 137 | AE108: 140 | AF108: 147 | AG108: 156 | AH108: 164 | AI108: 170 | AJ108: 174 | AK108: 175 | AL108: 178 | AM108: 181 | AN108: 184
U109: 0 | V109: 5000 | W109: =ROUND(14.7*128/W38,0) -> 128 | X109: 128 | Y109: 128 | Z109: 128 | AA109: 128 | AB109: 130 | AC109: 133 | AD109: 140 | AE109: 147 | AF109: 154 | AG109: 159 | AH109: 164 | AI109: 172 | AJ109: 178 | AK109: 180 | AL109: 181 | AM109: 184 | AN109: 187
U110: 0 | V110: 5500 | W110: =ROUND(14.7*128/W39,0) -> 128 | X110: 128 | Y110: 128 | Z110: 128 | AA110: 130 | AB110: 134 | AC110: 138 | AD110: 147 | AE110: 154 | AF110: 158 | AG110: 162 | AH110: 172 | AI110: 177 | AJ110: 182 | AK110: 185 | AL110: 187 | AM110: 190 | AN110: 192
U111: 0 | V111: 6000 | W111: =ROUND(14.7*128/W40,0) -> 131 | X111: 131 | Y111: 131 | Z111: 131 | AA111: 135 | AB111: 140 | AC111: 148 | AD111: 159 | AE111: 161 | AF111: 164 | AG111: 167 | AH111: 173 | AI111: 178 | AJ111: 183 | AK111: 189 | AL111: 192 | AM111: 195 | AN111: 196
U112: 0 | V112: 6500 | W112: =ROUND(14.7*128/W41,0) -> 133 | X112: 133 | Y112: 133 | Z112: 138 | AA112: 142 | AB112: 148 | AC112: 156 | AD112: 164 | AE112: 164 | AF112: 166 | AG112: 170 | AH112: 176 | AI112: 181 | AJ112: 186 | AK112: 190 | AL112: 192 | AM112: 195 | AN112: 196
U113: 0 | V113: 7000 | W113: =ROUND(14.7*128/W42,0) -> 134 | X113: 134 | Y113: 134 | Z113: 140 | AA113: 145 | AB113: 154 | AC113: 162 | AD113: 166 | AE113: 167 | AF113: 168 | AG113: 172 | AH113: 178 | AI113: 183 | AJ113: 190 | AK113: 196 | AL113: 196 | AM113: 196 | AN113: 196
U114: 0 | V114: 7500 | W114: =ROUND(14.7*128/W43,0) -> 134 | X114: 134 | Y114: 134 | Z114: 140 | AA114: 145 | AB114: 154 | AC114: 162 | AD114: 166 | AE114: 167 | AF114: 168 | AG114: 172 | AH114: 178 | AI114: 183 | AJ114: 190 | AK114: 196 | AL114: 196 | AM114: 196 | AN114: 196

Sheet Timing - 21 Cell
A1: Main Ignition Maps | AE1: = Unsmoothed cells
Z3: 1 | AB3: Smoothed Ignition Map
AB4: Load Value | BV4: Interpolate | BW4: Interpolate
AB5: 0 | AC5: 10 | AD5: 20 | AE5: 30 | AF5: 40 | AG5: 50 | AH5: 60 | AI5: 70 | AJ5: 80 | AK5: 90 | AL5: 100 | AM5: 120 | AN5: 140 | AO5: 160 | AP5: 180 | AQ5: 200 | AR5: 220 | AS5: 240 | AT5: 260 | AU5: 280 | AV5: 300 | BV5: Ign. | BW5: Fuel.
Z6: RPM | AA6: 0 | AB6: =AB30 -> 5 | AC6: 5 | AD6: 5 | AE6: 5 | AF6: 5 | AG6: 11 | AH6: 15 | AI6: 6 | AJ6: 3 | AK6: 2 | AL6: -1 | AM6: -2 | AN6: -5 | AO6: -8 | AP6: -10 | AQ6: -10 | AR6: -10 | AS6: -10 | AT6: =AT30 -> -10 | AU6: -10 | AV6: -10 | BV6: 0 | BW6: 500
AA7: 500 | AB7: =AB31 -> 5 | AC7: 5 | AD7: 5 | AE7: 5 | AF7: 5 | AG7: 8 | AH7: =AH31 -> 13 | AI7: 6 | AJ7: 3 | AK7: 2 | AL7: -1 | AM7: -2 | AN7: -5 | AO7: -8 | AP7: -10 | AQ7: -10 | AR7: -10 | AS7: -10 | AT7: -10 | AU7: -10 | AV7: -10 | BV7: 421.875 | BW7: 1035.16
AA8: 750 | AB8: =AB32 -> 5 | AC8: 5 | AD8: 5 | AE8: 5 | AF8: 5 | AG8: 9 | AH8: =AH32 -> 13 | AI8: =AI32 -> 10 | AJ8: =ROUND(AVERAGE(AJ32,AJ32,AI31:AK33),0) -> 6 | AK8: 4 | AL8: 2 | AM8: -1 | AN8: -3 | AO8: -6 | AP8: =AP32 -> -9 | AQ8: =AQ32 -> -10 | AR8: =AR32 -> -10 | AS8: =AS32 -> -10 | AT8: -10 | AU8: -10 | AV8: -10 | BV8: 843.75 | BW8: 1570.31
AA9: 1000 | AB9: =AB33 -> 5 | AC9: 5 | AD9: 5 | AE9: 5 | AF9: 9 | AG9: 13 | AH9: =AH33 -> 18 | AI9: 12 | AJ9: =ROUND(AVERAGE(AJ33,AJ33,AI32:AK34),0) -> 10 | AK9: =ROUND(AVERAGE(AK33,AK33,AJ32:AL34),0) -> 7 | AL9: =ROUND(AVERAGE(AL33,AL33,AK32:AM34),0) -> 5 | AM9: =ROUND(AVERAGE(AM33,AM33,AL32:AN34),0) -> 2 | AN9: =ROUND(AVERAGE(AN33,AN33,AM32:AO34),0) -> -1 | AO9: =ROUND(AVERAGE(AO33,AO33,AN32:AP34),0) -> -3 | AP9: =ROUND(AVERAGE(AP33,AP33,AO32:AQ34),0) -> -6 | AQ9: =AQ33 -> -9 | AR9: =AR33 -> -10 | AS9: =AS33 -> -10 | AT9: -10 | AU9: -10 | AV9: -10 | BV9: 1261.72 | BW9: 2105.47
AA10: 1250 | AB10: =AB34 -> 8 | AC10: 8 | AD10: 12 | AE10: 12 | AF10: 16 | AG10: 20 | AH10: =AH34 -> 20 | AI10: =AI34 -> 17 | AJ10: =AJ34 -> 14 | AK10: 11 | AL10: 8 | AM10: 6 | AN10: 3 | AO10: 0 | AP10: -3 | AQ10: -6 | AR10: -8 | AS10: =ROUND(AVERAGE(AS34,AS34,AR33:AT35),0) -> -9 | AT10: -10 | AU10: -10 | AV10: =ROUND(AVERAGE(AV34,AV34,AU33:AV35),0) -> -11 | BV10: 1683.59 | BW10: 2644.53
AA11: 1500 | AB11: =AB35 -> 13 | AC11: 13 | AD11: 19 | AE11: 19 | AF11: 26 | AG11: 24 | AH11: =AH35 -> 23 | AI11: =AI35 -> 21 | AJ11: =AJ35 -> 18 | AK11: 14 | AL11: 11 | AM11: 9 | AN11: 6 | AO11: 3 | AP11: 0 | AQ11: -3 | AR11: -6 | AS11: -8 | AT11: -9 | AU11: -10 | AV11: -11 | BV11: 2105.47 | BW11: 3179.69
AA12: 1750 | AB12: =AB36 -> 18 | AC12: =ROUND(AVERAGE(AC36,AC36,AB35:AD37),0) -> 20 | AD12: =AD36 -> 25 | AE12: =ROUND(AVERAGE(AE36,AE36,AD35:AF37),0) -> 26 | AF12: 27 | AG12: =ROUND(AVERAGE(AG36,AG36,AF35:AH37),0) -> 25 | AH12: 24 | AI12: 23 | AJ12: 20 | AK12: 17 | AL12: 14 | AM12: 11 | AN12: 8 | AO12: 5 | AP12: 2 | AQ12: -1 | AR12: -4 | AS12: -6 | AT12: -8 | AU12: -9 | AV12: -10 | BV12: 2527.34 | BW12: 3714.84
AA13: 2000 | AB13: 24 | AC13: 25 | AD13: 32 | AE13: =AE37 -> 32 | AF13: =ROUND(AVERAGE(AF37,AF37,AE36:AG38),0) -> 29 | AG13: 27 | AH13: 26 | AI13: 25 | AJ13: 23 | AK13: 20 | AL13: 16 | AM13: 13 | AN13: 9 | AO13: 6 | AP13: 3 | AQ13: 0 | AR13: -3 | AS13: -5 | AT13: -7 | AU13: -9 | AV13: -10 | BV13: 2949.22 | BW13: 4250
AA14: 2500 | AB14: 24 | AC14: 28 | AD14: 34 | AE14: =ROUND(AVERAGE(AE38,AE38,AD37:AF39),0) -> 34 | AF14: =ROUND(AVERAGE(AF38,AF38,AE37:AG39),0) -> 32 | AG14: =ROUND(AVERAGE(AG38,AG38,AF37:AH39),0) -> 30 | AH14: =AH38 -> 29 | AI14: =ROUND(AVERAGE(AI38,AI38,AH37:AJ39),0) -> 27 | AJ14: 25 | AK14: 22 | AL14: 19 | AM14: 15 | AN14: 11 | AO14: 7 | AP14: 5 | AQ14: 2 | AR14: -1 | AS14: -3 | AT14: -5 | AU14: -7 | AV14: -8 | BV14: 3367.19 | BW14: 4785.16
AA15: 3000 | AB15: 28 | AC15: 30 | AD15: 38 | AE15: =AE39 -> 38 | AF15: =AF39 -> 35 | AG15: 32 | AH15: =ROUND(AVERAGE(AH39,AH39,AG38:AI40),0) -> 30 | AI15: 29 | AJ15: 27 | AK15: 24 | AL15: 21 | AM15: 17 | AN15: 13 | AO15: 9 | AP15: 6 | AQ15: 4 | AR15: 1 | AS15: -1 | AT15: -3 | AU15: -5 | AV15: -6 | BV15: 3789.06 | BW15: 5320.31
AA16: 3500 | AB16: 28 | AC16: 31 | AD16: 38 | AE16: =AE40 -> 38 | AF16: =ROUND(AVERAGE(AF40,AF40,AE39:AG41),0) -> 35 | AG16: 32 | AH16: 31 | AI16: 29 | AJ16: 28 | AK16: 26 | AL16: 23 | AM16: 19 | AN16: 15 | AO16: 11 | AP16: =ROUND(AVERAGE(AP40,AP40,AO39:AQ41),0) -> 8 | AQ16: =ROUND(AVERAGE(AQ40,AQ40,AP39:AR41),0) -> 6 | AR16: =ROUND(AVERAGE(AR40,AR40,AQ39:AS41),0) -> 3 | AS16: =ROUND(AVERAGE(AS40,AS40,AR39:AT41),0) -> 1 | AT16: =ROUND(AVERAGE(AT40,AT40,AS39:AU41),0) -> -1 | AU16: =ROUND(AVERAGE(AU40,AU40,AT39:AV41),0) -> -3 | AV16: =ROUND(AVERAGE(AV40,AV40,AU39:AV41),0) -> -4 | BV16: 4210.94 | BW16: 5855.47
AA17: 4000 | AB17: 28 | AC17: 32 | AD17: 38 | AE17: =AE41 -> 38 | AF17: 35 | AG17: 33 | AH17: 31 | AI17: 30 | AJ17: 28 | AK17: 26 | AL17: 24 | AM17: 20 | AN17: 16 | AO17: 12 | AP17: 9 | AQ17: 7 | AR17: 5 | AS17: 3 | AT17: 1 | AU17: -1 | AV17: -2 | AY17: MAP Difference Comparison | BV17: 4632.81 | BW17: 6394.53
AA18: 4500 | AB18: 33 | AC18: 34 | AD18: 38 | AE18: =AE42 -> 38 | AF18: 35 | AG18: 33 | AH18: 31 | AI18: 30 | AJ18: 28 | AK18: 26 | AL18: 24 | AM18: 20 | AN18: 16 | AO18: 13 | AP18: 10 | AQ18: 8 | AR18: 6 | AS18: 3 | AT18: 2 | AU18: 0 | AV18: 0 | AY18: 0 | AZ18: 10 | BA18: 20 | BB18: 30 | BC18: 40 | BD18: 50 | BE18: 60 | BF18: 70 | BG18: 80 | BH18: 90 | BI18: 100 | BJ18: 120 | BK18: 140 | BL18: 160 | BM18: 180 | BN18: 200 | BO18: 220 | BP18: 240 | BQ18: 260 | BR18: 280 | BS18: 300 | BV18: 5050.78 | BW18: 6929.69
AA19: 5000 | AB19: =AB43 -> 38 | AC19: =AC43 -> 38 | AD19: =AD43 -> 38 | AE19: =AE43 -> 38 | AF19: 35 | AG19: 33 | AH19: 31 | AI19: 30 | AJ19: 28 | AK19: 27 | AL19: 24 | AM19: 20 | AN19: 17 | AO19: 13 | AP19: 11 | AQ19: 9 | AR19: 6 | AS19: 4 | AT19: 3 | AU19: 2 | AV19: 1 | AX19: 0 | AY19: =AB6-AB30 -> 0 | AZ19: =AC6-AC30 -> 0 | BA19: =AD6-AD30 -> 0 | BB19: =AE6-AE30 -> 0 | BC19: =AF6-AF30 -> 0 | BD19: =AG6-AG30 -> 0 | BE19: =AH6-AH30 -> 0 | BF19: =AI6-AI30 -> 0 | BG19: =AJ6-AJ30 -> 0 | BH19: =AK6-AK30 -> 0 | BI19: =AL6-AL30 -> 0 | BJ19: =AM6-AM30 -> 0 | BK19: =AN6-AN30 -> 0 | BL19: =AO6-AO30 -> 0 | BM19: =AP6-AP30 -> 0 | BN19: =AQ6-AQ30 -> 0 | BO19: =AR6-AR30 -> 0 | BP19: =AS6-AS30 -> 0 | BQ19: =AT6-AT30 -> 0 | BR19: =AU6-AU30 -> 0 | BS19: =AV6-AV30 -> 0 | BV19: 5472.66 | BW19: 7464.84
AA20: 5500 | AB20: =AB44 -> 38 | AC20: =ROUND(AVERAGE(AC44,AC44,AB43:AD45),0) -> 38 | AD20: =AD44 -> 38 | AE20: =AE44 -> 38 | AF20: 35 | AG20: 33 | AH20: 31 | AI20: 30 | AJ20: 29 | AK20: 27 | AL20: 25 | AM20: 21 | AN20: 18 | AO20: 14 | AP20: 12 | AQ20: 9 | AR20: 7 | AS20: 5 | AT20: 4 | AU20: 3 | AV20: 3 | AX20: 500 | AY20: 0 | AZ20: 0 | BA20: 0 | BB20: 0 | BC20: 0 | BD20: 0 | BE20: 0 | BF20: 0 | BG20: 0 | BH20: 0 | BI20: 0 | BJ20: 0 | BK20: 0 | BL20: 0 | BM20: 0 | BN20: 0 | BO20: 0 | BP20: 0 | BQ20: 0 | BR20: 0 | BS20: 0 | BV20: 5894.53 | BW20: 8000
AA21: 6000 | AB21: 38 | AC21: =ROUND(AVERAGE(AC45,AC45,AB44:AD46),0) -> 38 | AD21: =AD45 -> 38 | AE21: 38 | AF21: 36 | AG21: 34 | AH21: 33 | AI21: 32 | AJ21: 31 | AK21: 29 | AL21: 26 | AM21: 23 | AN21: 20 | AO21: 16 | AP21: 13 | AQ21: 10 | AR21: 8 | AS21: 6 | AT21: 5 | AU21: 5 | AV21: 4 | AX21: 750 | AY21: 0 | AZ21: 0 | BA21: 0 | BB21: 0 | BC21: 0 | BD21: 0 | BE21: 0 | BF21: 0 | BG21: 0 | BH21: 1 | BI21: 1 | BJ21: 0 | BK21: 1 | BL21: 0 | BM21: 0 | BN21: 0 | BO21: 0 | BP21: 0 | BQ21: 0 | BR21: 0 | BS21: 0 | BV21: 6316.41
AA22: 6500 | AB22: 38 | AC22: =ROUND(AVERAGE(AC46,AC46,AB45:AD47),0) -> 38 | AD22: =ROUND(AVERAGE(AD46,AD46,AC45:AE47),0) -> 38 | AE22: 38 | AF22: 38 | AG22: 37 | AH22: =ROUND(AVERAGE(AH46,AH46,AG45:AI47),0) -> 35 | AI22: 34 | AJ22: 33 | AK22: 31 | AL22: 29 | AM22: 26 | AN22: 23 | AO22: 19 | AP22: 15 | AQ22: 12 | AR22: 9 | AS22: 8 | AT22: 7 | AU22: 6 | AV22: 6 | AX22: 1000 | AY22: 0 | AZ22: 0 | BA22: 0 | BB22: 0 | BC22: 0 | BD22: 0 | BE22: 0 | BF22: 2 | BG22: 1 | BH22: 0 | BI22: 0 | BJ22: 0 | BK22: 0 | BL22: 1 | BM22: 0 | BN22: 0 | BO22: 0 | BP22: 0 | BQ22: 0 | BR22: 0 | BS22: 0 | BV22: 6738.28
AA23: 7000 | AB23: 38 | AC23: =ROUND(AVERAGE(AC47,AC47,AB46:AD48),0) -> 38 | AD23: =ROUND(AVERAGE(AD47,AD47,AC46:AE48),0) -> 38 | AE23: =ROUND(AVERAGE(AE47,AE47,AD46:AF48),0) -> 38 | AF23: 38 | AG23: 37 | AH23: =ROUND(AVERAGE(AH47,AH47,AG46:AI48),0) -> 36 | AI23: =ROUND(AVERAGE(AI47,AI47,AH46:AJ48),0) -> 35 | AJ23: =ROUND(AVERAGE(AJ47,AJ47,AI46:AK48),0) -> 34 | AK23: 33 | AL23: 31 | AM23: 29 | AN23: 25 | AO23: 21 | AP23: 17 | AQ23: 13 | AR23: 10 | AS23: 9 | AT23: 9 | AU23: 8 | AV23: 8 | AX23: 1250 | AY23: 0 | AZ23: 0 | BA23: 0 | BB23: 0 | BC23: 0 | BD23: 0 | BE23: 0 | BF23: 0 | BG23: 0 | BH23: 0 | BI23: 0 | BJ23: 0 | BK23: 0 | BL23: 0 | BM23: 0 | BN23: 0 | BO23: 0 | BP23: 0 | BQ23: 0 | BR23: 1 | BS23: 1 | BV23: 7156.25
AA24: 7500 | AB24: 38 | AC24: =ROUND(AVERAGE(AC48,AC48,AB47:AD49),0) -> 38 | AD24: =ROUND(AVERAGE(AD48,AD48,AC47:AE49),0) -> 38 | AE24: 38 | AF24: 38 | AG24: 37 | AH24: =ROUND(AVERAGE(AH48,AH48,AG47:AI49),0) -> 36 | AI24: =ROUND(AVERAGE(AI48,AI48,AH47:AJ49),0) -> 35 | AJ24: =ROUND(AVERAGE(AJ48,AJ48,AI47:AK49),0) -> 35 | AK24: 34 | AL24: 32 | AM24: 30 | AN24: 26 | AO24: 22 | AP24: 17 | AQ24: 14 | AR24: 11 | AS24: 10 | AT24: 10 | AU24: 10 | AV24: 10 | AX24: 1500 | AY24: 0 | AZ24: 0 | BA24: 0 | BB24: 0 | BC24: 0 | BD24: 0 | BE24: 0 | BF24: 0 | BG24: 0 | BH24: 0 | BI24: 0 | BJ24: 0 | BK24: 0 | BL24: 0 | BM24: 0 | BN24: 0 | BO24: 0 | BP24: 0 | BQ24: 0 | BR24: 0 | BS24: 0 | BV24: 7578.12
AA25: 11000 | AB25: 38 | AC25: =ROUND(AVERAGE(AC49,AC49,AB48:AD49),0) -> 38 | AD25: 38 | AE25: 38 | AF25: 38 | AG25: 37 | AH25: 36 | AI25: 35 | AJ25: 35 | AK25: 34 | AL25: 33 | AM25: 30 | AN25: 27 | AO25: 22 | AP25: 18 | AQ25: 14 | AR25: 12 | AS25: 10 | AT25: 10 | AU25: 10 | AV25: 10 | AX25: 1750 | AY25: 0 | AZ25: 2 | BA25: 0 | BB25: 1 | BC25: 0 | BD25: 0 | BE25: 0 | BF25: 0 | BG25: -1 | BH25: 0 | BI25: 0 | BJ25: 0 | BK25: 0 | BL25: 0 | BM25: 0 | BN25: 0 | BO25: 0 | BP25: 1 | BQ25: 0 | BR25: 0 | BS25: 0 | BV25: 8000
AX26: 2000 | AY26: 0 | AZ26: 1 | BA26: 0 | BB26: 0 | BC26: 0 | BD26: 1 | BE26: 0 | BF26: 0 | BG26: 0 | BH26: 0 | BI26: 0 | BJ26: 0 | BK26: 0 | BL26: 0 | BM26: 0 | BN26: 0 | BO26: 0 | BP26: 0 | BQ26: 0 | BR26: 0 | BS26: 1
Z27: 2 | AB27: Modded Ignition Map | AX27: 2500 | AY27: 0 | AZ27: 4 | BA27: 0 | BB27: 0 | BC27: 0 | BD27: 0 | BE27: 0 | BF27: 0 | BG27: 0 | BH27: 0 | BI27: 0 | BJ27: 0 | BK27: 1 | BL27: 0 | BM27: 0 | BN27: 0 | BO27: 0 | BP27: 1 | BQ27: 1 | BR27: 1 | BS27: 2
AB28: Load Value | AX28: 3000 | AY28: 0 | AZ28: 2 | BA28: 0 | BB28: 0 | BC28: 0 | BD28: 0 | BE28: 0 | BF28: 0 | BG28: 0 | BH28: -1 | BI28: -1 | BJ28: 0 | BK28: 0 | BL28: 1 | BM28: 0 | BN28: 0 | BO28: 0 | BP28: 1 | BQ28: 0 | BR28: -1 | BS28: -1
AB29: 0 | AC29: 10 | AD29: 20 | AE29: 30 | AF29: 40 | AG29: 50 | AH29: 60 | AI29: 70 | AJ29: 80 | AK29: 90 | AL29: 100 | AM29: 120 | AN29: 140 | AO29: 160 | AP29: 180 | AQ29: 200 | AR29: 220 | AS29: 240 | AT29: 260 | AU29: 280 | AV29: 300 | AX29: 3500 | AY29: 0 | AZ29: 3 | BA29: 0 | BB29: 0 | BC29: 0 | BD29: 0 | BE29: 0 | BF29: -1 | BG29: 0 | BH29: 0 | BI29: -1 | BJ29: 0 | BK29: 0 | BL29: 0 | BM29: 0 | BN29: 0 | BO29: -1 | BP29: 0 | BQ29: 0 | BR29: 0 | BS29: 1
Z30: RPM | AA30: 0 | AB30: 5 | AC30: 5 | AD30: 5 | AE30: 5 | AF30: 5 | AG30: 11 | AH30: 15 | AI30: 6 | AJ30: 3 | AK30: 2 | AL30: -1 | AM30: -2 | AN30: -5 | AO30: -8 | AP30: -10 | AQ30: -10 | AR30: -10 | AS30: -10 | AT30: -10 | AU30: -10 | AV30: -10 | AX30: 4000 | AY30: 0 | AZ30: 4 | BA30: 0 | BB30: 0 | BC30: 0 | BD30: 1 | BE30: 0 | BF30: 0 | BG30: 0 | BH30: -1 | BI30: 0 | BJ30: 0 | BK30: 0 | BL30: 0 | BM30: 0 | BN30: 0 | BO30: 0 | BP30: 0 | BQ30: 0 | BR30: 0 | BS30: 1
AA31: 500 | AB31: 5 | AC31: 5 | AD31: 5 | AE31: 5 | AF31: 5 | AG31: 8 | AH31: 13 | AI31: 6 | AJ31: 3 | AK31: 2 | AL31: -1 | AM31: -2 | AN31: -5 | AO31: -8 | AP31: -10 | AQ31: -10 | AR31: -10 | AS31: -10 | AT31: -10 | AU31: -10 | AV31: -10 | AX31: 4500 | AY31: 0 | AZ31: 1 | BA31: 0 | BB31: 0 | BC31: 0 | BD31: 1 | BE31: 0 | BF31: 0 | BG31: 0 | BH31: -1 | BI31: 0 | BJ31: 0 | BK31: 0 | BL31: 0 | BM31: 0 | BN31: 0 | BO31: 0 | BP31: 0 | BQ31: 0 | BR31: -1 | BS31: 0
AA32: 750 | AB32: 5 | AC32: 5 | AD32: 5 | AE32: 5 | AF32: 5 | AG32: 9 | AH32: 13 | AI32: 10 | AJ32: 6 | AK32: 3 | AL32: 1 | AM32: -1 | AN32: -4 | AO32: -6 | AP32: -9 | AQ32: -10 | AR32: -10 | AS32: -10 | AT32: -10 | AU32: -10 | AV32: -10 | AX32: 5000 | AY32: 0 | AZ32: 0 | BA32: 0 | BB32: 0 | BC32: 0 | BD32: 1 | BE32: 0 | BF32: 0 | BG32: 0 | BH32: 0 | BI32: 0 | BJ32: 0 | BK32: 1 | BL32: 0 | BM32: 0 | BN32: 0 | BO32: 0 | BP32: 1 | BQ32: 1 | BR32: 1 | BS32: 1
AA33: 1000 | AB33: 5 | AC33: 5 | AD33: 5 | AE33: 5 | AF33: 9 | AG33: 13 | AH33: 18 | AI33: 10 | AJ33: 9 | AK33: 7 | AL33: 5 | AM33: 2 | AN33: -1 | AO33: -4 | AP33: -6 | AQ33: -9 | AR33: -10 | AS33: -10 | AT33: -10 | AU33: -10 | AV33: -10 | AX33: 5500 | AY33: 0 | AZ33: 0 | BA33: 0 | BB33: 0 | BC33: 0 | BD33: 1 | BE33: 0 | BF33: 0 | BG33: 0 | BH33: 0 | BI33: 0 | BJ33: 0 | BK33: 1 | BL33: 0 | BM33: 0 | BN33: 0 | BO33: 0 | BP33: 1 | BQ33: 0 | BR33: -1 | BS33: -1
AA34: 1250 | AB34: 8 | AC34: 8 | AD34: 12 | AE34: 12 | AF34: 16 | AG34: 20 | AH34: 20 | AI34: 17 | AJ34: 14 | AK34: 11 | AL34: 8 | AM34: 6 | AN34: 3 | AO34: 0 | AP34: -3 | AQ34: -6 | AR34: -8 | AS34: -9 | AT34: -10 | AU34: -11 | AV34: -12 | AX34: 6000 | AY34: 0 | AZ34: 0 | BA34: 0 | BB34: 0 | BC34: 1 | BD34: 0 | BE34: 1 | BF34: 0 | BG34: 1 | BH34: 0 | BI34: 0 | BJ34: 0 | BK34: 1 | BL34: 0 | BM34: 0 | BN34: 0 | BO34: 0 | BP34: 0 | BQ34: 0 | BR34: 1 | BS34: 1
AA35: 1500 | AB35: 13 | AC35: 13 | AD35: 19 | AE35: 19 | AF35: 26 | AG35: 24 | AH35: 23 | AI35: 21 | AJ35: 18 | AK35: 14 | AL35: 11 | AM35: 9 | AN35: 6 | AO35: 3 | AP35: 0 | AQ35: -3 | AR35: -6 | AS35: -8 | AT35: -9 | AU35: -10 | AV35: -11 | AX35: 6500 | AY35: 0 | AZ35: 0 | BA35: 0 | BB35: 0 | BC35: 0 | BD35: 0 | BE35: 0 | BF35: 0 | BG35: 0 | BH35: -1 | BI35: -1 | BJ35: 0 | BK35: 0 | BL35: 0 | BM35: 0 | BN35: 1 | BO35: 0 | BP35: 0 | BQ35: 0 | BR35: 0 | BS35: 1
AA36: 1750 | AB36: 18 | AC36: 18 | AD36: 25 | AE36: 25 | AF36: 27 | AG36: 25 | AH36: 24 | AI36: 23 | AJ36: 21 | AK36: 17 | AL36: 14 | AM36: 11 | AN36: 8 | AO36: 5 | AP36: 2 | AQ36: -1 | AR36: -4 | AS36: -7 | AT36: -8 | AU36: -9 | AV36: -10 | AX36: 7000 | AY36: 0 | AZ36: 0 | BA36: 0 | BB36: 0 | BC36: 0 | BD36: 0 | BE36: 0 | BF36: 0 | BG36: 0 | BH36: -1 | BI36: -1 | BJ36: 0 | BK36: -1 | BL36: -1 | BM36: 0 | BN36: 1 | BO36: 0 | BP36: 0 | BQ36: 0 | BR36: -1 | BS36: -1
AA37: 2000 | AB37: 24 | AC37: 24 | AD37: 32 | AE37: 32 | AF37: 29 | AG37: 26 | AH37: 26 | AI37: 25 | AJ37: 23 | AK37: 20 | AL37: 16 | AM37: 13 | AN37: 9 | AO37: 6 | AP37: 3 | AQ37: 0 | AR37: -3 | AS37: -5 | AT37: -7 | AU37: -9 | AV37: -11 | AX37: 7500 | AY37: 0 | AZ37: 0 | BA37: 0 | BB37: 0 | BC37: 0 | BD37: 0 | BE37: 0 | BF37: 0 | BG37: 0 | BH37: 0 | BI37: -1 | BJ37: 0 | BK37: -1 | BL37: 0 | BM37: 0 | BN37: 1 | BO37: 0 | BP37: 0 | BQ37: 0 | BR37: 0 | BS37: 0
AA38: 2500 | AB38: 24 | AC38: 24 | AD38: 34 | AE38: 34 | AF38: 32 | AG38: 30 | AH38: 29 | AI38: 27 | AJ38: 25 | AK38: 22 | AL38: 19 | AM38: 15 | AN38: 10 | AO38: 7 | AP38: 5 | AQ38: 2 | AR38: -1 | AS38: -4 | AT38: -6 | AU38: -8 | AV38: -10 | AX38: 11000 | AY38: 0 | AZ38: 0 | BA38: 0 | BB38: 0 | BC38: 0 | BD38: 0 | BE38: 0 | BF38: 0 | BG38: 0 | BH38: 0 | BI38: 0 | BJ38: 0 | BK38: 0 | BL38: 0 | BM38: 0 | BN38: 0 | BO38: 0 | BP38: 0 | BQ38: 0 | BR38: 0 | BS38: 0
AA39: 3000 | AB39: 28 | AC39: 28 | AD39: 38 | AE39: 38 | AF39: 35 | AG39: 32 | AH39: 30 | AI39: 29 | AJ39: 27 | AK39: 25 | AL39: 22 | AM39: 17 | AN39: 13 | AO39: 8 | AP39: 6 | AQ39: 4 | AR39: 1 | AS39: -2 | AT39: -3 | AU39: -4 | AV39: -5
AA40: 3500 | AB40: 28 | AC40: 28 | AD40: 38 | AE40: 38 | AF40: 35 | AG40: 32 | AH40: 31 | AI40: 30 | AJ40: 28 | AK40: 26 | AL40: 24 | AM40: 19 | AN40: 15 | AO40: 11 | AP40: 8 | AQ40: 6 | AR40: 4 | AS40: 1 | AT40: -1 | AU40: -3 | AV40: -5
AA41: 4000 | AB41: 28 | AC41: 28 | AD41: 38 | AE41: 38 | AF41: 35 | AG41: 32 | AH41: 31 | AI41: 30 | AJ41: 28 | AK41: 27 | AL41: 24 | AM41: 20 | AN41: 16 | AO41: 12 | AP41: 9 | AQ41: 7 | AR41: 5 | AS41: 3 | AT41: 1 | AU41: -1 | AV41: -3
AA42: 4500 | AB42: 33 | AC42: 33 | AD42: 38 | AE42: 38 | AF42: 35 | AG42: 32 | AH42: 31 | AI42: 30 | AJ42: 28 | AK42: 27 | AL42: 24 | AM42: 20 | AN42: 16 | AO42: 13 | AP42: 10 | AQ42: 8 | AR42: 6 | AS42: 3 | AT42: 2 | AU42: 1 | AV42: 0 | AY42: MAP Difference Comparison
AA43: 5000 | AB43: 38 | AC43: 38 | AD43: 38 | AE43: 38 | AF43: 35 | AG43: 32 | AH43: 31 | AI43: 30 | AJ43: 28 | AK43: 27 | AL43: 24 | AM43: 20 | AN43: 16 | AO43: 13 | AP43: 11 | AQ43: 9 | AR43: 6 | AS43: 3 | AT43: 2 | AU43: 1 | AV43: 0 | AY43: 0 | AZ43: 10 | BA43: 20 | BB43: 30 | BC43: 40 | BD43: 50 | BE43: 60 | BF43: 70 | BG43: 80 | BH43: 90 | BI43: 100 | BJ43: 120 | BK43: 140 | BL43: 160 | BM43: 180 | BN43: 200 | BO43: 220 | BP43: 240 | BQ43: 260 | BR43: 280 | BS43: 300
AA44: 5500 | AB44: 38 | AC44: 38 | AD44: 38 | AE44: 38 | AF44: 35 | AG44: 32 | AH44: 31 | AI44: 30 | AJ44: 29 | AK44: 27 | AL44: 25 | AM44: 21 | AN44: 17 | AO44: 14 | AP44: 12 | AQ44: 9 | AR44: 7 | AS44: 4 | AT44: 4 | AU44: 4 | AV44: 4 | AX44: 0 | AY44: =AB30-AB54 -> 0 | AZ44: =AC30-AC54 -> 0 | BA44: 0 | BB44: 0 | BC44: 0 | BD44: 0 | BE44: 0 | BF44: 0 | BG44: 0 | BH44: 0 | BI44: 0 | BJ44: 0 | BK44: 0 | BL44: 0 | BM44: 0 | BN44: 0 | BO44: 0 | BP44: 0 | BQ44: 0 | BR44: =AU30-AU54 -> 0 | BS44: =AV30-AV54 -> 0
AA45: 6000 | AB45: 38 | AC45: 38 | AD45: 38 | AE45: 38 | AF45: 35 | AG45: 34 | AH45: 32 | AI45: 32 | AJ45: 30 | AK45: 29 | AL45: 26 | AM45: 23 | AN45: 19 | AO45: 16 | AP45: 13 | AQ45: 10 | AR45: 8 | AS45: 6 | AT45: 5 | AU45: 4 | AV45: 3 | AX45: 500 | AY45: =AB31-AB55 -> 0 | AZ45: =AC31-AC55 -> 0 | BA45: =AD31-AD55 -> 0 | BB45: =AE31-AE55 -> 0 | BC45: =AF31-AF55 -> 0 | BD45: =AG31-AG55 -> 0 | BE45: =AH31-AH55 -> 0 | BF45: =AI31-AI55 -> 0 | BG45: =AJ31-AJ55 -> 0 | BH45: =AK31-AK55 -> 0 | BI45: =AL31-AL55 -> 0 | BJ45: =AM31-AM55 -> 0 | BK45: =AN31-AN55 -> 0 | BL45: =AO31-AO55 -> 0 | BM45: =AP31-AP55 -> 0 | BN45: =AQ31-AQ55 -> 0 | BO45: =AR31-AR55 -> 0 | BP45: =AS31-AS55 -> 0 | BQ45: =AT31-AT55 -> 0 | BR45: 0 | BS45: 0
AA46: 6500 | AB46: 38 | AC46: 38 | AD46: 38 | AE46: 38 | AF46: 38 | AG46: 37 | AH46: 35 | AI46: 34 | AJ46: 33 | AK46: 32 | AL46: 30 | AM46: 26 | AN46: 23 | AO46: 19 | AP46: 15 | AQ46: 11 | AR46: 9 | AS46: 8 | AT46: 7 | AU46: 6 | AV46: 5 | AX46: 750 | AY46: 0 | AZ46: 0 | BA46: 0 | BB46: 0 | BC46: 0 | BD46: 0 | BE46: 0 | BF46: 0 | BG46: 0 | BH46: 1 | BI46: 3 | BJ46: 2 | BK46: 1 | BL46: 2 | BM46: 1 | BN46: 0 | BO46: 0 | BP46: 0 | BQ46: 0 | BR46: 0 | BS46: 0
AA47: 7000 | AB47: 38 | AC47: 38 | AD47: 38 | AE47: 38 | AF47: 38 | AG47: 37 | AH47: 36 | AI47: 35 | AJ47: 34 | AK47: 34 | AL47: 32 | AM47: 29 | AN47: 26 | AO47: 22 | AP47: 17 | AQ47: 12 | AR47: 10 | AS47: 9 | AT47: 9 | AU47: 9 | AV47: 9 | AX47: 1000 | AY47: 0 | AZ47: 0 | BA47: 0 | BB47: 0 | BC47: 0 | BD47: 0 | BE47: 0 | BF47: 0 | BG47: 1 | BH47: 0 | BI47: -2 | BJ47: -2 | BK47: -2 | BL47: -1 | BM47: 0 | BN47: 1 | BO47: 0 | BP47: 0 | BQ47: 0 | BR47: 0 | BS47: 0
AA48: 7500 | AB48: 38 | AC48: 38 | AD48: 38 | AE48: 38 | AF48: 38 | AG48: 37 | AH48: 36 | AI48: 35 | AJ48: 35 | AK48: 34 | AL48: 33 | AM48: 30 | AN48: 27 | AO48: 22 | AP48: 17 | AQ48: 13 | AR48: 11 | AS48: 10 | AT48: 10 | AU48: 10 | AV48: 10 | AX48: 1250 | AY48: 0 | AZ48: 0 | BA48: 0 | BB48: 0 | BC48: 0 | BD48: 0 | BE48: 0 | BF48: 0 | BG48: -1 | BH48: 2 | BI48: 0 | BJ48: 2 | BK48: 1 | BL48: 1 | BM48: 1 | BN48: 1 | BO48: 2 | BP48: 1 | BQ48: 0 | BR48: -1 | BS48: -2
AA49: 11000 | AB49: 38 | AC49: 38 | AD49: 38 | AE49: 38 | AF49: 38 | AG49: 37 | AH49: 36 | AI49: 35 | AJ49: 35 | AK49: 34 | AL49: 33 | AM49: 30 | AN49: 27 | AO49: 22 | AP49: 18 | AQ49: 14 | AR49: 12 | AS49: 10 | AT49: 10 | AU49: 10 | AV49: 10 | AX49: 1500 | AY49: 0 | AZ49: 0 | BA49: 0 | BB49: 0 | BC49: 0 | BD49: 0 | BE49: 0 | BF49: 0 | BG49: -1 | BH49: 0 | BI49: -1 | BJ49: -1 | BK49: -1 | BL49: -1 | BM49: -1 | BN49: -1 | BO49: -1 | BP49: 0 | BQ49: 1 | BR49: 2 | BS49: 3
AX50: 1750 | AY50: 0 | AZ50: 0 | BA50: 0 | BB50: 0 | BC50: 0 | BD50: 0 | BE50: 0 | BF50: 0 | BG50: 0 | BH50: 0 | BI50: 0 | BJ50: 0 | BK50: 0 | BL50: 0 | BM50: 0 | BN50: 0 | BO50: 0 | BP50: 0 | BQ50: 1 | BR50: 2 | BS50: 3
Z51: 3 | AB51: Stock / Original Ignition Map | AX51: 2000 | AY51: 0 | AZ51: 0 | BA51: 0 | BB51: 0 | BC51: 0 | BD51: 0 | BE51: 0 | BF51: 0 | BG51: -1 | BH51: 0 | BI51: -1 | BJ51: 1 | BK51: -1 | BL51: -1 | BM51: -1 | BN51: -1 | BO51: -1 | BP51: 0 | BQ51: 1 | BR51: 2 | BS51: 3
AB52: Load Value | AX52: 2500 | AY52: 0 | AZ52: 0 | BA52: 0 | BB52: 0 | BC52: 0 | BD52: 0 | BE52: 0 | BF52: 0 | BG52: 0 | BH52: 2 | BI52: -1 | BJ52: 0 | BK52: 1 | BL52: 0 | BM52: 1 | BN52: 1 | BO52: 1 | BP52: 1 | BQ52: 2 | BR52: 3 | BS52: 4
AB53: 0 | AC53: 10 | AD53: 20 | AE53: 30 | AF53: 40 | AG53: 50 | AH53: 60 | AI53: 70 | AJ53: 80 | AK53: 90 | AL53: 100 | AM53: 120 | AN53: 140 | AO53: 160 | AP53: 180 | AQ53: 200 | AR53: 220 | AS53: 240 | AT53: 260 | AU53: 280 | AV53: 300 | AX53: 3000 | AY53: 0 | AZ53: 0 | BA53: 0 | BB53: 0 | BC53: 0 | BD53: 0 | BE53: 0 | BF53: 0 | BG53: -1 | BH53: -1 | BI53: 0 | BJ53: -1 | BK53: 1 | BL53: 1 | BM53: 0 | BN53: -1 | BO53: 0 | BP53: 0 | BQ53: 2 | BR53: 4 | BS53: 6
Z54: RPM | AA54: 0 | AB54: 5 | AC54: 5 | AD54: 5 | AE54: 5 | AF54: 5 | AG54: 11 | AH54: 15 | AI54: 6 | AJ54: 3 | AK54: 2 | AL54: -1 | AM54: -2 | AN54: -5 | AO54: -8 | AP54: -10 | AQ54: -10 | AR54: -10 | AS54: -10 | AT54: -10 | AU54: -10 | AV54: -10 | AX54: 3500 | AY54: 0 | AZ54: 0 | BA54: 0 | BB54: 0 | BC54: 0 | BD54: 0 | BE54: 0 | BF54: 0 | BG54: 0 | BH54: -1 | BI54: -1 | BJ54: -1 | BK54: 0 | BL54: 0 | BM54: 0 | BN54: -1 | BO54: -1 | BP54: -1 | BQ54: 0 | BR54: 1 | BS54: 2
AA55: 500 | AB55: 5 | AC55: 5 | AD55: 5 | AE55: 5 | AF55: 5 | AG55: 8 | AH55: 13 | AI55: 6 | AJ55: 3 | AK55: 2 | AL55: -1 | AM55: -2 | AN55: -5 | AO55: -8 | AP55: -10 | AQ55: -10 | AR55: -10 | AS55: -10 | AT55: -10 | AU55: -10 | AV55: -10 | AX55: 4000 | AY55: 0 | AZ55: 0 | BA55: 0 | BB55: 0 | BC55: 0 | BD55: 0 | BE55: 0 | BF55: 0 | BG55: 0 | BH55: 0 | BI55: -1 | BJ55: 0 | BK55: 1 | BL55: 0 | BM55: 0 | BN55: -1 | BO55: -2 | BP55: 0 | BQ55: 1 | BR55: 2 | BS55: 3
AA56: 750 | AB56: 5 | AC56: 5 | AD56: 5 | AE56: 5 | AF56: 5 | AG56: 9 | AH56: 13 | AI56: 10 | AJ56: 6 | AK56: 2 | AL56: -2 | AM56: -3 | AN56: -5 | AO56: -8 | AP56: -10 | AQ56: -10 | AR56: -10 | AS56: -10 | AT56: -10 | AU56: -10 | AV56: -10 | AX56: 4500 | AY56: 0 | AZ56: 0 | BA56: 0 | BB56: 0 | BC56: 0 | BD56: 0 | BE56: 0 | BF56: 0 | BG56: 0 | BH56: 0 | BI56: -1 | BJ56: 0 | BK56: 0 | BL56: 0 | BM56: 0 | BN56: 0 | BO56: 1 | BP56: 1 | BQ56: 3 | BR56: 5 | BS56: 7
AA57: 1000 | AB57: 5 | AC57: 5 | AD57: 5 | AE57: 5 | AF57: 9 | AG57: 13 | AH57: 18 | AI57: 10 | AJ57: 8 | AK57: 7 | AL57: 7 | AM57: 4 | AN57: 1 | AO57: -3 | AP57: -6 | AQ57: -10 | AR57: -10 | AS57: -10 | AT57: -10 | AU57: -10 | AV57: -10 | AX57: 5000 | AY57: 0 | AZ57: 0 | BA57: 0 | BB57: 0 | BC57: 0 | BD57: 0 | BE57: 0 | BF57: 0 | BG57: 0 | BH57: 0 | BI57: -1 | BJ57: 0 | BK57: 0 | BL57: 1 | BM57: 1 | BN57: -1 | BO57: -1 | BP57: -1 | BQ57: 1 | BR57: 3 | BS57: 5
AA58: 1250 | AB58: 8 | AC58: 8 | AD58: 12 | AE58: 12 | AF58: 16 | AG58: 20 | AH58: 20 | AI58: 17 | AJ58: 15 | AK58: 9 | AL58: 8 | AM58: 4 | AN58: 2 | AO58: -1 | AP58: -4 | AQ58: -7 | AR58: -10 | AS58: -10 | AT58: -10 | AU58: -10 | AV58: -10 | AX58: 5500 | AY58: 0 | AZ58: 0 | BA58: 0 | BB58: 0 | BC58: 0 | BD58: 0 | BE58: 0 | BF58: 0 | BG58: 1 | BH58: 0 | BI58: 0 | BJ58: 1 | BK58: 2 | BL58: 1 | BM58: 1 | BN58: 0 | BO58: 1 | BP58: 1 | BQ58: 4 | BR58: 7 | BS58: 10
AA59: 1500 | AB59: 13 | AC59: 13 | AD59: 19 | AE59: 19 | AF59: 26 | AG59: 24 | AH59: 23 | AI59: 21 | AJ59: 19 | AK59: 14 | AL59: 12 | AM59: 10 | AN59: 7 | AO59: 4 | AP59: 1 | AQ59: -2 | AR59: -5 | AS59: -8 | AT59: -10 | AU59: -12 | AV59: -14 | AX59: 6000 | AY59: 0 | AZ59: 0 | BA59: 0 | BB59: 0 | BC59: 0 | BD59: 0 | BE59: 0 | BF59: 1 | BG59: 0 | BH59: 1 | BI59: 0 | BJ59: 0 | BK59: 1 | BL59: 0 | BM59: -1 | BN59: -3 | BO59: -2 | BP59: -1 | BQ59: 1 | BR59: 3 | BS59: 5
AA60: 1750 | AB60: 18 | AC60: 18 | AD60: 25 | AE60: 25 | AF60: 27 | AG60: 25 | AH60: 24 | AI60: 23 | AJ60: 21 | AK60: 17 | AL60: 14 | AM60: 11 | AN60: 8 | AO60: 5 | AP60: 2 | AQ60: -1 | AR60: -4 | AS60: -7 | AT60: -9 | AU60: -11 | AV60: -13 | AX60: 6500 | AY60: 0 | AZ60: 0 | BA60: 0 | BB60: 0 | BC60: 0 | BD60: 0 | BE60: 0 | BF60: 0 | BG60: -1 | BH60: 0 | BI60: 0 | BJ60: -1 | BK60: 1 | BL60: -1 | BM60: -3 | BN60: -4 | BO60: -3 | BP60: -1 | BQ60: 1 | BR60: 3 | BS60: 5
AA61: 2000 | AB61: 24 | AC61: 24 | AD61: 32 | AE61: 32 | AF61: 29 | AG61: 26 | AH61: 26 | AI61: 25 | AJ61: 24 | AK61: 20 | AL61: 17 | AM61: 12 | AN61: 10 | AO61: 7 | AP61: 4 | AQ61: 1 | AR61: -2 | AS61: -5 | AT61: -8 | AU61: -11 | AV61: -14 | AX61: 7000 | AY61: 0 | AZ61: 0 | BA61: 0 | BB61: 0 | BC61: 0 | BD61: 0 | BE61: 0 | BF61: 0 | BG61: -1 | BH61: 0 | BI61: -2 | BJ61: -2 | BK61: 0 | BL61: -2 | BM61: -4 | BN61: -6 | BO61: -5 | BP61: -3 | BQ61: 0 | BR61: 3 | BS61: 6
AA62: 2500 | AB62: 24 | AC62: 24 | AD62: 34 | AE62: 34 | AF62: 32 | AG62: 30 | AH62: 29 | AI62: 27 | AJ62: 25 | AK62: 20 | AL62: 20 | AM62: 15 | AN62: 9 | AO62: 7 | AP62: 4 | AQ62: 1 | AR62: -2 | AS62: -5 | AT62: -8 | AU62: -11 | AV62: -14 | AX62: 7500 | AY62: 0 | AZ62: 0 | BA62: 0 | BB62: 0 | BC62: 0 | BD62: 0 | BE62: 0 | BF62: 0 | BG62: 0 | BH62: 0 | BI62: -1 | BJ62: -1 | BK62: 1 | BL62: -2 | BM62: -4 | BN62: -5 | BO62: -4 | BP62: -2 | BQ62: 1 | BR62: 4 | BS62: 7
AA63: 3000 | AB63: 28 | AC63: 28 | AD63: 38 | AE63: 38 | AF63: 35 | AG63: 32 | AH63: 30 | AI63: 29 | AJ63: 28 | AK63: 26 | AL63: 22 | AM63: 18 | AN63: 12 | AO63: 7 | AP63: 6 | AQ63: 5 | AR63: 1 | AS63: -2 | AT63: -5 | AU63: -8 | AV63: -11 | AX63: 11000 | AY63: 0 | AZ63: 0 | BA63: 0 | BB63: 0 | BC63: 0 | BD63: 0 | BE63: 0 | BF63: 0 | BG63: 0 | BH63: 0 | BI63: -1 | BJ63: -1 | BK63: 1 | BL63: -2 | BM63: -3 | BN63: -4 | BO63: -3 | BP63: -2 | BQ63: 1 | BR63: 4 | BS63: 7
AA64: 3500 | AB64: 28 | AC64: 28 | AD64: 38 | AE64: 38 | AF64: 35 | AG64: 32 | AH64: 31 | AI64: 30 | AJ64: 28 | AK64: 27 | AL64: 25 | AM64: 20 | AN64: 15 | AO64: 11 | AP64: 8 | AQ64: 7 | AR64: 5 | AS64: 2 | AT64: -1 | AU64: -4 | AV64: -7
AA65: 4000 | AB65: 28 | AC65: 28 | AD65: 38 | AE65: 38 | AF65: 35 | AG65: 32 | AH65: 31 | AI65: 30 | AJ65: 28 | AK65: 27 | AL65: 25 | AM65: 20 | AN65: 15 | AO65: 12 | AP65: 9 | AQ65: 8 | AR65: 7 | AS65: 3 | AT65: 0 | AU65: -3 | AV65: -6
AA66: 4500 | AB66: 33 | AC66: 33 | AD66: 38 | AE66: 38 | AF66: 35 | AG66: 32 | AH66: 31 | AI66: 30 | AJ66: 28 | AK66: 27 | AL66: 25 | AM66: 20 | AN66: 16 | AO66: 13 | AP66: 10 | AQ66: 8 | AR66: 5 | AS66: 2 | AT66: -1 | AU66: -4 | AV66: -7
AA67: 5000 | AB67: 38 | AC67: 38 | AD67: 38 | AE67: 38 | AF67: 35 | AG67: 32 | AH67: 31 | AI67: 30 | AJ67: 28 | AK67: 27 | AL67: 25 | AM67: 20 | AN67: 16 | AO67: 12 | AP67: 10 | AQ67: 10 | AR67: 7 | AS67: 4 | AT67: 1 | AU67: -2 | AV67: -5
AA68: 5500 | AB68: 38 | AC68: 38 | AD68: 38 | AE68: 38 | AF68: 35 | AG68: 32 | AH68: 31 | AI68: 30 | AJ68: 28 | AK68: 27 | AL68: 25 | AM68: 20 | AN68: 15 | AO68: 13 | AP68: 11 | AQ68: 9 | AR68: 6 | AS68: 3 | AT68: 0 | AU68: -3 | AV68: -6
AA69: 6000 | AB69: 38 | AC69: 38 | AD69: 38 | AE69: 38 | AF69: 35 | AG69: 34 | AH69: 32 | AI69: 31 | AJ69: 30 | AK69: 28 | AL69: 26 | AM69: 23 | AN69: 18 | AO69: 16 | AP69: 14 | AQ69: 13 | AR69: 10 | AS69: 7 | AT69: 4 | AU69: 1 | AV69: -2
AA70: 6500 | AB70: 38 | AC70: 38 | AD70: 38 | AE70: 38 | AF70: 38 | AG70: 37 | AH70: 35 | AI70: 34 | AJ70: 34 | AK70: 32 | AL70: 30 | AM70: 27 | AN70: 22 | AO70: 20 | AP70: 18 | AQ70: 15 | AR70: 12 | AS70: 9 | AT70: 6 | AU70: 3 | AV70: 0
AA71: 7000 | AB71: 38 | AC71: 38 | AD71: 38 | AE71: 38 | AF71: 38 | AG71: 37 | AH71: 36 | AI71: 35 | AJ71: 35 | AK71: 34 | AL71: 34 | AM71: 31 | AN71: 26 | AO71: 24 | AP71: 21 | AQ71: 18 | AR71: 15 | AS71: 12 | AT71: 9 | AU71: 6 | AV71: 3
AA72: 7500 | AB72: 38 | AC72: 38 | AD72: 38 | AE72: 38 | AF72: 38 | AG72: 37 | AH72: 36 | AI72: 35 | AJ72: 35 | AK72: 34 | AL72: 34 | AM72: 31 | AN72: 26 | AO72: 24 | AP72: 21 | AQ72: 18 | AR72: 15 | AS72: 12 | AT72: 9 | AU72: 6 | AV72: 3
AA73: 11000 | AB73: 38 | AC73: 38 | AD73: 38 | AE73: 38 | AF73: 38 | AG73: 37 | AH73: 36 | AI73: 35 | AJ73: 35 | AK73: 34 | AL73: 34 | AM73: 31 | AN73: 26 | AO73: 24 | AP73: 21 | AQ73: 18 | AR73: 15 | AS73: 12 | AT73: 9 | AU73: 6 | AV73: 3

Sheet Fuel - 20 Cell
U1: RICHER | W1: Smoothing | Z1: Leaner | AB1: 15 | AD1: Richer | AF1: 15 | AR1: Smoothed Modded High Octane Fuel Map
U2: LEANER | W2: Limits | Z2: =-AB1 -> -15 | AD2: =AF1 -> 15 | AI2: TRUE
U3: 1 | W3: Smoothed Fuel Map
W4: Load Value
W5: 10 | X5: 20 | Y5: 30 | Z5: 40 | AA5: 50 | AB5: 60 | AC5: 70 | AD5: 80 | AE5: 90 | AF5: 100 | AG5: 120 | AH5: 140 | AI5: 160 | AJ5: 180 | AK5: 200 | AL5: 220 | AM5: 240 | AN5: 260 | AO5: 280 | AP5: 300
U6: RPM | V6: 500 | W6: =14.7*128/IF(AND($AI$2,W77),MIN($AL$22,MAX($AL$23,$AA$21+W100)),MIN($AL$22,MAX($AL$23,($AA$21+MAX(W100+$Z$2,MIN(W100+$AD$2,ROUND(AVERAGE(W100,W100,W100,W100,W100:X101),0))))))) -> 13.34468085 | X6: =14.7*128/IF(AND($AI$2,X77),MIN($AL$22,MAX($AL$23,$AA$21+X100)),MIN($AL$22,MAX($AL$23,($AA$21+MAX(X100+$Z$2,MIN(X100+$AD$2,ROUND(AVERAGE(X100,X100,X100,X100,W100:Y101),0))))))) -> 13.34468085 | Y6: 13.34468085 | Z6: 13.34468085 | AA6: 13.34468085 | AB6: 13.34468085 | AC6: 13.73430657 | AD6: 13.53669065 | AE6: 12.97655172 | AF6: 12.71351351 | AG6: 12.544 | AH6: 12.29803922 | AI6: 12.06153846 | AJ6: 11.83396226 | AK6: 11.61481481 | AL6: =14.7*128/IF(AND($AI$2,AL77),MIN($AL$22,MAX($AL$23,$AA$21+AL100)),MIN($AL$22,MAX($AL$23,($AA$21+MAX(AL100+$Z$2,MIN(AL100+$AD$2,ROUND(AVERAGE(AL100,AL100,AL100,AL100,AK100:AM101),0))))))) -> 11.40363636 | AM6: =14.7*128/IF(AND($AI$2,AM77),MIN($AL$22,MAX($AL$23,$AA$21+AM100)),MIN($AL$22,MAX($AL$23,($AA$21+MAX(AM100+$Z$2,MIN(AM100+$AD$2,ROUND(AVERAGE(AM100,AM100,AM100,AM100,AL100:AN101),0))))))) -> 11.2 | AN6: =14.7*128/IF(AND($AI$2,AN77),MIN($AL$22,MAX($AL$23,$AA$21+AN100)),MIN($AL$22,MAX($AL$23,($AA$21+MAX(AN100+$Z$2,MIN(AN100+$AD$2,ROUND(AVERAGE(AN100,AN100,AN100,AN100,AM100:AO101),0))))))) -> 11.00350877 | AO6: =14.7*128/IF(AND($AI$2,AO77),MIN($AL$22,MAX($AL$23,$AA$21+AO100)),MIN($AL$22,MAX($AL$23,($AA$21+MAX(AO100+$Z$2,MIN(AO100+$AD$2,ROUND(AVERAGE(AO100,AO100,AO100,AO100,AN100:AP101),0))))))) -> 11.00350877 | AP6: =14.7*128/IF(AND($AI$2,AP77),MIN($AL$22,MAX($AL$23,$AA$21+AP100)),MIN($AL$22,MAX($AL$23,($AA$21+MAX(AP100+$Z$2,MIN(AP100+$AD$2,ROUND(AVERAGE(AP100,AP100,AP100,AP100,AO100:AP101),0))))))) -> 10.93953488
V7: 1000 | W7: =14.7*128/IF(AND($AI$2,W78),MIN($AL$22,MAX($AL$23,$AA$21+W101)),MIN($AL$22,MAX($AL$23,($AA$21+MAX(W101+$Z$2,MIN(W101+$AD$2,ROUND(AVERAGE(W101,W101,W101,W101,W100:X102),0))))))) -> 14.7 | X7: =14.7*128/IF(AND($AI$2,X78),MIN($AL$22,MAX($AL$23,$AA$21+X101)),MIN($AL$22,MAX($AL$23,($AA$21+MAX(X101+$Z$2,MIN(X101+$AD$2,ROUND(AVERAGE(X101,X101,X101,X101,W100:Y102),0))))))) -> 14.7 | Y7: 14.7 | Z7: 14.7 | AA7: 14.7 | AB7: 14.7 | AC7: 14.36335878 | AD7: 14.14736842 | AE7: 13.53669065 | AF7: 13.25070423 | AG7: 12.97655172 | AH7: 12.62818792 | AI7: 12.46092715 | AJ7: 12.21818182 | AK7: 11.98471338 | AL7: =14.7*128/IF(AND($AI$2,AL78),MIN($AL$22,MAX($AL$23,$AA$21+AL101)),MIN($AL$22,MAX($AL$23,($AA$21+MAX(AL101+$Z$2,MIN(AL101+$AD$2,ROUND(AVERAGE(AL101,AL101,AL101,AL101,AK100:AM102),0))))))) -> 11.76 | AM7: 11.54355828 | AN7: 11.40363636 | AO7: 11.33493976 | AP7: =14.7*128/IF(AND($AI$2,AP78),MIN($AL$22,MAX($AL$23,$AA$21+AP101)),MIN($AL$22,MAX($AL$23,($AA$21+MAX(AP101+$Z$2,MIN(AP101+$AD$2,ROUND(AVERAGE(AP101,AP101,AP101,AP101,AO100:AP102),0))))))) -> 11.33493976
V8: 1500 | W8: 14.7 | X8: =14.7*128/IF(AND($AI$2,X79),MIN($AL$22,MAX($AL$23,$AA$21+X102)),MIN($AL$22,MAX($AL$23,($AA$21+MAX(X102+$Z$2,MIN(X102+$AD$2,ROUND(AVERAGE(X102,X102,X102,X102,W101:Y103),0))))))) -> 14.7 | Y8: 14.7 | Z8: 14.7 | AA8: 14.7 | AB8: 14.7 | AC8: 14.7 | AD8: 14.47384615 | AE8: 14.14736842 | AF8: 13.73430657 | AG8: 13.25070423 | AH8: 12.97655172 | AI8: 12.71351351 | AJ8: 12.46092715 | AK8: 12.29803922 | AL8: 12.06153846 | AM8: 11.83396226 | AN8: 11.61481481 | AO8: 11.61481481 | AP8: 11.61481481
V9: 2000 | W9: 14.7 | X9: =14.7*128/IF(AND($AI$2,X80),MIN($AL$22,MAX($AL$23,$AA$21+X103)),MIN($AL$22,MAX($AL$23,($AA$21+MAX(X103+$Z$2,MIN(X103+$AD$2,ROUND(AVERAGE(X103,X103,X103,X103,W102:Y104),0))))))) -> 14.7 | Y9: 14.7 | Z9: 14.7 | AA9: 14.7 | AB9: 14.7 | AC9: 14.7 | AD9: 14.58604651 | AE9: 14.25454545 | AF9: 13.83529412 | AG9: 13.53669065 | AH9: 13.15804196 | AI9: 12.88767123 | AJ9: 12.71351351 | AK9: 12.46092715 | AL9: 12.21818182 | AM9: 11.98471338 | AN9: 11.76 | AO9: 11.76 | AP9: 11.76
V10: 2500 | W10: 14.7 | X10: =14.7*128/IF(AND($AI$2,X81),MIN($AL$22,MAX($AL$23,$AA$21+X104)),MIN($AL$22,MAX($AL$23,($AA$21+MAX(X104+$Z$2,MIN(X104+$AD$2,ROUND(AVERAGE(X104,X104,X104,X104,W103:Y105),0))))))) -> 14.7 | Y10: 14.7 | Z10: 14.7 | AA10: 14.7 | AB10: 14.7 | AC10: 14.7 | AD10: 14.58604651 | AE10: 14.36335878 | AF10: 14.04179104 | AG10: 13.73430657 | AH10: 13.25070423 | AI10: 12.8 | AJ10: 12.46092715 | AK10: 12.21818182 | AL10: 11.98471338 | AM10: 11.76 | AN10: 11.61481481 | AO10: 11.54355828 | AP10: 11.61481481
V11: 3000 | W11: 14.7 | X11: =14.7*128/IF(AND($AI$2,X82),MIN($AL$22,MAX($AL$23,$AA$21+X105)),MIN($AL$22,MAX($AL$23,($AA$21+MAX(X105+$Z$2,MIN(X105+$AD$2,ROUND(AVERAGE(X105,X105,X105,X105,W104:Y106),0))))))) -> 14.7 | Y11: 14.7 | Z11: 14.7 | AA11: 14.7 | AB11: 14.7 | AC11: 14.7 | AD11: 14.58604651 | AE11: 14.36335878 | AF11: 14.14736842 | AG11: 13.73430657 | AH11: 12.97655172 | AI11: 12.06153846 | AJ11: 11.61481481 | AK11: 11.33493976 | AL11: 11.2 | AM11: 11.00350877 | AN11: 10.87630058 | AO11: 10.87630058 | AP11: 10.8137931
V12: 3500 | W12: 14.7 | X12: =14.7*128/IF(AND($AI$2,X83),MIN($AL$22,MAX($AL$23,$AA$21+X106)),MIN($AL$22,MAX($AL$23,($AA$21+MAX(X106+$Z$2,MIN(X106+$AD$2,ROUND(AVERAGE(X106,X106,X106,X106,W105:Y107),0))))))) -> 14.7 | Y12: 14.7 | Z12: 14.7 | AA12: 14.7 | AB12: 14.7 | AC12: 14.7 | AD12: 14.58604651 | AE12: 14.36335878 | AF12: 13.93777778 | AG12: 13.25070423 | AH12: 12.29803922 | AI12: 11.54355828 | AJ12: 11.00350877 | AK12: 10.8137931 | AL12: 10.752 | AM12: 10.57078652 | AN12: 10.51173184 | AO12: 10.45333333 | AP12: 10.45333333 | BM12: MAP Difference Comparison
V13: 4000 | W13: 14.7 | X13: =14.7*128/IF(AND($AI$2,X84),MIN($AL$22,MAX($AL$23,$AA$21+X107)),MIN($AL$22,MAX($AL$23,($AA$21+MAX(X107+$Z$2,MIN(X107+$AD$2,ROUND(AVERAGE(X107,X107,X107,X107,W106:Y108),0))))))) -> 14.7 | Y13: 14.7 | Z13: 14.7 | AA13: 14.7 | AB13: 14.7 | AC13: 14.58604651 | AD13: 14.36335878 | AE13: 14.04179104 | AF13: 13.44 | AG13: 12.544 | AH13: 11.76 | AI13: 11.26706587 | AJ13: 10.87630058 | AK13: 10.69090909 | AL13: 10.57078652 | AM13: 10.45333333 | AN13: 10.33846154 | AO13: 10.28196721 | AP13: 10.28196721 | BN13: 10 | BO13: 20 | BP13: 30 | BQ13: 40 | BR13: 50 | BS13: 60 | BT13: 70 | BU13: 80 | BV13: 90 | BW13: 100 | BX13: 120 | BY13: 140 | BZ13: 160 | CA13: 180 | CB13: 200 | CC13: 220 | CD13: 240 | CE13: 260 | CF13: 280 | CG13: 300
V14: 4500 | W14: 14.7 | X14: =14.7*128/IF(AND($AI$2,X85),MIN($AL$22,MAX($AL$23,$AA$21+X108)),MIN($AL$22,MAX($AL$23,($AA$21+MAX(X108+$Z$2,MIN(X108+$AD$2,ROUND(AVERAGE(X108,X108,X108,X108,W107:Y109),0))))))) -> 14.7 | Y14: 14.7 | Z14: 14.7 | AA14: 14.7 | AB14: 14.7 | AC14: 14.25454545 | AD14: 13.83529412 | AE14: 13.44 | AF14: 12.8 | AG14: 12.13935484 | AH14: 11.54355828 | AI14: 11.06823529 | AJ14: 10.8137931 | AK14: 10.63050847 | AL14: 10.51173184 | AM14: 10.33846154 | AN14: 10.22608696 | AO14: 10.17081081 | AP14: 10.17081081 | BM14: 500 | BN14: =W6-W29 -> -1.914893617e-05 | BO14: -1.914893617e-05 | BP14: -1.914893617e-05 | BQ14: -1.914893617e-05 | BR14: -1.914893617e-05 | BS14: -1.914893617e-05 | BT14: 0.3896065693 | BU14: 0.1919906475 | BV14: 0.4325517241 | BW14: 0.1695135135 | BX14: =AG6-AG29 -> 0.246 | BY14: 0.2365392157 | BZ14: 0.2275384615 | CA14: 0.2191622642 | CB14: 0.2112148148 | CC14: 0.2036363636 | CD14: 0.1965 | CE14: 0.1897087719 | CF14: 0.1897087719 | CG14: 0.1257348837
V15: 5000 | W15: 14.7 | X15: =14.7*128/IF(AND($AI$2,X86),MIN($AL$22,MAX($AL$23,$AA$21+X109)),MIN($AL$22,MAX($AL$23,($AA$21+MAX(X109+$Z$2,MIN(X109+$AD$2,ROUND(AVERAGE(X109,X109,X109,X109,W108:Y110),0))))))) -> 14.7 | Y15: 14.7 | Z15: 14.7 | AA15: 14.7 | AB15: 14.36335878 | AC15: 13.93777778 | AD15: 13.34468085 | AE15: 12.8 | AF15: 12.29803922 | AG15: 11.83396226 | AH15: 11.33493976 | AI15: 10.93953488 | AJ15: 10.63050847 | AK15: 10.45333333 | AL15: 10.33846154 | AM15: 10.17081081 | AN15: 10.06203209 | AO15: 10.06203209 | AP15: 10.06203209 | BM15: 1000 | BN15: 0 | BO15: 0 | BP15: 0 | BQ15: 0 | BR15: 0 | BS15: 0 | BT15: -0.3366412214 | BU15: -0.5526315789 | BV15: 0.09669064748 | BW15: -0.1892957746 | BX15: -0.1814482759 | BY15: -0.1718120805 | BZ15: -0.08307284768 | CA15: -0.07981818182 | CB15: -0.0767866242 | CC15: -0.074 | CD15: -0.07124171779 | CE15: -0.06956363636 | CF15: -0.138260241 | CG15: -0.138260241
V16: 5500 | W16: 14.7 | X16: =14.7*128/IF(AND($AI$2,X87),MIN($AL$22,MAX($AL$23,$AA$21+X110)),MIN($AL$22,MAX($AL$23,($AA$21+MAX(X110+$Z$2,MIN(X110+$AD$2,ROUND(AVERAGE(X110,X110,X110,X110,W109:Y111),0))))))) -> 14.7 | Y16: 14.7 | Z16: 14.7 | AA16: 14.36335878 | AB16: 13.93777778 | AC16: 13.44 | AD16: 12.8 | AE16: 12.21818182 | AF16: 11.90886076 | AG16: 11.54355828 | AH16: 11.06823529 | AI16: 10.69090909 | AJ16: 10.39558011 | AK16: 10.22608696 | AL16: 10.06203209 | AM16: 9.903157895 | AN16: 9.851308901 | AO16: 9.8 | AP16: 9.8 | BM16: 1500 | BN16: 0 | BO16: 0 | BP16: 0 | BQ16: 0 | BR16: 0 | BS16: 0 | BT16: 0 | BU16: -0.2261538462 | BV16: -0.1071315789 | BW16: -0.1009934307 | BX16: 0.09270422535 | BY16: -4.827586207e-05 | BZ16: -0.08648648649 | CA16: -0.08307284768 | CB16: 3.921568627e-05 | CC16: 3.846153846e-05 | CD16: -3.773584906e-05 | CE16: 1.481481481e-05 | CF16: 1.481481481e-05 | CG16: 1.481481481e-05
V17: 6000 | W17: 14.36335878 | X17: =14.7*128/IF(AND($AI$2,X88),MIN($AL$22,MAX($AL$23,$AA$21+X111)),MIN($AL$22,MAX($AL$23,($AA$21+MAX(X111+$Z$2,MIN(X111+$AD$2,ROUND(AVERAGE(X111,X111,X111,X111,W110:Y112),0))))))) -> 14.36335878 | Y17: 14.36335878 | Z17: 14.25454545 | AA17: 13.83529412 | AB17: 13.34468085 | AC17: 12.71351351 | AD17: 12.06153846 | AE17: 11.76 | AF17: 11.54355828 | AG17: 11.26706587 | AH17: 10.87630058 | AI17: 10.57078652 | AJ17: 10.28196721 | AK17: 10.00851064 | AL17: 9.851308901 | AM17: 9.749222798 | AN17: 9.649230769 | AO17: 9.649230769 | AP17: 9.649230769 | BM17: 2000 | BN17: 0 | BO17: 0 | BP17: 0 | BQ17: 0 | BR17: 0 | BS17: 0 | BT17: 0 | BU17: -0.1139534884 | BV17: 4.545454545e-05 | BW17: -5.882352943e-06 | BX17: 0.09669064748 | BY17: 0.09134195804 | BZ17: 0.08767123288 | CA17: 0.08531351351 | CB17: 0.08202715232 | CC17: 0.07878181818 | CD17: 0.0758133758 | CE17: 0.073 | CF17: 0.073 | CG17: 0.073
V18: 6500 | W18: 14.14736842 | X18: =14.7*128/IF(AND($AI$2,X89),MIN($AL$22,MAX($AL$23,$AA$21+X112)),MIN($AL$22,MAX($AL$23,($AA$21+MAX(X112+$Z$2,MIN(X112+$AD$2,ROUND(AVERAGE(X112,X112,X112,X112,W111:Y113),0))))))) -> 14.14736842 | Y18: 14.04179104 | Z18: 13.73430657 | AA18: 13.25070423 | AB18: 12.71351351 | AC18: 12.13935484 | AD18: 11.61481481 | AE18: 11.47317073 | AF18: 11.33493976 | AG18: 11.06823529 | AH18: 10.69090909 | AI18: 10.39558011 | AJ18: 10.11612903 | AK18: 9.903157895 | AL18: 9.749222798 | AM18: 9.649230769 | AN18: 9.6 | AO18: 9.6 | AP18: 9.6 | BM18: 2500 | BN18: 0 | BO18: 0 | BP18: 0 | BQ18: 0 | BR18: 0 | BS18: 0 | BT18: 0 | BU18: -0.1139534884 | BV18: -4.122137405e-05 | BW18: -0.1056089552 | BX18: -0.1009934307 | BY18: -0.1892957746 | BZ18: -0.358 | CA18: -0.5156728477 | CB18: -0.4953181818 | CC18: -0.4761866242 | CD18: -0.4582 | CE18: -0.3698851852 | CF18: -0.4411417178 | CG18: -0.3698851852
V19: 7000 | W19: 14.04179104 | X19: =14.7*128/IF(AND($AI$2,X90),MIN($AL$22,MAX($AL$23,$AA$21+X113)),MIN($AL$22,MAX($AL$23,($AA$21+MAX(X113+$Z$2,MIN(X113+$AD$2,ROUND(AVERAGE(X113,X113,X113,X113,W112:Y114),0))))))) -> 14.04179104 | Y19: 13.93777778 | Z19: 13.53669065 | AA19: 12.97655172 | AB19: 12.29803922 | AC19: 11.76 | AD19: 11.47317073 | AE19: 11.33493976 | AF19: 11.2 | AG19: 10.93953488 | AH19: 10.63050847 | AI19: 10.28196721 | AJ19: 9.955555556 | AK19: 9.698969072 | AL19: 9.649230769 | AM19: 9.6 | AN19: 9.6 | AO19: 9.6 | AP19: 9.6 | BM19: 3000 | BN19: 0 | BO19: 0 | BP19: 0 | BQ19: 0 | BR19: 0 | BS19: 0 | BT19: 0 | BU19: -0.1139534884 | BV19: -4.122137405e-05 | BW19: -3.157894737e-05 | BX19: -0.3074934307 | BY19: -0.2741482759 | BZ19: 0.3015384615 | CA19: 0.2799148148 | CB19: 0.266739759 | CC19: 0.2605 | CD19: 0.2515087719 | CE19: 0.305500578 | CF19: 0.305500578 | CG19: 0.2429931034
V20: 7500 | W20: =14.7*128/IF(AND($AI$2,W91),MIN($AL$22,MAX($AL$23,$AA$21+W114)),MIN($AL$22,MAX($AL$23,($AA$21+MAX(W114+$Z$2,MIN(W114+$AD$2,ROUND(AVERAGE(W114,W114,W114,W114,W113:X114),0))))))) -> 14.04179104 | X20: =14.7*128/IF(AND($AI$2,X91),MIN($AL$22,MAX($AL$23,$AA$21+X114)),MIN($AL$22,MAX($AL$23,($AA$21+MAX(X114+$Z$2,MIN(X114+$AD$2,ROUND(AVERAGE(X114,X114,X114,X114,W113:Y114),0))))))) -> 14.04179104 | Y20: 13.93777778 | Z20: 13.44 | AA20: 12.88767123 | AB20: 12.21818182 | AC20: 11.68695652 | AD20: 11.40363636 | AE20: 11.26706587 | AF20: 11.13372781 | AG20: 10.93953488 | AH20: 10.57078652 | AI20: 10.28196721 | AJ20: 9.903157895 | AK20: 9.649230769 | AL20: =14.7*128/IF(AND($AI$2,AL91),MIN($AL$22,MAX($AL$23,$AA$21+AL114)),MIN($AL$22,MAX($AL$23,($AA$21+MAX(AL114+$Z$2,MIN(AL114+$AD$2,ROUND(AVERAGE(AL114,AL114,AL114,AL114,AK113:AM114),0))))))) -> 9.6 | AM20: =14.7*128/IF(AND($AI$2,AM91),MIN($AL$22,MAX($AL$23,$AA$21+AM114)),MIN($AL$22,MAX($AL$23,($AA$21+MAX(AM114+$Z$2,MIN(AM114+$AD$2,ROUND(AVERAGE(AM114,AM114,AM114,AM114,AL113:AN114),0))))))) -> 9.6 | AN20: =14.7*128/IF(AND($AI$2,AN91),MIN($AL$22,MAX($AL$23,$AA$21+AN114)),MIN($AL$22,MAX($AL$23,($AA$21+MAX(AN114+$Z$2,MIN(AN114+$AD$2,ROUND(AVERAGE(AN114,AN114,AN114,AN114,AM113:AO114),0))))))) -> 9.6 | AO20: =14.7*128/IF(AND($AI$2,AO91),MIN($AL$22,MAX($AL$23,$AA$21+AO114)),MIN($AL$22,MAX($AL$23,($AA$21+MAX(AO114+$Z$2,MIN(AO114+$AD$2,ROUND(AVERAGE(AO114,AO114,AO114,AO114,AN113:AP114),0))))))) -> 9.6 | AP20: =14.7*128/IF(AND($AI$2,AP91),MIN($AL$22,MAX($AL$23,$AA$21+AP114)),MIN($AL$22,MAX($AL$23,($AA$21+MAX(AP114+$Z$2,MIN(AP114+$AD$2,ROUND(AVERAGE(AP114,AP114,AP114,AP114,AO113:AP114),0))))))) -> 9.6 | BM20: 3500 | BN20: 0 | BO20: 0 | BP20: 0 | BQ20: 0 | BR20: 0 | BS20: 0 | BT20: 0 | BU20: -0.1139534884 | BV20: -4.122137405e-05 | BW20: -0.2096222222 | BX20: -0.1892957746 | BY20: 0.07983921569 | BZ20: 0.07035828221 | CA20: 0.1272087719 | CB20: -6.896551724e-06 | CC20: 0 | CD20: -1.348314607e-05 | CE20: 3.184357542e-05 | CF20: -0.05836666667 | CG20: -0.05836666667
V21: Shift Map (offset) | Y21: Richer | AA21: =AB21-128 -> 0 | AB21: 128 | BM21: 4000 | BN21: =W13-W36 -> 0 | BO21: =X13-X36 -> 0 | BP21: =Y13-Y36 -> 0 | BQ21: =Z13-Z36 -> 0 | BR21: =AA13-AA36 -> 0 | BS21: =AB13-AB36 -> 0 | BT21: =AC13-AC36 -> -0.1139534884 | BU21: =AD13-AD36 -> -0.3366412214 | BV21: =AE13-AE36 -> -0.1056089552 | BW21: =AF13-AF36 -> -0.1948 | BX21: =AG13-AG36 -> 0.0831 | BY21: =AH13-AH36 -> 0.1452 | BZ21: =AI13-AI36 -> 0.06706586826 | CA21: =AJ13-AJ36 -> 0.124300578 | CB21: =AK13-AK36 -> 0.06040909091 | CC21: =AL13-AL36 -> -1.348314607e-05 | CD21: =AM13-AM36 -> 0.05773333333 | CE21: 0.1123615385 | CF21: 0.05586721311 | CG21: 0.05586721311
Y22: Leaner | AH22: Global | AI22: Global | AJ22: Richest | AL22: 217 | AM22: =14.7*128/AL22 -> 8.670967742 | BM22: 4500 | BN22: 0 | BO22: 0 | BP22: 0 | BQ22: 0 | BR22: 0 | BS22: 0 | BT22: 0.1071454545 | BU22: 0.1009941176 | BV22: 0 | BW22: 0 | BX22: 0.07785483871 | BY22: 0.07035828221 | BZ22: 3.529411765e-05 | CA22: -6.896551724e-06 | CB22: -0.1214915254 | CC22: -0.05906815642 | CD22: -0.05713846154 | CE22: -1.304347826e-05 | CF22: -0.05528918919 | CG22: -0.05528918919
V23: Shift Map (proportional) | Y23: Richer | AA23: =AB23-128 -> 0 | AB23: 128 | AH23: Limits | AJ23: Leanest | AL23: 128 | AM23: =14.7*128/AL23 -> 14.7 | BM23: 5000 | BN23: 0 | BO23: 0 | BP23: 0 | BQ23: 0 | BR23: 0 | BS23: -0.1104412214 | BT23: -0.2096222222 | BU23: -0.09531914894 | BV23: 0 | BW23: 0.07983921569 | BX23: -3.773584906e-05 | BY23: -0.138260241 | BZ23: 3.488372093e-05 | CA23: 0.05970847458 | CB23: 3.333333333e-05 | CC23: -0.05713846154 | CD23: -0.05528918919 | CE23: 3.20855615e-05 | CF23: 3.20855615e-05 | CG23: 3.20855615e-05
Y24: Leaner | BM24: 5500 | BN24: 0 | BO24: 0 | BP24: 0 | BQ24: 0 | BR24: -0.1104412214 | BS24: -0.1040222222 | BT24: -0.1948 | BU24: 0 | BV24: -1.818181818e-05 | BW24: -3.924050633e-05 | BX24: -0.07124171779 | BY24: 0.1287352941 | BZ24: 0.06040909091 | CA24: 0.0570801105 | CB24: 0.05528695652 | CC24: 3.20855615e-05 | CD24: -2.105263158e-06 | CE24: 0.05130890052 | CF24: 0 | CG24: 0
BM25: 6000 | BN25: -4.122137405e-05 | BO25: -4.122137405e-05 | BP25: -4.122137405e-05 | BQ25: -0.1088545455 | BR25: -0.1025058824 | BS25: -0.09531914894 | BT25: 1.351351351e-05 | BU25: 0.2275384615 | BV25: 0.073 | BW25: 0.07035828221 | BX25: -3.413173653e-05 | BY25: 5.780346815e-07 | BZ25: -1.348314607e-05 | CA25: -3.278688525e-05 | CB25: 0.0529506383 | CC25: 0.05130890052 | CD25: 0.09999279793 | CE25: 0.04923076923 | CF25: 0.04923076923 | CG25: 0.04923076923
U26: 2 | W26: Modded Fuel Map | BM26: 6500 | BN26: -3.157894737e-05 | BO26: -3.157894737e-05 | BP26: -0.1056089552 | BQ26: 0.09950656934 | BR26: 4.225352113e-06 | BS26: 1.351351351e-05 | BT26: 0.07785483871 | BU26: 0.1416148148 | BV26: -2.926829268e-05 | BW26: 3.975903615e-05 | BX26: 3.529411765e-05 | BY26: 9.09090909e-06 | BZ26: -1.988950276e-05 | CA26: 2.903225806e-05 | CB26: -2.105263158e-06 | CC26: -0.05077720207 | CD26: 7.692307697e-07 | CE26: 0 | CF26: 0 | CG26: 0
W27: Load Value | BM27: 7000 | BN27: -8.955223882e-06 | BO27: -8.955223882e-06 | BP27: -0.1040222222 | BQ27: 0.09669064748 | BR27: -4.827586207e-05 | BS27: 0.07983921569 | BT27: 0.1452 | BU27: 0.1382707317 | BV27: 0.06783975904 | BW27: 0 | BX27: 3.488372093e-05 | BY27: 0.05970847458 | BZ27: -3.278688525e-05 | CA27: 0.05239555556 | CB27: 0.09896907216 | CC27: 0.04923076923 | CD27: 0 | CE27: 0 | CF27: 0 | CG27: 0
W28: 10 | X28: 20 | Y28: 30 | Z28: 40 | AA28: 50 | AB28: 60 | AC28: 70 | AD28: 80 | AE28: 90 | AF28: 100 | AG28: 120 | AH28: 140 | AI28: 160 | AJ28: 180 | AK28: 200 | AL28: 220 | AM28: 240 | AN28: 260 | AO28: 280 | AP28: 300 | BM28: 7500 | BN28: -8.955223882e-06 | BO28: -8.955223882e-06 | BP28: -0.1040222222 | BQ28: 0 | BR28: -0.08892876712 | BS28: -1.818181818e-05 | BT28: 0.07215652174 | BU28: 0.06873636364 | BV28: -3.413173653e-05 | BW28: -0.06627218935 | BX28: 3.488372093e-05 | BY28: -1.348314607e-05 | BZ28: -3.278688525e-05 | CA28: -2.105263158e-06 | CB28: 0.04923076923 | CC28: 0 | CD28: 0 | CE28: 0 | CF28: 0 | CG28: 0
U29: RPM | V29: 500 | W29: 13.3447 | X29: 13.3447 | Y29: 13.3447 | Z29: 13.3447 | AA29: 13.3447 | AB29: 13.3447 | AC29: 13.3447 | AD29: 13.3447 | AE29: 12.544 | AF29: 12.544 | AG29: 12.298 | AH29: 12.0615 | AI29: 11.834 | AJ29: 11.6148 | AK29: 11.4036 | AL29: 11.2 | AM29: 11.0035 | AN29: 10.8138 | AO29: 10.8138 | AP29: 10.8138
V30: 1000 | W30: 14.7 | X30: 14.7 | Y30: 14.7 | Z30: 14.7 | AA30: 14.7 | AB30: 14.7 | AC30: 14.7 | AD30: 14.7 | AE30: 13.44 | AF30: 13.44 | AG30: 13.158 | AH30: 12.8 | AI30: 12.544 | AJ30: 12.298 | AK30: 12.0615 | AL30: 11.834 | AM30: 11.6148 | AN30: 11.4732 | AO30: 11.4732 | AP30: 11.4732
V31: 1500 | W31: 14.7 | X31: 14.7 | Y31: 14.7 | Z31: 14.7 | AA31: 14.7 | AB31: 14.7 | AC31: 14.7 | AD31: 14.7 | AE31: 14.2545 | AF31: 13.8353 | AG31: 13.158 | AH31: 12.9766 | AI31: 12.8 | AJ31: 12.544 | AK31: 12.298 | AL31: 12.0615 | AM31: 11.834 | AN31: 11.6148 | AO31: 11.6148 | AP31: 11.6148
V32: 2000 | W32: 14.7 | X32: 14.7 | Y32: 14.7 | Z32: 14.7 | AA32: 14.7 | AB32: 14.7 | AC32: 14.7 | AD32: 14.7 | AE32: 14.2545 | AF32: 13.8353 | AG32: 13.44 | AH32: 13.0667 | AI32: 12.8 | AJ32: 12.6282 | AK32: 12.3789 | AL32: 12.1394 | AM32: 11.9089 | AN32: 11.687 | AO32: 11.687 | AP32: 11.687 | AR32: Modded High Octane Fuel Map
V33: 2500 | W33: 14.7 | X33: 14.7 | Y33: 14.7 | Z33: 14.7 | AA33: 14.7 | AB33: 14.7 | AC33: 14.7 | AD33: 14.7 | AE33: 14.3634 | AF33: 14.1474 | AG33: 13.8353 | AH33: 13.44 | AI33: 13.158 | AJ33: 12.9766 | AK33: 12.7135 | AL33: 12.4609 | AM33: 12.2182 | AN33: 11.9847 | AO33: 11.9847 | AP33: 11.9847
V34: 3000 | W34: 14.7 | X34: 14.7 | Y34: 14.7 | Z34: 14.7 | AA34: 14.7 | AB34: 14.7 | AC34: 14.7 | AD34: 14.7 | AE34: 14.3634 | AF34: 14.1474 | AG34: 14.0418 | AH34: 13.2507 | AI34: 11.76 | AJ34: 11.3349 | AK34: 11.0682 | AL34: 10.9395 | AM34: 10.752 | AN34: 10.5708 | AO34: 10.5708 | AP34: 10.5708
V35: 3500 | W35: 14.7 | X35: 14.7 | Y35: 14.7 | Z35: 14.7 | AA35: 14.7 | AB35: 14.7 | AC35: 14.7 | AD35: 14.7 | AE35: 14.3634 | AF35: 14.1474 | AG35: 13.44 | AH35: 12.2182 | AI35: 11.4732 | AJ35: 10.8763 | AK35: 10.8138 | AL35: 10.752 | AM35: 10.5708 | AN35: 10.5117 | AO35: 10.5117 | AP35: 10.5117
V36: 4000 | W36: 14.7 | X36: 14.7 | Y36: 14.7 | Z36: 14.7 | AA36: 14.7 | AB36: 14.7 | AC36: 14.7 | AD36: 14.7 | AE36: 14.1474 | AF36: 13.6348 | AG36: 12.4609 | AH36: 11.6148 | AI36: 11.2 | AJ36: 10.752 | AK36: 10.6305 | AL36: 10.5708 | AM36: 10.3956 | AN36: 10.2261 | AO36: 10.2261 | AP36: 10.2261
V37: 4500 | W37: 14.7 | X37: 14.7 | Y37: 14.7 | Z37: 14.7 | AA37: 14.7 | AB37: 14.7 | AC37: 14.1474 | AD37: 13.7343 | AE37: 13.44 | AF37: 12.8 | AG37: 12.0615 | AH37: 11.4732 | AI37: 11.0682 | AJ37: 10.8138 | AK37: 10.752 | AL37: 10.5708 | AM37: 10.3956 | AN37: 10.2261 | AO37: 10.2261 | AP37: 10.2261
V38: 5000 | W38: 14.7 | X38: 14.7 | Y38: 14.7 | Z38: 14.7 | AA38: 14.7 | AB38: 14.4738 | AC38: 14.1474 | AD38: 13.44 | AE38: 12.8 | AF38: 12.2182 | AG38: 11.834 | AH38: 11.4732 | AI38: 10.9395 | AJ38: 10.5708 | AK38: 10.4533 | AL38: 10.3956 | AM38: 10.2261 | AN38: 10.062 | AO38: 10.062 | AP38: 10.062
V39: 5500 | W39: 14.7 | X39: 14.7 | Y39: 14.7 | Z39: 14.7 | AA39: 14.4738 | AB39: 14.0418 | AC39: 13.6348 | AD39: 12.8 | AE39: 12.2182 | AF39: 11.9089 | AG39: 11.6148 | AH39: 10.9395 | AI39: 10.6305 | AJ39: 10.3385 | AK39: 10.1708 | AL39: 10.062 | AM39: 9.90316 | AN39: 9.8 | AO39: 9.8 | AP39: 9.8 | BM39: MAP Difference Comparison
V40: 6000 | W40: 14.3634 | X40: 14.3634 | Y40: 14.3634 | Z40: 14.3634 | AA40: 13.9378 | AB40: 13.44 | AC40: 12.7135 | AD40: 11.834 | AE40: 11.687 | AF40: 11.4732 | AG40: 11.2671 | AH40: 10.8763 | AI40: 10.5708 | AJ40: 10.282 | AK40: 9.95556 | AL40: 9.8 | AM40: 9.64923 | AN40: 9.6 | AO40: 9.6 | AP40: 9.6 | BN40: 10 | BO40: 20 | BP40: 30 | BQ40: 40 | BR40: 50 | BS40: 60 | BT40: 70 | BU40: 80 | BV40: 90 | BW40: 100 | BX40: 120 | BY40: 140 | BZ40: 160 | CA40: 180 | CB40: 200 | CC40: 220 | CD40: 240 | CE40: 260 | CF40: 280 | CG40: 300
V41: 6500 | W41: 14.1474 | X41: 14.1474 | Y41: 14.1474 | Z41: 13.6348 | AA41: 13.2507 | AB41: 12.7135 | AC41: 12.0615 | AD41: 11.4732 | AE41: 11.4732 | AF41: 11.3349 | AG41: 11.0682 | AH41: 10.6909 | AI41: 10.3956 | AJ41: 10.1161 | AK41: 9.90316 | AL41: 9.8 | AM41: 9.64923 | AN41: 9.6 | AO41: 9.6 | AP41: 9.6 | BM41: 500 | BN41: =W29-W53 -> 0 | BO41: 0 | BP41: 0 | BQ41: 0 | BR41: 0 | BS41: 0 | BT41: 0 | BU41: 0 | BV41: 0.5593 | BW41: 0.5593 | BX41: =AG29-AG53 -> 0.611 | BY41: 0.6579 | BZ41: 0.7003 | CA41: 0.7385 | CB41: 0.7731 | CC41: 0.8044 | CD41: 0.8327 | CE41: 0.85824 | CF41: 0.85824 | CG41: 0.85824
V42: 7000 | W42: 14.0418 | X42: 14.0418 | Y42: 14.0418 | Z42: 13.44 | AA42: 12.9766 | AB42: 12.2182 | AC42: 11.6148 | AD42: 11.3349 | AE42: 11.2671 | AF42: 11.2 | AG42: 10.9395 | AH42: 10.5708 | AI42: 10.282 | AJ42: 9.90316 | AK42: 9.6 | AL42: 9.6 | AM42: 9.6 | AN42: 9.6 | AO42: 9.6 | AP42: 9.6 | BM42: 1000 | BN42: 0 | BO42: 0 | BP42: 0 | BQ42: 0 | BR42: 0 | BS42: 0 | BT42: 0 | BU42: 0 | BV42: 0.3733 | BW42: 0.3733 | BX42: 0.4445 | BY42: 0.4211 | BZ42: 0.4825 | CA42: 0.538 | CB42: 0.5883 | CC42: 0.634 | CD42: 0.6753 | CE42: 0.7823 | CF42: 0.7823 | CG42: 0.7823
V43: 7500 | W43: 14.0418 | X43: 14.0418 | Y43: 14.0418 | Z43: 13.44 | AA43: 12.9766 | AB43: 12.2182 | AC43: 11.6148 | AD43: 11.3349 | AE43: 11.2671 | AF43: 11.2 | AG43: 10.9395 | AH43: 10.5708 | AI43: 10.282 | AJ43: 9.90316 | AK43: 9.6 | AL43: 9.6 | AM43: 9.6 | AN43: 9.6 | AO43: 9.6 | AP43: 9.6 | BM43: 1500 | BN43: 0 | BO43: 0 | BP43: 0 | BQ43: 0 | BR43: 0 | BS43: 0 | BT43: 0 | BU43: 0 | BV43: 0.1071 | BW43: 0.2005 | BX43: 0.4445 | BY43: 0.4326 | BZ43: 0.4211 | CA43: 0.4825 | CB43: 0.538 | CC43: 0.5883 | CD43: 0.634 | CE43: 0.6753 | CF43: 0.6753 | CG43: 0.6753
BM44: 2000 | BN44: =W32-W56 -> 0 | BO44: =X32-X56 -> 0 | BP44: =Y32-Y56 -> 0 | BQ44: =Z32-Z56 -> 0 | BR44: =AA32-AA56 -> 0 | BS44: =AB32-AB56 -> 0 | BT44: =AC32-AC56 -> 0 | BU44: =AD32-AD56 -> 0 | BV44: =AE32-AE56 -> 0.1071 | BW44: =AF32-AF56 -> 0.2005 | BX44: =AG32-AG56 -> 0.3733 | BY44: =AH32-AH56 -> 0.4385 | BZ44: =AI32-AI56 -> 0.502 | CA44: =AJ32-AJ56 -> 0.4888 | CB44: =AK32-AK56 -> 0.5449 | CC44: =AL32-AL56 -> 0.5958 | CD44: =AM32-AM56 -> 0.6418 | CE44: =AN32-AN56 -> 0.6835 | CF44: =AO32-AO56 -> 0.6835 | CG44: =AP32-AP56 -> 0.6835
BM45: 2500 | BN45: 0 | BO45: 0 | BP45: 0 | BQ45: 0 | BR45: 0 | BS45: 0 | BT45: 0 | BU45: 0 | BV45: 0.1089 | BW45: 0.2096 | BX45: 0.2005 | BY45: 0.3733 | BZ45: 0.358 | CA45: 0.4326 | CB45: 0.4953 | CC45: 0.552 | CD45: 0.6034 | CE45: 0.6498 | CF45: 0.6498 | CG45: 0.6498
BM46: 3000 | BN46: 0 | BO46: 0 | BP46: 0 | BQ46: 0 | BR46: 0 | BS46: 0 | BT46: 0 | BU46: 0 | BV46: 0.1089 | BW46: 0.1056 | BX46: 0.2065 | BY46: 0.363 | BZ46: 0.6918 | CA46: 0.7641 | CB46: 0.7862 | CC46: 0.8775 | CD46: 0.90069 | CE46: 0.92157 | CF46: 0.92157 | CG46: 0.92157
BM47: 3500 | BN47: 0 | BO47: 0 | BP47: 0 | BQ47: 0 | BR47: 0 | BS47: 0 | BT47: 0 | BU47: 0 | BV47: 0.1089 | BW47: 0.1056 | BX47: 0.3733 | BY47: 0.6034 | BZ47: 0.7212 | CA47: 0.8678 | CB47: 0.85824 | CC47: 0.84884 | CD47: 0.87183 | CE47: 0.9117 | CF47: 0.9117 | CG47: 0.9117
BM48: 4000 | BN48: 0 | BO48: 0 | BP48: 0 | BQ48: 0 | BR48: 0 | BS48: 0 | BT48: 0 | BU48: 0 | BV48: 0.2096 | BW48: 0.2901 | BX48: 0.552 | BY48: 0.6753 | BZ48: 0.8044 | CA48: 0.90069 | CB48: 0.88128 | CC48: 0.92157 | CD48: 0.94032 | CE48: 0.95713 | CF48: 0.95713 | CG48: 0.95713
BM49: 4500 | BN49: 0 | BO49: 0 | BP49: 0 | BQ49: 0 | BR49: 0 | BS49: 0 | BT49: 0.1056 | BU49: 0.1976 | BV49: 0.282 | BW49: 0.502 | BX49: 0.6579 | BY49: 0.7823 | BZ49: 0.7862 | CA49: 0.85824 | CB49: 0.90069 | CC49: 0.92157 | CD49: 0.94032 | CE49: 0.95713 | CF49: 0.95713 | CG49: 0.95713
U50: 3 | W50: Stock / Original Fuel Octane Map | BM50: 5000 | BN50: 0 | BO50: 0 | BP50: 0 | BQ50: 0 | BR50: 0 | BS50: 0 | BT50: 0.1056 | BU50: 0.282 | BV50: 0.502 | BW50: 0.6034 | BX50: 0.7003 | BY50: 0.7212 | BZ50: 0.8234 | CA50: 0.92157 | CB50: 0.90203 | CC50: 0.94032 | CD50: 0.95713 | CE50: 0.97214 | CF50: 0.97214 | CG50: 0.97214
W51: Load Value | BM51: 5500 | BN51: 0 | BO51: 0 | BP51: 0 | BQ51: 0 | BR51: 0.1104 | BS51: 0.2065 | BT51: 0.2901 | BU51: 0.4211 | BV51: 0.6034 | BW51: 0.6418 | BX51: 0.7385 | BY51: 0.8234 | BZ51: 0.88128 | CA51: 0.9305 | CB51: 0.85595 | CC51: 0.83847 | CD51: 0.85701 | CE51: 0.92453 | CF51: 0.92453 | CG51: 0.92453
W52: 10 | X52: 20 | Y52: 30 | Z52: 40 | AA52: 50 | AB52: 60 | AC52: 70 | AD52: 80 | AE52: 90 | AF52: 100 | AG52: 120 | AH52: 140 | AI52: 160 | AJ52: 180 | AK52: 200 | AL52: 220 | AM52: 240 | AN52: 260 | AO52: 280 | AP52: 300 | BM52: 6000 | BN52: 0.1089 | BO52: 0.1089 | BP52: 0.1089 | BQ52: 0.1089 | BR52: 0.2035 | BS52: 0.3733 | BT52: 0.4953 | BU52: 0.634 | BV52: 0.6835 | BW52: 0.7823 | BX52: 0.7554 | BY52: 0.8678 | BZ52: 0.87183 | CA52: 0.96715 | CB52: 0.8657 | CC52: 0.92453 | CD52: 0.93812 | CE52: 0.92903 | CF52: 0.92903 | CG52: 0.92903
U53: RPM | V53: 500 | W53: 13.3447 | X53: 13.3447 | Y53: 13.3447 | Z53: 13.3447 | AA53: 13.3447 | AB53: 13.3447 | AC53: 13.3447 | AD53: 13.3447 | AE53: 11.9847 | AF53: 11.9847 | AG53: 11.687 | AH53: 11.4036 | AI53: 11.1337 | AJ53: 10.8763 | AK53: 10.6305 | AL53: 10.3956 | AM53: 10.1708 | AN53: 9.95556 | AO53: 9.95556 | AP53: 9.95556 | BM53: 6500 | BN53: =W41-W65 -> 0.1056 | BO53: 0.1056 | BP53: 0.1056 | BQ53: 0.2901 | BR53: 0.363 | BS53: 0.4953 | BT53: 0.6579 | BU53: 0.7212 | BV53: 0.7823 | BW53: 0.7641 | BX53: 0.8421 | BY53: 0.8909 | BZ53: 0.94032 | CA53: 0.98212 | CB53: 0.85701 | CC53: 0.92453 | CD53: 0.93812 | CE53: 0.92903 | CF53: 0.92903 | CG53: 0.92903
V54: 1000 | W54: 14.7 | X54: 14.7 | Y54: 14.7 | Z54: 14.7 | AA54: 14.7 | AB54: 14.7 | AC54: 14.7 | AD54: 14.7 | AE54: 13.0667 | AF54: 13.0667 | AG54: 12.7135 | AH54: 12.3789 | AI54: 12.0615 | AJ54: 11.76 | AK54: 11.4732 | AL54: 11.2 | AM54: 10.9395 | AN54: 10.6909 | AO54: 10.6909 | AP54: 10.6909 | BM54: 7000 | BN54: 0.2065 | BO54: 0.2065 | BP54: 0.2065 | BQ54: 0.3733 | BR54: 0.4326 | BS54: 0.6034 | BT54: 0.7385 | BU54: 0.7641 | BV54: 0.8138 | BW54: 0.8044 | BX54: 0.8775 | BY54: 0.87183 | BZ54: 0.92081 | CA54: 1.02769 | CB54: 0.92903 | CC54: 0.92903 | CD54: 0.92903 | CE54: 0.92903 | CF54: 0.92903 | CG54: 0.92903
V55: 1500 | W55: 14.7 | X55: 14.7 | Y55: 14.7 | Z55: 14.7 | AA55: 14.7 | AB55: 14.7 | AC55: 14.7 | AD55: 14.7 | AE55: 14.1474 | AF55: 13.6348 | AG55: 12.7135 | AH55: 12.544 | AI55: 12.3789 | AJ55: 12.0615 | AK55: 11.76 | AL55: 11.4732 | AM55: 11.2 | AN55: 10.9395 | AO55: 10.9395 | AP55: 10.9395 | BM55: 7500 | BN55: 0.2065 | BO55: 0.2065 | BP55: 0.2065 | BQ55: 0.3733 | BR55: 0.4326 | BS55: 0.6034 | BT55: 0.7385 | BU55: 0.7641 | BV55: 0.8138 | BW55: 0.8044 | BX55: 0.8775 | BY55: 0.87183 | BZ55: 0.92081 | CA55: 1.02769 | CB55: 0.92903 | CC55: 0.92903 | CD55: 0.92903 | CE55: 0.92903 | CF55: 0.92903 | CG55: 0.92903
V56: 2000 | W56: 14.7 | X56: 14.7 | Y56: 14.7 | Z56: 14.7 | AA56: 14.7 | AB56: 14.7 | AC56: 14.7 | AD56: 14.7 | AE56: 14.1474 | AF56: 13.6348 | AG56: 13.0667 | AH56: 12.6282 | AI56: 12.298 | AJ56: 12.1394 | AK56: 11.834 | AL56: 11.5436 | AM56: 11.2671 | AN56: 11.0035 | AO56: 11.0035 | AP56: 11.0035
V57: 2500 | W57: 14.7 | X57: 14.7 | Y57: 14.7 | Z57: 14.7 | AA57: 14.7 | AB57: 14.7 | AC57: 14.7 | AD57: 14.7 | AE57: 14.2545 | AF57: 13.9378 | AG57: 13.6348 | AH57: 13.0667 | AI57: 12.8 | AJ57: 12.544 | AK57: 12.2182 | AL57: 11.9089 | AM57: 11.6148 | AN57: 11.3349 | AO57: 11.3349 | AP57: 11.3349
V58: 3000 | W58: 14.7 | X58: 14.7 | Y58: 14.7 | Z58: 14.7 | AA58: 14.7 | AB58: 14.7 | AC58: 14.7 | AD58: 14.7 | AE58: 14.2545 | AF58: 14.0418 | AG58: 13.8353 | AH58: 12.8877 | AI58: 11.0682 | AJ58: 10.5708 | AK58: 10.282 | AL58: 10.062 | AM58: 9.85131 | AN58: 9.64923 | AO58: 9.64923 | AP58: 9.64923
V59: 3500 | W59: 14.7 | X59: 14.7 | Y59: 14.7 | Z59: 14.7 | AA59: 14.7 | AB59: 14.7 | AC59: 14.7 | AD59: 14.7 | AE59: 14.2545 | AF59: 14.0418 | AG59: 13.0667 | AH59: 11.6148 | AI59: 10.752 | AJ59: 10.0085 | AK59: 9.95556 | AL59: 9.90316 | AM59: 9.69897 | AN59: 9.6 | AO59: 9.6 | AP59: 9.6
V60: 4000 | W60: 14.7 | X60: 14.7 | Y60: 14.7 | Z60: 14.7 | AA60: 14.7 | AB60: 14.7 | AC60: 14.7 | AD60: 14.7 | AE60: 13.9378 | AF60: 13.3447 | AG60: 11.9089 | AH60: 10.9395 | AI60: 10.3956 | AJ60: 9.85131 | AK60: 9.74922 | AL60: 9.64923 | AM60: 9.45528 | AN60: 9.26897 | AO60: 9.26897 | AP60: 9.26897
V61: 4500 | W61: 14.7 | X61: 14.7 | Y61: 14.7 | Z61: 14.7 | AA61: 14.7 | AB61: 14.7 | AC61: 14.0418 | AD61: 13.5367 | AE61: 13.158 | AF61: 12.298 | AG61: 11.4036 | AH61: 10.6909 | AI61: 10.282 | AJ61: 9.95556 | AK61: 9.85131 | AL61: 9.64923 | AM61: 9.45528 | AN61: 9.26897 | AO61: 9.26897 | AP61: 9.26897
V62: 5000 | W62: 14.7 | X62: 14.7 | Y62: 14.7 | Z62: 14.7 | AA62: 14.7 | AB62: 14.4738 | AC62: 14.0418 | AD62: 13.158 | AE62: 12.298 | AF62: 11.6148 | AG62: 11.1337 | AH62: 10.752 | AI62: 10.1161 | AJ62: 9.64923 | AK62: 9.55127 | AL62: 9.45528 | AM62: 9.26897 | AN62: 9.08986 | AO62: 9.08986 | AP62: 9.08986
V63: 5500 | W63: 14.7 | X63: 14.7 | Y63: 14.7 | Z63: 14.7 | AA63: 14.3634 | AB63: 13.8353 | AC63: 13.3447 | AD63: 12.3789 | AE63: 11.6148 | AF63: 11.2671 | AG63: 10.8763 | AH63: 10.1161 | AI63: 9.74922 | AJ63: 9.408 | AK63: 9.31485 | AL63: 9.22353 | AM63: 9.04615 | AN63: 8.87547 | AO63: 8.87547 | AP63: 8.87547
V64: 6000 | W64: 14.2545 | X64: 14.2545 | Y64: 14.2545 | Z64: 14.2545 | AA64: 13.7343 | AB64: 13.0667 | AC64: 12.2182 | AD64: 11.2 | AE64: 11.0035 | AF64: 10.6909 | AG64: 10.5117 | AH64: 10.0085 | AI64: 9.69897 | AJ64: 9.31485 | AK64: 9.08986 | AL64: 8.87547 | AM64: 8.71111 | AN64: 8.67097 | AO64: 8.67097 | AP64: 8.67097
V65: 6500 | W65: 14.0418 | X65: 14.0418 | Y65: 14.0418 | Z65: 13.3447 | AA65: 12.8877 | AB65: 12.2182 | AC65: 11.4036 | AD65: 10.752 | AE65: 10.6909 | AF65: 10.5708 | AG65: 10.2261 | AH65: 9.8 | AI65: 9.45528 | AJ65: 9.13398 | AK65: 9.04615 | AL65: 8.87547 | AM65: 8.71111 | AN65: 8.67097 | AO65: 8.67097 | AP65: 8.67097
V66: 7000 | W66: 13.8353 | X66: 13.8353 | Y66: 13.8353 | Z66: 13.0667 | AA66: 12.544 | AB66: 11.6148 | AC66: 10.8763 | AD66: 10.5708 | AE66: 10.4533 | AF66: 10.3956 | AG66: 10.062 | AH66: 9.69897 | AI66: 9.36119 | AJ66: 8.87547 | AK66: 8.67097 | AL66: 8.67097 | AM66: 8.67097 | AN66: 8.67097 | AO66: 8.67097 | AP66: 8.67097
V67: 7500 | W67: 13.8353 | X67: 13.8353 | Y67: 13.8353 | Z67: 13.0667 | AA67: 12.544 | AB67: 11.6148 | AC67: 10.8763 | AD67: 10.5708 | AE67: 10.4533 | AF67: 10.3956 | AG67: 10.062 | AH67: 9.69897 | AI67: 9.36119 | AJ67: 8.87547 | AK67: 8.67097 | AL67: 8.67097 | AM67: 8.67097 | AN67: 8.67097 | AO67: 8.67097 | AP67: 8.67097
U74: 4 | W74: Identify Stoichiometric Platue and other cells you don't want smoothed 1 = Yes 0 = No
W75: =W27 -> Load Value
W76: =W28 -> 10 | X76: =X28 -> 20 | Y76: 30 | Z76: 40 | AA76: 50 | AB76: 60 | AC76: 70 | AD76: 80 | AE76: 90 | AF76: 100 | AG76: 120 | AH76: 140 | AI76: 160 | AJ76: 180 | AK76: 200 | AL76: 220 | AM76: 240 | AN76: 260 | AO76: 280 | AP76: 300
U77: =U29 -> RPM | V77: =V29 -> 500 | W77: 1 | X77: 1 | Y77: 1 | Z77: 1 | AA77: 1 | AB77: 1 | AC77: 0 | AD77: 0 | AE77: 0 | AF77: 0 | AG77: 0 | AH77: 0 | AI77: 0 | AJ77: 0 | AK77: 0 | AL77: 0 | AM77: 0 | AN77: 0 | AO77: 0 | AP77: 0
V78: =V30 -> 1000 | W78: =1 -> 1 | X78: =1 -> 1 | Y78: =1 -> 1 | Z78: =1 -> 1 | AA78: =1 -> 1 | AB78: =1 -> 1 | AC78: 0 | AD78: 0 | AE78: 0 | AF78: 0 | AG78: 0 | AH78: 0 | AI78: 0 | AJ78: 0 | AK78: 0 | AL78: 0 | AM78: 0 | AN78: 0 | AO78: 0 | AP78: 0
V79: 1500 | W79: =1 -> 1 | X79: =1 -> 1 | Y79: =1 -> 1 | Z79: =1 -> 1 | AA79: =1 -> 1 | AB79: =1 -> 1 | AC79: 0 | AD79: 0 | AE79: 0 | AF79: 0 | AG79: 0 | AH79: 0 | AI79: 0 | AJ79: 0 | AK79: 0 | AL79: 0 | AM79: 0 | AN79: 0 | AO79: 0 | AP79: 0
V80: 2000 | W80: =1 -> 1 | X80: =1 -> 1 | Y80: =1 -> 1 | Z80: =1 -> 1 | AA80: =1 -> 1 | AB80: =1 -> 1 | AC80: 0 | AD80: 0 | AE80: 0 | AF80: 0 | AG80: 0 | AH80: 0 | AI80: 0 | AJ80: 0 | AK80: 0 | AL80: 0 | AM80: 0 | AN80: 0 | AO80: 0 | AP80: 0
V81: 2500 | W81: =1 -> 1 | X81: =1 -> 1 | Y81: =1 -> 1 | Z81: =1 -> 1 | AA81: =1 -> 1 | AB81: =1 -> 1 | AC81: 0 | AD81: 0 | AE81: 0 | AF81: 0 | AG81: 0 | AH81: 0 | AI81: 0 | AJ81: 0 | AK81: 0 | AL81: 0 | AM81: 0 | AN81: 0 | AO81: 0 | AP81: 0
V82: 3000 | W82: =1 -> 1 | X82: =1 -> 1 | Y82: =1 -> 1 | Z82: =1 -> 1 | AA82: =1 -> 1 | AB82: =1 -> 1 | AC82: 0 | AD82: 0 | AE82: 0 | AF82: 0 | AG82: 0 | AH82: 0 | AI82: 0 | AJ82: 0 | AK82: 0 | AL82: 0 | AM82: 0 | AN82: 0 | AO82: 0 | AP82: 0
V83: 3500 | W83: =1 -> 1 | X83: =1 -> 1 | Y83: =1 -> 1 | Z83: =1 -> 1 | AA83: =1 -> 1 | AB83: =1 -> 1 | AC83: 0 | AD83: 0 | AE83: 0 | AF83: 0 | AG83: 0 | AH83: 0 | AI83: 0 | AJ83: 0 | AK83: 0 | AL83: 0 | AM83: 0 | AN83: 0 | AO83: 0 | AP83: 0
V84: 4000 | W84: =1 -> 1 | X84: =1 -> 1 | Y84: =1 -> 1 | Z84: =1 -> 1 | AA84: =1 -> 1 | AB84: =1 -> 1 | AC84: 0 | AD84: 0 | AE84: 0 | AF84: 0 | AG84: 0 | AH84: 0 | AI84: 0 | AJ84: 0 | AK84: 0 | AL84: 0 | AM84: 0 | AN84: 0 | AO84: 0 | AP84: 0
V85: 4500 | W85: =1 -> 1 | X85: =1 -> 1 | Y85: =1 -> 1 | Z85: =1 -> 1 | AA85: =1 -> 1 | AB85: =1 -> 1 | AC85: 0 | AD85: 0 | AE85: 0 | AF85: 0 | AG85: 0 | AH85: 0 | AI85: 0 | AJ85: 0 | AK85: 0 | AL85: 0 | AM85: 0 | AN85: 0 | AO85: 0 | AP85: 0
V86: 5000 | W86: =1 -> 1 | X86: =1 -> 1 | Y86: =1 -> 1 | Z86: =1 -> 1 | AA86: =1 -> 1 | AB86: 0 | AC86: 0 | AD86: 0 | AE86: 0 | AF86: 0 | AG86: 0 | AH86: 0 | AI86: 0 | AJ86: 0 | AK86: 0 | AL86: 0 | AM86: 0 | AN86: 0 | AO86: 0 | AP86: 0
V87: 5500 | W87: =1 -> 1 | X87: =1 -> 1 | Y87: =1 -> 1 | Z87: =1 -> 1 | AA87: 0 | AB87: 0 | AC87: 0 | AD87: 0 | AE87: 0 | AF87: 0 | AG87: 0 | AH87: 0 | AI87: 0 | AJ87: 0 | AK87: 0 | AL87: 0 | AM87: 0 | AN87: 0 | AO87: 0 | AP87: 0
V88: 6000 | W88: 0 | X88: 0 | Y88: 0 | Z88: 0 | AA88: 0 | AB88: 0 | AC88: 0 | AD88: 0 | AE88: 0 | AF88: 0 | AG88: 0 | AH88: 0 | AI88: 0 | AJ88: 0 | AK88: 0 | AL88: 0 | AM88: 0 | AN88: 0 | AO88: 0 | AP88: 0
V89: 6500 | W89: 0 | X89: 0 | Y89: 0 | Z89: 0 | AA89: 0 | AB89: 0 | AC89: 0 | AD89: 0 | AE89: 0 | AF89: 0 | AG89: 0 | AH89: 0 | AI89: 0 | AJ89: 0 | AK89: 0 | AL89: 0 | AM89: 0 | AN89: 0 | AO89: 0 | AP89: 0
V90: 7000 | W90: 0 | X90: 0 | Y90: 0 | Z90: 0 | AA90: 0 | AB90: 0 | AC90: 0 | AD90: 0 | AE90: 0 | AF90: 0 | AG90: 0 | AH90: 0 | AI90: 0 | AJ90: 0 | AK90: 0 | AL90: 0 | AM90: 0 | AN90: 0 | AO90: 0 | AP90: 0
V91: 7500 | W91: 0 | X91: 0 | Y91: 0 | Z91: 0 | AA91: 0 | AB91: 0 | AC91: 0 | AD91: 0 | AE91: 0 | AF91: 0 | AG91: 0 | AH91: 0 | AI91: 0 | AJ91: 0 | AK91: 0 | AL91: 0 | AM91: 0 | AN91: 0 | AO91: 0 | AP91: 0
T94: DO NOT MODIFY: THESE ARE THE QUANTIZED VALUES THE ECU USES. THEY ALLOW FOR ACCURATE SMOOTHING AND CORRECT DECIMAL VALUES TO PASTE BACK INTO ECU FLASH
W97: Modded Fuel Map (Quantized)
W98: Load Value
W99: =W28 -> 10 | X99: 20 | Y99: 30 | Z99: 40 | AA99: 50 | AB99: 60 | AC99: 70 | AD99: 80 | AE99: 90 | AF99: 100 | AG99: 120 | AH99: 140 | AI99: 160 | AJ99: 180 | AK99: 200 | AL99: 220 | AM99: 240 | AN99: 260 | AO99: =AO28 -> 280 | AP99: =AP28 -> 300
U100: RPM | V100: =V29 -> 500 | W100: =ROUND(14.7*128/W29,0) -> 141 | X100: 141 | Y100: 141 | Z100: 141 | AA100: 141 | AB100: 141 | AC100: 141 | AD100: 141 | AE100: 150 | AF100: 150 | AG100: 153 | AH100: 156 | AI100: 159 | AJ100: 162 | AK100: 165 | AL100: 168 | AM100: =ROUND(14.7*128/AM29,0) -> 171 | AN100: 174 | AO100: 174 | AP100: 174
U101: 0 | V101: 1000 | W101: =ROUND(14.7*128/W30,0) -> 128 | X101: 128 | Y101: 128 | Z101: 128 | AA101: 128 | AB101: 128 | AC101: 128 | AD101: 128 | AE101: 140 | AF101: 140 | AG101: 143 | AH101: 147 | AI101: 150 | AJ101: 153 | AK101: 156 | AL101: 159 | AM101: 162 | AN101: 164 | AO101: 164 | AP101: 164
U102: 0 | V102: 1500 | W102: =ROUND(14.7*128/W31,0) -> 128 | X102: 128 | Y102: 128 | Z102: 128 | AA102: 128 | AB102: 128 | AC102: 128 | AD102: 128 | AE102: 132 | AF102: 136 | AG102: 143 | AH102: 145 | AI102: 147 | AJ102: 150 | AK102: 153 | AL102: 156 | AM102: 159 | AN102: 162 | AO102: 162 | AP102: 162
U103: 0 | V103: 2000 | W103: =ROUND(14.7*128/W32,0) -> 128 | X103: 128 | Y103: 128 | Z103: 128 | AA103: 128 | AB103: 128 | AC103: 128 | AD103: 128 | AE103: 132 | AF103: 136 | AG103: 140 | AH103: 144 | AI103: 147 | AJ103: 149 | AK103: 152 | AL103: 155 | AM103: 158 | AN103: 161 | AO103: 161 | AP103: 161
U104: 0 | V104: 2500 | W104: =ROUND(14.7*128/W33,0) -> 128 | X104: 128 | Y104: 128 | Z104: 128 | AA104: 128 | AB104: 128 | AC104: 128 | AD104: 128 | AE104: 131 | AF104: 133 | AG104: 136 | AH104: 140 | AI104: 143 | AJ104: 145 | AK104: 148 | AL104: 151 | AM104: 154 | AN104: 157 | AO104: 157 | AP104: 157
U105: 0 | V105: 3000 | W105: =ROUND(14.7*128/W34,0) -> 128 | X105: 128 | Y105: 128 | Z105: 128 | AA105: 128 | AB105: 128 | AC105: 128 | AD105: 128 | AE105: 131 | AF105: 133 | AG105: 134 | AH105: 142 | AI105: 160 | AJ105: 166 | AK105: 170 | AL105: 172 | AM105: 175 | AN105: 178 | AO105: 178 | AP105: 178
U106: 0 | V106: 3500 | W106: =ROUND(14.7*128/W35,0) -> 128 | X106: 128 | Y106: 128 | Z106: 128 | AA106: 128 | AB106: 128 | AC106: 128 | AD106: 128 | AE106: 131 | AF106: 133 | AG106: 140 | AH106: 154 | AI106: 164 | AJ106: 173 | AK106: 174 | AL106: 175 | AM106: 178 | AN106: 179 | AO106: 179 | AP106: 179
U107: 0 | V107: 4000 | W107: =ROUND(14.7*128/W36,0) -> 128 | X107: 128 | Y107: 128 | Z107: 128 | AA107: 128 | AB107: 128 | AC107: 128 | AD107: 128 | AE107: 133 | AF107: 138 | AG107: 151 | AH107: 162 | AI107: 168 | AJ107: 175 | AK107: 177 | AL107: 178 | AM107: 181 | AN107: 184 | AO107: 184 | AP107: 184
U108: 0 | V108: 4500 | W108: =ROUND(14.7*128/W37,0) -> 128 | X108: 128 | Y108: 128 | Z108: 128 | AA108: 128 | AB108: 128 | AC108: 133 | AD108: 137 | AE108: 140 | AF108: 147 | AG108: 156 | AH108: 164 | AI108: 170 | AJ108: 174 | AK108: 175 | AL108: 178 | AM108: 181 | AN108: 184 | AO108: 184 | AP108: 184
U109: 0 | V109: 5000 | W109: =ROUND(14.7*128/W38,0) -> 128 | X109: 128 | Y109: 128 | Z109: 128 | AA109: 128 | AB109: 130 | AC109: 133 | AD109: 140 | AE109: 147 | AF109: 154 | AG109: 159 | AH109: 164 | AI109: 172 | AJ109: 178 | AK109: 180 | AL109: 181 | AM109: 184 | AN109: 187 | AO109: 187 | AP109: 187
U110: 0 | V110: 5500 | W110: =ROUND(14.7*128/W39,0) -> 128 | X110: 128 | Y110: 128 | Z110: 128 | AA110: 130 | AB110: 134 | AC110: 138 | AD110: 147 | AE110: 154 | AF110: 158 | AG110: 162 | AH110: 172 | AI110: 177 | AJ110: 182 | AK110: 185 | AL110: 187 | AM110: 190 | AN110: 192 | AO110: 192 | AP110: 192
U111: 0 | V111: 6000 | W111: =ROUND(14.7*128/W40,0) -> 131 | X111: 131 | Y111: 131 | Z111: 131 | AA111: 135 | AB111: 140 | AC111: 148 | AD111: 159 | AE111: 161 | AF111: 164 | AG111: 167 | AH111: 173 | AI111: 178 | AJ111: 183 | AK111: 189 | AL111: 192 | AM111: 195 | AN111: 196 | AO111: 196 | AP111: 196
U112: 0 | V112: 6500 | W112: =ROUND(14.7*128/W41,0) -> 133 | X112: 133 | Y112: 133 | Z112: 138 | AA112: 142 | AB112: 148 | AC112: 156 | AD112: 164 | AE112: 164 | AF112: 166 | AG112: 170 | AH112: 176 | AI112: 181 | AJ112: 186 | AK112: 190 | AL112: 192 | AM112: 195 | AN112: 196 | AO112: 196 | AP112: 196
U113: 0 | V113: 7000 | W113: =ROUND(14.7*128/W42,0) -> 134 | X113: 134 | Y113: 134 | Z113: 140 | AA113: 145 | AB113: 154 | AC113: 162 | AD113: 166 | AE113: 167 | AF113: 168 | AG113: 172 | AH113: 178 | AI113: 183 | AJ113: 190 | AK113: 196 | AL113: 196 | AM113: 196 | AN113: 196 | AO113: 196 | AP113: 196
U114: 0 | V114: 7500 | W114: =ROUND(14.7*128/W43,0) -> 134 | X114: 134 | Y114: 134 | Z114: 140 | AA114: 145 | AB114: 154 | AC114: 162 | AD114: 166 | AE114: 167 | AF114: 168 | AG114: 172 | AH114: 178 | AI114: 183 | AJ114: 190 | AK114: 196 | AL114: 196 | AM114: 196 | AN114: 196 | AO114: 196 | AP114: 196

Sheet Fuel - BIG MAP
U1: RICHER | W1: Smoothing | Z1: Leaner | AB1: 15 | AD1: Richer | AF1: 15 | BB1: Smoothed Modded High Octane Fuel Map
U2: LEANER | W2: Limits | Z2: =-AB1 -> -15 | AD2: =AF1 -> 15 | AI2: FALSE
U3: 1 | W3: Smoothed Fuel Map
W4: Load Value
W5: 10 | X5: 20 | Y5: 30 | Z5: 40 | AA5: 50 | AB5: 60 | AC5: 70 | AD5: 80 | AE5: 90 | AF5: 100 | AG5: 120 | AH5: 140 | AI5: 150 | AJ5: 160 | AK5: 170 | AL5: 180 | AM5: 190 | AN5: 200 | AO5: 210 | AP5: 220 | AQ5: 230 | AR5: 240 | AS5: 250 | AT5: 260 | AU5: 270 | AV5: 280 | AW5: 290 | AX5: 300 | AY5: 310 | AZ5: 320
U6: RPM | V6: 500 | W6: =14.7*128/IF(AND($AI$2,W103),MIN($AL$32,MAX($AL$33,$AA$31+W136)),MIN($AL$32,MAX($AL$33,($AA$31+MAX(W136+$Z$2,MIN(W136+$AD$2,ROUND(AVERAGE(W136,W136,W136,W136,W136:X137),0))))))) -> 14.7 | X6: =14.7*128/IF(AND($AI$2,X103),MIN($AL$32,MAX($AL$33,$AA$31+X136)),MIN($AL$32,MAX($AL$33,($AA$31+MAX(X136+$Z$2,MIN(X136+$AD$2,ROUND(AVERAGE(X136,X136,X136,X136,X136:Y137),0))))))) -> 14.7 | Y6: 14.7 | Z6: 14.7 | AA6: 14.7 | AB6: 14.7 | AC6: 14.7 | AD6: 14.58604651 | AE6: 14.14736842 | AF6: 13.53669065 | AG6: 13.25070423 | AH6: 13.06666667 | AI6: 12.8 | AJ6: 12.544 | AK6: 12.37894737 | AL6: 12.29803922 | AM6: 12.21818182 | AN6: 12.21818182 | AO6: 12.13935484 | AP6: 12.13935484 | AQ6: 12.13935484 | AR6: 12.13935484 | AS6: 12.13935484 | AT6: 12.13935484 | AU6: 12.13935484 | AV6: 12.13935484 | AW6: 12.13935484 | AX6: 12.13935484 | AY6: 12.13935484 | AZ6: 12.13935484
V7: 1000 | W7: =14.7*128/IF(AND($AI$2,W104),MIN($AL$32,MAX($AL$33,$AA$31+W137)),MIN($AL$32,MAX($AL$33,($AA$31+MAX(W137+$Z$2,MIN(W137+$AD$2,ROUND(AVERAGE(W137,W137,W137,W137,W137:X138),0))))))) -> 14.7 | X7: 14.7 | Y7: 14.7 | Z7: 14.7 | AA7: 14.7 | AB7: 14.7 | AC7: 14.7 | AD7: 14.58604651 | AE7: 14.14736842 | AF7: 13.53669065 | AG7: 13.25070423 | AH7: 12.88767123 | AI7: 12.62818792 | AJ7: 12.37894737 | AK7: 12.21818182 | AL7: 12.13935484 | AM7: 12.13935484 | AN7: 12.06153846 | AO7: 12.06153846 | AP7: 11.98471338 | AQ7: 11.98471338 | AR7: 11.98471338 | AS7: 11.98471338 | AT7: 11.98471338 | AU7: 11.98471338 | AV7: 11.98471338 | AW7: 11.98471338 | AX7: 11.98471338 | AY7: 11.98471338 | AZ7: 11.98471338
V8: 1250 | W8: =14.7*128/IF(AND($AI$2,W105),MIN($AL$32,MAX($AL$33,$AA$31+W138)),MIN($AL$32,MAX($AL$33,($AA$31+MAX(W138+$Z$2,MIN(W138+$AD$2,ROUND(AVERAGE(W138,W138,W138,W138,W138:X139),0))))))) -> 14.7 | X8: 14.7 | Y8: 14.7 | Z8: 14.7 | AA8: 14.7 | AB8: 14.7 | AC8: 14.7 | AD8: 14.58604651 | AE8: 14.14736842 | AF8: 13.53669065 | AG8: 13.06666667 | AH8: 12.62818792 | AI8: 12.37894737 | AJ8: 12.06153846 | AK8: 11.90886076 | AL8: 11.83396226 | AM8: 11.76 | AN8: 11.76 | AO8: 11.68695652 | AP8: 11.68695652 | AQ8: 11.68695652 | AR8: 11.68695652 | AS8: 11.68695652 | AT8: 11.68695652 | AU8: 11.68695652 | AV8: 11.68695652 | AW8: 11.68695652 | AX8: 11.68695652 | AY8: 11.68695652 | AZ8: 11.68695652
V9: 1500 | W9: =14.7*128/IF(AND($AI$2,W106),MIN($AL$32,MAX($AL$33,$AA$31+W139)),MIN($AL$32,MAX($AL$33,($AA$31+MAX(W139+$Z$2,MIN(W139+$AD$2,ROUND(AVERAGE(W139,W139,W139,W139,W139:X140),0))))))) -> 14.7 | X9: 14.7 | Y9: 14.7 | Z9: 14.7 | AA9: 14.7 | AB9: 14.7 | AC9: 14.7 | AD9: 14.58604651 | AE9: 14.14736842 | AF9: 13.53669065 | AG9: 12.88767123 | AH9: 12.37894737 | AI9: 11.98471338 | AJ9: 11.76 | AK9: 11.61481481 | AL9: 11.47317073 | AM9: 11.47317073 | AN9: 11.40363636 | AO9: 11.40363636 | AP9: 11.33493976 | AQ9: 11.33493976 | AR9: 11.33493976 | AS9: 11.33493976 | AT9: 11.33493976 | AU9: 11.33493976 | AV9: 11.33493976 | AW9: 11.33493976 | AX9: 11.33493976 | AY9: 11.33493976 | AZ9: 11.33493976
V10: 2000 | W10: =14.7*128/IF(AND($AI$2,W107),MIN($AL$32,MAX($AL$33,$AA$31+W140)),MIN($AL$32,MAX($AL$33,($AA$31+MAX(W140+$Z$2,MIN(W140+$AD$2,ROUND(AVERAGE(W140,W140,W140,W140,W140:X141),0))))))) -> 14.7 | X10: 14.7 | Y10: 14.7 | Z10: 14.7 | AA10: 14.7 | AB10: 14.7 | AC10: 14.7 | AD10: 14.58604651 | AE10: 14.04179104 | AF10: 13.44 | AG10: 12.71351351 | AH10: 12.21818182 | AI10: 11.83396226 | AJ10: 11.54355828 | AK10: 11.40363636 | AL10: 11.26706587 | AM10: 11.2 | AN10: 11.2 | AO10: 11.13372781 | AP10: 11.13372781 | AQ10: 11.13372781 | AR10: 11.13372781 | AS10: 11.13372781 | AT10: 11.13372781 | AU10: 11.13372781 | AV10: 11.13372781 | AW10: 11.13372781 | AX10: 11.13372781 | AY10: 11.13372781 | AZ10: 11.13372781
V11: 2500 | W11: =14.7*128/IF(AND($AI$2,W108),MIN($AL$32,MAX($AL$33,$AA$31+W141)),MIN($AL$32,MAX($AL$33,($AA$31+MAX(W141+$Z$2,MIN(W141+$AD$2,ROUND(AVERAGE(W141,W141,W141,W141,W141:X142),0))))))) -> 14.7 | X11: 14.7 | Y11: 14.7 | Z11: 14.7 | AA11: 14.7 | AB11: 14.7 | AC11: 14.7 | AD11: 14.58604651 | AE11: 14.04179104 | AF11: 13.34468085 | AG11: 12.62818792 | AH11: 12.06153846 | AI11: 11.68695652 | AJ11: 11.40363636 | AK11: 11.2 | AL11: 11.06823529 | AM11: 11.00350877 | AN11: 10.93953488 | AO11: 10.93953488 | AP11: 10.87630058 | AQ11: 10.87630058 | AR11: 10.87630058 | AS11: 10.87630058 | AT11: 10.87630058 | AU11: 10.87630058 | AV11: 10.87630058 | AW11: 10.87630058 | AX11: 10.87630058 | AY11: 10.87630058 | AZ11: 10.87630058
V12: 2750 | W12: =14.7*128/IF(AND($AI$2,W109),MIN($AL$32,MAX($AL$33,$AA$31+W142)),MIN($AL$32,MAX($AL$33,($AA$31+MAX(W142+$Z$2,MIN(W142+$AD$2,ROUND(AVERAGE(W142,W142,W142,W142,W142:X143),0))))))) -> 14.7 | X12: 14.7 | Y12: 14.7 | Z12: 14.7 | AA12: 14.7 | AB12: 14.7 | AC12: 14.7 | AD12: 14.58604651 | AE12: 13.93777778 | AF12: 13.25070423 | AG12: 12.46092715 | AH12: 11.90886076 | AI12: 11.54355828 | AJ12: 11.2 | AK12: 11.06823529 | AL12: 10.87630058 | AM12: 10.87630058 | AN12: 10.8137931 | AO12: 10.752 | AP12: 10.69090909 | AQ12: 10.69090909 | AR12: 10.69090909 | AS12: 10.69090909 | AT12: 10.69090909 | AU12: 10.69090909 | AV12: 10.69090909 | AW12: 10.69090909 | AX12: 10.69090909 | AY12: 10.69090909 | AZ12: 10.69090909 | BZ12: MAP Difference Comparison
V13: 3000 | W13: =14.7*128/IF(AND($AI$2,W110),MIN($AL$32,MAX($AL$33,$AA$31+W143)),MIN($AL$32,MAX($AL$33,($AA$31+MAX(W143+$Z$2,MIN(W143+$AD$2,ROUND(AVERAGE(W143,W143,W143,W143,W143:X144),0))))))) -> 14.7 | X13: 14.7 | Y13: 14.7 | Z13: 14.7 | AA13: 14.7 | AB13: 14.7 | AC13: 14.7 | AD13: 14.58604651 | AE13: 13.93777778 | AF13: 13.15804196 | AG13: 12.29803922 | AH13: 11.76 | AI13: 11.33493976 | AJ13: 11.13372781 | AK13: 10.93953488 | AL13: 10.752 | AM13: 10.752 | AN13: 10.752 | AO13: 10.57078652 | AP13: 10.57078652 | AQ13: 10.51173184 | AR13: 10.51173184 | AS13: 10.51173184 | AT13: 10.51173184 | AU13: 10.51173184 | AV13: 10.51173184 | AW13: 10.51173184 | AX13: 10.51173184 | AY13: 10.51173184 | AZ13: 10.57078652 | CA13: 10 | CB13: 20 | CC13: 30 | CD13: 40 | CE13: 50 | CF13: 60 | CG13: 70 | CH13: 80 | CI13: 90 | CJ13: 100 | CK13: 120 | CL13: 140 | CM13: 160 | CN13: 180 | CO13: 200 | CP13: 210 | CQ13: 220 | CR13: 230 | CS13: 240 | CT13: 250 | CU13: 260 | CV13: 270 | CW13: 280 | CX13: 290 | CY13: 300 | CZ13: 310 | DA13: 320 | DB13: 330 | DC13: 340 | DD13: 350
V14: 3250 | W14: =14.7*128/IF(AND($AI$2,W111),MIN($AL$32,MAX($AL$33,$AA$31+W144)),MIN($AL$32,MAX($AL$33,($AA$31+MAX(W144+$Z$2,MIN(W144+$AD$2,ROUND(AVERAGE(W144,W144,W144,W144,W144:X145),0))))))) -> 14.7 | X14: 14.7 | Y14: 14.7 | Z14: 14.7 | AA14: 14.7 | AB14: 14.7 | AC14: 14.7 | AD14: 14.58604651 | AE14: 13.93777778 | AF14: 12.97655172 | AG14: 12.21818182 | AH14: 11.61481481 | AI14: 11.26706587 | AJ14: 11.00350877 | AK14: 10.8137931 | AL14: 10.69090909 | AM14: 10.752 | AN14: 10.63050847 | AO14: 10.51173184 | AP14: 10.51173184 | AQ14: 10.45333333 | AR14: 10.45333333 | AS14: 10.45333333 | AT14: 10.45333333 | AU14: 10.45333333 | AV14: 10.45333333 | AW14: 10.45333333 | AX14: 10.45333333 | AY14: 10.45333333 | AZ14: 10.45333333 | BZ14: 500 | CA14: =W6-W39 -> 0 | CB14: =X6-X39 -> 0 | CC14: =Y6-Y39 -> 0 | CD14: =Z6-Z39 -> 0 | CE14: =AA6-AA39 -> 0 | CF14: =AB6-AB39 -> 0 | CG14: =AC6-AC39 -> 0 | CH14: =AD6-AD39 -> -0.1139534884 | CI14: =AE6-AE39 -> -0.2160315789 | CJ14: =AF6-AF39 -> -0.09810935252 | CK14: =AG6-AG39 -> -0.09399577465 | CL14: =AH6-AH39 -> -0.09133333333 | CM14: =AI6-AI39 -> -0.0877 | CN14: =AJ6-AJ39 -> -0.0842 | CO14: =AK6-AK39 -> -0.08195263158 | CP14: =AL6-AL39 -> 3.921568627e-05 | CQ14: =AM6-AM39 -> -0.07981818182 | CR14: =AN6-AN39 -> -1.818181818e-05 | CS14: =AO6-AO39 -> -0.07884516129 | CT14: =AP6-AP39 -> -4.516129032e-05 | CU14: =AQ6-AQ39 -> -4.516129032e-05 | CV14: =AR6-AR39 -> -4.516129032e-05 | CW14: =AS6-AS39 -> -4.516129032e-05 | CX14: =AT6-AT39 -> -4.516129032e-05 | CY14: =AU6-AU39 -> -4.516129032e-05 | CZ14: =AV6-AV39 -> -4.516129032e-05 | DA14: =AW6-AW39 -> -4.516129032e-05 | DB14: =AX6-AX39 -> -4.516129032e-05 | DC14: =AY6-AY39 -> -4.516129032e-05 | DD14: =AZ6-AZ39 -> -4.516129032e-05
V15: 3500 | W15: =14.7*128/IF(AND($AI$2,W112),MIN($AL$32,MAX($AL$33,$AA$31+W145)),MIN($AL$32,MAX($AL$33,($AA$31+MAX(W145+$Z$2,MIN(W145+$AD$2,ROUND(AVERAGE(W145,W145,W145,W145,W145:X146),0))))))) -> 14.7 | X15: 14.7 | Y15: 14.7 | Z15: 14.7 | AA15: 14.7 | AB15: 14.7 | AC15: 14.7 | AD15: 14.47384615 | AE15: 13.83529412 | AF15: 12.88767123 | AG15: 12.06153846 | AH15: 11.54355828 | AI15: 11.2 | AJ15: 11.00350877 | AK15: 10.87630058 | AL15: 10.752 | AM15: 10.69090909 | AN15: 10.69090909 | AO15: 10.57078652 | AP15: 10.45333333 | AQ15: 10.45333333 | AR15: 10.45333333 | AS15: 10.45333333 | AT15: 10.45333333 | AU15: 10.45333333 | AV15: 10.45333333 | AW15: 10.45333333 | AX15: 10.45333333 | AY15: 10.45333333 | AZ15: 10.45333333 | BZ15: 1000 | CA15: 0 | CB15: 0 | CC15: 0 | CD15: 0 | CE15: 0 | CF15: 0 | CG15: 0 | CH15: -0.1139534884 | CI15: -0.2160315789 | CJ15: -0.09810935252 | CK15: -0.09399577465 | CL15: -0.1790287671 | CM15: -0.1718120805 | CN15: -0.1650526316 | CO15: -0.1607181818 | CP15: -0.07884516129 | CQ15: -0.07884516129 | CR15: -0.07786153846 | CS15: -0.07786153846 | CT15: -0.0767866242 | CU15: -0.0767866242 | CV15: -0.0767866242 | CW15: -0.0767866242 | CX15: -0.0767866242 | CY15: -0.0767866242 | CZ15: -0.0767866242 | DA15: -0.0767866242 | DB15: -0.0767866242 | DC15: -0.0767866242 | DD15: -0.0767866242
V16: 3750 | W16: =14.7*128/IF(AND($AI$2,W113),MIN($AL$32,MAX($AL$33,$AA$31+W146)),MIN($AL$32,MAX($AL$33,($AA$31+MAX(W146+$Z$2,MIN(W146+$AD$2,ROUND(AVERAGE(W146,W146,W146,W146,W146:X147),0))))))) -> 14.7 | X16: 14.7 | Y16: 14.7 | Z16: 14.7 | AA16: 14.7 | AB16: 14.7 | AC16: 14.58604651 | AD16: 14.47384615 | AE16: 13.73430657 | AF16: 12.71351351 | AG16: 11.98471338 | AH16: 11.47317073 | AI16: 11.2 | AJ16: 10.93953488 | AK16: 10.8137931 | AL16: 10.69090909 | AM16: 10.69090909 | AN16: 10.57078652 | AO16: 10.51173184 | AP16: 10.45333333 | AQ16: 10.39558011 | AR16: 10.39558011 | AS16: 10.39558011 | AT16: 10.39558011 | AU16: 10.39558011 | AV16: 10.39558011 | AW16: 10.39558011 | AX16: 10.39558011 | AY16: 10.39558011 | AZ16: 10.39558011 | BZ16: 1500 | CA16: 0 | CB16: 0 | CC16: 0 | CD16: 0 | CE16: 0 | CF16: 0 | CG16: 0 | CH16: -0.1139534884 | CI16: -0.2160315789 | CJ16: -0.1976093525 | CK16: -0.1840333333 | CL16: -0.1718120805 | CM16: -0.1650526316 | CN16: -0.1566615385 | CO16: -0.1526392405 | CP16: -0.07493773585 | CQ16: -0.1489 | CR16: -0.074 | CS16: -0.1470434783 | CT16: -0.07304347826 | CU16: -0.07304347826 | CV16: -0.07304347826 | CW16: -0.07304347826 | CX16: -0.07304347826 | CY16: -0.07304347826 | CZ16: -0.07304347826 | DA16: -0.07304347826 | DB16: -0.07304347826 | DC16: -0.07304347826 | DD16: -0.07304347826
V17: 4000 | W17: =14.7*128/IF(AND($AI$2,W114),MIN($AL$32,MAX($AL$33,$AA$31+W147)),MIN($AL$32,MAX($AL$33,($AA$31+MAX(W147+$Z$2,MIN(W147+$AD$2,ROUND(AVERAGE(W147,W147,W147,W147,W147:X148),0))))))) -> 14.7 | X17: 14.7 | Y17: 14.7 | Z17: 14.7 | AA17: 14.7 | AB17: 14.58604651 | AC17: 14.47384615 | AD17: 14.25454545 | AE17: 13.53669065 | AF17: 12.544 | AG17: 11.90886076 | AH17: 11.40363636 | AI17: 11.2 | AJ17: 10.87630058 | AK17: 10.752 | AL17: 10.69090909 | AM17: 10.69090909 | AN17: 10.51173184 | AO17: 10.45333333 | AP17: 10.45333333 | AQ17: 10.39558011 | AR17: 10.33846154 | AS17: 10.28196721 | AT17: 10.28196721 | AU17: 10.28196721 | AV17: 10.28196721 | AW17: 10.28196721 | AX17: 10.28196721 | AY17: 10.28196721 | AZ17: 10.33846154 | BZ17: 2000 | CA17: 0 | CB17: 0 | CC17: 0 | CD17: 0 | CE17: 0 | CF17: 0 | CG17: 0 | CH17: -0.1139534884 | CI17: -0.2160315789 | CJ17: -0.1976093525 | CK17: -0.1790287671 | CL17: -0.1650526316 | CM17: -0.1546866242 | CN17: -0.074 | CO17: -0.07218518519 | CP17: -0.07042926829 | CQ17: -0.07042926829 | CR17: -0.06956363636 | CS17: -0.06956363636 | CT17: -0.06866024096 | CU17: -0.06866024096 | CV17: -0.06866024096 | CW17: -0.06866024096 | CX17: -0.06866024096 | CY17: -0.06866024096 | CZ17: -0.06866024096 | DA17: -0.06866024096 | DB17: -0.06866024096 | DC17: -0.06866024096 | DD17: -0.06866024096
V18: 4250 | W18: =14.7*128/IF(AND($AI$2,W115),MIN($AL$32,MAX($AL$33,$AA$31+W148)),MIN($AL$32,MAX($AL$33,($AA$31+MAX(W148+$Z$2,MIN(W148+$AD$2,ROUND(AVERAGE(W148,W148,W148,W148,W148:X149),0))))))) -> 14.7 | X18: 14.7 | Y18: 14.7 | Z18: 14.7 | AA18: 14.58604651 | AB18: 14.47384615 | AC18: 14.04179104 | AD18: 13.83529412 | AE18: 13.25070423 | AF18: 12.37894737 | AG18: 11.76 | AH18: 11.33493976 | AI18: 11.2 | AJ18: 10.87630058 | AK18: 10.752 | AL18: 10.69090909 | AM18: 10.69090909 | AN18: 10.51173184 | AO18: 10.45333333 | AP18: 10.39558011 | AQ18: 10.39558011 | AR18: 10.28196721 | AS18: 10.22608696 | AT18: 10.22608696 | AU18: 10.22608696 | AV18: 10.22608696 | AW18: 10.22608696 | AX18: 10.22608696 | AY18: 10.22608696 | AZ18: 10.22608696 | BZ18: 2250 | CA18: 0 | CB18: 0 | CC18: 0 | CD18: 0 | CE18: 0 | CF18: 0 | CG18: 0 | CH18: -0.1139534884 | CI18: -0.2127089552 | CJ18: -0.1948 | CK18: -0.1741864865 | CL18: -0.1607181818 | CM18: -0.1507377358 | CN18: -0.1434417178 | CO18: -0.06956363636 | CP18: -0.06783413174 | CQ18: -0.0671 | CR18: -0.0671 | CS18: -0.06627218935 | CT18: -0.06627218935 | CU18: -0.06627218935 | CV18: -0.06627218935 | CW18: -0.06627218935 | CX18: -0.06627218935 | CY18: -0.06627218935 | CZ18: -0.06627218935 | DA18: -0.06627218935 | DB18: -0.06627218935 | DC18: -0.06627218935 | DD18: -0.06627218935
V19: 4500 | W19: =14.7*128/IF(AND($AI$2,W116),MIN($AL$32,MAX($AL$33,$AA$31+W149)),MIN($AL$32,MAX($AL$33,($AA$31+MAX(W149+$Z$2,MIN(W149+$AD$2,ROUND(AVERAGE(W149,W149,W149,W149,W149:X150),0))))))) -> 14.7 | X19: 14.7 | Y19: 14.7 | Z19: 14.58604651 | AA19: 14.58604651 | AB19: 14.47384615 | AC19: 14.04179104 | AD19: 13.63478261 | AE19: 13.06666667 | AF19: 12.21818182 | AG19: 11.68695652 | AH19: 11.33493976 | AI19: 11.2 | AJ19: 10.87630058 | AK19: 10.752 | AL19: 10.69090909 | AM19: 10.69090909 | AN19: 10.45333333 | AO19: 10.39558011 | AP19: 10.45333333 | AQ19: 10.33846154 | AR19: 10.22608696 | AS19: 10.17081081 | AT19: 10.17081081 | AU19: 10.17081081 | AV19: 10.17081081 | AW19: 10.17081081 | AX19: 10.17081081 | AY19: 10.17081081 | AZ19: 10.17081081 | BZ19: 2500 | CA19: 0 | CB19: 0 | CC19: 0 | CD19: 0 | CE19: 0 | CF19: 0 | CG19: 0 | CH19: -0.1139534884 | CI19: -0.2127089552 | CJ19: -0.2901191489 | CK19: -0.1718120805 | CL19: -0.1566615385 | CM19: -0.1470434783 | CN19: -0.06956363636 | CO19: -0.0671 | CP19: -0.06546470588 | CQ19: -0.06469122807 | CR19: -0.06396511628 | CS19: -0.06396511628 | CT19: -0.06319942197 | CU19: -0.06319942197 | CV19: -0.06319942197 | CW19: -0.06319942197 | CX19: -0.06319942197 | CY19: -0.06319942197 | CZ19: -0.06319942197 | DA19: -0.06319942197 | DB19: -0.06319942197 | DC19: -0.06319942197 | DD19: -0.06319942197
V20: 4750 | W20: =14.7*128/IF(AND($AI$2,W117),MIN($AL$32,MAX($AL$33,$AA$31+W150)),MIN($AL$32,MAX($AL$33,($AA$31+MAX(W150+$Z$2,MIN(W150+$AD$2,ROUND(AVERAGE(W150,W150,W150,W150,W150:X151),0))))))) -> 14.7 | X20: 14.7 | Y20: 14.7 | Z20: 14.58604651 | AA20: 14.47384615 | AB20: 14.25454545 | AC20: 13.83529412 | AD20: 13.34468085 | AE20: 12.8 | AF20: 12.06153846 | AG20: 11.68695652 | AH20: 11.33493976 | AI20: 11.2 | AJ20: 10.87630058 | AK20: 10.752 | AL20: 10.69090909 | AM20: 10.69090909 | AN20: 10.45333333 | AO20: 10.39558011 | AP20: 10.45333333 | AQ20: 10.33846154 | AR20: 10.22608696 | AS20: 10.17081081 | AT20: 10.17081081 | AU20: 10.17081081 | AV20: 10.17081081 | AW20: 10.17081081 | AX20: 10.17081081 | AY20: 10.17081081 | AZ20: 10.17081081 | BZ20: 2750 | CA20: 0 | CB20: 0 | CC20: 0 | CD20: 0 | CE20: 0 | CF20: 0 | CG20: 0 | CH20: -0.1139534884 | CI20: -0.2096222222 | CJ20: -0.2859957746 | CK20: -0.1672728477 | CL20: -0.1526392405 | CM20: -0.1434417178 | CN20: -0.0671 | CO20: -0.06546470588 | CP20: -0.06319942197 | CQ20: -0.06319942197 | CR20: -0.06250689655 | CS20: -0.0618 | CT20: -0.06109090909 | CU20: -0.06109090909 | CV20: -0.06109090909 | CW20: -0.06109090909 | CX20: -0.06109090909 | CY20: -0.06109090909 | CZ20: -0.06109090909 | DA20: -0.06109090909 | DB20: -0.06109090909 | DC20: -0.06109090909 | DD20: -0.06109090909
V21: 5000 | W21: =14.7*128/IF(AND($AI$2,W118),MIN($AL$32,MAX($AL$33,$AA$31+W151)),MIN($AL$32,MAX($AL$33,($AA$31+MAX(W151+$Z$2,MIN(W151+$AD$2,ROUND(AVERAGE(W151,W151,W151,W151,W151:X152),0))))))) -> 14.7 | X21: =14.7*128/IF(AND($AI$2,X118),MIN($AL$32,MAX($AL$33,$AA$31+X151)),MIN($AL$32,MAX($AL$33,($AA$31+MAX(X151+$Z$2,MIN(X151+$AD$2,ROUND(AVERAGE(X151,X151,X151,X151,X151:Y152),0))))))) -> 14.7 | Y21: 14.7 | Z21: 14.58604651 | AA21: 14.36335878 | AB21: 14.04179104 | AC21: 13.63478261 | AD21: 13.06666667 | AE21: 12.544 | AF21: 11.90886076 | AG21: 11.61481481 | AH21: 11.33493976 | AI21: 11.2 | AJ21: 10.87630058 | AK21: 10.752 | AL21: 10.69090909 | AM21: 10.69090909 | AN21: 10.51173184 | AO21: 10.45333333 | AP21: 10.45333333 | AQ21: 10.39558011 | AR21: 10.28196721 | AS21: 10.22608696 | AT21: 10.22608696 | AU21: 10.22608696 | AV21: 10.22608696 | AW21: 10.22608696 | AX21: 10.22608696 | AY21: 10.22608696 | AZ21: 10.17081081 | BZ21: 3000 | CA21: 0 | CB21: 0 | CC21: 0 | CD21: 0 | CE21: 0 | CF21: 0 | CG21: 0 | CH21: -0.1139534884 | CI21: -0.2096222222 | CJ21: -0.281958042 | CK21: -0.2459607843 | CL21: -0.1489 | CM21: -0.138260241 | CN21: -0.06627218935 | CO21: -0.06396511628 | CP21: -0.0618 | CQ21: 0 | CR21: -0.0618 | CS21: -0.05971348315 | CT21: -1.348314607e-05 | CU21: -0.05906815642 | CV21: -0.05906815642 | CW21: -0.05906815642 | CX21: -0.05906815642 | CY21: -0.05906815642 | CZ21: -0.05906815642 | DA21: -0.05906815642 | DB21: -0.05906815642 | DC21: -0.05906815642 | DD21: -1.348314607e-05
V22: 5250 | W22: =14.7*128/IF(AND($AI$2,W119),MIN($AL$32,MAX($AL$33,$AA$31+W152)),MIN($AL$32,MAX($AL$33,($AA$31+MAX(W152+$Z$2,MIN(W152+$AD$2,ROUND(AVERAGE(W152,W152,W152,W152,W152:X153),0))))))) -> 14.7 | X22: 14.7 | Y22: 14.58604651 | Z22: 14.47384615 | AA22: 14.25454545 | AB22: 13.83529412 | AC22: 13.34468085 | AD22: 12.71351351 | AE22: 12.37894737 | AF22: 11.90886076 | AG22: 11.54355828 | AH22: 11.33493976 | AI22: 11.2 | AJ22: 10.93953488 | AK22: 10.8137931 | AL22: 10.69090909 | AM22: 10.69090909 | AN22: 10.51173184 | AO22: 10.51173184 | AP22: 10.57078652 | AQ22: 10.45333333 | AR22: 10.33846154 | AS22: 10.33846154 | AT22: 10.33846154 | AU22: 10.33846154 | AV22: 10.33846154 | AW22: 10.33846154 | AX22: 10.33846154 | AY22: 10.33846154 | AZ22: 10.33846154 | BZ22: 3250 | CA22: 0 | CB22: 0 | CC22: 0 | CD22: 0 | CE22: 0 | CF22: 0 | CG22: 0 | CH22: -0.1139534884 | CI22: -0.2096222222 | CJ22: -0.2741482759 | CK22: -0.1607181818 | CL22: -0.1451851852 | CM22: -0.06783413174 | CN22: -0.06469122807 | CO22: -0.06250689655 | CP22: 9.09090909e-06 | CQ22: 0 | CR22: -0.06039152542 | CS22: 3.184357542e-05 | CT22: 3.184357542e-05 | CU22: 3.333333333e-05 | CV22: 3.333333333e-05 | CW22: 3.333333333e-05 | CX22: 3.333333333e-05 | CY22: 3.333333333e-05 | CZ22: 3.333333333e-05 | DA22: 3.333333333e-05 | DB22: 3.333333333e-05 | DC22: 3.333333333e-05 | DD22: 3.333333333e-05
V23: 5500 | W23: =14.7*128/IF(AND($AI$2,W120),MIN($AL$32,MAX($AL$33,$AA$31+W153)),MIN($AL$32,MAX($AL$33,($AA$31+MAX(W153+$Z$2,MIN(W153+$AD$2,ROUND(AVERAGE(W153,W153,W153,W153,W153:X154),0))))))) -> 14.58604651 | X23: 14.58604651 | Y23: 14.47384615 | Z23: 14.36335878 | AA23: 14.04179104 | AB23: 13.63478261 | AC23: 13.06666667 | AD23: 12.544 | AE23: 12.21818182 | AF23: 11.83396226 | AG23: 11.54355828 | AH23: 11.33493976 | AI23: 11.2 | AJ23: 10.93953488 | AK23: 10.87630058 | AL23: 10.752 | AM23: 10.69090909 | AN23: 10.63050847 | AO23: 10.69090909 | AP23: 10.57078652 | AQ23: 10.45333333 | AR23: 10.45333333 | AS23: 10.39558011 | AT23: 10.33846154 | AU23: 10.33846154 | AV23: 10.33846154 | AW23: 10.33846154 | AX23: 10.33846154 | AY23: 10.33846154 | AZ23: 10.33846154 | BZ23: 3500 | CA23: 0 | CB23: 0 | CC23: 0 | CD23: 0 | CE23: 0 | CF23: 0 | CG23: 0 | CH23: -0.2261538462 | CI23: -0.3121058824 | CJ23: -0.2703287671 | CK23: -0.2364615385 | CL23: -0.1434417178 | CM23: -0.0671 | CN23: -0.06469122807 | CO23: -0.06319942197 | CP23: 0 | CQ23: 9.09090909e-06 | CR23: -0.06109090909 | CS23: -1.348314607e-05 | CT23: -0.05836666667 | CU23: 3.333333333e-05 | CV23: 3.333333333e-05 | CW23: 3.333333333e-05 | CX23: 3.333333333e-05 | CY23: 3.333333333e-05 | CZ23: 3.333333333e-05 | DA23: 3.333333333e-05 | DB23: 3.333333333e-05 | DC23: 3.333333333e-05 | DD23: 3.333333333e-05
V24: 5750 | W24: =14.7*128/IF(AND($AI$2,W121),MIN($AL$32,MAX($AL$33,$AA$31+W154)),MIN($AL$32,MAX($AL$33,($AA$31+MAX(W154+$Z$2,MIN(W154+$AD$2,ROUND(AVERAGE(W154,W154,W154,W154,W154:X155),0))))))) -> 14.36335878 | X24: 14.25454545 | Y24: 14.25454545 | Z24: 14.04179104 | AA24: 13.73430657 | AB24: 13.25070423 | AC24: 12.71351351 | AD24: 12.29803922 | AE24: 12.13935484 | AF24: 11.76 | AG24: 11.54355828 | AH24: 11.33493976 | AI24: 11.2 | AJ24: 11.00350877 | AK24: 10.87630058 | AL24: 10.752 | AM24: 10.69090909 | AN24: 10.63050847 | AO24: 10.69090909 | AP24: 10.57078652 | AQ24: 10.51173184 | AR24: 10.39558011 | AS24: 10.39558011 | AT24: 10.39558011 | AU24: 10.39558011 | AV24: 10.28196721 | AW24: 10.28196721 | AX24: 10.28196721 | AY24: 10.28196721 | AZ24: 10.28196721 | BZ24: 3750 | CA24: 0 | CB24: 0 | CC24: 0 | CD24: 0 | CE24: 0 | CF24: 0 | CG24: 4.651162791e-05 | CH24: -0.1121538462 | CI24: -0.3074934307 | CJ24: -0.2630864865 | CK24: -0.1546866242 | CL24: -0.07042926829 | CM24: -0.1349 | CN24: -0.06396511628 | CO24: -0.06250689655 | CP24: 9.09090909e-06 | CQ24: 9.09090909e-06 | CR24: -0.05971348315 | CS24: -0.05906815642 | CT24: 3.333333333e-05 | CU24: -1.988950276e-05 | CV24: -1.988950276e-05 | CW24: -1.988950276e-05 | CX24: -1.988950276e-05 | CY24: -1.988950276e-05 | CZ24: -1.988950276e-05 | DA24: -1.988950276e-05 | DB24: -1.988950276e-05 | DC24: -1.988950276e-05 | DD24: -1.988950276e-05
V25: 6000 | W25: =14.7*128/IF(AND($AI$2,W122),MIN($AL$32,MAX($AL$33,$AA$31+W155)),MIN($AL$32,MAX($AL$33,($AA$31+MAX(W155+$Z$2,MIN(W155+$AD$2,ROUND(AVERAGE(W155,W155,W155,W155,W155:X156),0))))))) -> 13.93777778 | X25: 13.93777778 | Y25: 13.93777778 | Z25: 13.73430657 | AA25: 13.34468085 | AB25: 12.88767123 | AC25: 12.46092715 | AD25: 12.13935484 | AE25: 12.06153846 | AF25: 11.76 | AG25: 11.54355828 | AH25: 11.40363636 | AI25: 11.2 | AJ25: 11.06823529 | AK25: 10.93953488 | AL25: 10.8137931 | AM25: 10.69090909 | AN25: 10.57078652 | AO25: 10.63050847 | AP25: 10.63050847 | AQ25: 10.57078652 | AR25: 10.45333333 | AS25: 10.45333333 | AT25: 10.45333333 | AU25: 10.45333333 | AV25: 10.33846154 | AW25: 10.33846154 | AX25: 10.33846154 | AY25: 10.33846154 | AZ25: 10.33846154 | BZ25: 4000 | CA25: 0 | CB25: 0 | CC25: 0 | CD25: 0 | CE25: 0 | CF25: -0.1139534884 | CG25: -0.1121538462 | CH25: -0.3314545455 | CI25: -0.4011093525 | CJ25: -0.256 | CK25: -0.1526392405 | CL25: -0.06956363636 | CM25: -0.0671 | CN25: -0.06319942197 | CO25: -0.0618 | CP25: 9.09090909e-06 | CQ25: -0.06109090909 | CR25: -0.05906815642 | CS25: -0.05836666667 | CT25: 3.333333333e-05 | CU25: -0.0577198895 | CV25: -3.846153846e-05 | CW25: -0.05653278689 | CX25: -0.05653278689 | CY25: -0.05653278689 | CZ25: -0.05653278689 | DA25: -0.05653278689 | DB25: -0.05653278689 | DC25: -0.05653278689 | DD25: -3.846153846e-05
V26: 6250 | W26: =14.7*128/IF(AND($AI$2,W123),MIN($AL$32,MAX($AL$33,$AA$31+W156)),MIN($AL$32,MAX($AL$33,($AA$31+MAX(W156+$Z$2,MIN(W156+$AD$2,ROUND(AVERAGE(W156,W156,W156,W156,W156:X157),0))))))) -> 13.83529412 | X26: 13.83529412 | Y26: 13.73430657 | Z26: 13.53669065 | AA26: 13.15804196 | AB26: 12.62818792 | AC26: 12.29803922 | AD26: 12.06153846 | AE26: 11.90886076 | AF26: 11.76 | AG26: 11.54355828 | AH26: 11.40363636 | AI26: 11.26706587 | AJ26: 11.13372781 | AK26: 11.00350877 | AL26: 10.93953488 | AM26: 10.8137931 | AN26: 10.63050847 | AO26: 10.752 | AP26: 10.69090909 | AQ26: 10.69090909 | AR26: 10.51173184 | AS26: 10.51173184 | AT26: 10.51173184 | AU26: 10.51173184 | AV26: 10.39558011 | AW26: 10.39558011 | AX26: 10.39558011 | AY26: 10.39558011 | AZ26: 10.39558011 | BZ26: 4250 | CA26: 0 | CB26: 0 | CC26: 0 | CD26: 0 | CE26: 4.651162791e-05 | CF26: -0.1121538462 | CG26: -0.1056089552 | CH26: -0.2065058824 | CI26: -0.3840957746 | CJ26: -0.2492526316 | CK26: -0.1489 | CL26: -0.06866024096 | CM26: -0.0671 | CN26: -0.06319942197 | CO26: 0 | CP26: 9.09090909e-06 | CQ26: -0.06109090909 | CR26: 3.184357542e-05 | CS26: 3.333333333e-05 | CT26: -1.988950276e-05 | CU26: -0.0577198895 | CV26: -0.05653278689 | CW26: -1.304347826e-05 | CX26: -1.304347826e-05 | CY26: -1.304347826e-05 | CZ26: -1.304347826e-05 | DA26: -1.304347826e-05 | DB26: -1.304347826e-05 | DC26: -1.304347826e-05 | DD26: -1.304347826e-05
V27: 6500 | W27: =14.7*128/IF(AND($AI$2,W124),MIN($AL$32,MAX($AL$33,$AA$31+W157)),MIN($AL$32,MAX($AL$33,($AA$31+MAX(W157+$Z$2,MIN(W157+$AD$2,ROUND(AVERAGE(W157,W157,W157,W157,W157:X158),0))))))) -> 13.83529412 | X27: 13.83529412 | Y27: 13.73430657 | Z27: 13.53669065 | AA27: 13.06666667 | AB27: 12.62818792 | AC27: 12.21818182 | AD27: 12.06153846 | AE27: 11.90886076 | AF27: 11.76 | AG27: 11.54355828 | AH27: 11.40363636 | AI27: 11.26706587 | AJ27: 11.2 | AK27: 11.06823529 | AL27: 10.87630058 | AM27: 10.8137931 | AN27: 10.69090909 | AO27: 10.752 | AP27: 10.752 | AQ27: 10.752 | AR27: 10.63050847 | AS27: 10.63050847 | AT27: 10.63050847 | AU27: 10.63050847 | AV27: 10.51173184 | AW27: 10.51173184 | AX27: 10.51173184 | AY27: 10.51173184 | AZ27: 10.51173184 | BZ27: 4500 | CA27: 0 | CB27: 0 | CC27: 0 | CD27: -0.1139534884 | CE27: 4.651162791e-05 | CF27: -0.1121538462 | CG27: -0.1056089552 | CH27: -0.2005173913 | CI27: -0.2780333333 | CJ27: -0.1607181818 | CK27: -0.1470434783 | CL27: 3.975903615e-05 | CM27: -0.0671 | CN27: -0.06319942197 | CO27: -0.0618 | CP27: 0.06040909091 | CQ27: -0.06109090909 | CR27: -0.05836666667 | CS27: -1.988950276e-05 | CT27: 3.333333333e-05 | CU27: -0.05713846154 | CV27: -0.05591304348 | CW27: 1.081081081e-05 | CX27: 1.081081081e-05 | CY27: 1.081081081e-05 | CZ27: 1.081081081e-05 | DA27: 1.081081081e-05 | DB27: 1.081081081e-05 | DC27: 1.081081081e-05 | DD27: 1.081081081e-05
V28: 6750 | W28: =14.7*128/IF(AND($AI$2,W125),MIN($AL$32,MAX($AL$33,$AA$31+W158)),MIN($AL$32,MAX($AL$33,($AA$31+MAX(W158+$Z$2,MIN(W158+$AD$2,ROUND(AVERAGE(W158,W158,W158,W158,W158:X159),0))))))) -> 13.83529412 | X28: 13.83529412 | Y28: 13.73430657 | Z28: 13.53669065 | AA28: 13.06666667 | AB28: 12.62818792 | AC28: 12.21818182 | AD28: 12.06153846 | AE28: 11.90886076 | AF28: 11.76 | AG28: 11.54355828 | AH28: 11.40363636 | AI28: 11.26706587 | AJ28: 11.2 | AK28: 11.06823529 | AL28: 10.93953488 | AM28: 10.87630058 | AN28: 10.8137931 | AO28: 10.752 | AP28: 10.752 | AQ28: 10.8137931 | AR28: 10.752 | AS28: 10.752 | AT28: 10.752 | AU28: 10.752 | AV28: 10.63050847 | AW28: 10.63050847 | AX28: 10.63050847 | AY28: 10.63050847 | AZ28: 10.63050847 | BZ28: 4750 | CA28: 0 | CB28: 0 | CC28: 0 | CD28: 4.651162791e-05 | CE28: 4.615384615e-05 | CF28: -0.2192545455 | CG28: -0.2065058824 | CH28: -0.1920191489 | CI28: -0.2667 | CJ28: -0.1566615385 | CK28: -0.1470434783 | CL28: 3.975903615e-05 | CM28: -0.0671 | CN28: -0.06319942197 | CO28: -0.0618 | CP28: 9.09090909e-06 | CQ28: -0.06109090909 | CR28: -0.05836666667 | CS28: -1.988950276e-05 | CT28: 3.333333333e-05 | CU28: -0.05713846154 | CV28: -0.05591304348 | CW28: 1.081081081e-05 | CX28: 1.081081081e-05 | CY28: 1.081081081e-05 | CZ28: 1.081081081e-05 | DA28: 1.081081081e-05 | DB28: 1.081081081e-05 | DC28: 1.081081081e-05 | DD28: 1.081081081e-05
V29: 7000 | W29: =14.7*128/IF(AND($AI$2,W126),MIN($AL$32,MAX($AL$33,$AA$31+W159)),MIN($AL$32,MAX($AL$33,($AA$31+MAX(W159+$Z$2,MIN(W159+$AD$2,ROUND(AVERAGE(W159,W159,W159,W159,W159:X160),0))))))) -> 13.83529412 | X29: 13.83529412 | Y29: 13.73430657 | Z29: 13.53669065 | AA29: 13.06666667 | AB29: 12.62818792 | AC29: 12.21818182 | AD29: 12.06153846 | AE29: 11.90886076 | AF29: 11.76 | AG29: 11.54355828 | AH29: 11.40363636 | AI29: 11.26706587 | AJ29: 11.2 | AK29: 11.06823529 | AL29: 10.93953488 | AM29: 10.87630058 | AN29: 10.8137931 | AO29: 10.752 | AP29: 10.752 | AQ29: 10.8137931 | AR29: 10.752 | AS29: 10.752 | AT29: 10.752 | AU29: 10.752 | AV29: 10.752 | AW29: 10.752 | AX29: 10.752 | AY29: 10.752 | AZ29: 10.752 | BZ29: 5000 | CA29: 0 | CB29: 0 | CC29: 0 | CD29: 4.651162791e-05 | CE29: -0.1104412214 | CF29: -0.2127089552 | CG29: -0.2005173913 | CH29: -0.1840333333 | CI29: -0.1695 | CJ29: -0.1526392405 | CK29: -0.07218518519 | CL29: 3.975903615e-05 | CM29: -0.0671 | CN29: -0.06319942197 | CO29: 0 | CP29: 9.09090909e-06 | CQ29: -0.06109090909 | CR29: 3.184357542e-05 | CS29: 0.05773333333 | CT29: 3.333333333e-05 | CU29: -1.988950276e-05 | CV29: -3.278688525e-05 | CW29: 0.05528695652 | CX29: 0.05528695652 | CY29: 0.05528695652 | CZ29: 0.05528695652 | DA29: 0.05528695652 | DB29: 0.05528695652 | DC29: 0.05528695652 | DD29: 1.081081081e-05
V30: 7500 | W30: =14.7*128/IF(AND($AI$2,W127),MIN($AL$32,MAX($AL$33,$AA$31+W160)),MIN($AL$32,MAX($AL$33,($AA$31+MAX(W160+$Z$2,MIN(W160+$AD$2,ROUND(AVERAGE(W160,W160,W160,W160,W160:X161),0))))))) -> 13.83529412 | X30: 13.83529412 | Y30: 13.83529412 | Z30: 13.53669065 | AA30: 13.15804196 | AB30: 12.62818792 | AC30: 12.21818182 | AD30: 12.06153846 | AE30: 11.98471338 | AF30: 11.76 | AG30: 11.54355828 | AH30: 11.40363636 | AI30: 11.33493976 | AJ30: 11.2 | AK30: 11.13372781 | AL30: 11.00350877 | AM30: 10.87630058 | AN30: 10.8137931 | AO30: 10.752 | AP30: 10.752 | AQ30: 10.87630058 | AR30: 10.752 | AS30: 10.752 | AT30: 10.752 | AU30: 10.752 | AV30: 10.752 | AW30: 10.752 | AX30: 10.752 | AY30: 10.752 | AZ30: 10.752 | BZ30: 5250 | CA30: =W22-W55 -> 0 | CB30: 0 | CC30: 4.651162791e-05 | CD30: -0.1121538462 | CE30: -0.1088545455 | CF30: -0.2065058824 | CG30: -0.2901191489 | CH30: -0.1741864865 | CI30: -0.1650526316 | CJ30: -0.07583924051 | CK30: -0.07124171779 | CL30: 3.975903615e-05 | CM30: -0.0671 | CN30: 3.488372093e-05 | CO30: -6.896551724e-06 | CP30: 9.09090909e-06 | CQ30: -0.06109090909 | CR30: 3.184357542e-05 | CS30: 0.05843184358 | CT30: -1.348314607e-05 | CU30: 3.333333333e-05 | CV30: -3.846153846e-05 | CW30: -3.846153846e-05 | CX30: -3.846153846e-05 | CY30: -3.846153846e-05 | CZ30: -3.846153846e-05 | DA30: -3.846153846e-05 | DB30: -3.846153846e-05 | DC30: -3.846153846e-05 | DD30: -3.846153846e-05
V31: Shift Map (offset) | Y31: Richer | AA31: =AB31-128 -> 0 | AB31: 128 | BZ31: 5500 | CA31: -0.1139534884 | CB31: -0.1139534884 | CC31: -0.1121538462 | CD31: -0.2226412214 | CE31: -0.2127089552 | CF31: -0.2005173913 | CG31: -0.2780333333 | CH31: -0.1695 | CI31: -0.1607181818 | CJ31: -0.1507377358 | CK31: -0.07124171779 | CL31: 3.975903615e-05 | CM31: -0.0671 | CN31: 3.488372093e-05 | CO31: 5.780346815e-07 | CP31: 0 | CQ31: -0.06109090909 | CR31: 0.05970847458 | CS31: -0.06109090909 | CT31: -0.05971348315 | CU31: 3.333333333e-05 | CV31: 3.333333333e-05 | CW31: -0.0577198895 | CX31: -3.846153846e-05 | CY31: -3.846153846e-05 | CZ31: -3.846153846e-05 | DA31: -3.846153846e-05 | DB31: -3.846153846e-05 | DC31: -3.846153846e-05 | DD31: -3.846153846e-05
Y32: Leaner | AH32: Global | AI32: Global | AJ32: Richest | AL32: 231 | AM32: =14.7*128/AL32 -> 8.145454545 | BZ32: 6000 | CA32: -0.1104412214 | CB32: -0.1088545455 | CC32: -0.1088545455 | CD32: -0.1056089552 | CE32: -0.2034934307 | CF32: -0.1892957746 | CG32: -0.1741864865 | CH32: -0.08086078431 | CI32: -0.07884516129 | CJ32: -0.074 | CK32: -0.07124171779 | CL32: -0.06866024096 | CM32: -0.0671 | CN32: -0.06469122807 | CO32: -0.06319942197 | CP32: 0 | CQ32: 9.09090909e-06 | CR32: 8.474576271e-06 | CS32: -0.06109090909 | CT32: -0.05971348315 | CU32: 3.184357542e-05 | CV32: -1.988950276e-05 | CW32: -1.988950276e-05 | CX32: -1.988950276e-05 | CY32: -1.988950276e-05 | CZ32: -3.278688525e-05 | DA32: -3.278688525e-05 | DB32: -3.278688525e-05 | DC32: -3.278688525e-05 | DD32: -3.278688525e-05
V33: Shift Map (proportional) | Y33: Richer | AA33: =AB33-128 -> 0 | AB33: 128 | AH33: Limits | AJ33: Leanest | AL33: 128 | AM33: =14.7*128/AL33 -> 14.7 | BZ33: 6500 | CA33: -0.1040222222 | CB33: -0.1040222222 | CC33: -0.1040222222 | CD33: -0.1009934307 | CE33: -0.1920191489 | CF33: -0.1790287671 | CG33: -0.1672728477 | CH33: -0.07884516129 | CI33: -0.07786153846 | CJ33: -0.074 | CK33: -0.07124171779 | CL33: 3.636363636e-05 | CM33: -0.0671 | CN33: 3.529411765e-05 | CO33: 3.488372093e-05 | CP33: 0.06179310345 | CQ33: -0.06109090909 | CR33: -1.348314607e-05 | CS33: 8.474576271e-06 | CT33: 0.05970847458 | CU33: -1.348314607e-05 | CV33: 3.333333333e-05 | CW33: 3.333333333e-05 | CX33: 3.333333333e-05 | CY33: 3.333333333e-05 | CZ33: -3.846153846e-05 | DA33: -3.846153846e-05 | DB33: -3.846153846e-05 | DC33: -3.846153846e-05 | DD33: -3.846153846e-05
Y34: Leaner | BZ34: 7000 | CA34: -5.882352943e-06 | CB34: -5.882352943e-06 | CC34: -0.1009934307 | CD34: -0.09810935252 | CE34: -0.09265804196 | CF34: -0.1718120805 | CG34: -0.08086078431 | CH34: -0.07786153846 | CI34: -0.07583924051 | CJ34: -0.074 | CK34: -0.07124171779 | CL34: 3.636363636e-05 | CM34: -0.06783413174 | CN34: 2.781065089e-05 | CO34: -0.06469122807 | CP34: 3.488372093e-05 | CQ34: -0.06250689655 | CR34: 0.05970847458 | CS34: 0 | CT34: 9.09090909e-06 | CU34: -0.06109090909 | CV34: 3.184357542e-05 | CW34: 3.184357542e-05 | CX34: 3.184357542e-05 | CY34: 3.184357542e-05 | CZ34: -1.988950276e-05 | DA34: -1.988950276e-05 | DB34: -1.988950276e-05 | DC34: -1.988950276e-05 | DD34: -1.988950276e-05
BZ35: 7500 | CA35: -5.882352943e-06 | CB35: -5.882352943e-06 | CC35: -0.1009934307 | CD35: -0.09810935252 | CE35: -0.1840333333 | CF35: -0.08531208054 | CG35: -0.07981818182 | CH35: 3.846153846e-05 | CI35: -0.07583924051 | CJ35: -0.074 | CK35: -0.07124171779 | CL35: 3.636363636e-05 | CM35: -0.06783413174 | CN35: 0 | CO35: -0.06546470588 | CP35: 5.780346815e-07 | CQ35: -0.06250689655 | CR35: 9.09090909e-06 | CS35: 0 | CT35: 0 | CU35: 0 | CV35: 8.474576271e-06 | CW35: 8.474576271e-06 | CX35: 8.474576271e-06 | CY35: 8.474576271e-06 | CZ35: 3.184357542e-05 | DA35: 3.184357542e-05 | DB35: 3.184357542e-05 | DC35: 3.184357542e-05 | DD35: 3.184357542e-05
U36: 2 | W36: Modded Fuel Map | BZ36: 8000 | CA36: -5.882352943e-06 | CB36: -5.882352943e-06 | CC36: -0.1009934307 | CD36: -0.09810935252 | CE36: -0.1840333333 | CF36: -0.08531208054 | CG36: -0.07981818182 | CH36: 3.846153846e-05 | CI36: -0.07583924051 | CJ36: -0.074 | CK36: -0.07124171779 | CL36: 3.636363636e-05 | CM36: -0.06783413174 | CN36: 0 | CO36: -0.06546470588 | CP36: -0.06396511628 | CQ36: 5.780346815e-07 | CR36: -6.896551724e-06 | CS36: 0 | CT36: 0 | CU36: -0.06250689655 | CV36: 0 | CW36: 0 | CX36: 0 | CY36: 0 | CZ36: 8.474576271e-06 | DA36: 8.474576271e-06 | DB36: 8.474576271e-06 | DC36: 8.474576271e-06 | DD36: 8.474576271e-06
W37: Load Value | BZ37: 8500 | CA37: -5.882352943e-06 | CB37: -5.882352943e-06 | CC37: -0.1009934307 | CD37: -0.09810935252 | CE37: -0.1840333333 | CF37: -0.08531208054 | CG37: -0.07981818182 | CH37: 3.846153846e-05 | CI37: -0.07583924051 | CJ37: -0.074 | CK37: -0.07124171779 | CL37: 3.636363636e-05 | CM37: -0.06783413174 | CN37: 0 | CO37: -0.06546470588 | CP37: -0.06396511628 | CQ37: 5.780346815e-07 | CR37: -6.896551724e-06 | CS37: 0 | CT37: 0 | CU37: -0.06250689655 | CV37: 0 | CW37: 0 | CX37: 0 | CY37: 0 | CZ37: 0 | DA37: 0 | DB37: 0 | DC37: 0 | DD37: 0
W38: 10 | X38: 20 | Y38: 30 | Z38: 40 | AA38: 50 | AB38: 60 | AC38: 70 | AD38: 80 | AE38: 90 | AF38: 100 | AG38: 120 | AH38: 140 | AI38: 150 | AJ38: 160 | AK38: 170 | AL38: 180 | AM38: 190 | AN38: 200 | AO38: 210 | AP38: 220 | AQ38: 230 | AR38: 240 | AS38: 250 | AT38: 260 | AU38: 270 | AV38: 280 | AW38: 290 | AX38: 300 | AY38: 310 | AZ38: 320 | BZ38: 11000 | CA38: -5.882352943e-06 | CB38: -5.882352943e-06 | CC38: -5.882352943e-06 | CD38: -0.09810935252 | CE38: -0.09265804196 | CF38: -0.08531208054 | CG38: -0.07981818182 | CH38: 3.846153846e-05 | CI38: 1.337579618e-05 | CJ38: -0.074 | CK38: -0.07124171779 | CL38: 3.636363636e-05 | CM38: 3.975903615e-05 | CN38: 0 | CO38: 2.781065089e-05 | CP38: 8.771929823e-06 | CQ38: 5.780346815e-07 | CR38: -6.896551724e-06 | CS38: 0 | CT38: 0 | CU38: 5.780346815e-07 | CV38: 0 | CW38: 0 | CX38: 0 | CY38: 0 | CZ38: 0 | DA38: 0 | DB38: 0 | DC38: 0 | DD38: 0
U39: RPM | V39: 500 | W39: 14.7 | X39: 14.7 | Y39: 14.7 | Z39: 14.7 | AA39: 14.7 | AB39: 14.7 | AC39: 14.7 | AD39: 14.7 | AE39: 14.3634 | AF39: 13.6348 | AG39: 13.3447 | AH39: 13.158 | AI39: 12.8877 | AJ39: 12.6282 | AK39: 12.4609 | AL39: 12.298 | AM39: 12.298 | AN39: 12.2182 | AO39: 12.2182 | AP39: 12.1394 | AQ39: 12.1394 | AR39: 12.1394 | AS39: 12.1394 | AT39: 12.1394 | AU39: 12.1394 | AV39: 12.1394 | AW39: 12.1394 | AX39: 12.1394 | AY39: 12.1394 | AZ39: 12.1394
V40: 1000 | W40: 14.7 | X40: 14.7 | Y40: 14.7 | Z40: 14.7 | AA40: 14.7 | AB40: 14.7 | AC40: 14.7 | AD40: 14.7 | AE40: 14.3634 | AF40: 13.6348 | AG40: 13.3447 | AH40: 13.0667 | AI40: 12.8 | AJ40: 12.544 | AK40: 12.3789 | AL40: 12.2182 | AM40: 12.2182 | AN40: 12.1394 | AO40: 12.1394 | AP40: 12.0615 | AQ40: 12.0615 | AR40: 12.0615 | AS40: 12.0615 | AT40: 12.0615 | AU40: 12.0615 | AV40: 12.0615 | AW40: 12.0615 | AX40: 12.0615 | AY40: 12.0615 | AZ40: 12.0615
V41: 1250 | W41: 14.7 | X41: 14.7 | Y41: 14.7 | Z41: 14.7 | AA41: 14.7 | AB41: 14.7 | AC41: 14.7 | AD41: 14.7 | AE41: 14.3634 | AF41: 13.7343 | AG41: 13.2507 | AH41: 12.8 | AI41: 12.544 | AJ41: 12.2182 | AK41: 12.0615 | AL41: 11.9089 | AM41: 11.9089 | AN41: 11.834 | AO41: 11.834 | AP41: 11.76 | AQ41: 11.76 | AR41: 11.76 | AS41: 11.76 | AT41: 11.76 | AU41: 11.76 | AV41: 11.76 | AW41: 11.76 | AX41: 11.76 | AY41: 11.76 | AZ41: 11.76
V42: 1500 | W42: 14.7 | X42: 14.7 | Y42: 14.7 | Z42: 14.7 | AA42: 14.7 | AB42: 14.7 | AC42: 14.7 | AD42: 14.7 | AE42: 14.3634 | AF42: 13.7343 | AG42: 13.0667 | AH42: 12.544 | AI42: 12.1394 | AJ42: 11.834 | AK42: 11.687 | AL42: 11.5436 | AM42: 11.5436 | AN42: 11.4732 | AO42: 11.4732 | AP42: 11.4036 | AQ42: 11.4036 | AR42: 11.4036 | AS42: 11.4036 | AT42: 11.4036 | AU42: 11.4036 | AV42: 11.4036 | AW42: 11.4036 | AX42: 11.4036 | AY42: 11.4036 | AZ42: 11.4036
V43: 2000 | W43: 14.7 | X43: 14.7 | Y43: 14.7 | Z43: 14.7 | AA43: 14.7 | AB43: 14.7 | AC43: 14.7 | AD43: 14.7 | AE43: 14.2545 | AF43: 13.6348 | AG43: 12.8877 | AH43: 12.3789 | AI43: 11.9847 | AJ43: 11.687 | AK43: 11.4732 | AL43: 11.3349 | AM43: 11.2671 | AN43: 11.2671 | AO43: 11.2 | AP43: 11.2 | AQ43: 11.2 | AR43: 11.2 | AS43: 11.2 | AT43: 11.2 | AU43: 11.2 | AV43: 11.2 | AW43: 11.2 | AX43: 11.2 | AY43: 11.2 | AZ43: 11.2
V44: 2500 | W44: 14.7 | X44: 14.7 | Y44: 14.7 | Z44: 14.7 | AA44: 14.7 | AB44: 14.7 | AC44: 14.7 | AD44: 14.7 | AE44: 14.2545 | AF44: 13.6348 | AG44: 12.8 | AH44: 12.2182 | AI44: 11.834 | AJ44: 11.4732 | AK44: 11.2671 | AL44: 11.1337 | AM44: 11.0682 | AN44: 11.0035 | AO44: 11.0035 | AP44: 10.9395 | AQ44: 10.9395 | AR44: 10.9395 | AS44: 10.9395 | AT44: 10.9395 | AU44: 10.9395 | AV44: 10.9395 | AW44: 10.9395 | AX44: 10.9395 | AY44: 10.9395 | AZ44: 10.9395
V45: 2750 | W45: 14.7 | X45: 14.7 | Y45: 14.7 | Z45: 14.7 | AA45: 14.7 | AB45: 14.7 | AC45: 14.7 | AD45: 14.7 | AE45: 14.1474 | AF45: 13.5367 | AG45: 12.6282 | AH45: 12.0615 | AI45: 11.687 | AJ45: 11.2671 | AK45: 11.1337 | AL45: 10.9395 | AM45: 10.9395 | AN45: 10.8763 | AO45: 10.8138 | AP45: 10.752 | AQ45: 10.752 | AR45: 10.752 | AS45: 10.752 | AT45: 10.752 | AU45: 10.752 | AV45: 10.752 | AW45: 10.752 | AX45: 10.752 | AY45: 10.752 | AZ45: 10.752
V46: 3000 | W46: 14.7 | X46: 14.7 | Y46: 14.7 | Z46: 14.7 | AA46: 14.7 | AB46: 14.7 | AC46: 14.7 | AD46: 14.7 | AE46: 14.1474 | AF46: 13.44 | AG46: 12.544 | AH46: 11.9089 | AI46: 11.4732 | AJ46: 11.2 | AK46: 11.0035 | AL46: 10.8138 | AM46: 10.752 | AN46: 10.8138 | AO46: 10.6305 | AP46: 10.5708 | AQ46: 10.5708 | AR46: 10.5708 | AS46: 10.5708 | AT46: 10.5708 | AU46: 10.5708 | AV46: 10.5708 | AW46: 10.5708 | AX46: 10.5708 | AY46: 10.5708 | AZ46: 10.5708
V47: 3250 | W47: 14.7 | X47: 14.7 | Y47: 14.7 | Z47: 14.7 | AA47: 14.7 | AB47: 14.7 | AC47: 14.7 | AD47: 14.7 | AE47: 14.1474 | AF47: 13.2507 | AG47: 12.3789 | AH47: 11.76 | AI47: 11.3349 | AJ47: 11.0682 | AK47: 10.8763 | AL47: 10.6909 | AM47: 10.752 | AN47: 10.6909 | AO47: 10.5117 | AP47: 10.5117 | AQ47: 10.4533 | AR47: 10.4533 | AS47: 10.4533 | AT47: 10.4533 | AU47: 10.4533 | AV47: 10.4533 | AW47: 10.4533 | AX47: 10.4533 | AY47: 10.4533 | AZ47: 10.4533
V48: 3500 | W48: 14.7 | X48: 14.7 | Y48: 14.7 | Z48: 14.7 | AA48: 14.7 | AB48: 14.7 | AC48: 14.7 | AD48: 14.7 | AE48: 14.1474 | AF48: 13.158 | AG48: 12.298 | AH48: 11.687 | AI48: 11.2671 | AJ48: 11.0682 | AK48: 10.9395 | AL48: 10.752 | AM48: 10.6909 | AN48: 10.752 | AO48: 10.5708 | AP48: 10.5117 | AQ48: 10.4533 | AR48: 10.4533 | AS48: 10.4533 | AT48: 10.4533 | AU48: 10.4533 | AV48: 10.4533 | AW48: 10.4533 | AX48: 10.4533 | AY48: 10.4533 | AZ48: 10.4533
V49: 3750 | W49: 14.7 | X49: 14.7 | Y49: 14.7 | Z49: 14.7 | AA49: 14.7 | AB49: 14.7 | AC49: 14.586 | AD49: 14.586 | AE49: 14.0418 | AF49: 12.9766 | AG49: 12.1394 | AH49: 11.5436 | AI49: 11.3349 | AJ49: 11.0035 | AK49: 10.8763 | AL49: 10.6909 | AM49: 10.6909 | AN49: 10.6305 | AO49: 10.5708 | AP49: 10.4533 | AQ49: 10.3956 | AR49: 10.3956 | AS49: 10.3956 | AT49: 10.3956 | AU49: 10.3956 | AV49: 10.3956 | AW49: 10.3956 | AX49: 10.3956 | AY49: 10.3956 | AZ49: 10.3956 | BZ49: MAP Difference Comparison
V50: 4000 | W50: 14.7 | X50: 14.7 | Y50: 14.7 | Z50: 14.7 | AA50: 14.7 | AB50: 14.7 | AC50: 14.586 | AD50: 14.586 | AE50: 13.9378 | AF50: 12.8 | AG50: 12.0615 | AH50: 11.4732 | AI50: 11.2671 | AJ50: 10.9395 | AK50: 10.8138 | AL50: 10.6909 | AM50: 10.752 | AN50: 10.5708 | AO50: 10.5117 | AP50: 10.4533 | AQ50: 10.4533 | AR50: 10.3385 | AS50: 10.3385 | AT50: 10.3385 | AU50: 10.3385 | AV50: 10.3385 | AW50: 10.3385 | AX50: 10.3385 | AY50: 10.3385 | AZ50: 10.3385 | CA50: 10 | CB50: 20 | CC50: 30 | CD50: 40 | CE50: 50 | CF50: 60 | CG50: 70 | CH50: 80 | CI50: 90 | CJ50: 100 | CK50: 120 | CL50: 140 | CM50: 160 | CN50: 180 | CO50: 200 | CP50: 210 | CQ50: 220 | CR50: 230 | CS50: 240 | CT50: 250 | CU50: 260 | CV50: 270 | CW50: 280 | CX50: 290 | CY50: 300 | CZ50: 310 | DA50: 320 | DB50: 330 | DC50: 340 | DD50: 350
V51: 4250 | W51: 14.7 | X51: 14.7 | Y51: 14.7 | Z51: 14.7 | AA51: 14.586 | AB51: 14.586 | AC51: 14.1474 | AD51: 14.0418 | AE51: 13.6348 | AF51: 12.6282 | AG51: 11.9089 | AH51: 11.4036 | AI51: 11.2671 | AJ51: 10.9395 | AK51: 10.752 | AL51: 10.6909 | AM51: 10.752 | AN51: 10.5117 | AO51: 10.4533 | AP51: 10.3956 | AQ51: 10.4533 | AR51: 10.3385 | AS51: 10.2261 | AT51: 10.2261 | AU51: 10.2261 | AV51: 10.2261 | AW51: 10.2261 | AX51: 10.2261 | AY51: 10.2261 | AZ51: 10.2261 | BZ51: 500 | CA51: =W39-W69 -> 0 | CB51: =X39-X69 -> 0 | CC51: =Y39-Y69 -> 0 | CD51: =Z39-Z69 -> 0 | CE51: =AA39-AA69 -> 0 | CF51: =AB39-AB69 -> 0 | CG51: =AC39-AC69 -> 0 | CH51: =AD39-AD69 -> 0 | CI51: =AE39-AE69 -> 1.2967 | CJ51: =AF39-AF69 -> 1.0066 | CK51: =AG39-AG69 -> 1.0467 | CL51: =AH39-AH69 -> 1.1733 | CM51: =AI39-AI69 -> 1.2007 | CN51: =AJ39-AJ69 -> 1.2246 | CO51: =AK39-AK69 -> 1.3272 | CP51: =AL39-AL69 -> 1.2945 | CQ51: =AM39-AM69 -> 1.4217 | CR51: =AN39-AN69 -> 1.4662 | CS51: =AO39-AO69 -> 1.5877 | CT51: =AP39-AP69 -> 1.6277 | CU51: =AQ39-AQ69 -> 1.7438 | CV51: =AR39-AR69 -> 1.8574 | CW51: =AS39-AS69 -> 1.9686 | CX51: =AT39-AT69 -> 2.0774 | CY51: =AU39-AU69 -> 2.18384 | CZ51: =AV39-AV69 -> 2.18384 | DA51: =AW39-AW69 -> 2.18384 | DB51: =AX39-AX69 -> 2.18384 | DC51: =AY39-AY69 -> 2.18384 | DD51: =AZ39-AZ69 -> 2.18384
V52: 4500 | W52: 14.7 | X52: 14.7 | Y52: 14.7 | Z52: 14.7 | AA52: 14.586 | AB52: 14.586 | AC52: 14.1474 | AD52: 13.8353 | AE52: 13.3447 | AF52: 12.3789 | AG52: 11.834 | AH52: 11.3349 | AI52: 11.2671 | AJ52: 10.9395 | AK52: 10.8138 | AL52: 10.6305 | AM52: 10.752 | AN52: 10.5117 | AO52: 10.3956 | AP52: 10.4533 | AQ52: 10.3956 | AR52: 10.282 | AS52: 10.1708 | AT52: 10.1708 | AU52: 10.1708 | AV52: 10.1708 | AW52: 10.1708 | AX52: 10.1708 | AY52: 10.1708 | AZ52: 10.1708 | BB52: Modded High Octane Fuel Map | BZ52: 1000 | CA52: 0 | CB52: 0 | CC52: 0 | CD52: 0 | CE52: 0 | CF52: 0 | CG52: 0 | CH52: 0 | CI52: 1.2967 | CJ52: 1.0066 | CK52: 1.0467 | CL52: 1.082 | CM52: 1.113 | CN52: 1.1404 | CO52: 1.2452 | CP52: 1.2147 | CQ52: 1.3419 | CR52: 1.3874 | CS52: 1.5089 | CT52: 1.5498 | CU52: 1.6659 | CV52: 1.723 | CW52: 1.8907 | CX52: 1.9454 | CY52: 2.10594 | CZ52: 2.10594 | DA52: 2.10594 | DB52: 2.10594 | DC52: 2.10594 | DD52: 2.10594
V53: 4750 | W53: 14.7 | X53: 14.7 | Y53: 14.7 | Z53: 14.586 | AA53: 14.4738 | AB53: 14.4738 | AC53: 14.0418 | AD53: 13.5367 | AE53: 13.0667 | AF53: 12.2182 | AG53: 11.834 | AH53: 11.3349 | AI53: 11.2671 | AJ53: 10.9395 | AK53: 10.8138 | AL53: 10.6909 | AM53: 10.752 | AN53: 10.5117 | AO53: 10.3956 | AP53: 10.4533 | AQ53: 10.3956 | AR53: 10.282 | AS53: 10.1708 | AT53: 10.1708 | AU53: 10.1708 | AV53: 10.1708 | AW53: 10.1708 | AX53: 10.1708 | AY53: 10.1708 | AZ53: 10.1708 | BZ53: 1500 | CA53: 0 | CB53: 0 | CC53: 0 | CD53: 0 | CE53: 0 | CF53: 0 | CG53: 0 | CH53: 0 | CI53: -0.3366 | CJ53: 1.0208 | CK53: 0.8718 | CL53: 0.7385 | CM53: 0.784 | CN53: 0.745 | CO53: 0.8615 | CP53: 0.8407 | CQ53: 0.9694 | CR53: 1.0202 | CS53: 1.1431 | CT53: 1.1892 | CU53: 1.3067 | CV53: 1.3644 | CW53: 1.3067 | CX53: 1.3644 | CY53: 1.3067 | CZ53: 1.3067 | DA53: 1.3067 | DB53: 1.3067 | DC53: 1.3067 | DD53: 1.3067
V54: 5000 | W54: 14.7 | X54: 14.7 | Y54: 14.7 | Z54: 14.586 | AA54: 14.4738 | AB54: 14.2545 | AC54: 13.8353 | AD54: 13.2507 | AE54: 12.7135 | AF54: 12.0615 | AG54: 11.687 | AH54: 11.3349 | AI54: 11.2671 | AJ54: 10.9395 | AK54: 10.752 | AL54: 10.6909 | AM54: 10.752 | AN54: 10.5117 | AO54: 10.3956 | AP54: 10.4533 | AQ54: 10.3956 | AR54: 10.282 | AS54: 10.1708 | AT54: 10.1708 | AU54: 10.1708 | AV54: 10.1708 | AW54: 10.1708 | AX54: 10.1708 | AY54: 10.1708 | AZ54: 10.1708 | BZ54: 2000 | CA54: 0 | CB54: 0 | CC54: 0 | CD54: 0 | CE54: 0 | CF54: 0 | CG54: 0 | CH54: 0 | CI54: -0.3366 | CJ54: -0.9657 | CK54: 0.3532 | CL54: 0.1651 | CM54: 0.0779 | CN54: 0.074 | CO54: 0.2138 | CP54: 0.2087 | CQ54: 0.3436 | CR54: 0.405 | CS54: 0.5337 | CT54: 0.5898 | CU54: 0.7127 | CV54: 0.8328 | CW54: 0.9503 | CX54: 1.0651 | CY54: 1.1775 | CZ54: 1.1775 | DA54: 1.1775 | DB54: 1.1775 | DC54: 1.1775 | DD54: 1.1775
V55: 5250 | W55: 14.7 | X55: 14.7 | Y55: 14.586 | Z55: 14.586 | AA55: 14.3634 | AB55: 14.0418 | AC55: 13.6348 | AD55: 12.8877 | AE55: 12.544 | AF55: 11.9847 | AG55: 11.6148 | AH55: 11.3349 | AI55: 11.2671 | AJ55: 10.9395 | AK55: 10.8138 | AL55: 10.6909 | AM55: 10.752 | AN55: 10.5117 | AO55: 10.4533 | AP55: 10.5708 | AQ55: 10.4533 | AR55: 10.3385 | AS55: 10.3385 | AT55: 10.3385 | AU55: 10.3385 | AV55: 10.3385 | AW55: 10.3385 | AX55: 10.3385 | AY55: 10.3385 | AZ55: 10.3385 | BZ55: 2250 | CA55: 0 | CB55: 0 | CC55: 0 | CD55: 0 | CE55: 0 | CF55: 0 | CG55: 0 | CH55: 0 | CI55: -0.4455 | CJ55: -1.0652 | CK55: -0.7471 | CL55: -0.5977 | CM55: -0.4762 | CN55: -0.2977 | CO55: -0.2138 | CP55: -0.2087 | CQ55: -0.1365 | CR55: 0 | CS55: 0.0663 | CT55: 0.1965 | CU55: 0.3237 | CV55: 0.448 | CW55: 0.5695 | CX55: 0.6883 | CY55: 0.8044 | CZ55: 0.8044 | DA55: 0.8044 | DB55: 0.8044 | DC55: 0.8044 | DD55: 0.8044
V56: 5500 | W56: 14.7 | X56: 14.7 | Y56: 14.586 | Z56: 14.586 | AA56: 14.2545 | AB56: 13.8353 | AC56: 13.3447 | AD56: 12.7135 | AE56: 12.3789 | AF56: 11.9847 | AG56: 11.6148 | AH56: 11.3349 | AI56: 11.2671 | AJ56: 10.9395 | AK56: 10.8763 | AL56: 10.752 | AM56: 10.752 | AN56: 10.5708 | AO56: 10.752 | AP56: 10.6305 | AQ56: 10.4533 | AR56: 10.4533 | AS56: 10.4533 | AT56: 10.3385 | AU56: 10.3385 | AV56: 10.3385 | AW56: 10.3385 | AX56: 10.3385 | AY56: 10.3385 | AZ56: 10.3385 | BZ56: 2500 | CA56: 0 | CB56: 0 | CC56: 0 | CD56: 0 | CE56: 0 | CF56: 0 | CG56: 0 | CH56: 0 | CI56: -0.4455 | CJ56: -1.0652 | CK56: -1.6738 | CL56: -1.3185 | CM56: -1.0537 | CN56: -0.745 | CO56: -0.6418 | CP56: -0.6263 | CQ56: -0.5466 | CR56: -0.4697 | CS56: -0.3314 | CT56: -0.2605 | CU56: -0.1287 | CV56: 0 | CW56: 0.1257 | CX56: 0.309 | CY56: 0.3687 | CZ56: 0.3687 | DA56: 0.3687 | DB56: 0.3687 | DC56: 0.3687 | DD56: 0.3687
V57: 5750 | W57: 14.4738 | X57: 14.3634 | Y57: 14.3634 | Z57: 14.1474 | AA57: 13.9378 | AB57: 13.44 | AC57: 12.8877 | AD57: 12.3789 | AE57: 12.2182 | AF57: 11.834 | AG57: 11.6148 | AH57: 11.4036 | AI57: 11.2671 | AJ57: 11.0682 | AK57: 10.9395 | AL57: 10.752 | AM57: 10.6909 | AN57: 10.6305 | AO57: 10.752 | AP57: 10.6305 | AQ57: 10.5117 | AR57: 10.3956 | AS57: 10.3956 | AT57: 10.3956 | AU57: 10.3956 | AV57: 10.282 | AW57: 10.282 | AX57: 10.282 | AY57: 10.282 | AZ57: 10.282 | BZ57: 2750 | CA57: 0 | CB57: 0 | CC57: 0 | CD57: 0 | CE57: 0 | CF57: 0 | CG57: 0 | CH57: 0 | CI57: -0.5526 | CJ57: -1.1633 | CK57: -1.7352 | CL57: -1.2832 | CM57: -0.611 | CN57: -0.2061 | CO57: 0.0655 | CP57: -0.064 | CQ57: 0.0632 | CR57: 0.1243 | CS57: 0.1833 | CT57: 0.2403 | CU57: 0.3564 | CV57: 0.47 | CW57: 0.5812 | CX57: 0.79644 | CY57: 1.00278 | CZ57: 1.00278 | DA57: 1.00278 | DB57: 1.00278 | DC57: 1.00278 | DD57: 1.00278
V58: 6000 | W58: 14.0418 | X58: 14.0418 | Y58: 14.0418 | Z58: 13.8353 | AA58: 13.5367 | AB58: 13.0667 | AC58: 12.6282 | AD58: 12.2182 | AE58: 12.1394 | AF58: 11.834 | AG58: 11.6148 | AH58: 11.4036 | AI58: 11.2671 | AJ58: 11.0682 | AK58: 10.9395 | AL58: 10.752 | AM58: 10.752 | AN58: 10.5708 | AO58: 10.6305 | AP58: 10.5708 | AQ58: 10.5708 | AR58: 10.4533 | AS58: 10.4533 | AT58: 10.4533 | AU58: 10.4533 | AV58: 10.3385 | AW58: 10.3385 | AX58: 10.3385 | AY58: 10.3385 | AZ58: 10.3385 | BZ58: 3000 | CA58: 0 | CB58: 0 | CC58: 0 | CD58: 0 | CE58: 0 | CF58: 0 | CG58: 0 | CH58: 0 | CI58: -0.5526 | CJ58: -1.26 | CK58: -1.7105 | CL58: -1.1578 | CM58: -0.2868 | CN58: 0.448 | CO58: 0.7215 | CP58: 0.643 | CQ58: 0.6359 | CR58: 0.8053 | CS58: 0.72734 | CT58: 0.7708 | CU58: 0.87183 | CV58: 0.9708 | CW58: 1.06777 | CX58: 1.25595 | CY58: 1.6108 | CZ58: 1.6108 | DA58: 1.6108 | DB58: 1.6108 | DC58: 1.6108 | DD58: 1.6108
V59: 6250 | W59: 13.8353 | X59: 13.8353 | Y59: 13.8353 | Z59: 13.6348 | AA59: 13.2507 | AB59: 12.8 | AC59: 12.3789 | AD59: 12.1394 | AE59: 11.9847 | AF59: 11.834 | AG59: 11.6148 | AH59: 11.4036 | AI59: 11.3349 | AJ59: 11.1337 | AK59: 11.0682 | AL59: 10.9395 | AM59: 10.8763 | AN59: 10.5708 | AO59: 10.752 | AP59: 10.6909 | AQ59: 10.752 | AR59: 10.5117 | AS59: 10.5117 | AT59: 10.5117 | AU59: 10.5117 | AV59: 10.3956 | AW59: 10.3956 | AX59: 10.3956 | AY59: 10.3956 | AZ59: 10.3956 | BZ59: 3250 | CA59: 0 | CB59: 0 | CC59: 0 | CD59: 0 | CE59: 0 | CF59: 0 | CG59: 0 | CH59: 0 | CI59: -0.5526 | CJ59: -1.1127 | CK59: -1.3554 | CL59: -0.7009 | CM59: -0.0687 | CN59: 0.4974 | CO59: 0.7055 | CP59: 0.6289 | CQ59: 0.84884 | CR59: 0.8909 | CS59: 0.81273 | CT59: 0.9117 | CU59: 0.95027 | CV59: 1.0453 | CW59: 1.13845 | CX59: 1.31932 | CY59: 1.4933 | CZ59: 1.4933 | DA59: 1.4933 | DB59: 1.4933 | DC59: 1.4933 | DD59: 1.4933
V60: 6500 | W60: 13.8353 | X60: 13.8353 | Y60: 13.8353 | Z60: 13.6348 | AA60: 13.2507 | AB60: 12.7135 | AC60: 12.298 | AD60: 12.0615 | AE60: 11.9847 | AF60: 11.834 | AG60: 11.6148 | AH60: 11.4036 | AI60: 11.3349 | AJ60: 11.2 | AK60: 11.1337 | AL60: 10.8763 | AM60: 10.8763 | AN60: 10.6909 | AO60: 10.752 | AP60: 10.752 | AQ60: 10.752 | AR60: 10.6305 | AS60: 10.6305 | AT60: 10.6305 | AU60: 10.6305 | AV60: 10.5117 | AW60: 10.5117 | AX60: 10.5117 | AY60: 10.5117 | AZ60: 10.5117 | BZ60: 3500 | CA60: 0 | CB60: 0 | CC60: 0 | CD60: 0 | CE60: 0 | CF60: 0 | CG60: 0 | CH60: 0 | CI60: -0.5526 | CJ60: -0.8838 | CK60: -0.9527 | CL60: -0.2219 | CM60: 0.1989 | CN60: 0.7297 | CO60: 0.8775 | CP60: 0.90069 | CQ60: 0.99193 | CR60: 1.152 | CS60: 1.06777 | CT60: 1.1037 | CU60: 1.13845 | CV60: 1.22977 | CW60: 1.31932 | CX60: 1.40715 | CY60: 1.4933 | CZ60: 1.4933 | DA60: 1.4933 | DB60: 1.4933 | DC60: 1.4933 | DD60: 1.4933
V61: 6750 | W61: 13.8353 | X61: 13.8353 | Y61: 13.8353 | Z61: 13.6348 | AA61: 13.2507 | AB61: 12.7135 | AC61: 12.298 | AD61: 12.0615 | AE61: 11.9847 | AF61: 11.834 | AG61: 11.6148 | AH61: 11.4036 | AI61: 11.3349 | AJ61: 11.2 | AK61: 11.1337 | AL61: 11.0035 | AM61: 10.8763 | AN61: 10.8138 | AO61: 10.752 | AP61: 10.752 | AQ61: 10.8763 | AR61: 10.752 | AS61: 10.752 | AT61: 10.752 | AU61: 10.752 | AV61: 10.6305 | AW61: 10.6305 | AX61: 10.6305 | AY61: 10.6305 | AZ61: 10.6305 | BZ61: 3750 | CA61: 0 | CB61: 0 | CC61: 0 | CD61: 0 | CE61: 0 | CF61: 0 | CG61: -0.114 | CH61: 0.2226 | CI61: -0.2127 | CJ61: -0.7577 | CK61: -0.6606 | CL61: -0.1434 | CM61: 0.3954 | CN61: 0.7215 | CO61: 1.02499 | CP61: 1.04167 | CQ61: 1.2829 | CR61: 1.31565 | CS61: 1.34727 | CT61: 1.31932 | CU61: 1.34945 | CV61: 1.4356 | CW61: 1.52013 | CX61: 1.60308 | CY61: 1.68449 | CZ61: 1.68449 | DA61: 1.68449 | DB61: 1.68449 | DC61: 1.68449 | DD61: 1.68449
V62: 7000 | W62: 13.8353 | X62: 13.8353 | Y62: 13.8353 | Z62: 13.6348 | AA62: 13.2507 | AB62: 12.7135 | AC62: 12.298 | AD62: 12.0615 | AE62: 11.9847 | AF62: 11.834 | AG62: 11.6148 | AH62: 11.4036 | AI62: 11.3349 | AJ62: 11.2 | AK62: 11.1337 | AL62: 11.0035 | AM62: 10.8763 | AN62: 10.8138 | AO62: 10.752 | AP62: 10.752 | AQ62: 10.8763 | AR62: 10.752 | AS62: 10.752 | AT62: 10.752 | AU62: 10.752 | AV62: 10.752 | AW62: 10.752 | AX62: 10.752 | AY62: 10.752 | AZ62: 10.752 | BZ62: 4000 | CA62: 0 | CB62: 0 | CC62: 0 | CD62: 0 | CE62: 0 | CF62: 0 | CG62: -0.114 | CH62: 0.5442 | CI62: 0.1025 | CJ62: -0.5447 | CK62: -0.3174 | CL62: 0 | CM62: 0.5151 | CN62: 0.7134 | CO62: 1.16457 | CP62: 1.2829 | CQ62: 1.61802 | CR62: 1.52465 | CS62: 1.5517 | CT62: 1.57783 | CU62: 1.66078 | CV62: 1.62739 | CW62: 1.70731 | CX62: 1.78577 | CY62: 1.86282 | CZ62: 1.86282 | DA62: 1.86282 | DB62: 1.86282 | DC62: 1.86282 | DD62: 1.86282
V63: 7500 | W63: 13.8353 | X63: 13.8353 | Y63: 13.8353 | Z63: 13.6348 | AA63: 13.2507 | AB63: 12.7135 | AC63: 12.298 | AD63: 12.0615 | AE63: 11.9847 | AF63: 11.834 | AG63: 11.6148 | AH63: 11.4036 | AI63: 11.3349 | AJ63: 11.2 | AK63: 11.1337 | AL63: 11.0035 | AM63: 10.8763 | AN63: 10.8138 | AO63: 10.752 | AP63: 10.752 | AQ63: 10.8763 | AR63: 10.752 | AS63: 10.752 | AT63: 10.752 | AU63: 10.752 | AV63: 10.752 | AW63: 10.752 | AX63: 10.752 | AY63: 10.752 | AZ63: 10.752 | BZ63: 4250 | CA63: 0 | CB63: 0 | CC63: 0 | CD63: 0 | CE63: -0.114 | CF63: -0.114 | CG63: -0.5526 | CH63: 0.3075 | CI63: 0.1948 | CJ63: -0.3484 | CK63: -0.3093 | CL63: 0.0687 | CM63: 0.6366 | CN63: 0.7687 | CO63: 1.10277 | CP63: 1.23562 | CQ63: 1.57346 | CR63: 1.42184 | CS63: 1.45043 | CT63: 1.4356 | CU63: 1.57783 | CV63: 1.58687 | CW63: 1.55513 | CX63: 1.63432 | CY63: 1.71207 | CZ63: 1.71207 | DA63: 1.71207 | DB63: 1.71207 | DC63: 1.71207 | DD63: 1.71207
BZ64: 4500 | CA64: 0 | CB64: 0 | CC64: 0 | CD64: 0 | CE64: -0.114 | CF64: -0.114 | CG64: -0.5526 | CH64: 0.3953 | CI64: 0.278 | CJ64: -0.2493 | CK64: -0.2275 | CL64: 0.1349 | CM64: 0.6963 | CN64: 0.8234 | CO64: 1.11483 | CP64: 1.12747 | CQ64: 1.48303 | CR64: 1.33316 | CS64: 1.30574 | CT64: 1.45043 | CU64: 1.47806 | CV64: 1.4482 | CW64: 1.41917 | CX64: 1.49983 | CY64: 1.57902 | CZ64: 1.57902 | DA64: 1.57902 | DB64: 1.57902 | DC64: 1.57902 | DD64: 1.57902
BZ65: 4750 | CA65: 0 | CB65: 0 | CC65: 0 | CD65: -0.114 | CE65: -0.2262 | CF65: -0.2262 | CG65: -0.1056 | CH65: 0.192 | CI65: 0.179 | CJ65: -0.2427 | CK65: -0.1507 | CL65: 0.1349 | CM65: 0.6963 | CN65: 0.8234 | CO65: 1.11483 | CP65: 1.18787 | CQ65: 1.48303 | CR65: 1.33316 | CS65: 1.30574 | CT65: 1.45043 | CU65: 1.47806 | CV65: 1.4482 | CW65: 1.41917 | CX65: 1.49983 | CY65: 1.57902 | CZ65: 1.57902 | DA65: 1.57902 | DB65: 1.57902 | DC65: 1.57902 | DD65: 1.57902
U66: 3 | W66: Stock / Original Fuel Octane Map | BZ66: 5000 | CA66: 0 | CB66: 0 | CC66: 0 | CD66: -0.114 | CE66: -0.2262 | CF66: -0.4455 | CG66: 0.2005 | CH66: 0 | CI66: 0.0853 | CJ66: -0.1567 | CK66: -0.2219 | CL66: 0.1349 | CM66: 0.6963 | CN66: 0.8234 | CO66: 1.05303 | CP66: 1.13963 | CQ66: 1.48303 | CR66: 1.33316 | CS66: 1.30574 | CT66: 1.45043 | CU66: 1.47806 | CV66: 1.4482 | CW66: 1.41917 | CX66: 1.49983 | CY66: 1.57902 | CZ66: 1.57902 | DA66: 1.57902 | DB66: 1.57902 | DC66: 1.57902 | DD66: 1.57902
W67: Load Value | BZ67: 5250 | CA67: =W55-W85 -> 0 | CB67: 0 | CC67: -0.114 | CD67: -0.114 | CE67: -0.3366 | CF67: -0.6582 | CG67: 0 | CH67: -0.179 | CI67: 0.0831 | CJ67: -0.0768 | CK67: -0.0722 | CL67: 0.2667 | CM67: 0.8138 | CN67: 0.8234 | CO67: 1.0138 | CP67: 1.04167 | CQ67: 1.24897 | CR67: 1.1037 | CS67: 1.13845 | CT67: 1.34727 | CU67: 1.31932 | CV67: 1.29235 | CW67: 1.3785 | CX67: 1.46303 | CY67: 1.54598 | CZ67: 1.54598 | DA67: 1.54598 | DB67: 1.54598 | DC67: 1.54598 | DD67: 1.54598
W68: 10 | X68: 20 | Y68: 30 | Z68: 40 | AA68: 50 | AB68: 60 | AC68: 70 | AD68: 80 | AE68: 90 | AF68: 100 | AG68: 120 | AH68: 140 | AI68: 150 | AJ68: 160 | AK68: 170 | AL68: 180 | AM68: 190 | AN68: 200 | AO68: 210 | AP68: 220 | AQ68: 230 | AR68: 240 | AS68: 250 | AT68: 260 | AU68: 270 | AV68: 280 | AW68: 290 | AX68: 300 | AY68: 310 | AZ68: 320 | BZ68: 5500 | CA68: 0 | CB68: 0 | CC68: -0.114 | CD68: -0.114 | CE68: -0.4455 | CF68: -0.8647 | CG68: -0.2901 | CH68: -0.1742 | CI68: 0.1607 | CJ68: 0.0758 | CK68: 0.2112 | CL68: 0.4586 | CM68: 0.8715 | CN68: 0.8234 | CO68: 0.97314 | CP68: 0.952 | CQ68: 1.05303 | CR68: 0.9708 | CS68: 1.24897 | CT68: 1.2225 | CU68: 1.13845 | CV68: 1.22977 | CW68: 1.31932 | CX68: 1.29235 | CY68: 1.3785 | CZ68: 1.3785 | DA68: 1.3785 | DB68: 1.3785 | DC68: 1.3785 | DD68: 1.3785
U69: RPM | V69: 500 | W69: 14.7 | X69: 14.7 | Y69: 14.7 | Z69: 14.7 | AA69: 14.7 | AB69: 14.7 | AC69: 14.7 | AD69: 14.7 | AE69: 13.0667 | AF69: 12.6282 | AG69: 12.298 | AH69: 11.9847 | AI69: 11.687 | AJ69: 11.4036 | AK69: 11.1337 | AL69: 11.0035 | AM69: 10.8763 | AN69: 10.752 | AO69: 10.6305 | AP69: 10.5117 | AQ69: 10.3956 | AR69: 10.282 | AS69: 10.1708 | AT69: 10.062 | AU69: 9.95556 | AV69: 9.95556 | AW69: 9.95556 | AX69: 9.95556 | AY69: 9.95556 | AZ69: 9.95556 | BZ69: 6000 | CA69: -0.2262 | CB69: -0.3366 | CC69: -0.3366 | CD69: -0.5526 | CE69: -0.7622 | CF69: -1.26 | CG69: 0.1742 | CH69: 0.1607 | CI69: 0.3093 | CJ69: 0.147 | CK69: 0.4148 | CL69: 0.7127 | CM69: 0.8715 | CN69: 0.8974 | CO69: 1.48422 | CP69: 1.43715 | CQ69: 1.46737 | CR69: 1.49652 | CS69: 1.70585 | CT69: 1.6705 | CU69: 1.63623 | CV69: 1.60308 | CW69: 1.68449 | CX69: 1.76441 | CY69: 1.84287 | CZ69: 1.72927 | DA69: 1.72927 | DB69: 1.72927 | DC69: 1.72927 | DD69: 1.72927
V70: 1000 | W70: 14.7 | X70: 14.7 | Y70: 14.7 | Z70: 14.7 | AA70: 14.7 | AB70: 14.7 | AC70: 14.7 | AD70: 14.7 | AE70: 13.0667 | AF70: 12.6282 | AG70: 12.298 | AH70: 11.9847 | AI70: 11.687 | AJ70: 11.4036 | AK70: 11.1337 | AL70: 11.0035 | AM70: 10.8763 | AN70: 10.752 | AO70: 10.6305 | AP70: 10.5117 | AQ70: 10.3956 | AR70: 10.3385 | AS70: 10.1708 | AT70: 10.1161 | AU70: 9.95556 | AV70: 9.95556 | AW70: 9.95556 | AX70: 9.95556 | AY70: 9.95556 | AZ70: 9.95556 | BZ70: 6500 | CA70: -0.6582 | CB70: -0.6582 | CC70: -0.6582 | CD70: -0.8647 | CE70: -1.1633 | CF70: -1.6333 | CG70: 0.7193 | CH70: 0.6034 | CI70: 0.6662 | CJ70: 0.634 | CK70: 0.8628 | CL70: 1.0651 | CM70: 1.151 | CN70: 1.16504 | CO70: 1.48422 | CP70: 1.43715 | CQ70: 1.61802 | CR70: 1.52465 | CS70: 1.6705 | CT70: 1.69533 | CU70: 1.77828 | CV70: 1.74219 | CW70: 1.82211 | CX70: 1.90057 | CY70: 1.97762 | CZ70: 1.86282 | DA70: 1.86282 | DB70: 1.86282 | DC70: 1.86282 | DD70: 1.86282
V71: 1250 | W71: 14.7 | X71: 14.7 | Y71: 14.7 | Z71: 14.7 | AA71: 14.7 | AB71: 14.7 | AC71: 14.7 | AD71: 14.7 | AE71: 14.7 | AF71: 12.7135 | AG71: 12.3789 | AH71: 12.0615 | AI71: 11.76 | AJ71: 11.4732 | AK71: 11.2 | AL71: 11.0682 | AM71: 10.9395 | AN71: 10.8138 | AO71: 10.6909 | AP71: 10.5708 | AQ71: 10.4533 | AR71: 10.3956 | AS71: 10.4533 | AT71: 10.3956 | AU71: 10.4533 | AV71: 10.4533 | AW71: 10.4533 | AX71: 10.4533 | AY71: 10.4533 | AZ71: 10.4533 | BZ71: 7000 | CA71: -0.8647 | CB71: -0.8647 | CC71: -0.8647 | CD71: -1.0652 | CE71: -1.4493 | CF71: -1.9 | CG71: 0.9057 | CH71: 0.9394 | CI71: 1.0452 | CJ71: 0.9577 | CK71: 1.1615 | CL71: 1.1775 | CM71: 1.5349 | CN71: 1.7257 | CO71: 1.93422 | CP71: 1.89335 | CQ71: 1.95876 | CR71: 1.69533 | CS71: 1.95948 | CT71: 1.97979 | CU71: 2.12081 | CV71: 1.95897 | CW71: 2.03602 | CX71: 2.1117 | CY71: 2.18604 | CZ71: 2.06994 | DA71: 2.06994 | DB71: 2.06994 | DC71: 2.06994 | DD71: 2.06994
V72: 1500 | W72: 14.7 | X72: 14.7 | Y72: 14.7 | Z72: 14.7 | AA72: 14.7 | AB72: 14.7 | AC72: 14.7 | AD72: 14.7 | AE72: 14.7 | AF72: 14.7 | AG72: 12.7135 | AH72: 12.3789 | AI72: 12.0615 | AJ72: 11.76 | AK72: 11.4732 | AL72: 11.3349 | AM72: 11.2 | AN72: 11.0682 | AO72: 10.9395 | AP72: 10.8138 | AQ72: 10.6909 | AR72: 10.5708 | AS72: 10.4533 | AT72: 10.3385 | AU72: 10.2261 | AV72: 10.2261 | AW72: 10.2261 | AX72: 10.2261 | AY72: 10.2261 | AZ72: 10.2261 | BZ72: 7500 | CA72: -0.8647 | CB72: -0.8647 | CC72: -0.8647 | CD72: -1.0652 | CE72: -1.4493 | CF72: -1.9865 | CG72: 0.8248 | CH72: 0.8615 | CI72: 1.0452 | CJ72: 0.9577 | CK72: 1.1615 | CL72: 1.1775 | CM72: 1.5349 | CN72: 1.792 | CO72: 1.99972 | CP72: 1.78644 | CQ72: 1.95876 | CR72: 1.81543 | CS72: 1.95948 | CT72: 2.00037 | CU72: 2.12081 | CV72: 2.03872 | CW72: 2.15482 | CX72: 2.19283 | CY72: 2.30484 | CZ72: 2.18604 | DA72: 2.18604 | DB72: 2.18604 | DC72: 2.18604 | DD72: 2.18604
V73: 2000 | W73: 14.7 | X73: 14.7 | Y73: 14.7 | Z73: 14.7 | AA73: 14.7 | AB73: 14.7 | AC73: 14.7 | AD73: 14.7 | AE73: 14.7 | AF73: 14.7 | AG73: 13.6348 | AH73: 12.9766 | AI73: 12.4609 | AJ73: 11.9847 | AK73: 11.687 | AL73: 11.5436 | AM73: 11.4036 | AN73: 11.2671 | AO73: 11.1337 | AP73: 11.0035 | AQ73: 10.8763 | AR73: 10.752 | AS73: 10.6305 | AT73: 10.5117 | AU73: 10.3956 | AV73: 10.3956 | AW73: 10.3956 | AX73: 10.3956 | AY73: 10.3956 | AZ73: 10.3956 | BZ73: 8000 | CA73: -0.8647 | CB73: -0.8647 | CC73: -0.8647 | CD73: -1.0652 | CE73: -1.4493 | CF73: -1.9865 | CG73: 0.8248 | CH73: 0.8615 | CI73: 1.0452 | CJ73: 0.9577 | CK73: 1.1615 | CL73: 1.1775 | CM73: 1.5349 | CN73: 1.792 | CO73: 1.99972 | CP73: 1.91364 | CQ73: 1.95876 | CR73: 1.93833 | CS73: 1.95948 | CT73: 2.00037 | CU73: 2.24511 | CV73: 2.16022 | CW73: 2.27632 | CX73: 2.31433 | CY73: 2.42634 | CZ73: 2.30484 | DA73: 2.30484 | DB73: 2.30484 | DC73: 2.30484 | DD73: 2.30484
V74: 2500 | W74: 14.7 | X74: 14.7 | Y74: 14.7 | Z74: 14.7 | AA74: 14.7 | AB74: 14.7 | AC74: 14.7 | AD74: 14.7 | AE74: 14.7 | AF74: 14.7 | AG74: 14.4738 | AH74: 13.5367 | AI74: 12.8877 | AJ74: 12.2182 | AK74: 11.9089 | AL74: 11.76 | AM74: 11.6148 | AN74: 11.4732 | AO74: 11.3349 | AP74: 11.2 | AQ74: 11.0682 | AR74: 10.9395 | AS74: 10.8138 | AT74: 10.6305 | AU74: 10.5708 | AV74: 10.5708 | AW74: 10.5708 | AX74: 10.5708 | AY74: 10.5708 | AZ74: 10.5708 | BZ74: 8500 | CA74: -0.8647 | CB74: -0.8647 | CC74: -0.8647 | CD74: -1.0652 | CE74: -1.4493 | CF74: -1.9865 | CG74: 0.8248 | CH74: 0.8615 | CI74: 1.0452 | CJ74: 0.9577 | CK74: 1.1615 | CL74: 1.1775 | CM74: 1.5349 | CN74: 1.792 | CO74: 1.99972 | CP74: 1.91364 | CQ74: 1.95876 | CR74: 1.93833 | CS74: 1.95948 | CT74: 2.00037 | CU74: 2.24511 | CV74: 2.16022 | CW74: 2.27632 | CX74: 2.31433 | CY74: 2.42634 | CZ74: 2.42634 | DA74: 2.42634 | DB74: 2.42634 | DC74: 2.42634 | DD74: 2.42634
V75: 2750 | W75: 14.7 | X75: 14.7 | Y75: 14.7 | Z75: 14.7 | AA75: 14.7 | AB75: 14.7 | AC75: 14.7 | AD75: 14.7 | AE75: 14.7 | AF75: 14.7 | AG75: 14.3634 | AH75: 13.3447 | AI75: 12.298 | AJ75: 11.4732 | AK75: 11.0682 | AL75: 11.0035 | AM75: 10.8763 | AN75: 10.752 | AO75: 10.6305 | AP75: 10.5117 | AQ75: 10.3956 | AR75: 10.282 | AS75: 10.1708 | AT75: 9.95556 | AU75: 9.74922 | AV75: 9.74922 | AW75: 9.74922 | AX75: 9.74922 | AY75: 9.74922 | AZ75: 9.74922 | BZ75: 11000 | CA75: -0.8647 | CB75: -0.8647 | CC75: -0.8647 | CD75: -1.0652 | CE75: -1.4493 | CF75: -1.9865 | CG75: 0.8944 | CH75: 0.9278 | CI75: 1.1084 | CJ75: 1.0202 | CK75: 1.2192 | CL75: 1.2328 | CM75: 1.58568 | CN75: 1.83881 | CO75: 2.04384 | CP75: 1.95735 | CQ75: 2.00083 | CR75: 1.98 | CS75: 2.00037 | CT75: 2.04089 | CU75: 2.28452 | CV75: 2.19927 | CW75: 2.31433 | CX75: 2.352 | CY75: 2.46301 | CZ75: 2.46301 | DA75: 2.46301 | DB75: 2.46301 | DC75: 2.46301 | DD75: 2.46301
V76: 3000 | W76: 14.7 | X76: 14.7 | Y76: 14.7 | Z76: 14.7 | AA76: 14.7 | AB76: 14.7 | AC76: 14.7 | AD76: 14.7 | AE76: 14.7 | AF76: 14.7 | AG76: 14.2545 | AH76: 13.0667 | AI76: 11.76 | AJ76: 10.752 | AK76: 10.282 | AL76: 10.1708 | AM76: 10.1161 | AN76: 10.0085 | AO76: 9.90316 | AP76: 9.8 | AQ76: 9.69897 | AR76: 9.6 | AS76: 9.50303 | AT76: 9.31485 | AU76: 8.96 | AV76: 8.96 | AW76: 8.96 | AX76: 8.96 | AY76: 8.96 | AZ76: 8.96
V77: 3250 | W77: 14.7 | X77: 14.7 | Y77: 14.7 | Z77: 14.7 | AA77: 14.7 | AB77: 14.7 | AC77: 14.7 | AD77: 14.7 | AE77: 14.7 | AF77: 14.3634 | AG77: 13.7343 | AH77: 12.4609 | AI77: 11.4036 | AJ77: 10.5708 | AK77: 10.1708 | AL77: 10.062 | AM77: 9.90316 | AN77: 9.8 | AO77: 9.69897 | AP77: 9.6 | AQ77: 9.50303 | AR77: 9.408 | AS77: 9.31485 | AT77: 9.13398 | AU77: 8.96 | AV77: 8.96 | AW77: 8.96 | AX77: 8.96 | AY77: 8.96 | AZ77: 8.96
V78: 3500 | W78: 14.7 | X78: 14.7 | Y78: 14.7 | Z78: 14.7 | AA78: 14.7 | AB78: 14.7 | AC78: 14.7 | AD78: 14.7 | AE78: 14.7 | AF78: 14.0418 | AG78: 13.2507 | AH78: 11.9089 | AI78: 11.0682 | AJ78: 10.3385 | AK78: 10.062 | AL78: 9.85131 | AM78: 9.69897 | AN78: 9.6 | AO78: 9.50303 | AP78: 9.408 | AQ78: 9.31485 | AR78: 9.22353 | AS78: 9.13398 | AT78: 9.04615 | AU78: 8.96 | AV78: 8.96 | AW78: 8.96 | AX78: 8.96 | AY78: 8.96 | AZ78: 8.96
V79: 3750 | W79: 14.7 | X79: 14.7 | Y79: 14.7 | Z79: 14.7 | AA79: 14.7 | AB79: 14.7 | AC79: 14.7 | AD79: 14.3634 | AE79: 14.2545 | AF79: 13.7343 | AG79: 12.8 | AH79: 11.687 | AI79: 10.9395 | AJ79: 10.282 | AK79: 9.85131 | AL79: 9.64923 | AM79: 9.408 | AN79: 9.31485 | AO79: 9.22353 | AP79: 9.13398 | AQ79: 9.04615 | AR79: 8.96 | AS79: 8.87547 | AT79: 8.79252 | AU79: 8.71111 | AV79: 8.71111 | AW79: 8.71111 | AX79: 8.71111 | AY79: 8.71111 | AZ79: 8.71111
V80: 4000 | W80: 14.7 | X80: 14.7 | Y80: 14.7 | Z80: 14.7 | AA80: 14.7 | AB80: 14.7 | AC80: 14.7 | AD80: 14.0418 | AE80: 13.8353 | AF80: 13.3447 | AG80: 12.3789 | AH80: 11.4732 | AI80: 10.752 | AJ80: 10.2261 | AK80: 9.64923 | AL80: 9.408 | AM80: 9.13398 | AN80: 9.04615 | AO80: 8.96 | AP80: 8.87547 | AQ80: 8.79252 | AR80: 8.71111 | AS80: 8.63119 | AT80: 8.55273 | AU80: 8.47568 | AV80: 8.47568 | AW80: 8.47568 | AX80: 8.47568 | AY80: 8.47568 | AZ80: 8.47568
V81: 4250 | W81: 14.7 | X81: 14.7 | Y81: 14.7 | Z81: 14.7 | AA81: 14.7 | AB81: 14.7 | AC81: 14.7 | AD81: 13.7343 | AE81: 13.44 | AF81: 12.9766 | AG81: 12.2182 | AH81: 11.3349 | AI81: 10.6305 | AJ81: 10.1708 | AK81: 9.64923 | AL81: 9.45528 | AM81: 9.17854 | AN81: 9.08986 | AO81: 9.00287 | AP81: 8.96 | AQ81: 8.87547 | AR81: 8.75163 | AS81: 8.67097 | AT81: 8.59178 | AU81: 8.51403 | AV81: 8.51403 | AW81: 8.51403 | AX81: 8.51403 | AY81: 8.51403 | AZ81: 8.51403
V82: 4500 | W82: 14.7 | X82: 14.7 | Y82: 14.7 | Z82: 14.7 | AA82: 14.7 | AB82: 14.7 | AC82: 14.7 | AD82: 13.44 | AE82: 13.0667 | AF82: 12.6282 | AG82: 12.0615 | AH82: 11.2 | AI82: 10.5708 | AJ82: 10.1161 | AK82: 9.69897 | AL82: 9.50303 | AM82: 9.26897 | AN82: 9.17854 | AO82: 9.08986 | AP82: 9.00287 | AQ82: 8.91754 | AR82: 8.8338 | AS82: 8.75163 | AT82: 8.67097 | AU82: 8.59178 | AV82: 8.59178 | AW82: 8.59178 | AX82: 8.59178 | AY82: 8.59178 | AZ82: 8.59178
V83: 4750 | W83: 14.7 | X83: 14.7 | Y83: 14.7 | Z83: 14.7 | AA83: 14.7 | AB83: 14.7 | AC83: 14.1474 | AD83: 13.3447 | AE83: 12.8877 | AF83: 12.4609 | AG83: 11.9847 | AH83: 11.2 | AI83: 10.5708 | AJ83: 10.1161 | AK83: 9.69897 | AL83: 9.50303 | AM83: 9.26897 | AN83: 9.17854 | AO83: 9.08986 | AP83: 9.00287 | AQ83: 8.91754 | AR83: 8.8338 | AS83: 8.75163 | AT83: 8.67097 | AU83: 8.59178 | AV83: 8.59178 | AW83: 8.59178 | AX83: 8.59178 | AY83: 8.59178 | AZ83: 8.59178
V84: 5000 | W84: 14.7 | X84: 14.7 | Y84: 14.7 | Z84: 14.7 | AA84: 14.7 | AB84: 14.7 | AC84: 13.6348 | AD84: 13.2507 | AE84: 12.6282 | AF84: 12.2182 | AG84: 11.9089 | AH84: 11.2 | AI84: 10.5708 | AJ84: 10.1161 | AK84: 9.69897 | AL84: 9.55127 | AM84: 9.26897 | AN84: 9.17854 | AO84: 9.08986 | AP84: 9.00287 | AQ84: 8.91754 | AR84: 8.8338 | AS84: 8.75163 | AT84: 8.67097 | AU84: 8.59178 | AV84: 8.59178 | AW84: 8.59178 | AX84: 8.59178 | AY84: 8.59178 | AZ84: 8.59178
V85: 5250 | W85: 14.7 | X85: 14.7 | Y85: 14.7 | Z85: 14.7 | AA85: 14.7 | AB85: 14.7 | AC85: 13.6348 | AD85: 13.0667 | AE85: 12.4609 | AF85: 12.0615 | AG85: 11.687 | AH85: 11.0682 | AI85: 10.4533 | AJ85: 10.1161 | AK85: 9.8 | AL85: 9.64923 | AM85: 9.50303 | AN85: 9.408 | AO85: 9.31485 | AP85: 9.22353 | AQ85: 9.13398 | AR85: 9.04615 | AS85: 8.96 | AT85: 8.87547 | AU85: 8.79252 | AV85: 8.79252 | AW85: 8.79252 | AX85: 8.79252 | AY85: 8.79252 | AZ85: 8.79252
V86: 5500 | W86: 14.7 | X86: 14.7 | Y86: 14.7 | Z86: 14.7 | AA86: 14.7 | AB86: 14.7 | AC86: 13.6348 | AD86: 12.8877 | AE86: 12.2182 | AF86: 11.9089 | AG86: 11.4036 | AH86: 10.8763 | AI86: 10.3956 | AJ86: 10.1161 | AK86: 9.90316 | AL86: 9.8 | AM86: 9.69897 | AN86: 9.6 | AO86: 9.50303 | AP86: 9.408 | AQ86: 9.31485 | AR86: 9.22353 | AS86: 9.13398 | AT86: 9.04615 | AU86: 8.96 | AV86: 8.96 | AW86: 8.96 | AX86: 8.96 | AY86: 8.96 | AZ86: 8.96
V87: 5750 | W87: 14.7 | X87: 14.7 | Y87: 14.7 | Z87: 14.7 | AA87: 14.7 | AB87: 14.7 | AC87: 12.7135 | AD87: 12.2182 | AE87: 11.9089 | AF87: 11.687 | AG87: 11.2 | AH87: 10.6909 | AI87: 10.3956 | AJ87: 10.1708 | AK87: 9.45528 | AL87: 9.31485 | AM87: 9.22353 | AN87: 9.13398 | AO87: 9.04615 | AP87: 8.96 | AQ87: 8.87547 | AR87: 8.79252 | AS87: 8.71111 | AT87: 8.63119 | AU87: 8.55273 | AV87: 8.55273 | AW87: 8.55273 | AX87: 8.55273 | AY87: 8.55273 | AZ87: 8.55273
V88: 6000 | W88: 14.7 | X88: 14.7 | Y88: 14.7 | Z88: 14.7 | AA88: 14.7 | AB88: 14.7 | AC88: 11.9089 | AD88: 11.6148 | AE88: 11.4732 | AF88: 11.2 | AG88: 10.752 | AH88: 10.3385 | AI88: 10.1161 | AJ88: 9.90316 | AK88: 9.45528 | AL88: 9.31485 | AM88: 9.13398 | AN88: 9.04615 | AO88: 8.96 | AP88: 8.87547 | AQ88: 8.79252 | AR88: 8.71111 | AS88: 8.63119 | AT88: 8.55273 | AU88: 8.47568 | AV88: 8.47568 | AW88: 8.47568 | AX88: 8.47568 | AY88: 8.47568 | AZ88: 8.47568
V89: 6250 | W89: 14.7 | X89: 14.7 | Y89: 14.7 | Z89: 14.7 | AA89: 14.7 | AB89: 14.7 | AC89: 11.4732 | AD89: 11.2 | AE89: 10.9395 | AF89: 10.8763 | AG89: 10.4533 | AH89: 10.2261 | AI89: 9.8 | AJ89: 9.408 | AK89: 9.13398 | AL89: 9.04615 | AM89: 8.91754 | AN89: 8.87547 | AO89: 8.79252 | AP89: 8.71111 | AQ89: 8.63119 | AR89: 8.55273 | AS89: 8.47568 | AT89: 8.4 | AU89: 8.32566 | AV89: 8.32566 | AW89: 8.32566 | AX89: 8.32566 | AY89: 8.32566 | AZ89: 8.32566
V90: 6500 | W90: 14.7 | X90: 14.7 | Y90: 14.7 | Z90: 14.7 | AA90: 14.7 | AB90: 14.7 | AC90: 11.4732 | AD90: 11.2 | AE90: 10.9395 | AF90: 10.8763 | AG90: 10.4533 | AH90: 10.2261 | AI90: 9.8 | AJ90: 9.408 | AK90: 9.13398 | AL90: 9.08986 | AM90: 8.91754 | AN90: 8.87547 | AO90: 8.79252 | AP90: 8.75163 | AQ90: 8.63119 | AR90: 8.59178 | AS90: 8.47568 | AT90: 8.43767 | AU90: 8.32566 | AV90: 8.32566 | AW90: 8.32566 | AX90: 8.32566 | AY90: 8.32566 | AZ90: 8.32566
V91: 6750 | W91: 14.7 | X91: 14.7 | Y91: 14.7 | Z91: 14.7 | AA91: 14.7 | AB91: 14.7 | AC91: 11.4732 | AD91: 11.2 | AE91: 10.9395 | AF91: 10.8763 | AG91: 10.4533 | AH91: 10.2261 | AI91: 9.8 | AJ91: 9.408 | AK91: 9.13398 | AL91: 9.08986 | AM91: 8.91754 | AN91: 8.87547 | AO91: 8.79252 | AP91: 8.75163 | AQ91: 8.63119 | AR91: 8.59178 | AS91: 8.47568 | AT91: 8.43767 | AU91: 8.32566 | AV91: 8.32566 | AW91: 8.32566 | AX91: 8.32566 | AY91: 8.32566 | AZ91: 8.32566
V92: 7000 | W92: 14.7 | X92: 14.7 | Y92: 14.7 | Z92: 14.7 | AA92: 14.7 | AB92: 14.7 | AC92: 11.4732 | AD92: 11.2 | AE92: 10.9395 | AF92: 10.8763 | AG92: 10.4533 | AH92: 10.2261 | AI92: 9.8 | AJ92: 9.408 | AK92: 9.13398 | AL92: 9.08986 | AM92: 8.91754 | AN92: 8.87547 | AO92: 8.79252 | AP92: 8.75163 | AQ92: 8.63119 | AR92: 8.59178 | AS92: 8.47568 | AT92: 8.43767 | AU92: 8.32566 | AV92: 8.32566 | AW92: 8.32566 | AX92: 8.32566 | AY92: 8.32566 | AZ92: 8.32566
V93: 7500 | W93: 14.7 | X93: 14.7 | Y93: 14.7 | Z93: 14.7 | AA93: 14.7 | AB93: 14.7 | AC93: 11.4036 | AD93: 11.1337 | AE93: 10.8763 | AF93: 10.8138 | AG93: 10.3956 | AH93: 10.1708 | AI93: 9.74922 | AJ93: 9.36119 | AK93: 9.08986 | AL93: 9.04615 | AM93: 8.87547 | AN93: 8.8338 | AO93: 8.75163 | AP93: 8.71111 | AQ93: 8.59178 | AR93: 8.55273 | AS93: 8.43767 | AT93: 8.4 | AU93: 8.28899 | AV93: 8.28899 | AW93: 8.28899 | AX93: 8.28899 | AY93: 8.28899 | AZ93: 8.28899
U100: 4 | W100: Identify Stoichiometric Platue and other cells you don't want smoothed 1 = Yes 0 = No
W101: =W37 -> Load Value
W102: 10 | X102: 20 | Y102: 30 | Z102: 40 | AA102: 50 | AB102: 60 | AC102: 70 | AD102: 80 | AE102: 90 | AF102: 100 | AG102: 120 | AH102: 140 | AI102: 160 | AJ102: 180 | AK102: 200 | AL102: 210 | AM102: 220 | AN102: 230 | AO102: 240 | AP102: 250 | AQ102: 260 | AR102: 270 | AS102: 280 | AT102: 290 | AU102: 300 | AV102: 310 | AW102: 320 | AX102: 330 | AY102: 340 | AZ102: 350
U103: =U39 -> RPM | V103: =V39 -> 500 | W103: 1 | X103: 1 | Y103: 1 | Z103: 1 | AA103: 1 | AB103: 1 | AC103: 1 | AD103: 1 | AE103: 1 | AF103: 1 | AG103: 1 | AH103: 1 | AI103: 1 | AJ103: 1 | AK103: 1 | AL103: 1 | AM103: 1 | AN103: 1 | AO103: 1 | AP103: 1 | AQ103: 1 | AR103: 1 | AS103: 1 | AT103: 1 | AU103: 1 | AV103: 1 | AW103: 1 | AX103: 1 | AY103: 1 | AZ103: 1
V104: =V40 -> 1000 | W104: =1 -> 1 | X104: =1 -> 1 | Y104: =1 -> 1 | Z104: =1 -> 1 | AA104: =1 -> 1 | AB104: =1 -> 1 | AC104: =1 -> 1 | AD104: =1 -> 1 | AE104: 0 | AF104: 0 | AG104: 0 | AH104: 0 | AI104: 0 | AJ104: 0 | AK104: 0 | AL104: 0 | AM104: 0 | AN104: 0 | AO104: 0 | AP104: 0 | AQ104: 0 | AR104: 0 | AS104: 0 | AT104: 0 | AU104: 0 | AV104: 0 | AW104: 0 | AX104: 0 | AY104: 0 | AZ104: 0
V105: 1250 | W105: =1 -> 1 | X105: =1 -> 1 | Y105: =1 -> 1 | Z105: =1 -> 1 | AA105: =1 -> 1 | AB105: =1 -> 1 | AC105: =1 -> 1 | AD105: =1 -> 1 | AE105: 0 | AF105: 0 | AG105: 0 | AH105: 0 | AI105: 0 | AJ105: 0 | AK105: 0 | AL105: 0 | AM105: 0 | AN105: 0 | AO105: 0 | AP105: 0 | AQ105: 0 | AR105: 0 | AS105: 0 | AT105: 0 | AU105: 0 | AV105: 0 | AW105: 0 | AX105: 0 | AY105: 0 | AZ105: 0
V106: 1500 | W106: =1 -> 1 | X106: =1 -> 1 | Y106: =1 -> 1 | Z106: =1 -> 1 | AA106: =1 -> 1 | AB106: =1 -> 1 | AC106: =1 -> 1 | AD106: =1 -> 1 | AE106: 0 | AF106: 0 | AG106: 0 | AH106: 0 | AI106: 0 | AJ106: 0 | AK106: 0 | AL106: 0 | AM106: 0 | AN106: 0 | AO106: 0 | AP106: 0 | AQ106: 0 | AR106: 0 | AS106: 0 | AT106: 0 | AU106: 0 | AV106: 0 | AW106: 0 | AX106: 0 | AY106: 0 | AZ106: 0
V107: 2000 | W107: =1 -> 1 | X107: =1 -> 1 | Y107: =1 -> 1 | Z107: =1 -> 1 | AA107: =1 -> 1 | AB107: =1 -> 1 | AC107: =1 -> 1 | AD107: =1 -> 1 | AE107: 0 | AF107: 0 | AG107: 0 | AH107: 0 | AI107: 0 | AJ107: 0 | AK107: 0 | AL107: 0 | AM107: 0 | AN107: 0 | AO107: 0 | AP107: 0 | AQ107: 0 | AR107: 0 | AS107: 0 | AT107: 0 | AU107: 0 | AV107: 0 | AW107: 0 | AX107: 0 | AY107: 0 | AZ107: 0
V108: 2500 | W108: =1 -> 1 | X108: =1 -> 1 | Y108: =1 -> 1 | Z108: =1 -> 1 | AA108: =1 -> 1 | AB108: =1 -> 1 | AC108: =1 -> 1 | AD108: =1 -> 1 | AE108: 0 | AF108: 0 | AG108: 0 | AH108: 0 | AI108: 0 | AJ108: 0 | AK108: 0 | AL108: 0 | AM108: 0 | AN108: 0 | AO108: 0 | AP108: 0 | AQ108: 0 | AR108: 0 | AS108: 0 | AT108: 0 | AU108: 0 | AV108: 0 | AW108: 0 | AX108: 0 | AY108: 0 | AZ108: 0
V109: 2750 | W109: =1 -> 1 | X109: =1 -> 1 | Y109: =1 -> 1 | Z109: =1 -> 1 | AA109: =1 -> 1 | AB109: =1 -> 1 | AC109: =1 -> 1 | AD109: =1 -> 1 | AE109: 0 | AF109: 0 | AG109: 0 | AH109: 0 | AI109: 0 | AJ109: 0 | AK109: 0 | AL109: 0 | AM109: 0 | AN109: 0 | AO109: 0 | AP109: 0 | AQ109: 0 | AR109: 0 | AS109: 0 | AT109: 0 | AU109: 0 | AV109: 0 | AW109: 0 | AX109: 0 | AY109: 0 | AZ109: 0
V110: 3000 | W110: =1 -> 1 | X110: =1 -> 1 | Y110: =1 -> 1 | Z110: =1 -> 1 | AA110: =1 -> 1 | AB110: =1 -> 1 | AC110: =1 -> 1 | AD110: =1 -> 1 | AE110: 0 | AF110: 0 | AG110: 0 | AH110: 0 | AI110: 0 | AJ110: 0 | AK110: 0 | AL110: 0 | AM110: 0 | AN110: 0 | AO110: 0 | AP110: 0 | AQ110: 0 | AR110: 0 | AS110: 0 | AT110: 0 | AU110: 0 | AV110: 0 | AW110: 0 | AX110: 0 | AY110: 0 | AZ110: 0
V111: 3250 | W111: =1 -> 1 | X111: =1 -> 1 | Y111: =1 -> 1 | Z111: =1 -> 1 | AA111: =1 -> 1 | AB111: =1 -> 1 | AC111: 0 | AD111: 0 | AE111: 0 | AF111: 0 | AG111: 0 | AH111: 0 | AI111: 0 | AJ111: 0 | AK111: 0 | AL111: 0 | AM111: 0 | AN111: 0 | AO111: 0 | AP111: 0 | AQ111: 0 | AR111: 0 | AS111: 0 | AT111: 0 | AU111: 0 | AV111: 0 | AW111: 0 | AX111: 0 | AY111: 0 | AZ111: 0
V112: 3500 | W112: =1 -> 1 | X112: =1 -> 1 | Y112: =1 -> 1 | Z112: =1 -> 1 | AA112: =1 -> 1 | AB112: 0 | AC112: 0 | AD112: 0 | AE112: 0 | AF112: 0 | AG112: 0 | AH112: 0 | AI112: 0 | AJ112: 0 | AK112: 0 | AL112: 0 | AM112: 0 | AN112: 0 | AO112: 0 | AP112: 0 | AQ112: 0 | AR112: 0 | AS112: 0 | AT112: 0 | AU112: 0 | AV112: 0 | AW112: 0 | AX112: 0 | AY112: 0 | AZ112: 0
V113: 3750 | W113: =1 -> 1 | X113: =1 -> 1 | Y113: =1 -> 1 | Z113: =1 -> 1 | AA113: =1 -> 1 | AB113: 0 | AC113: 0 | AD113: 0 | AE113: 0 | AF113: 0 | AG113: 0 | AH113: 0 | AI113: 0 | AJ113: 0 | AK113: 0 | AL113: 0 | AM113: 0 | AN113: 0 | AO113: 0 | AP113: 0 | AQ113: 0 | AR113: 0 | AS113: 0 | AT113: 0 | AU113: 0 | AV113: 0 | AW113: 0 | AX113: 0 | AY113: 0 | AZ113: 0
V114: 4000 | W114: =1 -> 1 | X114: =1 -> 1 | Y114: =1 -> 1 | Z114: =1 -> 1 | AA114: =1 -> 1 | AB114: 0 | AC114: 0 | AD114: 0 | AE114: 0 | AF114: 0 | AG114: 0 | AH114: 0 | AI114: 0 | AJ114: 0 | AK114: 0 | AL114: 0 | AM114: 0 | AN114: 0 | AO114: 0 | AP114: 0 | AQ114: 0 | AR114: 0 | AS114: 0 | AT114: 0 | AU114: 0 | AV114: 0 | AW114: 0 | AX114: 0 | AY114: 0 | AZ114: 0
V115: 4250 | W115: =1 -> 1 | X115: =1 -> 1 | Y115: =1 -> 1 | Z115: =1 -> 1 | AA115: =1 -> 1 | AB115: 0 | AC115: 0 | AD115: 0 | AE115: 0 | AF115: 0 | AG115: 0 | AH115: 0 | AI115: 0 | AJ115: 0 | AK115: 0 | AL115: 0 | AM115: 0 | AN115: 0 | AO115: 0 | AP115: 0 | AQ115: 0 | AR115: 0 | AS115: 0 | AT115: 0 | AU115: 0 | AV115: 0 | AW115: 0 | AX115: 0 | AY115: 0 | AZ115: 0
V116: 4500 | W116: =1 -> 1 | X116: =1 -> 1 | Y116: =1 -> 1 | Z116: =1 -> 1 | AA116: =1 -> 1 | AB116: 0 | AC116: 0 | AD116: 0 | AE116: 0 | AF116: 0 | AG116: 0 | AH116: 0 | AI116: 0 | AJ116: 0 | AK116: 0 | AL116: 0 | AM116: 0 | AN116: 0 | AO116: 0 | AP116: 0 | AQ116: 0 | AR116: 0 | AS116: 0 | AT116: 0 | AU116: 0 | AV116: 0 | AW116: 0 | AX116: 0 | AY116: 0 | AZ116: 0
V117: 4750 | W117: =1 -> 1 | X117: =1 -> 1 | Y117: =1 -> 1 | Z117: =1 -> 1 | AA117: =1 -> 1 | AB117: 0 | AC117: 0 | AD117: 0 | AE117: 0 | AF117: 0 | AG117: 0 | AH117: 0 | AI117: 0 | AJ117: 0 | AK117: 0 | AL117: 0 | AM117: 0 | AN117: 0 | AO117: 0 | AP117: 0 | AQ117: 0 | AR117: 0 | AS117: 0 | AT117: 0 | AU117: 0 | AV117: 0 | AW117: 0 | AX117: 0 | AY117: 0 | AZ117: 0
V118: 5000 | W118: =1 -> 1 | X118: =1 -> 1 | Y118: =1 -> 1 | Z118: =1 -> 1 | AA118: =1 -> 1 | AB118: 0 | AC118: 0 | AD118: 0 | AE118: 0 | AF118: 0 | AG118: 0 | AH118: 0 | AI118: 0 | AJ118: 0 | AK118: 0 | AL118: 0 | AM118: 0 | AN118: 0 | AO118: 0 | AP118: 0 | AQ118: 0 | AR118: 0 | AS118: 0 | AT118: 0 | AU118: 0 | AV118: 0 | AW118: 0 | AX118: 0 | AY118: 0 | AZ118: 0
V119: 5250 | W119: =1 -> 1 | X119: =1 -> 1 | Y119: =1 -> 1 | Z119: =1 -> 1 | AA119: =1 -> 1 | AB119: 0 | AC119: 0 | AD119: 0 | AE119: 0 | AF119: 0 | AG119: 0 | AH119: 0 | AI119: 0 | AJ119: 0 | AK119: 0 | AL119: 0 | AM119: 0 | AN119: 0 | AO119: 0 | AP119: 0 | AQ119: 0 | AR119: 0 | AS119: 0 | AT119: 0 | AU119: 0 | AV119: 0 | AW119: 0 | AX119: 0 | AY119: 0 | AZ119: 0
V120: 5500 | W120: =1 -> 1 | X120: =1 -> 1 | Y120: =1 -> 1 | Z120: =1 -> 1 | AA120: =1 -> 1 | AB120: 0 | AC120: 0 | AD120: 0 | AE120: 0 | AF120: 0 | AG120: 0 | AH120: 0 | AI120: 0 | AJ120: 0 | AK120: 0 | AL120: 0 | AM120: 0 | AN120: 0 | AO120: 0 | AP120: 0 | AQ120: 0 | AR120: 0 | AS120: 0 | AT120: 0 | AU120: 0 | AV120: 0 | AW120: 0 | AX120: 0 | AY120: 0 | AZ120: 0
V121: 5750 | W121: =1 -> 1 | X121: =1 -> 1 | Y121: =1 -> 1 | Z121: =1 -> 1 | AA121: =1 -> 1 | AB121: 0 | AC121: 0 | AD121: 0 | AE121: 0 | AF121: 0 | AG121: 0 | AH121: 0 | AI121: 0 | AJ121: 0 | AK121: 0 | AL121: 0 | AM121: 0 | AN121: 0 | AO121: 0 | AP121: 0 | AQ121: 0 | AR121: 0 | AS121: 0 | AT121: 0 | AU121: 0 | AV121: 0 | AW121: 0 | AX121: 0 | AY121: 0 | AZ121: 0
V122: 6000 | W122: =1 -> 1 | X122: =1 -> 1 | Y122: =1 -> 1 | Z122: =1 -> 1 | AA122: =1 -> 1 | AB122: 0 | AC122: 0 | AD122: 0 | AE122: 0 | AF122: 0 | AG122: 0 | AH122: 0 | AI122: 0 | AJ122: 0 | AK122: 0 | AL122: 0 | AM122: 0 | AN122: 0 | AO122: 0 | AP122: 0 | AQ122: 0 | AR122: 0 | AS122: 0 | AT122: 0 | AU122: 0 | AV122: 0 | AW122: 0 | AX122: 0 | AY122: 0 | AZ122: 0
V123: 6250 | W123: =1 -> 1 | X123: =1 -> 1 | Y123: =1 -> 1 | Z123: =1 -> 1 | AA123: =1 -> 1 | AB123: 0 | AC123: 0 | AD123: 0 | AE123: 0 | AF123: 0 | AG123: 0 | AH123: 0 | AI123: 0 | AJ123: 0 | AK123: 0 | AL123: 0 | AM123: 0 | AN123: 0 | AO123: 0 | AP123: 0 | AQ123: 0 | AR123: 0 | AS123: 0 | AT123: 0 | AU123: 0 | AV123: 0 | AW123: 0 | AX123: 0 | AY123: 0 | AZ123: 0
V124: 6500 | W124: =1 -> 1 | X124: =1 -> 1 | Y124: =1 -> 1 | Z124: =1 -> 1 | AA124: =1 -> 1 | AB124: 0 | AC124: 0 | AD124: 0 | AE124: 0 | AF124: 0 | AG124: 0 | AH124: 0 | AI124: 0 | AJ124: 0 | AK124: 0 | AL124: 0 | AM124: 0 | AN124: 0 | AO124: 0 | AP124: 0 | AQ124: 0 | AR124: 0 | AS124: 0 | AT124: 0 | AU124: 0 | AV124: 0 | AW124: 0 | AX124: 0 | AY124: 0 | AZ124: 0
V125: 6750 | W125: =1 -> 1 | X125: =1 -> 1 | Y125: =1 -> 1 | Z125: =1 -> 1 | AA125: =1 -> 1 | AB125: 0 | AC125: 0 | AD125: 0 | AE125: 0 | AF125: 0 | AG125: 0 | AH125: 0 | AI125: 0 | AJ125: 0 | AK125: 0 | AL125: 0 | AM125: 0 | AN125: 0 | AO125: 0 | AP125: 0 | AQ125: 0 | AR125: 0 | AS125: 0 | AT125: 0 | AU125: 0 | AV125: 0 | AW125: 0 | AX125: 0 | AY125: 0 | AZ125: 0
V126: 7000 | W126: =1 -> 1 | X126: =1 -> 1 | Y126: =1 -> 1 | Z126: =1 -> 1 | AA126: =1 -> 1 | AB126: 0 | AC126: 0 | AD126: 0 | AE126: 0 | AF126: 0 | AG126: 0 | AH126: 0 | AI126: 0 | AJ126: 0 | AK126: 0 | AL126: 0 | AM126: 0 | AN126: 0 | AO126: 0 | AP126: 0 | AQ126: 0 | AR126: 0 | AS126: 0 | AT126: 0 | AU126: 0 | AV126: 0 | AW126: 0 | AX126: 0 | AY126: 0 | AZ126: 0
V127: 7500 | W127: =1 -> 1 | X127: =1 -> 1 | Y127: =1 -> 1 | Z127: =1 -> 1 | AA127: =1 -> 1 | AB127: 0 | AC127: 0 | AD127: 0 | AE127: 0 | AF127: 0 | AG127: 0 | AH127: 0 | AI127: 0 | AJ127: 0 | AK127: 0 | AL127: 0 | AM127: 0 | AN127: 0 | AO127: 0 | AP127: 0 | AQ127: 0 | AR127: 0 | AS127: 0 | AT127: 0 | AU127: 0 | AV127: 0 | AW127: 0 | AX127: 0 | AY127: 0 | AZ127: 0
T130: DO NOT MODIFY: THESE ARE THE QUANTIZED VALUES THE ECU USES. THEY ALLOW FOR ACCURATE SMOOTHING AND CORRECT DECIMAL VALUES TO PASTE BACK INTO ECU FLASH
W133: Modded Fuel Map (Quantized)
W134: Load Value
W135: 10 | X135: 20 | Y135: 30 | Z135: 40 | AA135: 50 | AB135: 60 | AC135: 70 | AD135: 80 | AE135: 90 | AF135: 100 | AG135: 120 | AH135: 140 | AI135: 160 | AJ135: 180 | AK135: 200 | AL135: 210 | AM135: 220 | AN135: 230 | AO135: 240 | AP135: 250 | AQ135: 260 | AR135: 270 | AS135: 280 | AT135: 290 | AU135: 300 | AV135: 310 | AW135: 320 | AX135: 330 | AY135: 340 | AZ135: 350
U136: RPM | V136: 500 | W136: =ROUND(14.7*128/W39,0) -> 128 | X136: =ROUND(14.7*128/X39,0) -> 128 | Y136: 128 | Z136: 128 | AA136: 128 | AB136: 128 | AC136: 128 | AD136: 128 | AE136: 131 | AF136: 138 | AG136: 141 | AH136: 143 | AI136: 146 | AJ136: 149 | AK136: 151 | AL136: 153 | AM136: 153 | AN136: 154 | AO136: 154 | AP136: 155 | AQ136: 155 | AR136: 155 | AS136: 155 | AT136: 155 | AU136: 155 | AV136: 155 | AW136: 155 | AX136: 155 | AY136: 155 | AZ136: 155
U137: 0 | V137: 1000 | W137: 128 | X137: =ROUND(14.7*128/X40,0) -> 128 | Y137: 128 | Z137: 128 | AA137: 128 | AB137: 128 | AC137: 128 | AD137: 128 | AE137: 131 | AF137: 138 | AG137: 141 | AH137: 144 | AI137: 147 | AJ137: 150 | AK137: 152 | AL137: 154 | AM137: 154 | AN137: 155 | AO137: 155 | AP137: 156 | AQ137: =ROUND(14.7*128/AQ40,0) -> 156 | AR137: 156 | AS137: 156 | AT137: 156 | AU137: 156 | AV137: 156 | AW137: 156 | AX137: 156 | AY137: 156 | AZ137: 156
U138: 0 | V138: 1500 | W138: 128 | X138: =ROUND(14.7*128/X41,0) -> 128 | Y138: 128 | Z138: 128 | AA138: 128 | AB138: 128 | AC138: 128 | AD138: 128 | AE138: 131 | AF138: 137 | AG138: 142 | AH138: =ROUND(14.7*128/AH41,0) -> 147 | AI138: =ROUND(14.7*128/AI41,0) -> 150 | AJ138: 154 | AK138: 156 | AL138: 158 | AM138: 158 | AN138: 159 | AO138: 159 | AP138: 160 | AQ138: 160 | AR138: 160 | AS138: 160 | AT138: 160 | AU138: =ROUND(14.7*128/AU41,0) -> 160 | AV138: 160 | AW138: 160 | AX138: 160 | AY138: 160 | AZ138: 160
U139: 0 | V139: 2000 | W139: 128 | X139: =ROUND(14.7*128/X42,0) -> 128 | Y139: 128 | Z139: 128 | AA139: 128 | AB139: 128 | AC139: 128 | AD139: 128 | AE139: 131 | AF139: 137 | AG139: 144 | AH139: 150 | AI139: 155 | AJ139: 159 | AK139: 161 | AL139: 163 | AM139: 163 | AN139: 164 | AO139: 164 | AP139: 165 | AQ139: 165 | AR139: 165 | AS139: 165 | AT139: 165 | AU139: 165 | AV139: 165 | AW139: 165 | AX139: 165 | AY139: 165 | AZ139: 165
U140: 0 | V140: 2250 | W140: 128 | X140: =ROUND(14.7*128/X43,0) -> 128 | Y140: 128 | Z140: 128 | AA140: 128 | AB140: 128 | AC140: 128 | AD140: 128 | AE140: 132 | AF140: 138 | AG140: 146 | AH140: 152 | AI140: 157 | AJ140: 161 | AK140: 164 | AL140: 166 | AM140: 167 | AN140: 167 | AO140: 168 | AP140: 168 | AQ140: 168 | AR140: 168 | AS140: 168 | AT140: 168 | AU140: 168 | AV140: 168 | AW140: 168 | AX140: 168 | AY140: 168 | AZ140: 168
U141: 0 | V141: 2500 | W141: 128 | X141: =ROUND(14.7*128/X44,0) -> 128 | Y141: 128 | Z141: 128 | AA141: 128 | AB141: 128 | AC141: 128 | AD141: 128 | AE141: 132 | AF141: 138 | AG141: 147 | AH141: 154 | AI141: 159 | AJ141: 164 | AK141: 167 | AL141: 169 | AM141: 170 | AN141: 171 | AO141: 171 | AP141: 172 | AQ141: 172 | AR141: 172 | AS141: 172 | AT141: 172 | AU141: 172 | AV141: 172 | AW141: 172 | AX141: 172 | AY141: 172 | AZ141: 172
U142: 0 | V142: 2750 | W142: 128 | X142: =ROUND(14.7*128/X45,0) -> 128 | Y142: 128 | Z142: 128 | AA142: 128 | AB142: 128 | AC142: 128 | AD142: 128 | AE142: 133 | AF142: 139 | AG142: 149 | AH142: 156 | AI142: 161 | AJ142: 167 | AK142: 169 | AL142: 172 | AM142: 172 | AN142: 173 | AO142: 174 | AP142: 175 | AQ142: 175 | AR142: 175 | AS142: 175 | AT142: 175 | AU142: 175 | AV142: 175 | AW142: 175 | AX142: 175 | AY142: 175 | AZ142: 175
U143: 0 | V143: 3000 | W143: 128 | X143: =ROUND(14.7*128/X46,0) -> 128 | Y143: 128 | Z143: 128 | AA143: 128 | AB143: 128 | AC143: 128 | AD143: 128 | AE143: 133 | AF143: 140 | AG143: 150 | AH143: 158 | AI143: 164 | AJ143: 168 | AK143: 171 | AL143: 174 | AM143: 175 | AN143: 174 | AO143: 177 | AP143: 178 | AQ143: 178 | AR143: 178 | AS143: 178 | AT143: 178 | AU143: 178 | AV143: 178 | AW143: 178 | AX143: 178 | AY143: 178 | AZ143: 178
U144: 0 | V144: 3250 | W144: 128 | X144: =ROUND(14.7*128/X47,0) -> 128 | Y144: 128 | Z144: 128 | AA144: 128 | AB144: 128 | AC144: 128 | AD144: 128 | AE144: 133 | AF144: 142 | AG144: 152 | AH144: 160 | AI144: 166 | AJ144: 170 | AK144: 173 | AL144: 176 | AM144: 175 | AN144: 176 | AO144: 179 | AP144: 179 | AQ144: 180 | AR144: 180 | AS144: 180 | AT144: 180 | AU144: 180 | AV144: 180 | AW144: 180 | AX144: 180 | AY144: 180 | AZ144: 180
V145: 3500 | W145: =ROUND(14.7*128/W48,0) -> 128 | X145: 128 | Y145: 128 | Z145: 128 | AA145: 128 | AB145: 128 | AC145: 128 | AD145: 128 | AE145: 133 | AF145: 143 | AG145: 153 | AH145: 161 | AI145: 167 | AJ145: 170 | AK145: 172 | AL145: 175 | AM145: 176 | AN145: 175 | AO145: 178 | AP145: 179 | AQ145: 180 | AR145: 180 | AS145: 180 | AT145: 180 | AU145: 180 | AV145: 180 | AW145: 180 | AX145: 180 | AY145: 180 | AZ145: 180
V146: 3750 | W146: =ROUND(14.7*128/W49,0) -> 128 | X146: 128 | Y146: 128 | Z146: 128 | AA146: 128 | AB146: 128 | AC146: 129 | AD146: 129 | AE146: 134 | AF146: 145 | AG146: 155 | AH146: 163 | AI146: 166 | AJ146: 171 | AK146: 173 | AL146: 176 | AM146: 176 | AN146: 177 | AO146: 178 | AP146: 180 | AQ146: 181 | AR146: 181 | AS146: 181 | AT146: 181 | AU146: 181 | AV146: 181 | AW146: 181 | AX146: 181 | AY146: 181 | AZ146: 181
V147: 4000 | W147: =ROUND(14.7*128/W50,0) -> 128 | X147: 128 | Y147: 128 | Z147: 128 | AA147: 128 | AB147: 128 | AC147: 129 | AD147: 129 | AE147: 135 | AF147: 147 | AG147: 156 | AH147: 164 | AI147: 167 | AJ147: 172 | AK147: 174 | AL147: 176 | AM147: 175 | AN147: 178 | AO147: =ROUND(14.7*128/AO50,0) -> 179 | AP147: 180 | AQ147: 180 | AR147: 182 | AS147: 182 | AT147: 182 | AU147: 182 | AV147: 182 | AW147: 182 | AX147: 182 | AY147: 182 | AZ147: 182
V148: 4250 | W148: =ROUND(14.7*128/W51,0) -> 128 | X148: 128 | Y148: 128 | Z148: 128 | AA148: 129 | AB148: 129 | AC148: 133 | AD148: 134 | AE148: 138 | AF148: 149 | AG148: 158 | AH148: 165 | AI148: 167 | AJ148: 172 | AK148: 175 | AL148: 176 | AM148: 175 | AN148: 179 | AO148: =ROUND(14.7*128/AO51,0) -> 180 | AP148: 181 | AQ148: 180 | AR148: 182 | AS148: 184 | AT148: 184 | AU148: 184 | AV148: 184 | AW148: 184 | AX148: 184 | AY148: 184 | AZ148: 184
V149: 4500 | W149: =ROUND(14.7*128/W52,0) -> 128 | X149: 128 | Y149: 128 | Z149: 128 | AA149: 129 | AB149: 129 | AC149: 133 | AD149: 136 | AE149: 141 | AF149: 152 | AG149: 159 | AH149: 166 | AI149: 167 | AJ149: 172 | AK149: 174 | AL149: 177 | AM149: 175 | AN149: 179 | AO149: =ROUND(14.7*128/AO52,0) -> 181 | AP149: 180 | AQ149: 181 | AR149: 183 | AS149: 185 | AT149: 185 | AU149: 185 | AV149: 185 | AW149: 185 | AX149: 185 | AY149: 185 | AZ149: 185
V150: 4750 | W150: =ROUND(14.7*128/W53,0) -> 128 | X150: 128 | Y150: 128 | Z150: 129 | AA150: 130 | AB150: 130 | AC150: 134 | AD150: 139 | AE150: 144 | AF150: 154 | AG150: 159 | AH150: 166 | AI150: 167 | AJ150: 172 | AK150: 174 | AL150: 176 | AM150: 175 | AN150: 179 | AO150: =ROUND(14.7*128/AO53,0) -> 181 | AP150: 180 | AQ150: 181 | AR150: 183 | AS150: 185 | AT150: 185 | AU150: 185 | AV150: 185 | AW150: 185 | AX150: 185 | AY150: 185 | AZ150: 185
V151: 5000 | W151: =ROUND(14.7*128/W54,0) -> 128 | X151: 128 | Y151: 128 | Z151: 129 | AA151: 130 | AB151: 132 | AC151: 136 | AD151: 142 | AE151: 148 | AF151: 156 | AG151: 161 | AH151: 166 | AI151: 167 | AJ151: 172 | AK151: 175 | AL151: 176 | AM151: 175 | AN151: 179 | AO151: =ROUND(14.7*128/AO54,0) -> 181 | AP151: 180 | AQ151: 181 | AR151: 183 | AS151: 185 | AT151: 185 | AU151: 185 | AV151: 185 | AW151: 185 | AX151: 185 | AY151: 185 | AZ151: 185
U152: 0 | V152: 5250 | W152: =ROUND(14.7*128/W55,0) -> 128 | X152: 128 | Y152: 129 | Z152: 129 | AA152: 131 | AB152: 134 | AC152: 138 | AD152: 146 | AE152: 150 | AF152: 157 | AG152: 162 | AH152: 166 | AI152: 167 | AJ152: 172 | AK152: 174 | AL152: 176 | AM152: 175 | AN152: 179 | AO152: =ROUND(14.7*128/AO55,0) -> 180 | AP152: 178 | AQ152: 180 | AR152: 182 | AS152: 182 | AT152: 182 | AU152: 182 | AV152: 182 | AW152: 182 | AX152: 182 | AY152: 182 | AZ152: 182
U153: 0 | V153: 5500 | W153: =ROUND(14.7*128/W56,0) -> 128 | X153: 128 | Y153: 129 | Z153: 129 | AA153: 132 | AB153: 136 | AC153: 141 | AD153: 148 | AE153: 152 | AF153: 157 | AG153: 162 | AH153: 166 | AI153: 167 | AJ153: 172 | AK153: 173 | AL153: 175 | AM153: 175 | AN153: 178 | AO153: =ROUND(14.7*128/AO56,0) -> 175 | AP153: 177 | AQ153: 180 | AR153: 180 | AS153: 180 | AT153: 182 | AU153: 182 | AV153: 182 | AW153: 182 | AX153: 182 | AY153: 182 | AZ153: 182
V154: 6000 | W154: =ROUND(14.7*128/W57,0) -> 130 | X154: 131 | Y154: 131 | Z154: 133 | AA154: 135 | AB154: 140 | AC154: 146 | AD154: 152 | AE154: 154 | AF154: 159 | AG154: 162 | AH154: 165 | AI154: 167 | AJ154: 170 | AK154: 172 | AL154: 175 | AM154: 176 | AN154: 177 | AO154: =ROUND(14.7*128/AO57,0) -> 175 | AP154: 177 | AQ154: 179 | AR154: 181 | AS154: 181 | AT154: 181 | AU154: 181 | AV154: 183 | AW154: 183 | AX154: 183 | AY154: 183 | AZ154: 183
V155: 6500 | W155: =ROUND(14.7*128/W58,0) -> 134 | X155: 134 | Y155: 134 | Z155: 136 | AA155: 139 | AB155: 144 | AC155: 149 | AD155: 154 | AE155: 155 | AF155: 159 | AG155: 162 | AH155: 165 | AI155: 167 | AJ155: 170 | AK155: 172 | AL155: 175 | AM155: 175 | AN155: 178 | AO155: =ROUND(14.7*128/AO58,0) -> 177 | AP155: 178 | AQ155: 178 | AR155: 180 | AS155: 180 | AT155: 180 | AU155: 180 | AV155: 182 | AW155: 182 | AX155: 182 | AY155: 182 | AZ155: 182
V156: 7000 | W156: =ROUND(14.7*128/W59,0) -> 136 | X156: 136 | Y156: 136 | Z156: 138 | AA156: 142 | AB156: 147 | AC156: 152 | AD156: 155 | AE156: 157 | AF156: 159 | AG156: 162 | AH156: 165 | AI156: 166 | AJ156: 169 | AK156: 170 | AL156: 172 | AM156: 173 | AN156: 178 | AO156: =ROUND(14.7*128/AO59,0) -> 175 | AP156: 176 | AQ156: 175 | AR156: 179 | AS156: 179 | AT156: 179 | AU156: 179 | AV156: 181 | AW156: 181 | AX156: 181 | AY156: 181 | AZ156: 181
V157: 7500 | W157: =ROUND(14.7*128/W60,0) -> 136 | X157: 136 | Y157: 136 | Z157: 138 | AA157: 142 | AB157: 148 | AC157: 153 | AD157: 156 | AE157: 157 | AF157: 159 | AG157: 162 | AH157: 165 | AI157: 166 | AJ157: 168 | AK157: 169 | AL157: 173 | AM157: 173 | AN157: 176 | AO157: =ROUND(14.7*128/AO60,0) -> 175 | AP157: 175 | AQ157: 175 | AR157: 177 | AS157: 177 | AT157: 177 | AU157: 177 | AV157: 179 | AW157: 179 | AX157: 179 | AY157: 179 | AZ157: 179
V158: 8000 | W158: =ROUND(14.7*128/W61,0) -> 136 | X158: 136 | Y158: 136 | Z158: 138 | AA158: 142 | AB158: 148 | AC158: 153 | AD158: 156 | AE158: 157 | AF158: 159 | AG158: 162 | AH158: 165 | AI158: 166 | AJ158: 168 | AK158: 169 | AL158: 171 | AM158: 173 | AN158: 174 | AO158: =ROUND(14.7*128/AO61,0) -> 175 | AP158: 175 | AQ158: 173 | AR158: 175 | AS158: 175 | AT158: 175 | AU158: 175 | AV158: 177 | AW158: 177 | AX158: 177 | AY158: 177 | AZ158: 177
U159: 0 | V159: 8500 | W159: =ROUND(14.7*128/W62,0) -> 136 | X159: 136 | Y159: 136 | Z159: 138 | AA159: 142 | AB159: 148 | AC159: 153 | AD159: 156 | AE159: 157 | AF159: 159 | AG159: 162 | AH159: 165 | AI159: 166 | AJ159: 168 | AK159: 169 | AL159: 171 | AM159: 173 | AN159: 174 | AO159: =ROUND(14.7*128/AO62,0) -> 175 | AP159: 175 | AQ159: 173 | AR159: 175 | AS159: 175 | AT159: 175 | AU159: 175 | AV159: 175 | AW159: 175 | AX159: 175 | AY159: 175 | AZ159: 175
V160: 11000 | W160: =ROUND(14.7*128/W63,0) -> 136 | X160: 136 | Y160: 136 | Z160: 138 | AA160: 142 | AB160: 148 | AC160: 153 | AD160: 156 | AE160: 157 | AF160: 159 | AG160: 162 | AH160: 165 | AI160: 166 | AJ160: 168 | AK160: 169 | AL160: 171 | AM160: 173 | AN160: 174 | AO160: =ROUND(14.7*128/AO63,0) -> 175 | AP160: 175 | AQ160: 173 | AR160: 175 | AS160: 175 | AT160: 175 | AU160: 175 | AV160: 175 | AW160: 175 | AX160: 175 | AY160: 175 | AZ160: 175

Sheet Timing - BIG MAP
A1: Main Ignition Maps | AE1: = Unsmoothed cells
Z3: 1 | AB3: Smoothed Ignition Map
AB4: Load Value | CN4: Interpolate | CO4: Interpolate
AB5: 10 | AC5: 20 | AD5: 30 | AE5: 40 | AF5: 50 | AG5: 60 | AH5: 70 | AI5: 80 | AJ5: 90 | AK5: 100 | AL5: 120 | AM5: 140 | AN5: 150 | AO5: 160 | AP5: 170 | AQ5: 180 | AR5: 190 | AS5: 200 | AT5: 210 | AU5: 220 | AV5: 230 | AW5: 240 | AX5: 250 | AY5: 260 | AZ5: 270 | BA5: 280 | BB5: 290 | BC5: 300 | BD5: 310 | BE5: 320 | CN5: Ign. | CO5: Fuel.
Z6: RPM | AA6: 500 | AB6: =AB35 -> 13 | AC6: 13 | AD6: 13 | AE6: 13 | AF6: 12 | AG6: 12 | AH6: 12 | AI6: 11 | AJ6: 10 | AK6: 9 | AL6: 6 | AM6: 4 | AN6: 3 | AO6: 2 | AP6: 2 | AQ6: 2 | AR6: 1 | AS6: 0 | AT6: -2 | AU6: -3 | AV6: -5 | AW6: -6 | AX6: -7 | AY6: -7 | AZ6: -7 | BA6: -7 | BB6: -7 | BC6: -7 | BD6: -7 | BE6: -7 | CN6: 0 | CO6: 500
AA7: 1000 | AB7: =AB36 -> 13 | AC7: 13 | AD7: 13 | AE7: 13 | AF7: 13 | AG7: 13 | AH7: 13 | AI7: 12 | AJ7: 11 | AK7: 10 | AL7: 7 | AM7: 5 | AN7: 4 | AO7: 3 | AP7: 3 | AQ7: 3 | AR7: 2 | AS7: 0 | AT7: -1 | AU7: -2 | AV7: -4 | AW7: -5 | AX7: -6 | AY7: -6 | AZ7: -6 | BA7: -6 | BB7: -6 | BC7: -6 | BD7: -6 | BE7: -6 | CN7: 421.875 | CO7: 1035.16
AA8: 1250 | AB8: =AB37 -> 15 | AC8: 15 | AD8: 15 | AE8: 15 | AF8: 15 | AG8: 15 | AH8: 14 | AI8: 14 | AJ8: 13 | AK8: 11 | AL8: 8 | AM8: 6 | AN8: 5 | AO8: 4 | AP8: 4 | AQ8: 4 | AR8: 3 | AS8: 2 | AT8: 1 | AU8: 0 | AV8: -1 | AW8: -2 | AX8: -2 | AY8: -2 | AZ8: -2 | BA8: -2 | BB8: -2 | BC8: -2 | BD8: -2 | BE8: -2 | CN8: 843.75 | CO8: 1570.31
AA9: 1500 | AB9: =AB38 -> 18 | AC9: 18 | AD9: 18 | AE9: 18 | AF9: 18 | AG9: 18 | AH9: 18 | AI9: 17 | AJ9: 15 | AK9: =ROUND(AVERAGE(AK38,AK38,AJ37:AL39),0) -> 13 | AL9: 10 | AM9: 8 | AN9: 6 | AO9: 6 | AP9: 5 | AQ9: 5 | AR9: 4 | AS9: 3 | AT9: 2 | AU9: =AU38 -> 1 | AV9: 0 | AW9: -1 | AX9: -1 | AY9: -1 | AZ9: -1 | BA9: -1 | BB9: -1 | BC9: -1 | BD9: -1 | BE9: -1 | CN9: 1261.72 | CO9: 2105.47
AA10: 2000 | AB10: =AB39 -> 29 | AC10: 29 | AD10: 29 | AE10: 28 | AF10: 27 | AG10: 26 | AH10: 25 | AI10: 23 | AJ10: 19 | AK10: =ROUND(AVERAGE(AK39,AK39,AJ38:AL40),0) -> 16 | AL10: 13 | AM10: 10 | AN10: 8 | AO10: 7 | AP10: 6 | AQ10: 5 | AR10: 4 | AS10: 4 | AT10: 3 | AU10: =AU39 -> 3 | AV10: 2 | AW10: 0 | AX10: 0 | AY10: 0 | AZ10: -1 | BA10: -1 | BB10: -1 | BC10: -1 | BD10: -1 | BE10: -1 | CN10: 1683.59 | CO10: 2644.53
AA11: 2500 | AB11: =AB40 -> 33 | AC11: 33 | AD11: 33 | AE11: 31 | AF11: 30 | AG11: 29 | AH11: 27 | AI11: 25 | AJ11: 21 | AK11: =ROUND(AVERAGE(AK40,AK40,AJ39:AL41),0) -> 18 | AL11: 15 | AM11: 12 | AN11: 9 | AO11: 8 | AP11: 6 | AQ11: 6 | AR11: 5 | AS11: 5 | AT11: 4 | AU11: =ROUND(AVERAGE(AU40,AU40,AT39:AV41),0) -> 3 | AV11: 2 | AW11: 1 | AX11: 1 | AY11: 0 | AZ11: 0 | BA11: =BA40 -> -1 | BB11: -1 | BC11: -1 | BD11: -1 | BE11: -1 | CN11: 2105.47 | CO11: 3179.69
AA12: 2750 | AB12: =AB41 -> 35 | AC12: =ROUND(AVERAGE(AC41,AC41,AB40:AD42),0) -> 35 | AD12: 34 | AE12: 33 | AF12: 32 | AG12: 31 | AH12: 29 | AI12: 27 | AJ12: 24 | AK12: =ROUND(AVERAGE(AK41,AK41,AJ40:AL42),0) -> 21 | AL12: 17 | AM12: 14 | AN12: 11 | AO12: 9 | AP12: 7 | AQ12: 7 | AR12: 6 | AS12: 6 | AT12: 5 | AU12: =ROUND(AVERAGE(AU41,AU41,AT40:AV42),0) -> 4 | AV12: 3 | AW12: 3 | AX12: 2 | AY12: 1 | AZ12: 1 | BA12: 1 | BB12: 0 | BC12: 0 | BD12: 0 | BE12: 0 | CN12: 2527.34 | CO12: 3714.84
AA13: 3000 | AB13: 36 | AC13: 36 | AD13: 36 | AE13: 35 | AF13: 34 | AG13: 33 | AH13: 31 | AI13: 29 | AJ13: 26 | AK13: =ROUND(AVERAGE(AK42,AK42,AJ41:AL43),0) -> 23 | AL13: 19 | AM13: 15 | AN13: 12 | AO13: 10 | AP13: 8 | AQ13: 8 | AR13: 7 | AS13: 6 | AT13: 6 | AU13: =ROUND(AVERAGE(AU42,AU42,AT41:AV43),0) -> 5 | AV13: 4 | AW13: 4 | AX13: 3 | AY13: 2 | AZ13: 2 | BA13: 1 | BB13: 1 | BC13: 1 | BD13: 1 | BE13: 1 | CN13: 2949.22 | CO13: 4250
AA14: 3250 | AB14: 37 | AC14: 37 | AD14: 37 | AE14: 36 | AF14: 35 | AG14: 34 | AH14: 32 | AI14: 30 | AJ14: 27 | AK14: =ROUND(AVERAGE(AK43,AK43,AJ42:AL44),0) -> 24 | AL14: 20 | AM14: 16 | AN14: 13 | AO14: 11 | AP14: 9 | AQ14: 8 | AR14: 7 | AS14: 7 | AT14: 6 | AU14: =ROUND(AVERAGE(AU43,AU43,AT42:AV44),0) -> 5 | AV14: 5 | AW14: 4 | AX14: 3 | AY14: 3 | AZ14: 2 | BA14: 2 | BB14: 2 | BC14: 2 | BD14: 2 | BE14: 2 | CN14: 3367.19 | CO14: 4785.16
AA15: 3500 | AB15: 38 | AC15: 38 | AD15: 38 | AE15: 37 | AF15: 36 | AG15: 34 | AH15: 33 | AI15: 31 | AJ15: 28 | AK15: =ROUND(AVERAGE(AK44,AK44,AJ43:AL45),0) -> 25 | AL15: 21 | AM15: 17 | AN15: 14 | AO15: 12 | AP15: 10 | AQ15: 8 | AR15: 8 | AS15: 7 | AT15: 7 | AU15: =ROUND(AVERAGE(AU44,AU44,AT43:AV45),0) -> 6 | AV15: 5 | AW15: 4 | AX15: 4 | AY15: 3 | AZ15: 3 | BA15: 3 | BB15: 3 | BC15: 3 | BD15: 3 | BE15: 3 | CN15: 3789.06 | CO15: 5320.31
AA16: 3750 | AB16: 38 | AC16: 38 | AD16: 38 | AE16: 37 | AF16: 36 | AG16: 34 | AH16: 33 | AI16: 31 | AJ16: 29 | AK16: =ROUND(AVERAGE(AK45,AK45,AJ44:AL46),0) -> 26 | AL16: 21 | AM16: 17 | AN16: 14 | AO16: 12 | AP16: 10 | AQ16: 9 | AR16: 8 | AS16: 8 | AT16: 7 | AU16: =ROUND(AVERAGE(AU45,AU45,AT44:AV46),0) -> 6 | AV16: 5 | AW16: 5 | AX16: 4 | AY16: 4 | AZ16: 3 | BA16: 3 | BB16: 3 | BC16: 3 | BD16: 3 | BE16: 3 | CN16: 4210.94 | CO16: 5855.47
AA17: 4000 | AB17: 38 | AC17: 38 | AD17: 38 | AE17: 38 | AF17: 36 | AG17: 35 | AH17: 33 | AI17: 32 | AJ17: 30 | AK17: =ROUND(AVERAGE(AK46,AK46,AJ45:AL47),0) -> 27 | AL17: 22 | AM17: 17 | AN17: 15 | AO17: 12 | AP17: 11 | AQ17: 10 | AR17: 9 | AS17: 8 | AT17: 8 | AU17: =ROUND(AVERAGE(AU46,AU46,AT45:AV47),0) -> 7 | AV17: 6 | AW17: 5 | AX17: 5 | AY17: 4 | AZ17: 4 | BA17: 3 | BB17: 3 | BC17: 3 | BD17: 3 | BE17: 3 | BH17: MAP Difference Comparison | CN17: 4632.81 | CO17: 6394.53
AA18: 4250 | AB18: 38 | AC18: 38 | AD18: 38 | AE18: 38 | AF18: 37 | AG18: 35 | AH18: 33 | AI18: 32 | AJ18: 31 | AK18: =ROUND(AVERAGE(AK47,AK47,AJ46:AL48),0) -> 28 | AL18: 23 | AM18: 18 | AN18: 15 | AO18: 13 | AP18: 11 | AQ18: 10 | AR18: 9 | AS18: 9 | AT18: 8 | AU18: =ROUND(AVERAGE(AU47,AU47,AT46:AV48),0) -> 7 | AV18: 6 | AW18: 6 | AX18: 5 | AY18: 5 | AZ18: 4 | BA18: 4 | BB18: 3 | BC18: 3 | BD18: 3 | BE18: 3 | BH18: 10 | BI18: 20 | BJ18: 30 | BK18: 40 | BL18: 50 | BM18: 60 | BN18: 70 | BO18: 80 | BP18: 90 | BQ18: 100 | BR18: 120 | BS18: 140 | BT18: 160 | BU18: 180 | BV18: 200 | BW18: 210 | BX18: 220 | BY18: 230 | BZ18: 240 | CA18: 250 | CB18: 260 | CC18: 270 | CD18: 280 | CE18: 290 | CF18: 300 | CG18: 310 | CH18: 320 | CI18: 330 | CJ18: 340 | CK18: 350 | CN18: 5050.78 | CO18: 6929.69
AA19: 4500 | AB19: 38 | AC19: 38 | AD19: 38 | AE19: 38 | AF19: 37 | AG19: 35 | AH19: 33 | AI19: 32 | AJ19: 31 | AK19: =ROUND(AVERAGE(AK48,AK48,AJ47:AL49),0) -> 28 | AL19: 23 | AM19: 19 | AN19: 16 | AO19: 13 | AP19: 11 | AQ19: 10 | AR19: 10 | AS19: 10 | AT19: 9 | AU19: =ROUND(AVERAGE(AU48,AU48,AT47:AV49),0) -> 8 | AV19: 7 | AW19: 6 | AX19: 6 | AY19: 5 | AZ19: 5 | BA19: 4 | BB19: 4 | BC19: 4 | BD19: 4 | BE19: 4 | BG19: 500 | BH19: =AB6-AB35 -> 0 | BI19: =AC6-AC35 -> 0 | BJ19: =AD6-AD35 -> 0 | BK19: =AE6-AE35 -> 0 | BL19: =AF6-AF35 -> 0 | BM19: =AG6-AG35 -> 0 | BN19: =AH6-AH35 -> 0 | BO19: =AI6-AI35 -> 0 | BP19: =AJ6-AJ35 -> 0 | BQ19: =AK6-AK35 -> 0 | BR19: =AL6-AL35 -> 0 | BS19: =AM6-AM35 -> 0 | BT19: =AN6-AN35 -> 0 | BU19: =AO6-AO35 -> 0 | BV19: =AP6-AP35 -> 0 | BW19: =AQ6-AQ35 -> 0 | BX19: =AR6-AR35 -> 0 | BY19: =AS6-AS35 -> 0 | BZ19: =AT6-AT35 -> 0 | CA19: =AU6-AU35 -> 0 | CB19: =AV6-AV35 -> 0 | CC19: =AW6-AW35 -> 0 | CD19: =AX6-AX35 -> 0 | CE19: =AY6-AY35 -> 0 | CF19: =AZ6-AZ35 -> 0 | CG19: =BA6-BA35 -> 0 | CH19: =BB6-BB35 -> 0 | CI19: =BC6-BC35 -> 0 | CJ19: =BD6-BD35 -> 0 | CK19: =BE6-BE35 -> 0 | CN19: 5472.66 | CO19: 7464.84
AA20: 4750 | AB20: 38 | AC20: 38 | AD20: 38 | AE20: 38 | AF20: 37 | AG20: 35 | AH20: 33 | AI20: 32 | AJ20: 31 | AK20: =ROUND(AVERAGE(AK49,AK49,AJ48:AL50),0) -> 29 | AL20: 24 | AM20: 20 | AN20: 17 | AO20: 14 | AP20: 12 | AQ20: 11 | AR20: 11 | AS20: 11 | AT20: 10 | AU20: =ROUND(AVERAGE(AU49,AU49,AT48:AV50),0) -> 9 | AV20: 8 | AW20: 7 | AX20: 7 | AY20: 6 | AZ20: 6 | BA20: 5 | BB20: 4 | BC20: 4 | BD20: 4 | BE20: 4 | BG20: 1000 | BH20: 0 | BI20: 0 | BJ20: 0 | BK20: 0 | BL20: 0 | BM20: 0 | BN20: 0 | BO20: 0 | BP20: 0 | BQ20: 0 | BR20: 0 | BS20: 0 | BT20: 0 | BU20: 0 | BV20: 0 | BW20: 0 | BX20: 0 | BY20: 0 | BZ20: 0 | CA20: 0 | CB20: 0 | CC20: 0 | CD20: 0 | CE20: 0 | CF20: 0 | CG20: 0 | CH20: 0 | CI20: 0 | CJ20: 0 | CK20: 0 | CN20: 5894.53 | CO20: 8000
AA21: 5000 | AB21: 38 | AC21: 38 | AD21: 38 | AE21: 38 | AF21: 37 | AG21: 35 | AH21: 33 | AI21: 32 | AJ21: 31 | AK21: =ROUND(AVERAGE(AK50,AK50,AJ49:AL51),0) -> 29 | AL21: 25 | AM21: 20 | AN21: 17 | AO21: 15 | AP21: 13 | AQ21: 12 | AR21: 12 | AS21: 11 | AT21: 11 | AU21: =ROUND(AVERAGE(AU50,AU50,AT49:AV51),0) -> 10 | AV21: 9 | AW21: 8 | AX21: 8 | AY21: 7 | AZ21: 7 | BA21: 6 | BB21: 5 | BC21: 5 | BD21: 5 | BE21: 5 | BG21: 1500 | BH21: 0 | BI21: 0 | BJ21: 0 | BK21: 0 | BL21: 0 | BM21: 0 | BN21: 0 | BO21: 0 | BP21: 0 | BQ21: 0 | BR21: 0 | BS21: 0 | BT21: 0 | BU21: 0 | BV21: 0 | BW21: 0 | BX21: 0 | BY21: 0 | BZ21: 0 | CA21: 0 | CB21: 0 | CC21: 0 | CD21: 0 | CE21: 0 | CF21: 0 | CG21: 0 | CH21: 0 | CI21: 0 | CJ21: 0 | CK21: 0 | CN21: 6316.41
AA22: 5250 | AB22: 38 | AC22: 38 | AD22: 38 | AE22: 38 | AF22: 37 | AG22: 35 | AH22: 33 | AI22: 32 | AJ22: 31 | AK22: =ROUND(AVERAGE(AK51,AK51,AJ50:AL52),0) -> 29 | AL22: 25 | AM22: 21 | AN22: 18 | AO22: 16 | AP22: 14 | AQ22: 13 | AR22: 13 | AS22: 12 | AT22: 12 | AU22: =ROUND(AVERAGE(AU51,AU51,AT50:AV52),0) -> 11 | AV22: 10 | AW22: 9 | AX22: 9 | AY22: 8 | AZ22: 8 | BA22: 7 | BB22: 7 | BC22: 7 | BD22: 7 | BE22: 7 | BG22: 2000 | BH22: 0 | BI22: 0 | BJ22: 0 | BK22: 0 | BL22: 0 | BM22: 0 | BN22: 0 | BO22: 0 | BP22: 0 | BQ22: 1 | BR22: 0 | BS22: 1 | BT22: 0 | BU22: 0 | BV22: 0 | BW22: 0 | BX22: 0 | BY22: 0 | BZ22: 0 | CA22: 0 | CB22: 0 | CC22: 0 | CD22: 0 | CE22: 0 | CF22: 0 | CG22: 0 | CH22: 0 | CI22: 0 | CJ22: 0 | CK22: 0 | CN22: 6738.28
AA23: 5500 | AB23: 38 | AC23: 38 | AD23: 38 | AE23: 38 | AF23: 37 | AG23: 35 | AH23: 34 | AI23: 33 | AJ23: 32 | AK23: =ROUND(AVERAGE(AK52,AK52,AJ51:AL53),0) -> 30 | AL23: 26 | AM23: 22 | AN23: 19 | AO23: 17 | AP23: 16 | AQ23: 15 | AR23: 14 | AS23: 13 | AT23: 13 | AU23: =ROUND(AVERAGE(AU52,AU52,AT51:AV53),0) -> 12 | AV23: 11 | AW23: 10 | AX23: 10 | AY23: 9 | AZ23: 9 | BA23: 9 | BB23: 8 | BC23: 8 | BD23: 8 | BE23: 8 | BG23: 2250 | BH23: 0 | BI23: 0 | BJ23: 0 | BK23: 0 | BL23: 0 | BM23: 0 | BN23: 0 | BO23: 0 | BP23: 0 | BQ23: 0 | BR23: -1 | BS23: 0 | BT23: 0 | BU23: 0 | BV23: 0 | BW23: 0 | BX23: 0 | BY23: 0 | BZ23: 0 | CA23: 0 | CB23: 0 | CC23: 0 | CD23: 0 | CE23: 0 | CF23: 0 | CG23: 0 | CH23: 0 | CI23: 0 | CJ23: 0 | CK23: 0 | CN23: 7156.25
AA24: 5750 | AB24: 38 | AC24: 38 | AD24: 38 | AE24: 38 | AF24: 37 | AG24: 36 | AH24: 34 | AI24: 33 | AJ24: 32 | AK24: =ROUND(AVERAGE(AK53,AK53,AJ52:AL54),0) -> 30 | AL24: 27 | AM24: 23 | AN24: 20 | AO24: 18 | AP24: 17 | AQ24: 16 | AR24: 15 | AS24: 14 | AT24: 14 | AU24: =ROUND(AVERAGE(AU53,AU53,AT52:AV54),0) -> 13 | AV24: 12 | AW24: 12 | AX24: 11 | AY24: 11 | AZ24: 10 | BA24: 10 | BB24: 10 | BC24: 9 | BD24: 9 | BE24: 9 | BG24: 2500 | BH24: 0 | BI24: 0 | BJ24: 0 | BK24: 0 | BL24: 0 | BM24: 0 | BN24: 0 | BO24: 0 | BP24: 0 | BQ24: 0 | BR24: 0 | BS24: 1 | BT24: 0 | BU24: 1 | BV24: 0 | BW24: 0 | BX24: 0 | BY24: 0 | BZ24: 0 | CA24: 0 | CB24: 0 | CC24: 0 | CD24: 1 | CE24: 0 | CF24: 1 | CG24: 0 | CH24: 0 | CI24: 0 | CJ24: 0 | CK24: 0 | CN24: 7578.12
AA25: 6000 | AB25: 38 | AC25: =ROUND(AVERAGE(AC54,AC54,AB53:AD54),0) -> 38 | AD25: 38 | AE25: 38 | AF25: 37 | AG25: 36 | AH25: 34 | AI25: 33 | AJ25: 32 | AK25: 31 | AL25: 27 | AM25: 24 | AN25: 21 | AO25: 19 | AP25: 17 | AQ25: 17 | AR25: 16 | AS25: 15 | AT25: 14 | AU25: 14 | AV25: 13 | AW25: 12 | AX25: 12 | AY25: 12 | AZ25: 11 | BA25: 11 | BB25: 10 | BC25: 10 | BD25: 10 | BE25: 10 | BG25: 2750 | BH25: 0 | BI25: 0 | BJ25: -1 | BK25: 0 | BL25: 0 | BM25: 0 | BN25: 0 | BO25: -1 | BP25: 1 | BQ25: -1 | BR25: -1 | BS25: 1 | BT25: 0 | BU25: 1 | BV25: 0 | BW25: 0 | BX25: 0 | BY25: 0 | BZ25: 0 | CA25: 0 | CB25: 0 | CC25: 0 | CD25: 0 | CE25: 0 | CF25: 0 | CG25: 0 | CH25: -1 | CI25: 0 | CJ25: 0 | CK25: 0 | CN25: 8000
AA26: 6250 | AB26: 38 | AC26: =ROUND(AVERAGE(AC55,AC55,AB54:AD55),0) -> 38 | AD26: 38 | AE26: 38 | AF26: 37 | AG26: 36 | AH26: 35 | AI26: 34 | AJ26: 33 | AK26: 31 | AL26: 28 | AM26: 25 | AN26: 22 | AO26: 20 | AP26: 18 | AQ26: 18 | AR26: 17 | AS26: 17 | AT26: 16 | AU26: 15 | AV26: 15 | AW26: 14 | AX26: 14 | AY26: 13 | AZ26: 13 | BA26: 12 | BB26: 11 | BC26: 11 | BD26: 11 | BE26: 11 | BG26: 3000 | BH26: 0 | BI26: 0 | BJ26: 0 | BK26: 0 | BL26: 0 | BM26: 0 | BN26: 0 | BO26: -1 | BP26: 0 | BQ26: 0 | BR26: -1 | BS26: 0 | BT26: 0 | BU26: 0 | BV26: 0 | BW26: 0 | BX26: 0 | BY26: -1 | BZ26: 0 | CA26: 0 | CB26: -1 | CC26: 0 | CD26: 0 | CE26: 0 | CF26: 0 | CG26: 0 | CH26: 0 | CI26: 0 | CJ26: 0 | CK26: 0
AA27: 6500 | AB27: 38 | AC27: =ROUND(AVERAGE(AC56,AC56,AB55:AD56),0) -> 38 | AD27: 38 | AE27: 38 | AF27: 38 | AG27: 36 | AH27: 35 | AI27: 34 | AJ27: 33 | AK27: 32 | AL27: 29 | AM27: 26 | AN27: 23 | AO27: 21 | AP27: 19 | AQ27: 19 | AR27: 18 | AS27: 18 | AT27: 18 | AU27: 17 | AV27: 17 | AW27: 16 | AX27: 16 | AY27: 15 | AZ27: 14 | BA27: 14 | BB27: 13 | BC27: 12 | BD27: 12 | BE27: 11 | BG27: 3250 | BH27: 0 | BI27: 0 | BJ27: 0 | BK27: -1 | BL27: -1 | BM27: 0 | BN27: -1 | BO27: -1 | BP27: 0 | BQ27: -1 | BR27: 0 | BS27: 0 | BT27: -1 | BU27: 0 | BV27: 0 | BW27: 0 | BX27: 0 | BY27: 0 | BZ27: 0 | CA27: 0 | CB27: 0 | CC27: 0 | CD27: 0 | CE27: 0 | CF27: 0 | CG27: 0 | CH27: 0 | CI27: 0 | CJ27: 0 | CK27: 0
AA28: 6750 | AB28: 38 | AC28: =ROUND(AVERAGE(AC57,AC57,AB56:AD57),0) -> 38 | AD28: 38 | AE28: 38 | AF28: 38 | AG28: 36 | AH28: 35 | AI28: 34 | AJ28: 33 | AK28: 32 | AL28: 29 | AM28: 26 | AN28: 24 | AO28: 22 | AP28: 20 | AQ28: 19 | AR28: 19 | AS28: 19 | AT28: 19 | AU28: 19 | AV28: 18 | AW28: 17 | AX28: 17 | AY28: 17 | AZ28: 16 | BA28: 15 | BB28: 14 | BC28: 13 | BD28: 13 | BE28: 13 | BG28: 3500 | BH28: 0 | BI28: 0 | BJ28: 0 | BK28: 0 | BL28: 0 | BM28: 0 | BN28: 0 | BO28: -1 | BP28: 0 | BQ28: -1 | BR28: 1 | BS28: 1 | BT28: -1 | BU28: 1 | BV28: 0 | BW28: 0 | BX28: 0 | BY28: 0 | BZ28: 0 | CA28: 0 | CB28: 0 | CC28: 0 | CD28: 0 | CE28: 0 | CF28: 0 | CG28: 0 | CH28: 0 | CI28: 0 | CJ28: 0 | CK28: 0
AA29: 7000 | AB29: 38 | AC29: =ROUND(AVERAGE(AC58,AC58,AB57:AD58),0) -> 38 | AD29: 38 | AE29: 38 | AF29: 38 | AG29: 36 | AH29: 35 | AI29: 34 | AJ29: 33 | AK29: 32 | AL29: 30 | AM29: 27 | AN29: 25 | AO29: 23 | AP29: 21 | AQ29: 21 | AR29: 20 | AS29: 20 | AT29: 20 | AU29: 20 | AV29: 19 | AW29: 19 | AX29: 18 | AY29: 18 | AZ29: 18 | BA29: 17 | BB29: 16 | BC29: 15 | BD29: 14 | BE29: 14 | BG29: 3750 | BH29: 0 | BI29: 0 | BJ29: 0 | BK29: -1 | BL29: 0 | BM29: 0 | BN29: 0 | BO29: -1 | BP29: 1 | BQ29: -1 | BR29: 0 | BS29: 1 | BT29: -1 | BU29: 0 | BV29: 0 | BW29: 0 | BX29: 0 | BY29: 1 | BZ29: 0 | CA29: 0 | CB29: 0 | CC29: 0 | CD29: 0 | CE29: 0 | CF29: 0 | CG29: 0 | CH29: 0 | CI29: 0 | CJ29: 0 | CK29: 0
AA30: 7500 | AB30: 38 | AC30: =ROUND(AVERAGE(AC59,AC59,AB58:AD59),0) -> 38 | AD30: 38 | AE30: 38 | AF30: 38 | AG30: 36 | AH30: 35 | AI30: 34 | AJ30: 33 | AK30: 32 | AL30: 30 | AM30: 29 | AN30: 27 | AO30: 25 | AP30: 23 | AQ30: 22 | AR30: 22 | AS30: 22 | AT30: 21 | AU30: 21 | AV30: 20 | AW30: 20 | AX30: 20 | AY30: 20 | AZ30: 19 | BA30: 19 | BB30: 17 | BC30: 16 | BD30: 15 | BE30: 15 | BG30: 4000 | BH30: 0 | BI30: 0 | BJ30: 0 | BK30: 0 | BL30: -1 | BM30: 1 | BN30: 0 | BO30: 0 | BP30: 0 | BQ30: -1 | BR30: 1 | BS30: 1 | BT30: 0 | BU30: 0 | BV30: 0 | BW30: 0 | BX30: 0 | BY30: -1 | BZ30: 0 | CA30: 0 | CB30: 0 | CC30: 0 | CD30: 0 | CE30: 0 | CF30: 0 | CG30: 0 | CH30: 0 | CI30: 0 | CJ30: 0 | CK30: 0
BG31: 4250 | BH31: 0 | BI31: 0 | BJ31: 0 | BK31: 0 | BL31: -1 | BM31: 1 | BN31: 0 | BO31: 0 | BP31: 0 | BQ31: -1 | BR31: 1 | BS31: 1 | BT31: 0 | BU31: 1 | BV31: 0 | BW31: 0 | BX31: 0 | BY31: 0 | BZ31: 0 | CA31: 0 | CB31: 0 | CC31: 0 | CD31: 0 | CE31: 0 | CF31: 0 | CG31: 0 | CH31: 0 | CI31: 0 | CJ31: 0 | CK31: 0
Z32: 2 | AB32: Modded Ignition Map | BG32: 4500 | BH32: 0 | BI32: 0 | BJ32: 0 | BK32: 0 | BL32: -1 | BM32: 1 | BN32: 0 | BO32: 0 | BP32: 0 | BQ32: -2 | BR32: 0 | BS32: 1 | BT32: 0 | BU32: 0 | BV32: 0 | BW32: 0 | BX32: 0 | BY32: 0 | BZ32: 0 | CA32: 0 | CB32: 0 | CC32: 0 | CD32: 0 | CE32: 0 | CF32: 0 | CG32: 0 | CH32: 0 | CI32: 0 | CJ32: 0 | CK32: 0
AB33: Load Value | BG33: 4750 | BH33: 0 | BI33: 0 | BJ33: 0 | BK33: 0 | BL33: -1 | BM33: 1 | BN33: 0 | BO33: 0 | BP33: 0 | BQ33: -1 | BR33: 0 | BS33: 1 | BT33: 0 | BU33: 0 | BV33: 0 | BW33: 0 | BX33: 0 | BY33: 0 | BZ33: 0 | CA33: 0 | CB33: 0 | CC33: 0 | CD33: 0 | CE33: 0 | CF33: 0 | CG33: 0 | CH33: 0 | CI33: 0 | CJ33: 0 | CK33: 0
AB34: 10 | AC34: 20 | AD34: 30 | AE34: 40 | AF34: 50 | AG34: 60 | AH34: 70 | AI34: 80 | AJ34: 90 | AK34: 100 | AL34: 120 | AM34: 140 | AN34: 150 | AO34: 160 | AP34: 170 | AQ34: 180 | AR34: 190 | AS34: 200 | AT34: 210 | AU34: 220 | AV34: 230 | AW34: 240 | AX34: 250 | AY34: 260 | AZ34: 270 | BA34: 280 | BB34: 290 | BC34: 300 | BD34: 310 | BE34: 320 | BG34: 5000 | BH34: 0 | BI34: 0 | BJ34: 0 | BK34: 0 | BL34: -1 | BM34: 1 | BN34: 0 | BO34: 0 | BP34: 0 | BQ34: -1 | BR34: 1 | BS34: 1 | BT34: -1 | BU34: 1 | BV34: 0 | BW34: 0 | BX34: 1 | BY34: 0 | BZ34: 0 | CA34: 0 | CB34: 0 | CC34: 0 | CD34: 0 | CE34: 0 | CF34: 0 | CG34: 0 | CH34: 0 | CI34: 0 | CJ34: 0 | CK34: 0
Z35: RPM | AA35: 500 | AB35: 13 | AC35: 13 | AD35: 13 | AE35: 13 | AF35: 12 | AG35: 12 | AH35: 12 | AI35: 11 | AJ35: 10 | AK35: 9 | AL35: 6 | AM35: 4 | AN35: 3 | AO35: 2 | AP35: 2 | AQ35: 2 | AR35: 1 | AS35: 0 | AT35: -2 | AU35: -3 | AV35: -5 | AW35: -6 | AX35: -7 | AY35: -7 | AZ35: -7 | BA35: -7 | BB35: -7 | BC35: -7 | BD35: -7 | BE35: -7 | BG35: 5250 | BH35: 0 | BI35: 0 | BJ35: 0 | BK35: 0 | BL35: -1 | BM35: 1 | BN35: 0 | BO35: 0 | BP35: 0 | BQ35: -1 | BR35: -1 | BS35: 1 | BT35: -1 | BU35: 0 | BV35: 0 | BW35: -1 | BX35: 1 | BY35: 0 | BZ35: 0 | CA35: 0 | CB35: 0 | CC35: 0 | CD35: 0 | CE35: 0 | CF35: 0 | CG35: 0 | CH35: 0 | CI35: 0 | CJ35: 0 | CK35: 0
AA36: 1000 | AB36: 13 | AC36: 13 | AD36: 13 | AE36: 13 | AF36: 13 | AG36: 13 | AH36: 13 | AI36: 12 | AJ36: 11 | AK36: 10 | AL36: 7 | AM36: 5 | AN36: 4 | AO36: 3 | AP36: 3 | AQ36: 3 | AR36: 2 | AS36: 0 | AT36: -1 | AU36: -2 | AV36: -4 | AW36: -5 | AX36: -6 | AY36: -6 | AZ36: -6 | BA36: -6 | BB36: -6 | BC36: -6 | BD36: -6 | BE36: -6 | BG36: 5500 | BH36: 0 | BI36: 0 | BJ36: 0 | BK36: 0 | BL36: -1 | BM36: 0 | BN36: 0 | BO36: 0 | BP36: 0 | BQ36: -1 | BR36: -1 | BS36: 1 | BT36: -1 | BU36: 0 | BV36: 1 | BW36: 0 | BX36: 0 | BY36: 0 | BZ36: 0 | CA36: 0 | CB36: 0 | CC36: 0 | CD36: 0 | CE36: 0 | CF36: 0 | CG36: 1 | CH36: 0 | CI36: 0 | CJ36: 0 | CK36: 0
AA37: 1250 | AB37: 15 | AC37: 15 | AD37: 15 | AE37: 15 | AF37: 15 | AG37: 15 | AH37: 14 | AI37: 14 | AJ37: 13 | AK37: 11 | AL37: 8 | AM37: 6 | AN37: 5 | AO37: 4 | AP37: 4 | AQ37: 4 | AR37: 3 | AS37: 2 | AT37: 1 | AU37: 0 | AV37: -1 | AW37: -2 | AX37: -2 | AY37: -2 | AZ37: -2 | BA37: -2 | BB37: -2 | BC37: -2 | BD37: -2 | BE37: -2 | BG37: 6000 | BH37: 0 | BI37: 0 | BJ37: 0 | BK37: 0 | BL37: -1 | BM37: 1 | BN37: 0 | BO37: 0 | BP37: 0 | BQ37: -1 | BR37: -1 | BS37: 1 | BT37: -1 | BU37: 0 | BV37: 1 | BW37: 0 | BX37: -1 | BY37: 0 | BZ37: 0 | CA37: 0 | CB37: 0 | CC37: 0 | CD37: 0 | CE37: 0 | CF37: -1 | CG37: 0 | CH37: 0 | CI37: 0 | CJ37: 0 | CK37: 0
AA38: 1500 | AB38: 18 | AC38: 18 | AD38: 18 | AE38: 18 | AF38: 18 | AG38: 18 | AH38: 18 | AI38: 17 | AJ38: 15 | AK38: 12 | AL38: 10 | AM38: 7 | AN38: 6 | AO38: 6 | AP38: 5 | AQ38: 5 | AR38: 4 | AS38: 3 | AT38: 2 | AU38: 1 | AV38: 0 | AW38: -1 | AX38: -1 | AY38: -1 | AZ38: -1 | BA38: -1 | BB38: -1 | BC38: -1 | BD38: -1 | BE38: -1 | BG38: 6500 | BH38: 0 | BI38: 0 | BJ38: 0 | BK38: 0 | BL38: -1 | BM38: 1 | BN38: 0 | BO38: 0 | BP38: 0 | BQ38: 0 | BR38: -1 | BS38: 1 | BT38: -1 | BU38: 0 | BV38: 0 | BW38: 0 | BX38: -1 | BY38: 0 | BZ38: -1 | CA38: 0 | CB38: 0 | CC38: -1 | CD38: 0 | CE38: 0 | CF38: -1 | CG38: 0 | CH38: -1 | CI38: 0 | CJ38: 0 | CK38: 0
AA39: 2000 | AB39: 29 | AC39: 29 | AD39: 29 | AE39: 28 | AF39: 27 | AG39: 26 | AH39: 25 | AI39: 23 | AJ39: 19 | AK39: 16 | AL39: 14 | AM39: 10 | AN39: 8 | AO39: 7 | AP39: 6 | AQ39: 5 | AR39: 4 | AS39: 4 | AT39: 3 | AU39: 3 | AV39: 2 | AW39: 0 | AX39: 0 | AY39: 0 | AZ39: -1 | BA39: -1 | BB39: -1 | BC39: -1 | BD39: -1 | BE39: -1 | BG39: 7000 | BH39: 0 | BI39: 0 | BJ39: 0 | BK39: 0 | BL39: -1 | BM39: 0 | BN39: 0 | BO39: 0 | BP39: 0 | BQ39: -1 | BR39: -1 | BS39: 1 | BT39: -1 | BU39: 0 | BV39: 0 | BW39: 0 | BX39: -1 | BY39: 0 | BZ39: -1 | CA39: -1 | CB39: 0 | CC39: -1 | CD39: 0 | CE39: -1 | CF39: 0 | CG39: 0 | CH39: -1 | CI39: 0 | CJ39: 0 | CK39: 0
AA40: 2500 | AB40: 33 | AC40: 33 | AD40: 33 | AE40: 31 | AF40: 30 | AG40: 29 | AH40: 27 | AI40: 25 | AJ40: 21 | AK40: 18 | AL40: 15 | AM40: 11 | AN40: 9 | AO40: 7 | AP40: 6 | AQ40: 6 | AR40: 5 | AS40: 5 | AT40: 4 | AU40: 3 | AV40: 2 | AW40: 1 | AX40: 0 | AY40: 0 | AZ40: -1 | BA40: -1 | BB40: -1 | BC40: -1 | BD40: -1 | BE40: -1 | BG40: 7500 | BH40: 0 | BI40: 0 | BJ40: 0 | BK40: 0 | BL40: 0 | BM40: 0 | BN40: 0 | BO40: 0 | BP40: 0 | BQ40: 0 | BR40: 0 | BS40: 1 | BT40: -1 | BU40: 0 | BV40: 0 | BW40: 0 | BX40: 0 | BY40: 0 | BZ40: 0 | CA40: -1 | CB40: 0 | CC40: -1 | CD40: 0 | CE40: -1 | CF40: -1 | CG40: 0 | CH40: -1 | CI40: 0 | CJ40: 0 | CK40: 0
AA41: 2750 | AB41: 35 | AC41: 35 | AD41: 35 | AE41: 33 | AF41: 32 | AG41: 31 | AH41: 29 | AI41: 28 | AJ41: 23 | AK41: 22 | AL41: 18 | AM41: 13 | AN41: 11 | AO41: 8 | AP41: 7 | AQ41: 7 | AR41: 6 | AS41: 6 | AT41: 5 | AU41: 4 | AV41: 3 | AW41: 3 | AX41: 2 | AY41: 1 | AZ41: 1 | BA41: 1 | BB41: 1 | BC41: 0 | BD41: 0 | BE41: 0 | BG41: 8000 | BH41: 0 | BI41: 0 | BJ41: 0 | BK41: 0 | BL41: 0 | BM41: 0 | BN41: 0 | BO41: 0 | BP41: 0 | BQ41: 0 | BR41: -1 | BS41: 0 | BT41: -1 | BU41: 0 | BV41: 0 | BW41: -1 | BX41: 0 | BY41: 0 | BZ41: -1 | CA41: 0 | CB41: 0 | CC41: -1 | CD41: 0 | CE41: 0 | CF41: -1 | CG41: -1 | CH41: -1 | CI41: 0 | CJ41: 0 | CK41: 0
AA42: 3000 | AB42: 36 | AC42: 36 | AD42: 36 | AE42: 35 | AF42: 34 | AG42: 33 | AH42: 31 | AI42: 30 | AJ42: 26 | AK42: 23 | AL42: 20 | AM42: 15 | AN42: 12 | AO42: 10 | AP42: 8 | AQ42: 8 | AR42: 7 | AS42: 7 | AT42: 6 | AU42: 5 | AV42: 5 | AW42: 4 | AX42: 3 | AY42: 2 | AZ42: 2 | BA42: 1 | BB42: 1 | BC42: 1 | BD42: 1 | BE42: 1 | BG42: 8500 | BH42: 0 | BI42: 0 | BJ42: 0 | BK42: 0 | BL42: 0 | BM42: 0 | BN42: 0 | BO42: 0 | BP42: 0 | BQ42: 0 | BR42: 0 | BS42: 0 | BT42: -1 | BU42: 0 | BV42: 0 | BW42: 0 | BX42: -1 | BY42: -1 | BZ42: -1 | CA42: 0 | CB42: 0 | CC42: 0 | CD42: -1 | CE42: -1 | CF42: -1 | CG42: -1 | CH42: -1 | CI42: 0 | CJ42: 0 | CK42: 0
AA43: 3250 | AB43: 37 | AC43: 37 | AD43: 37 | AE43: 37 | AF43: 36 | AG43: 34 | AH43: 33 | AI43: 31 | AJ43: 27 | AK43: 25 | AL43: 20 | AM43: 16 | AN43: 14 | AO43: 11 | AP43: 9 | AQ43: 8 | AR43: 7 | AS43: 7 | AT43: 6 | AU43: 5 | AV43: 5 | AW43: 4 | AX43: 3 | AY43: 3 | AZ43: 2 | BA43: 2 | BB43: 2 | BC43: 2 | BD43: 2 | BE43: 2 | BG43: 11000 | BH43: 0 | BI43: 0 | BJ43: 0 | BK43: 0 | BL43: 0 | BM43: 0 | BN43: 0 | BO43: 0 | BP43: 0 | BQ43: 0 | BR43: -1 | BS43: 0 | BT43: -1 | BU43: 0 | BV43: -1 | BW43: -1 | BX43: 0 | BY43: 0 | BZ43: -1 | CA43: 0 | CB43: 0 | CC43: 0 | CD43: 0 | CE43: 0 | CF43: -1 | CG43: 0 | CH43: -1 | CI43: 0 | CJ43: 0 | CK43: 0
AA44: 3500 | AB44: 38 | AC44: 38 | AD44: 38 | AE44: 37 | AF44: 36 | AG44: 34 | AH44: 33 | AI44: 32 | AJ44: 28 | AK44: 26 | AL44: 20 | AM44: 16 | AN44: 15 | AO44: 11 | AP44: 10 | AQ44: 8 | AR44: 8 | AS44: 7 | AT44: 7 | AU44: 6 | AV44: 5 | AW44: 4 | AX44: 4 | AY44: 3 | AZ44: 3 | BA44: 3 | BB44: 3 | BC44: 3 | BD44: 3 | BE44: 3
AA45: 3750 | AB45: 38 | AC45: 38 | AD45: 38 | AE45: 38 | AF45: 36 | AG45: 34 | AH45: 33 | AI45: 32 | AJ45: 28 | AK45: 27 | AL45: 21 | AM45: 16 | AN45: 15 | AO45: 12 | AP45: 10 | AQ45: 9 | AR45: 8 | AS45: 7 | AT45: 7 | AU45: 6 | AV45: 5 | AW45: 5 | AX45: 4 | AY45: 4 | AZ45: 3 | BA45: 3 | BB45: 3 | BC45: 3 | BD45: 3 | BE45: 3
AA46: 4000 | AB46: 38 | AC46: 38 | AD46: 38 | AE46: 38 | AF46: 37 | AG46: 34 | AH46: 33 | AI46: 32 | AJ46: 30 | AK46: 28 | AL46: 21 | AM46: 16 | AN46: 15 | AO46: 12 | AP46: 11 | AQ46: 10 | AR46: 9 | AS46: 9 | AT46: 8 | AU46: 7 | AV46: 6 | AW46: 5 | AX46: 5 | AY46: 4 | AZ46: 4 | BA46: 3 | BB46: 3 | BC46: 3 | BD46: 3 | BE46: 3
AA47: 4250 | AB47: 38 | AC47: 38 | AD47: 38 | AE47: 38 | AF47: 38 | AG47: 34 | AH47: 33 | AI47: 32 | AJ47: 31 | AK47: 29 | AL47: 22 | AM47: 17 | AN47: 15 | AO47: 12 | AP47: 11 | AQ47: 10 | AR47: 9 | AS47: 9 | AT47: 8 | AU47: 7 | AV47: 6 | AW47: 6 | AX47: 5 | AY47: 5 | AZ47: 4 | BA47: 4 | BB47: 3 | BC47: 3 | BD47: 3 | BE47: 3 | BH47: MAP Difference Comparison
AA48: 4500 | AB48: 38 | AC48: 38 | AD48: 38 | AE48: 38 | AF48: 38 | AG48: 34 | AH48: 33 | AI48: 32 | AJ48: 31 | AK48: 30 | AL48: 23 | AM48: 18 | AN48: 16 | AO48: 13 | AP48: 11 | AQ48: 10 | AR48: 10 | AS48: 10 | AT48: 9 | AU48: 8 | AV48: 7 | AW48: 6 | AX48: 6 | AY48: 5 | AZ48: 5 | BA48: 4 | BB48: 4 | BC48: 4 | BD48: 4 | BE48: 4 | BH48: 10 | BI48: 20 | BJ48: 30 | BK48: 40 | BL48: 50 | BM48: 60 | BN48: 70 | BO48: 80 | BP48: 90 | BQ48: 100 | BR48: 120 | BS48: 140 | BT48: 160 | BU48: 180 | BV48: 200 | BW48: 210 | BX48: 220 | BY48: 230 | BZ48: 240 | CA48: 250 | CB48: 260 | CC48: 270 | CD48: 280 | CE48: 290 | CF48: 300 | CG48: 310 | CH48: 320 | CI48: 330 | CJ48: 340 | CK48: 350
AA49: 4750 | AB49: 38 | AC49: 38 | AD49: 38 | AE49: 38 | AF49: 38 | AG49: 34 | AH49: 33 | AI49: 32 | AJ49: 31 | AK49: 30 | AL49: 24 | AM49: 19 | AN49: 17 | AO49: 14 | AP49: 12 | AQ49: 11 | AR49: 11 | AS49: 11 | AT49: 10 | AU49: 9 | AV49: 8 | AW49: 7 | AX49: 7 | AY49: 6 | AZ49: 6 | BA49: 5 | BB49: 4 | BC49: 4 | BD49: 4 | BE49: 4 | BG49: 500 | BH49: =AB35-AB64 -> 8 | BI49: =AC35-AC64 -> 8 | BJ49: =AD35-AD64 -> 8 | BK49: =AE35-AE64 -> 8 | BL49: =AF35-AF64 -> 2 | BM49: =AG35-AG64 -> -3 | BN49: =AH35-AH64 -> -3 | BO49: =AI35-AI64 -> -1 | BP49: =AJ35-AJ64 -> 3 | BQ49: =AK35-AK64 -> 4 | BR49: =AL35-AL64 -> 4 | BS49: =AM35-AM64 -> 5 | BT49: =AN35-AN64 -> 7 | BU49: =AO35-AO64 -> 9 | BV49: =AP35-AP64 -> 12 | BW49: =AQ35-AQ64 -> 12 | BX49: =AR35-AR64 -> 11 | BY49: =AS35-AS64 -> 10 | BZ49: =AT35-AT64 -> 8 | CA49: =AU35-AU64 -> 7 | CB49: =AV35-AV64 -> 5 | CC49: =AW35-AW64 -> 4 | CD49: =AX35-AX64 -> 3 | CE49: =AY35-AY64 -> 3 | CF49: =AZ35-AZ64 -> 3 | CG49: =BA35-BA64 -> 3 | CH49: =BB35-BB64 -> 3 | CI49: =BC35-BC64 -> 3 | CJ49: =BD35-BD64 -> 3 | CK49: =BE35-BE64 -> 3
AA50: 5000 | AB50: 38 | AC50: 38 | AD50: 38 | AE50: 38 | AF50: 38 | AG50: 34 | AH50: 33 | AI50: 32 | AJ50: 31 | AK50: 30 | AL50: 24 | AM50: 19 | AN50: 18 | AO50: 14 | AP50: 13 | AQ50: 12 | AR50: 11 | AS50: 11 | AT50: 11 | AU50: 10 | AV50: 9 | AW50: 8 | AX50: 8 | AY50: 7 | AZ50: 7 | BA50: 6 | BB50: 5 | BC50: 5 | BD50: 5 | BE50: 5 | BG50: 1000 | BH50: 8 | BI50: 8 | BJ50: 8 | BK50: 8 | BL50: 3 | BM50: -2 | BN50: -2 | BO50: 2 | BP50: 3 | BQ50: 4 | BR50: 4 | BS50: 5 | BT50: 7 | BU50: 9 | BV50: 12 | BW50: 13 | BX50: 12 | BY50: 10 | BZ50: 9 | CA50: 8 | CB50: 6 | CC50: 5 | CD50: 4 | CE50: 4 | CF50: 4 | CG50: 4 | CH50: 4 | CI50: 4 | CJ50: 4 | CK50: 4
AA51: 5250 | AB51: 38 | AC51: 38 | AD51: 38 | AE51: 38 | AF51: 38 | AG51: 34 | AH51: 33 | AI51: 32 | AJ51: 31 | AK51: 30 | AL51: 26 | AM51: 20 | AN51: 19 | AO51: 16 | AP51: 14 | AQ51: 14 | AR51: 12 | AS51: 12 | AT51: 12 | AU51: 11 | AV51: 10 | AW51: 9 | AX51: 9 | AY51: 8 | AZ51: 8 | BA51: 7 | BB51: 7 | BC51: 7 | BD51: 7 | BE51: 7 | BG51: 1500 | BH51: 0 | BI51: 0 | BJ51: 0 | BK51: 0 | BL51: -2 | BM51: -6 | BN51: -7 | BO51: -5 | BP51: -1 | BQ51: -1 | BR51: 0 | BS51: 1 | BT51: 3 | BU51: 5 | BV51: 8 | BW51: 10 | BX51: 10 | BY51: 11 | BZ51: 11 | CA51: 11 | CB51: 9 | CC51: 8 | CD51: 8 | CE51: 8 | CF51: 8 | CG51: 8 | CH51: 8 | CI51: 8 | CJ51: 8 | CK51: 8
AA52: 5500 | AB52: 38 | AC52: 38 | AD52: 38 | AE52: 38 | AF52: 38 | AG52: 35 | AH52: 34 | AI52: 33 | AJ52: 32 | AK52: 31 | AL52: 27 | AM52: 21 | AN52: 20 | AO52: 17 | AP52: 15 | AQ52: 15 | AR52: 14 | AS52: 13 | AT52: 13 | AU52: 12 | AV52: 11 | AW52: 10 | AX52: 10 | AY52: 9 | AZ52: 9 | BA52: 8 | BB52: 8 | BC52: 8 | BD52: 8 | BE52: 8 | BG52: 2000 | BH52: -12 | BI52: -12 | BJ52: -12 | BK52: -12 | BL52: -12 | BM52: -12 | BN52: -10 | BO52: -7 | BP52: -5 | BQ52: -4 | BR52: -1 | BS52: -2 | BT52: 0 | BU52: 3 | BV52: 5 | BW52: 7 | BX52: 7 | BY52: 8 | BZ52: 8 | CA52: 9 | CB52: 9 | CC52: 9 | CD52: 9 | CE52: 9 | CF52: 9 | CG52: 9 | CH52: 9 | CI52: 9 | CJ52: 9 | CK52: 9
AA53: 5750 | AB53: 38 | AC53: 38 | AD53: 38 | AE53: 38 | AF53: 38 | AG53: 35 | AH53: 34 | AI53: 33 | AJ53: 32 | AK53: 31 | AL53: 28 | AM53: 22 | AN53: 21 | AO53: 18 | AP53: 16 | AQ53: 16 | AR53: 16 | AS53: 14 | AT53: 14 | AU53: 13 | AV53: 12 | AW53: 12 | AX53: 11 | AY53: 11 | AZ53: 11 | BA53: 10 | BB53: 10 | BC53: 9 | BD53: 9 | BE53: 9 | BG53: 2250 | BH53: -4 | BI53: -4 | BJ53: -4 | BK53: -5 | BL53: -5 | BM53: -4 | BN53: -4 | BO53: -1 | BP53: -3 | BQ53: -3 | BR53: 0 | BS53: 0 | BT53: 1 | BU53: 3 | BV53: 5 | BW53: 6 | BX53: 7 | BY53: 8 | BZ53: 9 | CA53: 10 | CB53: 11 | CC53: 9 | CD53: 10 | CE53: 10 | CF53: 9 | CG53: 9 | CH53: 9 | CI53: 9 | CJ53: 9 | CK53: 9
AA54: 6000 | AB54: 38 | AC54: 38 | AD54: 38 | AE54: 38 | AF54: 38 | AG54: 35 | AH54: 34 | AI54: 33 | AJ54: 32 | AK54: 31 | AL54: 28 | AM54: 23 | AN54: 22 | AO54: 19 | AP54: 17 | AQ54: 17 | AR54: 17 | AS54: 15 | AT54: 15 | AU54: 14 | AV54: 13 | AW54: 13 | AX54: 12 | AY54: 12 | AZ54: 12 | BA54: 11 | BB54: 11 | BC54: 10 | BD54: 10 | BE54: 10 | BG54: 2500 | BH54: -2 | BI54: -2 | BJ54: -2 | BK54: -4 | BL54: -3 | BM54: -1 | BN54: -2 | BO54: 1 | BP54: -3 | BQ54: -4 | BR54: -2 | BS54: 1 | BT54: 2 | BU54: 3 | BV54: 5 | BW54: 6 | BX54: 7 | BY54: 9 | BZ54: 9 | CA54: 10 | CB54: 10 | CC54: 10 | CD54: 10 | CE54: 11 | CF54: 9 | CG54: 9 | CH54: 9 | CI54: 9 | CJ54: 9 | CK54: 9
AA55: 6250 | AB55: 38 | AC55: 38 | AD55: 38 | AE55: 38 | AF55: 38 | AG55: 36 | AH55: 35 | AI55: 34 | AJ55: 33 | AK55: 32 | AL55: 29 | AM55: 24 | AN55: 23 | AO55: 20 | AP55: 18 | AQ55: 18 | AR55: 18 | AS55: 17 | AT55: 17 | AU55: 16 | AV55: 15 | AW55: 15 | AX55: 14 | AY55: 14 | AZ55: 13 | BA55: 12 | BB55: 12 | BC55: 11 | BD55: 11 | BE55: 11 | BG55: 2750 | BH55: 0 | BI55: 0 | BJ55: 0 | BK55: -2 | BL55: -1 | BM55: 1 | BN55: -1 | BO55: 2 | BP55: -3 | BQ55: -1 | BR55: -1 | BS55: 1 | BT55: 3 | BU55: 3 | BV55: 5 | BW55: 6 | BX55: 7 | BY55: 8 | BZ55: 9 | CA55: 9 | CB55: 10 | CC55: 11 | CD55: 11 | CE55: 11 | CF55: 11 | CG55: 11 | CH55: 11 | CI55: 10 | CJ55: 10 | CK55: 10
AA56: 6500 | AB56: 38 | AC56: 38 | AD56: 38 | AE56: 38 | AF56: 38 | AG56: 36 | AH56: 35 | AI56: 34 | AJ56: 33 | AK56: 32 | AL56: 29 | AM56: 25 | AN56: 24 | AO56: 21 | AP56: 19 | AQ56: 19 | AR56: 18 | AS56: 18 | AT56: 18 | AU56: 18 | AV56: 17 | AW56: 17 | AX56: 16 | AY56: 16 | AZ56: 15 | BA56: 14 | BB56: 14 | BC56: 12 | BD56: 12 | BE56: 11 | BG56: 3000 | BH56: 1 | BI56: 1 | BJ56: 1 | BK56: 0 | BL56: 1 | BM56: 3 | BN56: 1 | BO56: 2 | BP56: -1 | BQ56: 0 | BR56: 0 | BS56: 2 | BT56: 3 | BU56: 5 | BV56: 5 | BW56: 6 | BX56: 6 | BY56: 8 | BZ56: 8 | CA56: 9 | CB56: 10 | CC56: 11 | CD56: 11 | CE56: 11 | CF56: 12 | CG56: 11 | CH56: 11 | CI56: 11 | CJ56: 11 | CK56: 11
AA57: 6750 | AB57: 38 | AC57: 38 | AD57: 38 | AE57: 38 | AF57: 38 | AG57: 36 | AH57: 35 | AI57: 34 | AJ57: 33 | AK57: 32 | AL57: 30 | AM57: 26 | AN57: 25 | AO57: 22 | AP57: 20 | AQ57: 20 | AR57: 19 | AS57: 19 | AT57: 20 | AU57: 19 | AV57: 18 | AW57: 18 | AX57: 17 | AY57: 17 | AZ57: 17 | BA57: 16 | BB57: 15 | BC57: 13 | BD57: 13 | BE57: 13 | BG57: 3250 | BH57: 2 | BI57: 2 | BJ57: 2 | BK57: 2 | BL57: 3 | BM57: 4 | BN57: 4 | BO57: 4 | BP57: 1 | BQ57: 1 | BR57: -1 | BS57: 2 | BT57: 4 | BU57: 5 | BV57: 5 | BW57: 5 | BX57: 5 | BY57: 6 | BZ57: 7 | CA57: 8 | CB57: 9 | CC57: 10 | CD57: 10 | CE57: 11 | CF57: 12 | CG57: 12 | CH57: 12 | CI57: 12 | CJ57: 12 | CK57: 12
AA58: 7000 | AB58: 38 | AC58: 38 | AD58: 38 | AE58: 38 | AF58: 38 | AG58: 36 | AH58: 35 | AI58: 34 | AJ58: 33 | AK58: 32 | AL58: 30 | AM58: 27 | AN58: 26 | AO58: 23 | AP58: 21 | AQ58: 21 | AR58: 21 | AS58: 21 | AT58: 21 | AU58: 20 | AV58: 19 | AW58: 19 | AX58: 19 | AY58: 19 | AZ58: 19 | BA58: 18 | BB58: 17 | BC58: 15 | BD58: 14 | BE58: 14 | BG58: 3500 | BH58: 3 | BI58: 3 | BJ58: 3 | BK58: 2 | BL58: 3 | BM58: 4 | BN58: 6 | BO58: 6 | BP58: 3 | BQ58: 1 | BR58: -2 | BS58: 2 | BT58: 5 | BU58: 4 | BV58: 5 | BW58: 4 | BX58: 5 | BY58: 5 | BZ58: 7 | CA58: 8 | CB58: 8 | CC58: 9 | CD58: 10 | CE58: 11 | CF58: 12 | CG58: 12 | CH58: 12 | CI58: 12 | CJ58: 12 | CK58: 12
AA59: 7500 | AB59: 38 | AC59: 38 | AD59: 38 | AE59: 38 | AF59: 38 | AG59: 36 | AH59: 35 | AI59: 34 | AJ59: 33 | AK59: 32 | AL59: 31 | AM59: 29 | AN59: 28 | AO59: 25 | AP59: 24 | AQ59: 23 | AR59: 22 | AS59: 22 | AT59: 22 | AU59: 21 | AV59: 20 | AW59: 20 | AX59: 20 | AY59: 20 | AZ59: 20 | BA59: 19 | BB59: 18 | BC59: 16 | BD59: 15 | BE59: 15 | BG59: 3750 | BH59: 3 | BI59: 3 | BJ59: 3 | BK59: 3 | BL59: 3 | BM59: 4 | BN59: 6 | BO59: 6 | BP59: 3 | BQ59: 2 | BR59: -1 | BS59: 1 | BT59: 4 | BU59: 4 | BV59: 4 | BW59: 5 | BX59: 5 | BY59: 6 | BZ59: 7 | CA59: 8 | CB59: 8 | CC59: 10 | CD59: 10 | CE59: 12 | CF59: 12 | CG59: 12 | CH59: 12 | CI59: 12 | CJ59: 12 | CK59: 12
BG60: 4000 | BH60: 3 | BI60: 3 | BJ60: 3 | BK60: 3 | BL60: 4 | BM60: 4 | BN60: 6 | BO60: 6 | BP60: 5 | BQ60: 3 | BR60: -1 | BS60: 0 | BT60: 3 | BU60: 3 | BV60: 5 | BW60: 5 | BX60: 7 | BY60: 8 | BZ60: 8 | CA60: 9 | CB60: 9 | CC60: 10 | CD60: 11 | CE60: 12 | CF60: 13 | CG60: 12 | CH60: 12 | CI60: 12 | CJ60: 12 | CK60: 12
Z61: 3 | AB61: Stock / Original Ignition Map | BG61: 4250 | BH61: 3 | BI61: 3 | BJ61: 3 | BK61: 3 | BL61: 5 | BM61: 4 | BN61: 6 | BO61: 6 | BP61: 6 | BQ61: 4 | BR61: -1 | BS61: 1 | BT61: 3 | BU61: 3 | BV61: 5 | BW61: 5 | BX61: 6 | BY61: 7 | BZ61: 7 | CA61: 8 | CB61: 9 | CC61: 10 | CD61: 11 | CE61: 12 | CF61: 13 | CG61: 13 | CH61: 12 | CI61: 12 | CJ61: 12 | CK61: 12
AB62: Load Value | BG62: 4500 | BH62: 3 | BI62: 3 | BJ62: 3 | BK62: 3 | BL62: 5 | BM62: 4 | BN62: 6 | BO62: 6 | BP62: 6 | BQ62: 5 | BR62: 0 | BS62: 2 | BT62: 4 | BU62: 4 | BV62: 5 | BW62: 5 | BX62: 6 | BY62: 7 | BZ62: 8 | CA62: 9 | CB62: 9 | CC62: 10 | CD62: 11 | CE62: 12 | CF62: 13 | CG62: 12 | CH62: 12 | CI62: 12 | CJ62: 12 | CK62: 12
AB63: 10 | AC63: 20 | AD63: 30 | AE63: 40 | AF63: 50 | AG63: 60 | AH63: 70 | AI63: 80 | AJ63: 90 | AK63: 100 | AL63: 120 | AM63: 140 | AN63: 150 | AO63: 160 | AP63: 170 | AQ63: 180 | AR63: 190 | AS63: 200 | AT63: 210 | AU63: 220 | AV63: 230 | AW63: 240 | AX63: 250 | AY63: 260 | AZ63: 270 | BA63: 280 | BB63: 290 | BC63: 300 | BD63: 310 | BE63: 320 | BG63: 4750 | BH63: 3 | BI63: 3 | BJ63: 3 | BK63: 3 | BL63: 5 | BM63: 4 | BN63: 6 | BO63: 6 | BP63: 6 | BQ63: 5 | BR63: 0 | BS63: 2 | BT63: 5 | BU63: 4 | BV63: 5 | BW63: 5 | BX63: 6 | BY63: 8 | BZ63: 8 | CA63: 9 | CB63: 10 | CC63: 10 | CD63: 12 | CE63: 12 | CF63: 14 | CG63: 13 | CH63: 12 | CI63: 12 | CJ63: 12 | CK63: 12
Z64: RPM | AA64: 500 | AB64: 5 | AC64: 5 | AD64: 5 | AE64: 5 | AF64: 10 | AG64: 15 | AH64: 15 | AI64: 12 | AJ64: 7 | AK64: 5 | AL64: 2 | AM64: -1 | AN64: -4 | AO64: -7 | AP64: -10 | AQ64: -10 | AR64: -10 | AS64: -10 | AT64: -10 | AU64: -10 | AV64: -10 | AW64: -10 | AX64: -10 | AY64: -10 | AZ64: -10 | BA64: -10 | BB64: -10 | BC64: -10 | BD64: -10 | BE64: -10 | BG64: 5000 | BH64: 3 | BI64: 3 | BJ64: 3 | BK64: 3 | BL64: 5 | BM64: 4 | BN64: 6 | BO64: 6 | BP64: 6 | BQ64: 5 | BR64: 0 | BS64: 2 | BT64: 6 | BU64: 4 | BV64: 6 | BW64: 6 | BX64: 6 | BY64: 7 | BZ64: 9 | CA64: 9 | CB64: 10 | CC64: 11 | CD64: 12 | CE64: 13 | CF64: 14 | CG64: 13 | CH64: 12 | CI64: 12 | CJ64: 12 | CK64: 12
AA65: 1000 | AB65: 5 | AC65: 5 | AD65: 5 | AE65: 5 | AF65: 10 | AG65: 15 | AH65: 15 | AI65: 10 | AJ65: 8 | AK65: 6 | AL65: 3 | AM65: 0 | AN65: -3 | AO65: -6 | AP65: -9 | AQ65: -10 | AR65: -10 | AS65: -10 | AT65: -10 | AU65: -10 | AV65: -10 | AW65: -10 | AX65: -10 | AY65: -10 | AZ65: -10 | BA65: -10 | BB65: -10 | BC65: -10 | BD65: -10 | BE65: -10 | BG65: 5250 | BH65: 3 | BI65: 3 | BJ65: 3 | BK65: 3 | BL65: 5 | BM65: 3 | BN65: 4 | BO65: 4 | BP65: 4 | BQ65: 4 | BR65: 2 | BS65: 2 | BT65: 6 | BU65: 5 | BV65: 5 | BW65: 7 | BX65: 6 | BY65: 7 | BZ65: 9 | CA65: 9 | CB65: 10 | CC65: 11 | CD65: 13 | CE65: 13 | CF65: 15 | CG65: 14 | CH65: 14 | CI65: 14 | CJ65: 14 | CK65: 14
AA66: 1250 | AB66: 15 | AC66: 15 | AD66: 15 | AE66: 15 | AF66: 17 | AG66: 21 | AH66: 21 | AI66: 19 | AJ66: 14 | AK66: 12 | AL66: 8 | AM66: 5 | AN66: 2 | AO66: -1 | AP66: -4 | AQ66: -6 | AR66: -7 | AS66: -9 | AT66: -10 | AU66: -11 | AV66: -10 | AW66: -10 | AX66: -10 | AY66: -10 | AZ66: -10 | BA66: -10 | BB66: -10 | BC66: -10 | BD66: -10 | BE66: -10 | BG66: 5500 | BH66: 3 | BI66: 3 | BJ66: 3 | BK66: 3 | BL66: 5 | BM66: 3 | BN66: 3 | BO66: 4 | BP66: 4 | BQ66: 5 | BR66: 3 | BS66: 2 | BT66: 6 | BU66: 5 | BV66: 5 | BW66: 6 | BX66: 7 | BY66: 7 | BZ66: 9 | CA66: 9 | CB66: 10 | CC66: 11 | CD66: 13 | CE66: 14 | CF66: 15 | CG66: 14 | CH66: 14 | CI66: 14 | CJ66: 14 | CK66: 14
AA67: 1500 | AB67: 30 | AC67: 30 | AD67: 30 | AE67: 30 | AF67: 30 | AG67: 30 | AH67: 28 | AI67: 24 | AJ67: 20 | AK67: 16 | AL67: 11 | AM67: 9 | AN67: 6 | AO67: 3 | AP67: 0 | AQ67: -2 | AR67: -3 | AS67: -5 | AT67: -6 | AU67: -8 | AV67: -9 | AW67: -10 | AX67: -10 | AY67: -10 | AZ67: -10 | BA67: -10 | BB67: -10 | BC67: -10 | BD67: -10 | BE67: -10 | BG67: 6000 | BH67: 3 | BI67: 3 | BJ67: 3 | BK67: 3 | BL67: 4 | BM67: 3 | BN67: 3 | BO67: 3 | BP67: 3 | BQ67: 3 | BR67: 4 | BS67: 4 | BT67: 6 | BU67: 5 | BV67: 5 | BW67: 6 | BX67: 8 | BY67: 7 | BZ67: 9 | CA67: 9 | CB67: 10 | CC67: 11 | CD67: 12 | CE67: 14 | CF67: 15 | CG67: 14 | CH67: 14 | CI67: 13 | CJ67: 13 | CK67: 13
AA68: 2000 | AB68: 33 | AC68: 33 | AD68: 33 | AE68: 33 | AF68: 32 | AG68: 30 | AH68: 29 | AI68: 24 | AJ68: 22 | AK68: 19 | AL68: 14 | AM68: 10 | AN68: 7 | AO68: 4 | AP68: 1 | AQ68: -1 | AR68: -3 | AS68: -4 | AT68: -6 | AU68: -7 | AV68: -9 | AW68: -9 | AX68: -10 | AY68: -10 | AZ68: -10 | BA68: -10 | BB68: -10 | BC68: -10 | BD68: -10 | BE68: -10 | BG68: 6500 | BH68: 0 | BI68: 0 | BJ68: 0 | BK68: 0 | BL68: 1 | BM68: 0 | BN68: 0 | BO68: -1 | BP68: -1 | BQ68: 1 | BR68: 3 | BS68: 3 | BT68: 5 | BU68: 4 | BV68: 4 | BW68: 5 | BX68: 7 | BY68: 6 | BZ68: 8 | CA68: 8 | CB68: 9 | CC68: 10 | CD68: 11 | CE68: 13 | CF68: 14 | CG68: 13 | CH68: 13 | CI68: 12 | CJ68: 12 | CK68: 12
AA69: 2500 | AB69: 35 | AC69: 35 | AD69: 35 | AE69: 35 | AF69: 33 | AG69: 30 | AH69: 29 | AI69: 24 | AJ69: 24 | AK69: 22 | AL69: 17 | AM69: 10 | AN69: 7 | AO69: 4 | AP69: 1 | AQ69: 0 | AR69: -2 | AS69: -4 | AT69: -5 | AU69: -7 | AV69: -8 | AW69: -9 | AX69: -10 | AY69: -11 | AZ69: -10 | BA69: -10 | BB69: -10 | BC69: -10 | BD69: -10 | BE69: -10 | BG69: 7000 | BH69: 0 | BI69: 0 | BJ69: 0 | BK69: 0 | BL69: 1 | BM69: 0 | BN69: 0 | BO69: 0 | BP69: -1 | BQ69: -2 | BR69: -2 | BS69: 2 | BT69: 4 | BU69: 4 | BV69: 4 | BW69: 5 | BX69: 7 | BY69: 7 | BZ69: 9 | CA69: 9 | CB69: 10 | CC69: 11 | CD69: 12 | CE69: 13 | CF69: 14 | CG69: 13 | CH69: 13 | CI69: 12 | CJ69: 12 | CK69: 12
AA70: 2750 | AB70: 35 | AC70: 35 | AD70: 35 | AE70: 35 | AF70: 33 | AG70: 30 | AH70: 30 | AI70: 26 | AJ70: 26 | AK70: 23 | AL70: 19 | AM70: 12 | AN70: 8 | AO70: 5 | AP70: 2 | AQ70: 1 | AR70: -1 | AS70: -2 | AT70: -4 | AU70: -5 | AV70: -7 | AW70: -8 | AX70: -9 | AY70: -10 | AZ70: -10 | BA70: -10 | BB70: -10 | BC70: -10 | BD70: -10 | BE70: -10 | BG70: 7500 | BH70: 0 | BI70: 0 | BJ70: 0 | BK70: 0 | BL70: 1 | BM70: 0 | BN70: 0 | BO70: 0 | BP70: -1 | BQ70: -2 | BR70: -2 | BS70: 3 | BT70: 5 | BU70: 5 | BV70: 5 | BW70: 6 | BX70: 7 | BY70: 8 | BZ70: 10 | CA70: 11 | CB70: 12 | CC70: 13 | CD70: 14 | CE70: 15 | CF70: 16 | CG70: 15 | CH70: 15 | CI70: 13 | CJ70: 13 | CK70: 12
AA71: 3000 | AB71: 35 | AC71: 35 | AD71: 35 | AE71: 35 | AF71: 33 | AG71: 30 | AH71: 30 | AI71: 28 | AJ71: 27 | AK71: 23 | AL71: 20 | AM71: 13 | AN71: 9 | AO71: 5 | AP71: 3 | AQ71: 2 | AR71: 1 | AS71: -1 | AT71: -2 | AU71: -4 | AV71: -5 | AW71: -7 | AX71: -8 | AY71: -9 | AZ71: -10 | BA71: -10 | BB71: -10 | BC71: -10 | BD71: -10 | BE71: -10 | BG71: 8000 | BH71: 0 | BI71: 0 | BJ71: 0 | BK71: 0 | BL71: 1 | BM71: 0 | BN71: 0 | BO71: 0 | BP71: -1 | BQ71: -2 | BR71: -1 | BS71: 4 | BT71: 6 | BU71: 6 | BV71: 6 | BW71: 7 | BX71: 8 | BY71: 9 | BZ71: 12 | CA71: 12 | CB71: 13 | CC71: 14 | CD71: 15 | CE71: 16 | CF71: 18 | CG71: 17 | CH71: 16 | CI71: 14 | CJ71: 14 | CK71: 14
AA72: 3250 | AB72: 35 | AC72: 35 | AD72: 35 | AE72: 35 | AF72: 33 | AG72: 30 | AH72: 29 | AI72: 27 | AJ72: 26 | AK72: 24 | AL72: 21 | AM72: 14 | AN72: 10 | AO72: 6 | AP72: 4 | AQ72: 3 | AR72: 2 | AS72: 1 | AT72: -1 | AU72: -3 | AV72: -4 | AW72: -6 | AX72: -7 | AY72: -8 | AZ72: -10 | BA72: -10 | BB72: -10 | BC72: -10 | BD72: -10 | BE72: -10 | BG72: 8500 | BH72: 0 | BI72: 0 | BJ72: 0 | BK72: 0 | BL72: 1 | BM72: 0 | BN72: 0 | BO72: 0 | BP72: -1 | BQ72: -2 | BR72: -1 | BS72: 5 | BT72: 7 | BU72: 7 | BV72: 7 | BW72: 8 | BX72: 10 | BY72: 11 | BZ72: 13 | CA72: 13 | CB72: 14 | CC72: 15 | CD72: 17 | CE72: 18 | CF72: 20 | CG72: 19 | CH72: 18 | CI72: 16 | CJ72: 15 | CK72: 15
AA73: 3500 | AB73: 35 | AC73: 35 | AD73: 35 | AE73: 35 | AF73: 33 | AG73: 30 | AH73: 27 | AI73: 26 | AJ73: 25 | AK73: 25 | AL73: 22 | AM73: 14 | AN73: 10 | AO73: 7 | AP73: 5 | AQ73: 4 | AR73: 3 | AS73: 2 | AT73: 0 | AU73: -2 | AV73: -3 | AW73: -5 | AX73: -6 | AY73: -8 | AZ73: -9 | BA73: -9 | BB73: -9 | BC73: -9 | BD73: -9 | BE73: -9 | BG73: 11000 | BH73: 0 | BI73: 0 | BJ73: 0 | BK73: 0 | BL73: 1 | BM73: 0 | BN73: 0 | BO73: 0 | BP73: -1 | BQ73: -2 | BR73: 0 | BS73: 7 | BT73: 9 | BU73: 9 | BV73: 10 | BW73: 10 | BX73: 11 | BY73: 12 | BZ73: 14 | CA73: 14 | CB73: 15 | CC73: 16 | CD73: 18 | CE73: 19 | CF73: 21 | CG73: 20 | CH73: 19 | CI73: 17 | CJ73: 16 | CK73: 16
AA74: 3750 | AB74: 35 | AC74: 35 | AD74: 35 | AE74: 35 | AF74: 33 | AG74: 30 | AH74: 27 | AI74: 26 | AJ74: 25 | AK74: 25 | AL74: 22 | AM74: 15 | AN74: 11 | AO74: 8 | AP74: 6 | AQ74: 4 | AR74: 3 | AS74: 1 | AT74: 0 | AU74: -2 | AV74: -3 | AW74: -5 | AX74: -6 | AY74: -8 | AZ74: -9 | BA74: -9 | BB74: -9 | BC74: -9 | BD74: -9 | BE74: -9
AA75: 4000 | AB75: 35 | AC75: 35 | AD75: 35 | AE75: 35 | AF75: 33 | AG75: 30 | AH75: 27 | AI75: 26 | AJ75: 25 | AK75: 25 | AL75: 22 | AM75: 16 | AN75: 12 | AO75: 9 | AP75: 6 | AQ75: 5 | AR75: 2 | AS75: 1 | AT75: 0 | AU75: -2 | AV75: -3 | AW75: -5 | AX75: -6 | AY75: -8 | AZ75: -9 | BA75: -9 | BB75: -9 | BC75: -9 | BD75: -9 | BE75: -9
AA76: 4250 | AB76: 35 | AC76: 35 | AD76: 35 | AE76: 35 | AF76: 33 | AG76: 30 | AH76: 27 | AI76: 26 | AJ76: 25 | AK76: 25 | AL76: 23 | AM76: 16 | AN76: 12 | AO76: 9 | AP76: 6 | AQ76: 5 | AR76: 3 | AS76: 2 | AT76: 1 | AU76: -1 | AV76: -3 | AW76: -4 | AX76: -6 | AY76: -7 | AZ76: -9 | BA76: -9 | BB76: -9 | BC76: -9 | BD76: -9 | BE76: -9
AA77: 4500 | AB77: 35 | AC77: 35 | AD77: 35 | AE77: 35 | AF77: 33 | AG77: 30 | AH77: 27 | AI77: 26 | AJ77: 25 | AK77: 25 | AL77: 23 | AM77: 16 | AN77: 12 | AO77: 9 | AP77: 6 | AQ77: 5 | AR77: 4 | AS77: 3 | AT77: 1 | AU77: -1 | AV77: -2 | AW77: -4 | AX77: -5 | AY77: -7 | AZ77: -8 | BA77: -8 | BB77: -8 | BC77: -8 | BD77: -8 | BE77: -8
AA78: 4750 | AB78: 35 | AC78: 35 | AD78: 35 | AE78: 35 | AF78: 33 | AG78: 30 | AH78: 27 | AI78: 26 | AJ78: 25 | AK78: 25 | AL78: 24 | AM78: 17 | AN78: 12 | AO78: 10 | AP78: 7 | AQ78: 6 | AR78: 5 | AS78: 3 | AT78: 2 | AU78: 0 | AV78: -2 | AW78: -3 | AX78: -5 | AY78: -6 | AZ78: -8 | BA78: -8 | BB78: -8 | BC78: -8 | BD78: -8 | BE78: -8
AA79: 5000 | AB79: 35 | AC79: 35 | AD79: 35 | AE79: 35 | AF79: 33 | AG79: 30 | AH79: 27 | AI79: 26 | AJ79: 25 | AK79: 25 | AL79: 24 | AM79: 17 | AN79: 12 | AO79: 10 | AP79: 7 | AQ79: 6 | AR79: 5 | AS79: 4 | AT79: 2 | AU79: 1 | AV79: -1 | AW79: -3 | AX79: -4 | AY79: -6 | AZ79: -7 | BA79: -7 | BB79: -7 | BC79: -7 | BD79: -7 | BE79: -7
AA80: 5250 | AB80: 35 | AC80: 35 | AD80: 35 | AE80: 35 | AF80: 33 | AG80: 31 | AH80: 29 | AI80: 28 | AJ80: 27 | AK80: 26 | AL80: 24 | AM80: 18 | AN80: 13 | AO80: 11 | AP80: 9 | AQ80: 7 | AR80: 6 | AS80: 5 | AT80: 3 | AU80: 2 | AV80: 0 | AW80: -2 | AX80: -4 | AY80: -5 | AZ80: -7 | BA80: -7 | BB80: -7 | BC80: -7 | BD80: -7 | BE80: -7
AA81: 5500 | AB81: 35 | AC81: 35 | AD81: 35 | AE81: 35 | AF81: 33 | AG81: 32 | AH81: 31 | AI81: 29 | AJ81: 28 | AK81: 26 | AL81: 24 | AM81: 19 | AN81: 14 | AO81: 12 | AP81: 10 | AQ81: 9 | AR81: 7 | AS81: 6 | AT81: 4 | AU81: 3 | AV81: 1 | AW81: -1 | AX81: -3 | AY81: -5 | AZ81: -6 | BA81: -6 | BB81: -6 | BC81: -6 | BD81: -6 | BE81: -6
AA82: 5750 | AB82: 35 | AC82: 35 | AD82: 35 | AE82: 35 | AF82: 34 | AG82: 32 | AH82: 31 | AI82: 30 | AJ82: 29 | AK82: 28 | AL82: 24 | AM82: 18 | AN82: 15 | AO82: 13 | AP82: 11 | AQ82: 10 | AR82: 8 | AS82: 7 | AT82: 5 | AU82: 4 | AV82: 2 | AW82: 1 | AX82: -1 | AY82: -3 | AZ82: -4 | BA82: -4 | BB82: -4 | BC82: -4 | BD82: -4 | BE82: -4
AA83: 6000 | AB83: 38 | AC83: 38 | AD83: 38 | AE83: 38 | AF83: 37 | AG83: 35 | AH83: 34 | AI83: 34 | AJ83: 33 | AK83: 30 | AL83: 25 | AM83: 20 | AN83: 17 | AO83: 15 | AP83: 13 | AQ83: 12 | AR83: 10 | AS83: 9 | AT83: 7 | AU83: 6 | AV83: 4 | AW83: 3 | AX83: 1 | AY83: -1 | AZ83: -2 | BA83: -2 | BB83: -2 | BC83: -2 | BD83: -2 | BE83: -2
AA84: 6250 | AB84: 38 | AC84: 38 | AD84: 38 | AE84: 38 | AF84: 37 | AG84: 36 | AH84: 35 | AI84: 34 | AJ84: 34 | AK84: 34 | AL84: 31 | AM84: 22 | AN84: 19 | AO84: 16 | AP84: 14 | AQ84: 13 | AR84: 11 | AS84: 10 | AT84: 8 | AU84: 7 | AV84: 5 | AW84: 4 | AX84: 2 | AY84: 1 | AZ84: -1 | BA84: -1 | BB84: -1 | BC84: -1 | BD84: -1 | BE84: -1
AA85: 6500 | AB85: 38 | AC85: 38 | AD85: 38 | AE85: 38 | AF85: 37 | AG85: 36 | AH85: 35 | AI85: 34 | AJ85: 34 | AK85: 34 | AL85: 31 | AM85: 22 | AN85: 19 | AO85: 16 | AP85: 14 | AQ85: 13 | AR85: 11 | AS85: 10 | AT85: 8 | AU85: 7 | AV85: 5 | AW85: 4 | AX85: 2 | AY85: 1 | AZ85: -1 | BA85: -1 | BB85: -1 | BC85: -1 | BD85: -1 | BE85: -1
AA86: 6750 | AB86: 38 | AC86: 38 | AD86: 38 | AE86: 38 | AF86: 37 | AG86: 36 | AH86: 35 | AI86: 34 | AJ86: 34 | AK86: 34 | AL86: 31 | AM86: 22 | AN86: 19 | AO86: 16 | AP86: 14 | AQ86: 13 | AR86: 11 | AS86: 10 | AT86: 8 | AU86: 7 | AV86: 5 | AW86: 4 | AX86: 2 | AY86: 1 | AZ86: -1 | BA86: -1 | BB86: -1 | BC86: -1 | BD86: -1 | BE86: -1
AA87: 7000 | AB87: 38 | AC87: 38 | AD87: 38 | AE87: 38 | AF87: 37 | AG87: 36 | AH87: 35 | AI87: 34 | AJ87: 34 | AK87: 34 | AL87: 31 | AM87: 22 | AN87: 19 | AO87: 16 | AP87: 14 | AQ87: 13 | AR87: 11 | AS87: 10 | AT87: 8 | AU87: 7 | AV87: 5 | AW87: 4 | AX87: 2 | AY87: 1 | AZ87: -1 | BA87: -1 | BB87: -1 | BC87: -1 | BD87: -1 | BE87: -1
AA88: 7500 | AB88: 38 | AC88: 38 | AD88: 38 | AE88: 38 | AF88: 37 | AG88: 36 | AH88: 35 | AI88: 34 | AJ88: 34 | AK88: 34 | AL88: 31 | AM88: 22 | AN88: 19 | AO88: 16 | AP88: 14 | AQ88: 13 | AR88: 11 | AS88: 10 | AT88: 8 | AU88: 7 | AV88: 5 | AW88: 4 | AX88: 2 | AY88: 1 | AZ88: -1 | BA88: -1 | BB88: -1 | BC88: -1 | BD88: -1 | BE88: -1

Sheet MIVEC - 20 Cell
U1: +Adv | W1: Smoothing | Z1: + Adv | AB1: 10 | AD1: - Adv | AF1: 10 | AR1: Smoothed MIVEC Map
U2: -Adv | W2: Limits | Z2: =AB1 -> 10 | AD2: =-AF1 -> -10 | AI2: TRUE
U3: 1 | W3: Smoothed MIVEC Map
W4: Load Value
W5: 10 | X5: 20 | Y5: 30 | Z5: 40 | AA5: 50 | AB5: 60 | AC5: 70 | AD5: 80 | AE5: 90 | AF5: 100 | AG5: 120 | AH5: 140 | AI5: 160 | AJ5: 180 | AK5: 200 | AL5: 220 | AM5: 240 | AN5: 260 | AO5: 280 | AP5: 300
U6: RPM | V6: 500 | W6: =72-0.6*IF(AND($AI$2,W80),MIN($AL$23,MAX($AL$24,-$AC$23+W104)),MIN($AL$23,MAX($AL$24,(-$AC$23+MAX(W104+-$Z$2,MIN(W104+-$AD$2,ROUND(AVERAGE(W104,W104,W104,W104,W104:X105),0))))))) -> 0 | X6: =72-0.6*IF(AND($AI$2,X80),MIN($AL$23,MAX($AL$24,-$AC$23+X104)),MIN($AL$23,MAX($AL$24,(-$AC$23+MAX(X104+-$Z$2,MIN(X104+-$AD$2,ROUND(AVERAGE(X104,X104,X104,X104,W104:Y105),0))))))) -> 0 | Y6: 0 | Z6: 0 | AA6: 0 | AB6: 1.2 | AC6: 1.8 | AD6: 3 | AE6: 3 | AF6: 3 | AG6: 3 | AH6: 3 | AI6: 3 | AJ6: 3 | AK6: 3 | AL6: 3 | AM6: 3 | AN6: 3 | AO6: 3 | AP6: =72-0.6*IF(AND($AI$2,AP80),MIN($AL$23,MAX($AL$24,-$AC$23+AP104)),MIN($AL$23,MAX($AL$24,(-$AC$23+MAX(AP104+-$Z$2,MIN(AP104+-$AD$2,ROUND(AVERAGE(AP104,AP104,AP104,AP104,AO104:AP105),0))))))) -> 2.4
V7: 750 | W7: =72-0.6*IF(AND($AI$2,W81),MIN($AL$23,MAX($AL$24,-$AC$23+W105)),MIN($AL$23,MAX($AL$24,(-$AC$23+MAX(W105+-$Z$2,MIN(W105+-$AD$2,ROUND(AVERAGE(W105,W105,W105,W105,W104:X106),0))))))) -> 0 | X7: =72-0.6*IF(AND($AI$2,X81),MIN($AL$23,MAX($AL$24,-$AC$23+X105)),MIN($AL$23,MAX($AL$24,(-$AC$23+MAX(X105+-$Z$2,MIN(X105+-$AD$2,ROUND(AVERAGE(X105,X105,X105,X105,W104:Y106),0))))))) -> 0 | Y7: 0 | Z7: 0.6 | AA7: 0.6 | AB7: 2.4 | AC7: 7.2 | AD7: 9 | AE7: 9.6 | AF7: 9.6 | AG7: 9.6 | AH7: 9.6 | AI7: 9.6 | AJ7: 9.6 | AK7: 9.6 | AL7: 9.6 | AM7: 9.6 | AN7: 9.6 | AO7: 9.6 | AP7: =72-0.6*IF(AND($AI$2,AP81),MIN($AL$23,MAX($AL$24,-$AC$23+AP105)),MIN($AL$23,MAX($AL$24,(-$AC$23+MAX(AP105+-$Z$2,MIN(AP105+-$AD$2,ROUND(AVERAGE(AP105,AP105,AP105,AP105,AO104:AP106),0))))))) -> 9.6
V8: 1000 | W8: 1.2 | X8: =72-0.6*IF(AND($AI$2,X82),MIN($AL$23,MAX($AL$24,-$AC$23+X106)),MIN($AL$23,MAX($AL$24,(-$AC$23+MAX(X106+-$Z$2,MIN(X106+-$AD$2,ROUND(AVERAGE(X106,X106,X106,X106,W105:Y107),0))))))) -> 1.2 | Y8: 1.8 | Z8: 2.4 | AA8: 4.8 | AB8: 6.6 | AC8: 10.8 | AD8: 15.6 | AE8: 16.8 | AF8: 16.8 | AG8: 16.8 | AH8: 16.8 | AI8: 16.8 | AJ8: 16.8 | AK8: 16.8 | AL8: 16.8 | AM8: 16.8 | AN8: 16.8 | AO8: 16.8 | AP8: 17.4
V9: 1250 | W9: 3.6 | X9: =72-0.6*IF(AND($AI$2,X83),MIN($AL$23,MAX($AL$24,-$AC$23+X107)),MIN($AL$23,MAX($AL$24,(-$AC$23+MAX(X107+-$Z$2,MIN(X107+-$AD$2,ROUND(AVERAGE(X107,X107,X107,X107,W106:Y108),0))))))) -> 4.2 | Y9: 6.6 | Z9: 7.8 | AA9: 9 | AB9: 12 | AC9: 15 | AD9: 18 | AE9: 19.2 | AF9: 19.2 | AG9: 19.2 | AH9: 19.2 | AI9: 19.2 | AJ9: 19.2 | AK9: 19.2 | AL9: 19.2 | AM9: 19.2 | AN9: 19.2 | AO9: 19.2 | AP9: 19.2
V10: 1500 | W10: 4.8 | X10: =72-0.6*IF(AND($AI$2,X84),MIN($AL$23,MAX($AL$24,-$AC$23+X108)),MIN($AL$23,MAX($AL$24,(-$AC$23+MAX(X108+-$Z$2,MIN(X108+-$AD$2,ROUND(AVERAGE(X108,X108,X108,X108,W107:Y109),0))))))) -> 6 | Y10: 9 | Z10: 10.8 | AA10: 12 | AB10: 15 | AC10: 18 | AD10: 18.6 | AE10: 19.2 | AF10: 18.6 | AG10: 18.6 | AH10: 18 | AI10: 18 | AJ10: 18 | AK10: 18 | AL10: 18 | AM10: 18 | AN10: 18 | AO10: 18 | AP10: 18
V11: 2000 | W11: 6 | X11: =72-0.6*IF(AND($AI$2,X85),MIN($AL$23,MAX($AL$24,-$AC$23+X109)),MIN($AL$23,MAX($AL$24,(-$AC$23+MAX(X109+-$Z$2,MIN(X109+-$AD$2,ROUND(AVERAGE(X109,X109,X109,X109,W108:Y110),0))))))) -> 7.2 | Y11: 12 | Z11: 13.2 | AA11: 14.4 | AB11: 17.4 | AC11: 18.6 | AD11: 19.2 | AE11: 19.2 | AF11: 18.6 | AG11: 16.2 | AH11: 15.6 | AI11: 15.6 | AJ11: 15.6 | AK11: 15.6 | AL11: 15.6 | AM11: 15.6 | AN11: 15.6 | AO11: 15.6 | AP11: 15.6
V12: 2500 | W12: 8.4 | X12: =72-0.6*IF(AND($AI$2,X86),MIN($AL$23,MAX($AL$24,-$AC$23+X110)),MIN($AL$23,MAX($AL$24,(-$AC$23+MAX(X110+-$Z$2,MIN(X110+-$AD$2,ROUND(AVERAGE(X110,X110,X110,X110,W109:Y111),0))))))) -> 10.2 | Y12: 13.2 | Z12: 14.4 | AA12: 15.6 | AB12: 18 | AC12: 19.2 | AD12: 19.2 | AE12: 18.6 | AF12: 18 | AG12: 15 | AH12: 14.4 | AI12: 14.4 | AJ12: 14.4 | AK12: 14.4 | AL12: 14.4 | AM12: 14.4 | AN12: 14.4 | AO12: 14.4 | AP12: 14.4 | BH12: MAP Difference Comparison
V13: 3000 | W13: 9.6 | X13: =72-0.6*IF(AND($AI$2,X87),MIN($AL$23,MAX($AL$24,-$AC$23+X111)),MIN($AL$23,MAX($AL$24,(-$AC$23+MAX(X111+-$Z$2,MIN(X111+-$AD$2,ROUND(AVERAGE(X111,X111,X111,X111,W110:Y112),0))))))) -> 10.2 | Y13: 12.6 | Z13: 13.8 | AA13: 15.6 | AB13: 18.6 | AC13: 19.2 | AD13: 19.2 | AE13: 18.6 | AF13: 16.8 | AG13: 15.6 | AH13: 15.6 | AI13: 15.6 | AJ13: 15.6 | AK13: 15.6 | AL13: 15.6 | AM13: 15.6 | AN13: 15.6 | AO13: 15.6 | AP13: 15.6 | BI13: 10 | BJ13: 20 | BK13: 30 | BL13: 40 | BM13: 50 | BN13: 60 | BO13: 70 | BP13: 80 | BQ13: 90 | BR13: 100 | BS13: 120 | BT13: 140 | BU13: 160 | BV13: 180 | BW13: 200 | BX13: 220 | BY13: 240 | BZ13: 260 | CA13: 280 | CB13: 300
V14: 3500 | W14: 9.6 | X14: =72-0.6*IF(AND($AI$2,X88),MIN($AL$23,MAX($AL$24,-$AC$23+X112)),MIN($AL$23,MAX($AL$24,(-$AC$23+MAX(X112+-$Z$2,MIN(X112+-$AD$2,ROUND(AVERAGE(X112,X112,X112,X112,W111:Y113),0))))))) -> 10.2 | Y14: 10.2 | Z14: 12 | AA14: 16.8 | AB14: 18.6 | AC14: 19.2 | AD14: 19.2 | AE14: 18.6 | AF14: 18 | AG14: 16.8 | AH14: 16.8 | AI14: 16.8 | AJ14: 18 | AK14: 18.6 | AL14: 19.2 | AM14: 19.2 | AN14: 19.2 | AO14: 19.2 | AP14: 19.2 | BH14: 500 | BI14: =W6-W30 -> 0 | BJ14: 0 | BK14: 0 | BL14: 0 | BM14: 0 | BN14: 1.2 | BO14: 1.8 | BP14: 3 | BQ14: 3 | BR14: 3 | BS14: =AG6-AG30 -> 3 | BT14: 3 | BU14: 3 | BV14: 3 | BW14: 3 | BX14: 3 | BY14: 3 | BZ14: 3 | CA14: 3 | CB14: 2.4
V15: 4000 | W15: 9.6 | X15: =72-0.6*IF(AND($AI$2,X89),MIN($AL$23,MAX($AL$24,-$AC$23+X113)),MIN($AL$23,MAX($AL$24,(-$AC$23+MAX(X113+-$Z$2,MIN(X113+-$AD$2,ROUND(AVERAGE(X113,X113,X113,X113,W112:Y114),0))))))) -> 9.6 | Y15: 9.6 | Z15: 11.4 | AA15: 16.2 | AB15: 18.6 | AC15: 18.6 | AD15: 19.2 | AE15: 18.6 | AF15: 16.2 | AG15: 15.6 | AH15: 15.6 | AI15: 15.6 | AJ15: 16.8 | AK15: 21.6 | AL15: 22.8 | AM15: 22.8 | AN15: 22.8 | AO15: 22.8 | AP15: 22.8 | BH15: 750 | BI15: 0 | BJ15: 0 | BK15: 0 | BL15: 0.6 | BM15: 0.6 | BN15: 2.4 | BO15: -2.4 | BP15: -0.6 | BQ15: 0 | BR15: 0 | BS15: 0 | BT15: 0 | BU15: 0 | BV15: 0 | BW15: 0 | BX15: 0 | BY15: 0 | BZ15: 0 | CA15: 0 | CB15: 0
V16: 4500 | W16: 8.4 | X16: =72-0.6*IF(AND($AI$2,X90),MIN($AL$23,MAX($AL$24,-$AC$23+X114)),MIN($AL$23,MAX($AL$24,(-$AC$23+MAX(X114+-$Z$2,MIN(X114+-$AD$2,ROUND(AVERAGE(X114,X114,X114,X114,W113:Y115),0))))))) -> 8.4 | Y16: 8.4 | Z16: 9.6 | AA16: 13.2 | AB16: 15 | AC16: 18 | AD16: 18 | AE16: 17.4 | AF16: 15 | AG16: 14.4 | AH16: 14.4 | AI16: 14.4 | AJ16: 16.8 | AK16: 21.6 | AL16: 24 | AM16: 24 | AN16: 24 | AO16: 24 | AP16: 24 | BH16: 1000 | BI16: 1.2 | BJ16: 1.2 | BK16: 1.8 | BL16: 2.4 | BM16: 0 | BN16: 1.8 | BO16: 1.2 | BP16: -3.6 | BQ16: -2.4 | BR16: -2.4 | BS16: -2.4 | BT16: -2.4 | BU16: -2.4 | BV16: -2.4 | BW16: -2.4 | BX16: -2.4 | BY16: -2.4 | BZ16: -2.4 | CA16: -2.4 | CB16: -1.8
V17: 5000 | W17: 6 | X17: =72-0.6*IF(AND($AI$2,X91),MIN($AL$23,MAX($AL$24,-$AC$23+X115)),MIN($AL$23,MAX($AL$24,(-$AC$23+MAX(X115+-$Z$2,MIN(X115+-$AD$2,ROUND(AVERAGE(X115,X115,X115,X115,W114:Y116),0))))))) -> 6 | Y17: 6 | Z17: 6 | AA17: 7.8 | AB17: 12.6 | AC17: 13.8 | AD17: 14.4 | AE17: 13.8 | AF17: 13.8 | AG17: 13.2 | AH17: 13.2 | AI17: 13.8 | AJ17: 15.6 | AK17: 21 | AL17: 22.8 | AM17: 22.8 | AN17: 22.8 | AO17: 22.8 | AP17: 22.8 | BH17: 1250 | BI17: -1.2 | BJ17: -0.6 | BK17: -3 | BL17: -1.8 | BM17: -0.6 | BN17: -2.4 | BO17: 0.6 | BP17: -1.2 | BQ17: 0 | BR17: 0 | BS17: 0 | BT17: 0 | BU17: 0 | BV17: 0 | BW17: 0 | BX17: 0 | BY17: 0 | BZ17: 0 | CA17: 0 | CB17: 0
V18: 5500 | W18: 4.8 | X18: =72-0.6*IF(AND($AI$2,X92),MIN($AL$23,MAX($AL$24,-$AC$23+X116)),MIN($AL$23,MAX($AL$24,(-$AC$23+MAX(X116+-$Z$2,MIN(X116+-$AD$2,ROUND(AVERAGE(X116,X116,X116,X116,W115:Y117),0))))))) -> 4.8 | Y18: 4.8 | Z18: 4.8 | AA18: 6 | AB18: 8.4 | AC18: 9.6 | AD18: 9.6 | AE18: 9.6 | AF18: 10.2 | AG18: 10.2 | AH18: 10.8 | AI18: 10.8 | AJ18: 13.8 | AK18: 16.8 | AL18: 18 | AM18: 18 | AN18: 18 | AO18: 18 | AP18: 18 | BH18: 1500 | BI18: 0 | BJ18: 1.2 | BK18: -0.6 | BL18: 1.2 | BM18: 2.4 | BN18: 0.6 | BO18: -1.2 | BP18: -0.6 | BQ18: 0 | BR18: -0.6 | BS18: -0.6 | BT18: -1.2 | BU18: -1.2 | BV18: -1.2 | BW18: -1.2 | BX18: -1.2 | BY18: -1.2 | BZ18: -1.2 | CA18: -1.2 | CB18: -1.2
V19: 6000 | W19: 3.6 | X19: =72-0.6*IF(AND($AI$2,X93),MIN($AL$23,MAX($AL$24,-$AC$23+X117)),MIN($AL$23,MAX($AL$24,(-$AC$23+MAX(X117+-$Z$2,MIN(X117+-$AD$2,ROUND(AVERAGE(X117,X117,X117,X117,W116:Y118),0))))))) -> 3.6 | Y19: 3.6 | Z19: 3.6 | AA19: 4.2 | AB19: 4.2 | AC19: 4.8 | AD19: 4.8 | AE19: 4.8 | AF19: 5.4 | AG19: 7.2 | AH19: 7.2 | AI19: 7.8 | AJ19: 8.4 | AK19: 9 | AL19: 9.6 | AM19: 9.6 | AN19: 9.6 | AO19: 9.6 | AP19: 9.6 | BH19: 2000 | BI19: 1.2 | BJ19: 2.4 | BK19: -2.4 | BL19: -1.2 | BM19: 0 | BN19: -1.8 | BO19: -0.6 | BP19: 0 | BQ19: 0 | BR19: -0.6 | BS19: 1.8 | BT19: 1.2 | BU19: 1.2 | BV19: 1.2 | BW19: 1.2 | BX19: 1.2 | BY19: 1.2 | BZ19: 1.2 | CA19: 1.2 | CB19: 1.2
V20: 6500 | W20: 1.2 | X20: =72-0.6*IF(AND($AI$2,X94),MIN($AL$23,MAX($AL$24,-$AC$23+X118)),MIN($AL$23,MAX($AL$24,(-$AC$23+MAX(X118+-$Z$2,MIN(X118+-$AD$2,ROUND(AVERAGE(X118,X118,X118,X118,W117:Y119),0))))))) -> 1.2 | Y20: 1.2 | Z20: 1.2 | AA20: 1.2 | AB20: 1.2 | AC20: 1.2 | AD20: 1.2 | AE20: 1.2 | AF20: 1.2 | AG20: 1.8 | AH20: 2.4 | AI20: 2.4 | AJ20: 2.4 | AK20: 2.4 | AL20: 2.4 | AM20: 2.4 | AN20: 2.4 | AO20: 2.4 | AP20: 1.8 | BH20: 2500 | BI20: -1.2 | BJ20: 0.6 | BK20: -1.2 | BL20: 0 | BM20: 1.2 | BN20: -1.2 | BO20: 0 | BP20: 0 | BQ20: -0.6 | BR20: -1.2 | BS20: 0.6 | BT20: 0 | BU20: 0 | BV20: 0 | BW20: 0 | BX20: 0 | BY20: 0 | BZ20: 0 | CA20: 0 | CB20: 0
V21: 7000 | W21: =72-0.6*IF(AND($AI$2,W95),MIN($AL$23,MAX($AL$24,-$AC$23+W119)),MIN($AL$23,MAX($AL$24,(-$AC$23+MAX(W119+-$Z$2,MIN(W119+-$AD$2,ROUND(AVERAGE(W119,W119,W119,W119,W118:X119),0))))))) -> 0 | X21: =72-0.6*IF(AND($AI$2,X95),MIN($AL$23,MAX($AL$24,-$AC$23+X119)),MIN($AL$23,MAX($AL$24,(-$AC$23+MAX(X119+-$Z$2,MIN(X119+-$AD$2,ROUND(AVERAGE(X119,X119,X119,X119,W118:Y119),0))))))) -> 0 | Y21: 0 | Z21: 0 | AA21: 0 | AB21: 0 | AC21: 0 | AD21: 0 | AE21: 0 | AF21: 0 | AG21: 0 | AH21: 0 | AI21: 0 | AJ21: 0 | AK21: 0 | AL21: 0 | AM21: 0 | AN21: 0 | AO21: 0 | AP21: =72-0.6*IF(AND($AI$2,AP95),MIN($AL$23,MAX($AL$24,-$AC$23+AP119)),MIN($AL$23,MAX($AL$24,(-$AC$23+MAX(AP119+-$Z$2,MIN(AP119+-$AD$2,ROUND(AVERAGE(AP119,AP119,AP119,AP119,AO118:AP119),0))))))) -> 0 | BH21: 3000 | BI21: =W12-W36 -> -1.2 | BJ21: 0.6 | BK21: -1.2 | BL21: 0 | BM21: 1.2 | BN21: -1.2 | BO21: 0 | BP21: 0 | BQ21: -0.6 | BR21: -1.2 | BS21: =AG12-AG36 -> 0.6 | BT21: 0 | BU21: 0 | BV21: 0 | BW21: 0 | BX21: 0 | BY21: 0 | BZ21: 0 | CA21: 0 | CB21: 0
BH22: 3500 | BI22: 0 | BJ22: 0.6 | BK22: -1.8 | BL22: -0.6 | BM22: 1.2 | BN22: -0.6 | BO22: 0 | BP22: 0 | BQ22: -0.6 | BR22: 2.4 | BS22: 1.2 | BT22: 1.2 | BU22: 1.2 | BV22: 1.2 | BW22: 1.2 | BX22: 1.2 | BY22: 1.2 | BZ22: 1.2 | CA22: 1.2 | CB22: 1.2
W23: Shift Map (offset) | Z23: + Adv | AB23: 120 | AC23: =AB23-120 -> 0 | AG23: Global | AH23: Global | AI23: Min Adv | AL23: 122 | AM23: =72-0.6*AL23 -> -1.2 | BH23: 4000 | BI23: 0 | BJ23: 0.6 | BK23: 0.6 | BL23: 2.4 | BM23: -2.4 | BN23: -0.6 | BO23: 0 | BP23: 0 | BQ23: -0.6 | BR23: -1.2 | BS23: -2.4 | BT23: -2.4 | BU23: -2.4 | BV23: -1.2 | BW23: -0.6 | BX23: 0 | BY23: 0 | BZ23: 0 | CA23: 0 | CB23: 0
Z24: - Adv | AG24: Limits | AI24: Max Adv | AL24: 72 | AM24: =72-0.6*AL24 -> 28.8 | BH24: 4500 | BI24: 0 | BJ24: 0 | BK24: 0 | BL24: 1.8 | BM24: -3 | BN24: -0.6 | BO24: -0.6 | BP24: 0 | BQ24: -0.6 | BR24: 1.8 | BS24: 1.2 | BT24: 1.2 | BU24: 1.2 | BV24: 2.4 | BW24: -2.4 | BX24: -1.2 | BY24: -1.2 | BZ24: -1.2 | CA24: -1.2 | CB24: -1.2
BH25: 5000 | BI25: -1.2 | BJ25: -1.2 | BK25: -1.2 | BL25: 0 | BM25: -1.2 | BN25: 0.6 | BO25: -1.2 | BP25: -1.2 | BQ25: -1.8 | BR25: 0.6 | BS25: 0 | BT25: 0 | BU25: 0 | BV25: 2.4 | BW25: -2.4 | BX25: 0 | BY25: 0 | BZ25: 0 | CA25: 0 | CB25: 0
BH26: 5500 | BI26: 1.2 | BJ26: 1.2 | BK26: 1.2 | BL26: 1.2 | BM26: 3 | BN26: -1.8 | BO26: -0.6 | BP26: 0 | BQ26: -0.6 | BR26: -0.6 | BS26: -1.2 | BT26: -1.2 | BU26: -0.6 | BV26: 1.2 | BW26: -3 | BX26: -1.2 | BY26: -1.2 | BZ26: -1.2 | CA26: -1.2 | CB26: -1.2
U27: 2 | W27: Modded MIVEC Map | BH27: 6000 | BI27: 0 | BJ27: 0 | BK27: 0 | BL27: 0 | BM27: 1.2 | BN27: -1.2 | BO27: 0 | BP27: 0 | BQ27: 0 | BR27: 0.6 | BS27: 0.6 | BT27: 1.2 | BU27: 1.2 | BV27: -0.6 | BW27: -2.4 | BX27: -1.2 | BY27: -1.2 | BZ27: -1.2 | CA27: -1.2 | CB27: -1.2
W28: Load Value | BH28: 6500 | BI28: -1.2 | BJ28: -1.2 | BK28: -1.2 | BL28: -1.2 | BM28: -0.6 | BN28: -0.6 | BO28: 0 | BP28: 0 | BQ28: 0 | BR28: 0.6 | BS28: -2.4 | BT28: -2.4 | BU28: -1.8 | BV28: -1.2 | BW28: -0.6 | BX28: 0 | BY28: 0 | BZ28: 0 | CA28: 0 | CB28: 0
W29: 10 | X29: 20 | Y29: 30 | Z29: 40 | AA29: 50 | AB29: 60 | AC29: 70 | AD29: 80 | AE29: 90 | AF29: 100 | AG29: 120 | AH29: 140 | AI29: 160 | AJ29: 180 | AK29: 200 | AL29: 220 | AM29: 240 | AN29: 260 | AO29: 280 | AP29: 300 | BH29: 7000 | BI29: =W21-W45 -> 0 | BJ29: 0 | BK29: 0 | BL29: 0 | BM29: 0 | BN29: 0 | BO29: 0 | BP29: 0 | BQ29: 0 | BR29: 0 | BS29: 0 | BT29: 0 | BU29: 0 | BV29: 0 | BW29: 0 | BX29: 0 | BY29: 0 | BZ29: 0 | CA29: 0 | CB29: 0
U30: RPM | V30: 500 | W30: 0 | X30: 0 | Y30: 0 | Z30: 0 | AA30: 0 | AB30: 0 | AC30: 0 | AD30: 0 | AE30: 0 | AF30: 0 | AG30: 0 | AH30: 0 | AI30: 0 | AJ30: 0 | AK30: 0 | AL30: 0 | AM30: 0 | AN30: 0 | AO30: 0 | AP30: 0
V31: 750 | W31: 0 | X31: 0 | Y31: 0 | Z31: 0 | AA31: 0 | AB31: 0 | AC31: 9.6 | AD31: 9.6 | AE31: 9.6 | AF31: 9.6 | AG31: 9.6 | AH31: 9.6 | AI31: 9.6 | AJ31: 9.6 | AK31: 9.6 | AL31: 9.6 | AM31: 9.6 | AN31: 9.6 | AO31: 9.6 | AP31: 9.6
V32: 1000 | W32: 0 | X32: 0 | Y32: 0 | Z32: 0 | AA32: 4.8 | AB32: 4.8 | AC32: 9.6 | AD32: 19.2 | AE32: 19.2 | AF32: 19.2 | AG32: 19.2 | AH32: 19.2 | AI32: 19.2 | AJ32: 19.2 | AK32: 19.2 | AL32: 19.2 | AM32: 19.2 | AN32: 19.2 | AO32: 19.2 | AP32: 19.2
V33: 1250 | W33: 4.8 | X33: 4.8 | Y33: 9.6 | Z33: 9.6 | AA33: 9.6 | AB33: 14.4 | AC33: 14.4 | AD33: 19.2 | AE33: 19.2 | AF33: 19.2 | AG33: 19.2 | AH33: 19.2 | AI33: 19.2 | AJ33: 19.2 | AK33: 19.2 | AL33: 19.2 | AM33: 19.2 | AN33: 19.2 | AO33: 19.2 | AP33: 19.2
V34: 1500 | W34: 4.8 | X34: 4.8 | Y34: 9.6 | Z34: 9.6 | AA34: 9.6 | AB34: 14.4 | AC34: 19.2 | AD34: 19.2 | AE34: 19.2 | AF34: 19.2 | AG34: 19.2 | AH34: 19.2 | AI34: 19.2 | AJ34: 19.2 | AK34: 19.2 | AL34: 19.2 | AM34: 19.2 | AN34: 19.2 | AO34: 19.2 | AP34: 19.2
V35: 2000 | W35: 4.8 | X35: 4.8 | Y35: 14.4 | Z35: 14.4 | AA35: 14.4 | AB35: 19.2 | AC35: 19.2 | AD35: 19.2 | AE35: 19.2 | AF35: 19.2 | AG35: 14.4 | AH35: 14.4 | AI35: 14.4 | AJ35: 14.4 | AK35: 14.4 | AL35: 14.4 | AM35: 14.4 | AN35: 14.4 | AO35: 14.4 | AP35: 14.4
V36: 2500 | W36: 9.6 | X36: 9.6 | Y36: 14.4 | Z36: 14.4 | AA36: 14.4 | AB36: 19.2 | AC36: 19.2 | AD36: 19.2 | AE36: 19.2 | AF36: 19.2 | AG36: 14.4 | AH36: 14.4 | AI36: 14.4 | AJ36: 14.4 | AK36: 14.4 | AL36: 14.4 | AM36: 14.4 | AN36: 14.4 | AO36: 14.4 | AP36: 14.4
V37: 3000 | W37: 9.6 | X37: 9.6 | Y37: 14.4 | Z37: 14.4 | AA37: 14.4 | AB37: 19.2 | AC37: 19.2 | AD37: 19.2 | AE37: 19.2 | AF37: 14.4 | AG37: 14.4 | AH37: 14.4 | AI37: 14.4 | AJ37: 14.4 | AK37: 14.4 | AL37: 14.4 | AM37: 14.4 | AN37: 14.4 | AO37: 14.4 | AP37: 14.4
V38: 3500 | W38: 9.6 | X38: 9.6 | Y38: 9.6 | Z38: 9.6 | AA38: 19.2 | AB38: 19.2 | AC38: 19.2 | AD38: 19.2 | AE38: 19.2 | AF38: 19.2 | AG38: 19.2 | AH38: 19.2 | AI38: 19.2 | AJ38: 19.2 | AK38: 19.2 | AL38: 19.2 | AM38: 19.2 | AN38: 19.2 | AO38: 19.2 | AP38: 19.2
V39: 4000 | W39: 9.6 | X39: 9.6 | Y39: 9.6 | Z39: 9.6 | AA39: 19.2 | AB39: 19.2 | AC39: 19.2 | AD39: 19.2 | AE39: 19.2 | AF39: 14.4 | AG39: 14.4 | AH39: 14.4 | AI39: 14.4 | AJ39: 14.4 | AK39: 24 | AL39: 24 | AM39: 24 | AN39: 24 | AO39: 24 | AP39: 24 | AR39: Modded MIVEC Map
V40: 4500 | W40: 9.6 | X40: 9.6 | Y40: 9.6 | Z40: 9.6 | AA40: 14.4 | AB40: 14.4 | AC40: 19.2 | AD40: 19.2 | AE40: 19.2 | AF40: 14.4 | AG40: 14.4 | AH40: 14.4 | AI40: 14.4 | AJ40: 14.4 | AK40: 24 | AL40: 24 | AM40: 24 | AN40: 24 | AO40: 24 | AP40: 24 | BH40: MAP Difference Comparison
V41: 5000 | W41: 4.8 | X41: 4.8 | Y41: 4.8 | Z41: 4.8 | AA41: 4.8 | AB41: 14.4 | AC41: 14.4 | AD41: 14.4 | AE41: 14.4 | AF41: 14.4 | AG41: 14.4 | AH41: 14.4 | AI41: 14.4 | AJ41: 14.4 | AK41: 24 | AL41: 24 | AM41: 24 | AN41: 24 | AO41: 24 | AP41: 24 | BI41: 10 | BJ41: 20 | BK41: 30 | BL41: 40 | BM41: 50 | BN41: 60 | BO41: 70 | BP41: 80 | BQ41: 90 | BR41: 100 | BS41: 120 | BT41: 140 | BU41: 160 | BV41: 180 | BW41: 200 | BX41: 220 | BY41: 240 | BZ41: 260 | CA41: 280 | CB41: 300
V42: 5500 | W42: 4.8 | X42: 4.8 | Y42: 4.8 | Z42: 4.8 | AA42: 4.8 | AB42: 9.6 | AC42: 9.6 | AD42: 9.6 | AE42: 9.6 | AF42: 9.6 | AG42: 9.6 | AH42: 9.6 | AI42: 9.6 | AJ42: 14.4 | AK42: 19.2 | AL42: 19.2 | AM42: 19.2 | AN42: 19.2 | AO42: 19.2 | AP42: 19.2 | BH42: 500 | BI42: =W30-W55 -> 0 | BJ42: 0 | BK42: 0 | BL42: 0 | BM42: 0 | BN42: 0 | BO42: 0 | BP42: 0 | BQ42: 0 | BR42: 0 | BS42: =AG30-AG55 -> 0 | BT42: 0 | BU42: 0 | BV42: 0 | BW42: 0 | BX42: 0 | BY42: 0 | BZ42: 0 | CA42: 0 | CB42: 0
V43: 6000 | W43: 4.8 | X43: 4.8 | Y43: 4.8 | Z43: 4.8 | AA43: 4.8 | AB43: 4.8 | AC43: 4.8 | AD43: 4.8 | AE43: 4.8 | AF43: 4.8 | AG43: 9.6 | AH43: 9.6 | AI43: 9.6 | AJ43: 9.6 | AK43: 9.6 | AL43: 9.6 | AM43: 9.6 | AN43: 9.6 | AO43: 9.6 | AP43: 9.6 | BH43: 750 | BI43: 0 | BJ43: 0 | BK43: 0 | BL43: 0 | BM43: 0 | BN43: 0 | BO43: 0 | BP43: 0 | BQ43: 0 | BR43: 0 | BS43: 0 | BT43: 0 | BU43: 0 | BV43: 0 | BW43: 0 | BX43: 0 | BY43: 0 | BZ43: 0 | CA43: 0 | CB43: 0
V44: 6500 | W44: 0 | X44: 0 | Y44: 0 | Z44: 0 | AA44: 0 | AB44: 0 | AC44: 0 | AD44: 0 | AE44: 0 | AF44: 0 | AG44: 0 | AH44: 0 | AI44: 0 | AJ44: 0 | AK44: 0 | AL44: 0 | AM44: 0 | AN44: 0 | AO44: 0 | AP44: 0 | BH44: 1000 | BI44: 0 | BJ44: 0 | BK44: 0 | BL44: 0 | BM44: 0 | BN44: 0 | BO44: 0 | BP44: 0 | BQ44: 0 | BR44: 0 | BS44: 0 | BT44: 0 | BU44: 0 | BV44: 0 | BW44: 0 | BX44: 0 | BY44: 0 | BZ44: 0 | CA44: 0 | CB44: 0
V45: 7000 | W45: 0 | X45: 0 | Y45: 0 | Z45: 0 | AA45: 0 | AB45: 0 | AC45: 0 | AD45: 0 | AE45: 0 | AF45: 0 | AG45: 0 | AH45: 0 | AI45: 0 | AJ45: 0 | AK45: 0 | AL45: 0 | AM45: 0 | AN45: 0 | AO45: 0 | AP45: 0 | BH45: 1250 | BI45: 0 | BJ45: 0 | BK45: 0 | BL45: 0 | BM45: 0 | BN45: 0 | BO45: 0 | BP45: 0 | BQ45: 0 | BR45: 0 | BS45: 0 | BT45: 0 | BU45: 0 | BV45: 0 | BW45: 0 | BX45: 0 | BY45: 0 | BZ45: 0 | CA45: 0 | CB45: 0
BH46: 1500 | BI46: 0 | BJ46: 0 | BK46: 0 | BL46: 0 | BM46: 0 | BN46: 0 | BO46: 0 | BP46: 0 | BQ46: 0 | BR46: 0 | BS46: 0 | BT46: 0 | BU46: 0 | BV46: 0 | BW46: 0 | BX46: 0 | BY46: 0 | BZ46: 0 | CA46: 0 | CB46: 0
BH47: 2000 | BI47: 0 | BJ47: 0 | BK47: 0 | BL47: 0 | BM47: 0 | BN47: 0 | BO47: 0 | BP47: 0 | BQ47: 0 | BR47: 0 | BS47: 0 | BT47: 0 | BU47: 0 | BV47: 0 | BW47: 0 | BX47: 0 | BY47: 0 | BZ47: 0 | CA47: 0 | CB47: 0
BH48: 2500 | BI48: =W35-W60 -> 0 | BJ48: =X35-X60 -> 0 | BK48: =Y35-Y60 -> 0 | BL48: =Z35-Z60 -> 0 | BM48: =AA35-AA60 -> 0 | BN48: =AB35-AB60 -> 0 | BO48: =AC35-AC60 -> 0 | BP48: =AD35-AD60 -> 0 | BQ48: =AE35-AE60 -> 0 | BR48: =AF35-AF60 -> 0 | BS48: =AG35-AG60 -> 0 | BT48: =AH35-AH60 -> 0 | BU48: =AI35-AI60 -> 0 | BV48: =AJ35-AJ60 -> 0 | BW48: =AK35-AK60 -> 0 | BX48: =AL35-AL60 -> 0 | BY48: =AM35-AM60 -> 0 | BZ48: =AN35-AN60 -> 0 | CA48: =AO35-AO60 -> 0 | CB48: =AP35-AP60 -> 0
BH49: 3000 | BI49: 0 | BJ49: 0 | BK49: 0 | BL49: 0 | BM49: 0 | BN49: 0 | BO49: 0 | BP49: 0 | BQ49: 0 | BR49: 0 | BS49: 0 | BT49: 0 | BU49: 0 | BV49: 0 | BW49: 0 | BX49: 0 | BY49: 0 | BZ49: 0 | CA49: 0 | CB49: 0
BH50: 3500 | BI50: 0 | BJ50: 0 | BK50: 0 | BL50: 0 | BM50: 0 | BN50: 0 | BO50: 0 | BP50: 0 | BQ50: 0 | BR50: 0 | BS50: 0 | BT50: 0 | BU50: 0 | BV50: 0 | BW50: 0 | BX50: 0 | BY50: 0 | BZ50: 0 | CA50: 0 | CB50: 0
BH51: 4000 | BI51: 0 | BJ51: 0 | BK51: 0 | BL51: 0 | BM51: 0 | BN51: 0 | BO51: 0 | BP51: 0 | BQ51: 0 | BR51: 0 | BS51: 0 | BT51: 0 | BU51: 0 | BV51: 0 | BW51: 0 | BX51: 0 | BY51: 0 | BZ51: 0 | CA51: 0 | CB51: 0
U52: 3 | W52: Stock / Original MIVEC Map | BH52: 4500 | BI52: 0 | BJ52: 0 | BK52: 0 | BL52: 0 | BM52: 0 | BN52: 0 | BO52: 0 | BP52: 0 | BQ52: 0 | BR52: 0 | BS52: 0 | BT52: 0 | BU52: 0 | BV52: 0 | BW52: 0 | BX52: 0 | BY52: 0 | BZ52: 0 | CA52: 0 | CB52: 0
W53: Load Value | BH53: 5000 | BI53: 0 | BJ53: 0 | BK53: 0 | BL53: 0 | BM53: 0 | BN53: 0 | BO53: 0 | BP53: 0 | BQ53: 0 | BR53: 0 | BS53: 0 | BT53: 0 | BU53: 0 | BV53: 0 | BW53: 0 | BX53: 0 | BY53: 0 | BZ53: 0 | CA53: 0 | CB53: 0
W54: 10 | X54: 20 | Y54: 30 | Z54: 40 | AA54: 50 | AB54: 60 | AC54: 70 | AD54: 80 | AE54: 90 | AF54: 100 | AG54: 120 | AH54: 140 | AI54: 160 | AJ54: 180 | AK54: 200 | AL54: 220 | AM54: 240 | AN54: 260 | AO54: 280 | AP54: 300 | BH54: 5500 | BI54: 0 | BJ54: 0 | BK54: 0 | BL54: 0 | BM54: 0 | BN54: 0 | BO54: 0 | BP54: 0 | BQ54: 0 | BR54: 0 | BS54: 0 | BT54: 0 | BU54: 0 | BV54: 0 | BW54: 0 | BX54: 0 | BY54: 0 | BZ54: 0 | CA54: 0 | CB54: 0
U55: RPM | V55: 500 | W55: 0 | X55: 0 | Y55: 0 | Z55: 0 | AA55: 0 | AB55: 0 | AC55: 0 | AD55: 0 | AE55: 0 | AF55: 0 | AG55: 0 | AH55: 0 | AI55: 0 | AJ55: 0 | AK55: 0 | AL55: 0 | AM55: 0 | AN55: 0 | AO55: 0 | AP55: 0 | BH55: 6000 | BI55: 0 | BJ55: 0 | BK55: 0 | BL55: 0 | BM55: 0 | BN55: 0 | BO55: 0 | BP55: 0 | BQ55: 0 | BR55: 0 | BS55: 0 | BT55: 0 | BU55: 0 | BV55: 0 | BW55: 0 | BX55: 0 | BY55: 0 | BZ55: 0 | CA55: 0 | CB55: 0
V56: 750 | W56: 0 | X56: 0 | Y56: 0 | Z56: 0 | AA56: 0 | AB56: 0 | AC56: 9.6 | AD56: 9.6 | AE56: 9.6 | AF56: 9.6 | AG56: 9.6 | AH56: 9.6 | AI56: 9.6 | AJ56: 9.6 | AK56: 9.6 | AL56: 9.6 | AM56: 9.6 | AN56: 9.6 | AO56: 9.6 | AP56: 9.6 | BH56: 6500 | BI56: 0 | BJ56: 0 | BK56: 0 | BL56: 0 | BM56: 0 | BN56: 0 | BO56: 0 | BP56: 0 | BQ56: 0 | BR56: 0 | BS56: 0 | BT56: 0 | BU56: 0 | BV56: 0 | BW56: 0 | BX56: 0 | BY56: 0 | BZ56: 0 | CA56: 0 | CB56: 0
V57: 1000 | W57: 0 | X57: 0 | Y57: 0 | Z57: 0 | AA57: 4.8 | AB57: 4.8 | AC57: 9.6 | AD57: 19.2 | AE57: 19.2 | AF57: 19.2 | AG57: 19.2 | AH57: 19.2 | AI57: 19.2 | AJ57: 19.2 | AK57: 19.2 | AL57: 19.2 | AM57: 19.2 | AN57: 19.2 | AO57: 19.2 | AP57: 19.2 | BH57: 7000 | BI57: =W45-W70 -> 0 | BJ57: 0 | BK57: 0 | BL57: 0 | BM57: 0 | BN57: 0 | BO57: 0 | BP57: 0 | BQ57: 0 | BR57: 0 | BS57: 0 | BT57: 0 | BU57: 0 | BV57: 0 | BW57: 0 | BX57: 0 | BY57: 0 | BZ57: 0 | CA57: 0 | CB57: 0
V58: 1250 | W58: 4.8 | X58: 4.8 | Y58: 9.6 | Z58: 9.6 | AA58: 9.6 | AB58: 14.4 | AC58: 14.4 | AD58: 19.2 | AE58: 19.2 | AF58: 19.2 | AG58: 19.2 | AH58: 19.2 | AI58: 19.2 | AJ58: 19.2 | AK58: 19.2 | AL58: 19.2 | AM58: 19.2 | AN58: 19.2 | AO58: 19.2 | AP58: 19.2
V59: 1500 | W59: 4.8 | X59: 4.8 | Y59: 9.6 | Z59: 9.6 | AA59: 9.6 | AB59: 14.4 | AC59: 19.2 | AD59: 19.2 | AE59: 19.2 | AF59: 19.2 | AG59: 19.2 | AH59: 19.2 | AI59: 19.2 | AJ59: 19.2 | AK59: 19.2 | AL59: 19.2 | AM59: 19.2 | AN59: 19.2 | AO59: 19.2 | AP59: 19.2
V60: 2000 | W60: 4.8 | X60: 4.8 | Y60: 14.4 | Z60: 14.4 | AA60: 14.4 | AB60: 19.2 | AC60: 19.2 | AD60: 19.2 | AE60: 19.2 | AF60: 19.2 | AG60: 14.4 | AH60: 14.4 | AI60: 14.4 | AJ60: 14.4 | AK60: 14.4 | AL60: 14.4 | AM60: 14.4 | AN60: 14.4 | AO60: 14.4 | AP60: 14.4
V61: 2500 | W61: 9.6 | X61: 9.6 | Y61: 14.4 | Z61: 14.4 | AA61: 14.4 | AB61: 19.2 | AC61: 19.2 | AD61: 19.2 | AE61: 19.2 | AF61: 19.2 | AG61: 14.4 | AH61: 14.4 | AI61: 14.4 | AJ61: 14.4 | AK61: 14.4 | AL61: 14.4 | AM61: 14.4 | AN61: 14.4 | AO61: 14.4 | AP61: 14.4
V62: 3000 | W62: 9.6 | X62: 9.6 | Y62: 14.4 | Z62: 14.4 | AA62: 14.4 | AB62: 19.2 | AC62: 19.2 | AD62: 19.2 | AE62: 19.2 | AF62: 14.4 | AG62: 14.4 | AH62: 14.4 | AI62: 14.4 | AJ62: 14.4 | AK62: 14.4 | AL62: 14.4 | AM62: 14.4 | AN62: 14.4 | AO62: 14.4 | AP62: 14.4
V63: 3500 | W63: 9.6 | X63: 9.6 | Y63: 9.6 | Z63: 9.6 | AA63: 19.2 | AB63: 19.2 | AC63: 19.2 | AD63: 19.2 | AE63: 19.2 | AF63: 19.2 | AG63: 19.2 | AH63: 19.2 | AI63: 19.2 | AJ63: 19.2 | AK63: 19.2 | AL63: 19.2 | AM63: 19.2 | AN63: 19.2 | AO63: 19.2 | AP63: 19.2
V64: 4000 | W64: 9.6 | X64: 9.6 | Y64: 9.6 | Z64: 9.6 | AA64: 19.2 | AB64: 19.2 | AC64: 19.2 | AD64: 19.2 | AE64: 19.2 | AF64: 14.4 | AG64: 14.4 | AH64: 14.4 | AI64: 14.4 | AJ64: 14.4 | AK64: 24 | AL64: 24 | AM64: 24 | AN64: 24 | AO64: 24 | AP64: 24
V65: 4500 | W65: 9.6 | X65: 9.6 | Y65: 9.6 | Z65: 9.6 | AA65: 14.4 | AB65: 14.4 | AC65: 19.2 | AD65: 19.2 | AE65: 19.2 | AF65: 14.4 | AG65: 14.4 | AH65: 14.4 | AI65: 14.4 | AJ65: 14.4 | AK65: 24 | AL65: 24 | AM65: 24 | AN65: 24 | AO65: 24 | AP65: 24
V66: 5000 | W66: 4.8 | X66: 4.8 | Y66: 4.8 | Z66: 4.8 | AA66: 4.8 | AB66: 14.4 | AC66: 14.4 | AD66: 14.4 | AE66: 14.4 | AF66: 14.4 | AG66: 14.4 | AH66: 14.4 | AI66: 14.4 | AJ66: 14.4 | AK66: 24 | AL66: 24 | AM66: 24 | AN66: 24 | AO66: 24 | AP66: 24
V67: 5500 | W67: 4.8 | X67: 4.8 | Y67: 4.8 | Z67: 4.8 | AA67: 4.8 | AB67: 9.6 | AC67: 9.6 | AD67: 9.6 | AE67: 9.6 | AF67: 9.6 | AG67: 9.6 | AH67: 9.6 | AI67: 9.6 | AJ67: 14.4 | AK67: 19.2 | AL67: 19.2 | AM67: 19.2 | AN67: 19.2 | AO67: 19.2 | AP67: 19.2
V68: 6000 | W68: 4.8 | X68: 4.8 | Y68: 4.8 | Z68: 4.8 | AA68: 4.8 | AB68: 4.8 | AC68: 4.8 | AD68: 4.8 | AE68: 4.8 | AF68: 4.8 | AG68: 9.6 | AH68: 9.6 | AI68: 9.6 | AJ68: 9.6 | AK68: 9.6 | AL68: 9.6 | AM68: 9.6 | AN68: 9.6 | AO68: 9.6 | AP68: 9.6
V69: 6500 | W69: 0 | X69: 0 | Y69: 0 | Z69: 0 | AA69: 0 | AB69: 0 | AC69: 0 | AD69: 0 | AE69: 0 | AF69: 0 | AG69: 0 | AH69: 0 | AI69: 0 | AJ69: 0 | AK69: 0 | AL69: 0 | AM69: 0 | AN69: 0 | AO69: 0 | AP69: 0
V70: 7000 | W70: 0 | X70: 0 | Y70: 0 | Z70: 0 | AA70: 0 | AB70: 0 | AC70: 0 | AD70: 0 | AE70: 0 | AF70: 0 | AG70: 0 | AH70: 0 | AI70: 0 | AJ70: 0 | AK70: 0 | AL70: 0 | AM70: 0 | AN70: 0 | AO70: 0 | AP70: 0
U77: 4 | W77: Identify cells you don't want smoothed 1 = Yes 0 = No
W78: =W28 -> Load Value
W79: 10 | X79: 20 | Y79: 30 | Z79: 40 | AA79: 50 | AB79: 60 | AC79: 70 | AD79: 80 | AE79: 90 | AF79: 100 | AG79: 120 | AH79: 140 | AI79: 160 | AJ79: 180 | AK79: 200 | AL79: 220 | AM79: 240 | AN79: 260 | AO79: 280 | AP79: 300
U80: =U30 -> RPM | V80: 500 | W80: 0 | X80: 0 | Y80: 0 | Z80: 0 | AA80: 0 | AB80: 0 | AC80: 0 | AD80: 0 | AE80: 0 | AF80: 0 | AG80: 0 | AH80: 0 | AI80: 0 | AJ80: 0 | AK80: 0 | AL80: 0 | AM80: 0 | AN80: 0 | AO80: 0 | AP80: 0
V81: 750 | W81: 0 | X81: 0 | Y81: 0 | Z81: 0 | AA81: 0 | AB81: 0 | AC81: 0 | AD81: 0 | AE81: 0 | AF81: 0 | AG81: 0 | AH81: 0 | AI81: 0 | AJ81: 0 | AK81: 0 | AL81: 0 | AM81: 0 | AN81: 0 | AO81: 0 | AP81: 0
V82: 1000 | W82: 0 | X82: 0 | Y82: 0 | Z82: 0 | AA82: 0 | AB82: 0 | AC82: 0 | AD82: 0 | AE82: 0 | AF82: 0 | AG82: 0 | AH82: 0 | AI82: 0 | AJ82: 0 | AK82: 0 | AL82: 0 | AM82: 0 | AN82: 0 | AO82: 0 | AP82: 0
V83: 1250 | W83: 0 | X83: 0 | Y83: 0 | Z83: 0 | AA83: 0 | AB83: 0 | AC83: 0 | AD83: 0 | AE83: 0 | AF83: 0 | AG83: 0 | AH83: 0 | AI83: 0 | AJ83: 0 | AK83: 0 | AL83: 0 | AM83: 0 | AN83: 0 | AO83: 0 | AP83: 0
